Workbook

Sheet Contents
A1: 80 | M1: ESC USE ONLY
D2: ESSENTIAL SERVICES COMMISSION
D3: Water Price Review
D4: Financial Model Template
B7: Table of Contents | F7: Water Business: | H7: =+N24 -> Lower Murray Water - Rural | I7: =+O24 -> LMW-R
B8: Section & Sheet Titles | F8: Regulatory Period: | H8: 2023-24 to 2027-28 (Fifth) | N8: [Decision] | O8: [Month] | P8: [Year] | Q8: [Version]
F9: Model Name: | H9: =I7&"_Price Review Template_"&O9&P9&Q9 -> LMW-R_Price Review Template_Oct2021 - v1 | N9: Draft | O9: Oct | P9: 2021 | Q9: - v1 | R9: << Select
B10: 1 | C10: Model Quality Check | F10: Decision type: | H10: =+N9&" Decision" -> Draft Decision | N10: Draft | O10: Jan | P10: 2016 | Q10: - v1
B11: 2 | C11: Key Assumptions Price Control | N11: Final | O11: Feb | P11: 2017 | Q11: - v1.2
B12: 3 | C12: Expenditure - Detail | F12: Model Key: | O12: Mar | P12: 2018 | Q12: - v3
B13: 4 | C13: Operating Expenditure - Forecast | O13: Apr | P13: 2019 | Q13: - v3.1
B14: 5 | C14: Operating Expenditure - Breakdown | G14: BLUE | H14: =+I7&" - DATA INPUT CELL" -> LMW-R - DATA INPUT CELL | O14: May | P14: 2020 | Q14: - v4
B15: 6 | C15: Capital Expenditure - Forecast Input | O15: Jun | P15: 2021 | Q15: - v4.1
B16: 7 | C16: Capital Expenditure - Asset Category Breakdown | G16: PURPLE | H16: NOTES / INSTRUCTIONS | O16: Jul | P16: 2022 | Q16: - v5
B17: 8 | C17: Expenditure Summary | O17: Aug | P17: 2023 | Q17: - v5.1
B18: 9 | C18: Rolled forward regulatory asset base (RAB) | G18: GREY | H18: MODEL PARAMETERS / ASSUMPTIONS | O18: Sep | Q18: - v6
B19: 10 | C19: Previous period adjustments | O19: Oct | Q19: - v6.1
B20: 11 | C20: Revenue forecast (price caps) | G20: WHITE | H20: FORMULA / HARDCODED VALUES | O20: Nov | Q20: - v7
B21: 12 | C21: Revenue forecast (tariff basket) | O21: Dec | Q21: - v7.1
B22: 13 | C22: Non Prescribed Services | G22: ORANGE | H22: FORMULA DIFFERENT TO ADJACENT CELL
B23: 14 | C23: Cash, debt and tax assumptions | N23: [Business]
B24: 15 | C24: Revenue requirement detail | G24: GREEN | H24: DATA FROM 2018 DECISION OR PERFORMANCE REPORT | N24: Lower Murray Water - Rural | O24: =+VLOOKUP(N24,N25:O42,2,FALSE) -> LMW-R
B25: 16 | C25: Financial indicators | N25: Barwon Water | O25: BW | P25: Urban model
B26: 17 | C26: Outcomes | G26: RED | H26: ERROR CHECK | N26: Central Highlands Water | O26: CHW | P26: Urban model
B27: 18 | C27: Guaranteed Service Levels (GSL) | N27: Greater Western Water | O27: GWW | P27: Urban model
B28: 19 | C28: Dashboard - Pricing | N28: Coliban Water | O28: CW | P28: Urban model
B29: 20 | C29: Dashboard - Opex | N29: East Gippsland Water | O29: EGW | P29: Urban model
B30: 21 | C30: Dashboard - Capex | N30: Gippsland Water | O30: CGW | P30: Urban model
B31: 22 | C31: Dashboard - Data | N31: Goulburn Valley Water | O31: GVW | P31: Urban model
N32: GWM Water | O32: GWMW | P32: GWMW model
N33: Lower Murray Water - Urban | O33: LMW-U | P33: Urban model
M34: >>>> | N34: Lower Murray Water - Rural | O34: LMW-R | P34: LMW-R model
N35: North East Water | O35: NEW | P35: Urban model
N36: South East Water | O36: SEW | P36: Urban model
N37: South Gippsland Water | O37: SGW | P37: Urban model
N38: Southern Rural Water | O38: SRW | P38: SRW model
N39: Wannon Water | O39: WNW | P39: Urban model
N40: Westernport Water | O40: WPW | P40: Urban model
N41: Yarra Valley Water | O41: YVW | P41: Urban model
P42: Urban model

Sheet Adjustments log (hidden)
A3: 1 | B3: Operating expenditure
B4: $m 2022-23
C6: 2023-24 | D6: 2024-25 | E6: 2025-26 | F6: 2026-27 | G6: 2027-28 | H6: Total
B7: Proposed - controllable operating expenditure | H7: =SUM(C7:G7) -> 0
B8: DD adjustments
B9: xx | H9: =SUM(C9:G9) -> 0
B10: xx | H10: =SUM(C10:G10) -> 0
B11: xx | H11: =SUM(C11:G11) -> 0
B12: xx | H12: =SUM(C12:G12) -> 0
B13: xx | H13: =SUM(C13:G13) -> 0
B14: FD adjustments
B15: xx | H15: =SUM(C15:G15) -> 0
B16: xx | H16: =SUM(C16:G16) -> 0
B17: xx | H17: =SUM(C17:G17) -> 0
B18: xx | H18: =SUM(C18:G18) -> 0
B19: xx | H19: 0
B20: Total adjustments | C20: =SUM(C8:C19) -> 0 | D20: 0 | E20: 0 | F20: 0 | G20: 0 | H20: 0
B21: Final decision - controllable operating expenditure | C21: =C7+C20 -> 0 | D21: 0 | E21: 0 | F21: 0 | G21: 0 | H21: 0
B23: Proposed - non-controllable operating expenditure | H23: =SUM(C23:G23) -> 0
B24: DD adjustments
B25: xx | H25: =SUM(C25:G25) -> 0
B26: xx | H26: =SUM(C26:G26) -> 0
B27: xx | H27: =SUM(C27:G27) -> 0
B28: xx | H28: =SUM(C28:G28) -> 0
B29: FD adjustments
B30: xx | H30: =SUM(C30:G30) -> 0
B31: xx | H31: =SUM(C31:G31) -> 0
B32: Total adjustments | C32: =SUM(C24:C31) -> 0 | D32: 0 | E32: 0 | F32: 0 | G32: 0 | H32: 0
B33: Final decision - non-controllable operating expenditure | C33: =C23+C32 -> 0 | D33: 0 | E33: 0 | F33: 0 | G33: 0 | H33: 0
B35: Proposed - total operating expenditure | C35: =C7+C23 -> 0 | D35: 0 | E35: 0 | F35: 0 | G35: 0 | H35: 0
B36: Total adjustments | C36: =C20+C32 -> 0 | D36: 0 | E36: 0 | F36: 0 | G36: 0 | H36: 0
B37: Final decision - total operating expenditure | C37: =SUM(C35:C36) -> 0 | D37: 0 | E37: 0 | F37: 0 | G37: 0 | H37: 0
B39: Check
A42: 2 | B42: Capital expenditure
B43: $m 2022-23
C45: 2023-24 | D45: 2024-25 | E45: 2025-26 | F45: 2026-27 | G45: 2027-28 | H45: Total
B46: Proposed - capital expenditure | H46: =SUM(C46:G46) -> 0
B47: DD adjustments
B48: xx | H48: =SUM(C48:G48) -> 0
B49: xx | H49: =SUM(C49:G49) -> 0
B50: xx | H50: =SUM(C50:G50) -> 0
B51: xx | H51: =SUM(C51:G51) -> 0
B52: FD adjustments
B53: xx | H53: =SUM(C53:G53) -> 0
B54: xx
B55: Total adjustments | C55: =SUM(C47:C54) -> 0 | D55: 0 | E55: 0 | F55: 0 | G55: 0 | H55: 0
B56: Draft decision - capital expenditure | C56: =C46+C55 -> 0 | D56: 0 | E56: 0 | F56: 0 | G56: 0 | H56: 0
B58: Check

Sheet Model Quality Check
A1: 80 | B1: Model Quality Check
B2: =+Contents!H7 -> Lower Murray Water - Rural
B3: Go to Table of Contents
K4: FIRST REG PERIOD | O4: SECOND REG PERIOD | T4: THIRD REG PERIOD | Y4: FOURTH REG PERIOD | AD4: FIFTH REG PERIOD | AI4: SIXTH REG PERIOD
F6: Straight Line | J6: 2006 | K6: 2007 | L6: 2008 | M6: 2009 | N6: 2010 | O6: 2011 | P6: 2012 | Q6: 2013 | R6: 2014 | S6: 2015 | T6: 2016 | U6: 2017 | V6: 2018 | W6: 2019 | X6: 2020 | Y6: 2021 | Z6: 2022 | AA6: 2023 | AB6: 2024 | AC6: 2025 | AD6: 2026 | AE6: 2027 | AF6: 2028 | AG6: =AF6+1 -> 2029 | AH6: =AG6+1 -> 2030 | AI6: 2031 | AJ6: 2032 | AK6: 2033
F7: Declining Balance | J7: =+CONCATENATE(J6-1,"-",RIGHT(J6,2)) -> 2005-06 | K7: 2006-07 | L7: 2007-08 | M7: 2008-09 | N7: 2009-10 | O7: 2010-11 | P7: 2011-12 | Q7: 2012-13 | R7: 2013-14 | S7: 2014-15 | T7: 2015-16 | U7: 2016-17 | V7: 2017-18 | W7: 2018-19 | X7: 2019-20 | Y7: 2020-21 | Z7: 2021-22 | AA7: 2022-23 | AB7: 2023-24 | AC7: 2024-25 | AD7: 2025-26 | AE7: 2026-27 | AF7: 2027-28 | AG7: 2028-29 | AH7: 2029-30 | AI7: 2030-31 | AJ7: 2031-32 | AK7: 2032-33
D9: Model ready for submission: | I9: =SUM(AA15:AK49) -> 0 | V9: (If No, please ensure that the error check is corrected at the source)
D11: All financial indicators satisfied: | I11: =SUM(AB54:AK59) -> 13 | V11: (If No, please ensure that the error check is corrected at the source)
E14: 1. | F14: Opex_FO
G15: Reconciliation to 'Opex_Breakdown' tab row 37 | AB15: =Opex_FO!AC97 -> 0 | AC15: =Opex_FO!AD97 -> 0 | AD15: =Opex_FO!AE97 -> 0 | AE15: =Opex_FO!AF97 -> 0 | AF15: =Opex_FO!AG97 -> 0 | AG15: =Opex_FO!AH97 -> 0 | AH15: =Opex_FO!AI97 -> 0 | AI15: =Opex_FO!AJ97 -> 0 | AJ15: =Opex_FO!AK97 -> 0 | AK15: =Opex_FO!AL97 -> 0
E17: 2. | F17: Opex_Breakdown
G18: Reconciliation to 'Opex_FO' tab row 92 | AB18: =Opex_Breakdown!AC42 -> 0 | AC18: =Opex_Breakdown!AD42 -> 0 | AD18: =Opex_Breakdown!AE42 -> 0 | AE18: =Opex_Breakdown!AF42 -> 0 | AF18: =Opex_Breakdown!AG42 -> 0 | AG18: =Opex_Breakdown!AH42 -> 0 | AH18: =Opex_Breakdown!AI42 -> 0 | AI18: =Opex_Breakdown!AJ42 -> 0 | AJ18: =Opex_Breakdown!AK42 -> 0 | AK18: =Opex_Breakdown!AL42 -> 0
G20: Reconciliation of Opex by service and function | AB20: =Opex_Breakdown!AC27 -> 0 | AC20: =Opex_Breakdown!AD27 -> 0 | AD20: =Opex_Breakdown!AE27 -> 0 | AE20: =Opex_Breakdown!AF27 -> 0 | AF20: =Opex_Breakdown!AG27 -> 0 | AG20: =Opex_Breakdown!AH27 -> 0 | AH20: =Opex_Breakdown!AI27 -> 0 | AI20: =Opex_Breakdown!AJ27 -> 0 | AJ20: =Opex_Breakdown!AK27 -> 0 | AK20: =Opex_Breakdown!AL27 -> 0
E22: 3. | F22: Capex_FO input
G23: Reconciliation of total prescribed capex between cost driver and capital type | AB23: ='Capex_FO input'!D26 -> 0 | AC23: ='Capex_FO input'!E26 -> 0 | AD23: ='Capex_FO input'!F26 -> 0 | AE23: ='Capex_FO input'!G26 -> 0 | AF23: ='Capex_FO input'!H26 -> 0 | AG23: ='Capex_FO input'!I26 -> 0 | AH23: ='Capex_FO input'!J26 -> 0 | AI23: ='Capex_FO input'!K26 -> 0 | AJ23: ='Capex_FO input'!L26 -> 0 | AK23: ='Capex_FO input'!M26 -> 0
E25: 4. | F25: Capex_FO_AC
G26: Reconciliation to 'Capex_FO input' tab row 29 | AA26: =Capex_FO_AC!AB31 -> 0 | AB26: =Capex_FO_AC!AC31 -> 0 | AC26: =Capex_FO_AC!AD31 -> 0 | AD26: =Capex_FO_AC!AE31 -> 0 | AE26: =Capex_FO_AC!AF31 -> 0 | AF26: =Capex_FO_AC!AG31 -> 0 | AG26: =Capex_FO_AC!AH31 -> 0 | AH26: =Capex_FO_AC!AI31 -> 0 | AI26: =Capex_FO_AC!AJ31 -> 0 | AJ26: =Capex_FO_AC!AK31 -> 0 | AK26: =Capex_FO_AC!AL31 -> 0
E28: 5. | F28: RollForward_FO
G29: Reconciliation of existing assets book value to RAB | AB29: =IF(ROUND(RollForward_FO!G84,2)=ROUND(RollForward_FO!G82,2),0,1) -> 0
E31: 6. | F31: RevenuePriceCap_FO
G32: Price control - Fifth period | AB32: =IF(KeyAssumptionsPriceControl_FO!I47=1,IF(RevenuePriceCap_FO!AD34="PRICE CONTROL OK",0,1),0) -> 0 | AC32: =IF(KeyAssumptionsPriceControl_FO!I58=1,RevenuePriceCap_FO!AD34,"") -> 
G34: Price control - Sixth period | AB34: =IF(KeyAssumptionsPriceControl_FO!I47=1,IF(RevenuePriceCap_FO!AI34="PRICE CONTROL OK",0,1),0) -> 0 | AC34: =IF(KeyAssumptionsPriceControl_FO!I58=1,RevenuePriceCap_FO!AI34,"") -> 
G36: Tariff revenue reconciliation | AB36: =RevenuePriceCap_FO!AC456 -> 0 | AC36: =RevenuePriceCap_FO!AD456 -> 0 | AD36: =RevenuePriceCap_FO!AE456 -> 0 | AE36: =RevenuePriceCap_FO!AF456 -> 0 | AF36: =RevenuePriceCap_FO!AG456 -> 0 | AG36: =RevenuePriceCap_FO!AH456 -> 0 | AH36: =RevenuePriceCap_FO!AI456 -> 0 | AI36: =RevenuePriceCap_FO!AJ456 -> 0 | AJ36: =RevenuePriceCap_FO!AK456 -> 0 | AK36: =RevenuePriceCap_FO!AL456 -> 0
E38: 7. | F38: RevenueTariffBasket_FO
G39: Price control - Fifth period | AB39: =IF(KeyAssumptionsPriceControl_FO!I47=2,IF(RevenueTariffBasket_FO!AD34="PRICE CONTROL OK",0,1),0) -> 0 | AC39: =IF(KeyAssumptionsPriceControl_FO!I58=2,RevenueTariffBasket_FO!AD34,"") -> 
G41: Price control - Sixth period | AB41: =IF(KeyAssumptionsPriceControl_FO!I47=2,IF(RevenueTariffBasket_FO!AI34="PRICE CONTROL OK",0,1),0) -> 0 | AC41: =IF(KeyAssumptionsPriceControl_FO!I58=2,RevenueTariffBasket_FO!AI34,"") -> 
G43: Tariff revenue reconciliation | AB43: =RevenueTariffBasket_FO!AC459 -> 0 | AC43: =RevenueTariffBasket_FO!AD459 -> 0 | AD43: =RevenueTariffBasket_FO!AE459 -> 0 | AE43: =RevenueTariffBasket_FO!AF459 -> 0 | AF43: =RevenueTariffBasket_FO!AG459 -> 0 | AG43: =RevenueTariffBasket_FO!AH459 -> 0 | AH43: =RevenueTariffBasket_FO!AI459 -> 0 | AI43: =RevenueTariffBasket_FO!AJ459 -> 0 | AJ43: =RevenueTariffBasket_FO!AK459 -> 0 | AK43: =RevenueTariffBasket_FO!AL459 -> 0
E45: 8. | F45: Rev&RAV_FO
G46: Rolled forward RAV reconciliation | AB46: ='Rev&RAV_FO'!AC80 -> 0 | AC46: ='Rev&RAV_FO'!AD80 -> 0 | AD46: ='Rev&RAV_FO'!AE80 -> 0 | AE46: ='Rev&RAV_FO'!AF80 -> 0 | AF46: ='Rev&RAV_FO'!AG80 -> 0 | AG46: ='Rev&RAV_FO'!AH80 -> 0 | AH46: ='Rev&RAV_FO'!AI80 -> 0 | AI46: ='Rev&RAV_FO'!AJ80 -> 0 | AJ46: ='Rev&RAV_FO'!AK80 -> 0 | AK46: ='Rev&RAV_FO'!AL80 -> 0
E48: 9. | F48: GSL
G49: Reconciliation to 'Opex_Breakdown' tab row 23 | AB49: =IF(ROUND(GSL!AC40,2)=ROUND(GSL!AC39,2),0,1) -> 0 | AC49: =IF(ROUND(GSL!AD40,2)=ROUND(GSL!AD39,2),0,1) -> 0 | AD49: =IF(ROUND(GSL!AE40,2)=ROUND(GSL!AE39,2),0,1) -> 0 | AE49: =IF(ROUND(GSL!AF40,2)=ROUND(GSL!AF39,2),0,1) -> 0 | AF49: =IF(ROUND(GSL!AG40,2)=ROUND(GSL!AG39,2),0,1) -> 0 | AG49: =IF(ROUND(GSL!AH40,2)=ROUND(GSL!AH39,2),0,1) -> 0 | AH49: =IF(ROUND(GSL!AI40,2)=ROUND(GSL!AI39,2),0,1) -> 0 | AI49: =IF(ROUND(GSL!AJ40,2)=ROUND(GSL!AJ39,2),0,1) -> 0 | AJ49: =IF(ROUND(GSL!AK40,2)=ROUND(GSL!AK39,2),0,1) -> 0 | AK49: =IF(ROUND(GSL!AL40,2)=ROUND(GSL!AL39,2),0,1) -> 0
E53: 1. | F53: Primary Indicator
G54: FFO interest cover | AB54: =Indicators_FO!AC$226 -> 0 | AC54: =Indicators_FO!AD$226 -> 0 | AD54: =Indicators_FO!AE$226 -> 0 | AE54: =Indicators_FO!AF$226 -> 0 | AF54: =Indicators_FO!AG$226 -> 0 | AG54: =Indicators_FO!AH$226 -> 0 | AH54: =Indicators_FO!AI$226 -> 0 | AI54: =Indicators_FO!AJ$226 -> 0 | AJ54: =Indicators_FO!AK$226 -> 0 | AK54: =Indicators_FO!AL$226 -> 0
E56: 2. | F56: Secondary indicators
G57: Net debt / RAV | AB57: =Indicators_FO!AC$235 -> 0 | AC57: =Indicators_FO!AD$235 -> 0 | AD57: =Indicators_FO!AE$235 -> 0 | AE57: =Indicators_FO!AF$235 -> 0 | AF57: =Indicators_FO!AG$235 -> 0 | AG57: =Indicators_FO!AH$235 -> 0 | AH57: =Indicators_FO!AI$235 -> 0 | AI57: =Indicators_FO!AJ$235 -> 0 | AJ57: =Indicators_FO!AK$235 -> 0 | AK57: =Indicators_FO!AL$235 -> 0
G58: FFO / Net debt | AB58: =Indicators_FO!AC$243 -> 0 | AC58: =Indicators_FO!AD$243 -> 1 | AD58: =Indicators_FO!AE$243 -> 1 | AE58: =Indicators_FO!AF$243 -> 1 | AF58: =Indicators_FO!AG$243 -> 1 | AG58: =Indicators_FO!AH$243 -> 1 | AH58: =Indicators_FO!AI$243 -> 1 | AI58: =Indicators_FO!AJ$243 -> 1 | AJ58: =Indicators_FO!AK$243 -> 1 | AK58: =Indicators_FO!AL$243 -> 1
G59: Internal financing ratio | AB59: =Indicators_FO!AC$252 -> 0 | AC59: =Indicators_FO!AD$252 -> 0 | AD59: =Indicators_FO!AE$252 -> 0 | AE59: =Indicators_FO!AF$252 -> 1 | AF59: =Indicators_FO!AG$252 -> 1 | AG59: =Indicators_FO!AH$252 -> 0 | AH59: =Indicators_FO!AI$252 -> 1 | AI59: =Indicators_FO!AJ$252 -> 1 | AJ59: =Indicators_FO!AK$252 -> 0 | AK59: =Indicators_FO!AL$252 -> 0

Sheet KeyAssumptionsPriceControl_FO
A1: 80 | B1: Key Assumptions Price Control
B2: =+Contents!H7 -> Lower Murray Water - Rural
B3: Go to Table of Contents
L4: FIRST REG PERIOD | P4: SECOND REG PERIOD | U4: THIRD REG PERIOD | Z4: FOURTH REG PERIOD | AC4: FIFTH REG PERIOD | AH4: SIXTH REG PERIOD
F6: Straight Line | K6: 2006 | L6: 2007 | M6: 2008 | N6: 2009 | O6: 2010 | P6: 2011 | Q6: 2012 | R6: 2013 | S6: 2014 | T6: 2015 | U6: 2016 | V6: 2017 | W6: 2018 | X6: 2019 | Y6: 2020 | Z6: 2021 | AA6: 2022 | AB6: 2023 | AC6: 2024 | AD6: 2025 | AE6: 2026 | AF6: 2027 | AG6: 2028 | AH6: 2029 | AI6: 2030 | AJ6: 2031 | AK6: 2032 | AL6: 2033
F7: Declining Balance | I7: 2003-04 | J7: 2004-05 | K7: =+CONCATENATE(K6-1,"-",RIGHT(K6,2)) -> 2005-06 | L7: =+CONCATENATE(L6-1,"-",RIGHT(L6,2)) -> 2006-07 | M7: 2007-08 | N7: 2008-09 | O7: 2009-10 | P7: 2010-11 | Q7: 2011-12 | R7: 2012-13 | S7: 2013-14 | T7: 2014-15 | U7: 2015-16 | V7: 2016-17 | W7: 2017-18 | X7: 2018-19 | Y7: 2019-20 | Z7: 2020-21 | AA7: 2021-22 | AB7: 2022-23 | AC7: 2023-24 | AD7: 2024-25 | AE7: 2025-26 | AF7: 2026-27 | AG7: 2027-28 | AH7: =+CONCATENATE(AH6-1,"-",RIGHT(AH6,2)) -> 2028-29 | AI7: 2029-30 | AJ7: 2030-31 | AK7: 2031-32 | AL7: 2032-33
E11: Inflation assumptions
AB12: Estimate
F13: March quarter annual CPI | I13: 141.3 | J13: 144.1 | K13: 147.5 | L13: 151.9 | M13: 155.6 | N13: 162.2 | O13: 166.2 | P13: 171 | Q13: 176.7 | R13: 99.9 | S13: 102.4 | T13: 105.4 | U13: 106.8 | V13: 108.2 | W13: 110.5 | X13: 112.6 | Y13: 114.1 | Z13: 116.6 | AA13: 117.9 | AB13: =[3]KeyAssumptionsPriceControl_FO!$AB$13 -> 123.9
F14: Inflation | J14: =+J13/I13-1 -> 0.01981599434 | K14: 0.02359472588 | L14: 0.02983050847 | M14: 0.02435813035 | N14: 0.04241645244 | O14: 0.02466091245 | P14: 0.02888086643 | Q14: 0.03333333333 | R14: 0.01584606678 | S14: =+IF(S13=0,$AC$44,S13/R13-1) -> 0.02502502503 | T14: 0.029296875 | U14: 0.01328273245 | V14: 0.01310861423 | W14: 0.02125693161 | X14: 0.01900452489 | Y14: 0.01332149201 | Z14: 0.02191060473 | AA14: 0.01114922813 | AB14: 0.05089058524 | AC14: 0.03 | AD14: 0.03 | AE14: 0.03 | AF14: 0.03 | AG14: 0.03 | AH14: 0.03 | AI14: 0.03 | AJ14: 0.03 | AK14: 0.03 | AL14: 0.03
F15: Inflation factor | I15: 0.7871866295 | J15: 0.8027855153 | K15: 0.8217270195 | L15: 0.8462395543 | M15: 0.8668523677 | N15: 0.9036211699 | O15: 0.9259052925 | P15: 0.9526462396 | Q15: 0.9844011142 | R15: =+R13/$AB$13 -> 0.8062953995 | S15: 0.8264729621 | T15: 0.8506860371 | U15: 0.8619854722 | V15: 0.8732849072 | W15: 0.8918482647 | X15: 0.9087974173 | Y15: 0.9209039548 | Z15: 0.9410815174 | AA15: 0.9515738499 | AB15: 1 | AC15: =+AB15*(1+AC14) -> 1.03 | AD15: 1.0609 | AE15: 1.092727 | AF15: 1.12550881 | AG15: 1.159274074 | AH15: 1.194052297 | AI15: 1.229873865 | AJ15: 1.266770081 | AK15: 1.304773184 | AL15: 1.343916379
I16: CPI index re-referenced in 2012-13, shaded values have been hardcoded to lock in RAB value.
E21: Cost of debt - 10 year trailing average (Nominal)
AA22: Estimate | AB22: Estimate | AC22: Estimate | AD22: Estimate | AE22: Estimate | AF22: Estimate | AG22: Estimate | AH22: Estimate | AI22: Estimate | AJ22: Estimate | AK22: Estimate | AL22: Estimate
E23: Cost of debt | L23: 0.06981666667 | M23: 0.07414 | N23: 0.0691525788 | O23: 0.07361870984 | P23: 0.07046784142 | Q23: 0.06308887941 | R23: 0.0526945046 | S23: 0.070525 | T23: 0.05360833333 | U23: 0.05270138413 | V23: 0.04908333333 | W23: 0.045283 | X23: 0.046133 | Y23: 0.03305833333 | Z23: 0.03045 | AA23: =[3]KeyAssumptionsPriceControl_FO!AA23 -> 0.037533 | AB23: =[3]KeyAssumptionsPriceControl_FO!AB23 -> 0.037533 | AC23: =[3]KeyAssumptionsPriceControl_FO!AC23 -> 0.037533 | AD23: =[3]KeyAssumptionsPriceControl_FO!AD23 -> 0.037533 | AE23: =[3]KeyAssumptionsPriceControl_FO!AE23 -> 0.037533 | AF23: =[3]KeyAssumptionsPriceControl_FO!AF23 -> 0.037533 | AG23: =[3]KeyAssumptionsPriceControl_FO!AG23 -> 0.037533 | AH23: =[3]KeyAssumptionsPriceControl_FO!AH23 -> 0.037533 | AI23: =[3]KeyAssumptionsPriceControl_FO!AI23 -> 0.037533 | AJ23: =[3]KeyAssumptionsPriceControl_FO!AJ23 -> 0.037533 | AK23: =[3]KeyAssumptionsPriceControl_FO!AK23 -> 0.037533 | AL23: =[3]KeyAssumptionsPriceControl_FO!AL23 -> 0.037533
E24: Re-financing weightings - average 10 yrs | L24: =1/10 -> 0.1 | M24: =1/10 -> 0.1 | N24: =1/10 -> 0.1 | O24: =1/10 -> 0.1 | P24: =1/10 -> 0.1 | Q24: 0.1 | R24: 0.1 | S24: 0.1 | T24: 0.1 | U24: 0.1 | V24: 0.1 | W24: 0.1 | X24: 0.1 | Y24: 0.1 | Z24: 0.1 | AA24: 0.1 | AB24: 0.1 | AC24: 0.1 | AD24: 0.1 | AE24: 0.1 | AF24: 0.1 | AG24: 0.1 | AH24: 0.1 | AI24: 0.1 | AJ24: 0.1 | AK24: 0.1 | AL24: 0.1
E26: Cost of debt - 10 year trailing average | V26: =IF(U23<>"",SUMPRODUCT(L23:U23,L24:U24),"") -> 0.06498138982 | W26: =IF(V23<>"",SUMPRODUCT(M23:V23,M24:V24),"") -> 0.06290805649 | X26: =IF(W23<>"",SUMPRODUCT(N23:W23,N24:W24),"") -> 0.06002235649 | Y26: =IF(X23<>"",SUMPRODUCT(O23:X23,O24:X24),"") -> 0.05772039861 | Z26: =IF(Y23<>"",SUMPRODUCT(P23:Y23,P24:Y24),"") -> 0.05366436096 | AA26: 0.04966257681 | AB26: 0.04710698887 | AC26: =IF(AB23<>"",SUMPRODUCT(S23:AB23,S24:AB24),"") -> 0.04559083841 | AD26: =IF(AC23<>"",SUMPRODUCT(T23:AC23,T24:AC24),"") -> 0.04229163841 | AE26: 0.04068410508 | AF26: 0.03916726667 | AG26: 0.03801223333 | AH26: 0.03723723333 | AI26: 0.03637723333 | AJ26: 0.0368247 | AK26: 0.037533 | AL26: 0.037533
E30: WACC assumptions | Z30: Regulatory Rate of Return (RRR) - Nominal
K31: 1st period | M31: 2nd period | O31: 3rd period | Q31: 4th period
E32: Parameters | Z32: Cost of Debt | AC32: =+AC26 -> 0.04559083841 | AD32: =+AD26 -> 0.04229163841 | AE32: 0.04068410508 | AF32: 0.03916726667 | AG32: 0.03801223333 | AH32: 0.03723723333 | AI32: 0.03637723333 | AJ32: 0.0368247 | AK32: 0.037533 | AL32: 0.037533
F33: Risk Free Rate (Real) | K33: =Determination_Lookup!W8 -> 0.0267 | M33: =Determination_Lookup!X8 -> 0.0323 | O33: =Determination_Lookup!Y8 -> 0.00916 | Q33: =Determination_Lookup!Z8 -> 0.0082
F34: Debt Premium | K34: =Determination_Lookup!W9 -> 0.0116 | M34: =Determination_Lookup!X9 -> 0.0175 | O34: =Determination_Lookup!Y9 -> 0.03158 | Q34: =Determination_Lookup!Z9 -> 0.025
F35: Equity Premium | K35: =Determination_Lookup!W10 -> 0.06 | M35: =Determination_Lookup!X10 -> 0.06 | O35: =Determination_Lookup!Y10 -> 0.06 | Q35: =Determination_Lookup!Z10 -> 0.06
F36: Equity Beta | K36: =Determination_Lookup!W11 -> 0.75 | M36: =Determination_Lookup!X11 -> 0.7 | O36: =Determination_Lookup!Y11 -> 0.7 | Q36: =Determination_Lookup!Z11 -> 0.7 | Z36: Regulatory Rate of Return (RRR) - Real
F37: Gearing (Debt/Assets) | K37: =Determination_Lookup!W12 -> 0.6 | M37: =Determination_Lookup!X12 -> 0.6 | O37: =Determination_Lookup!Y12 -> 0.6 | Q37: =Determination_Lookup!Z12 -> 0.6
F38: Forecast Inflation | K38: =Determination_Lookup!W13 -> 0.0255 | M38: =Determination_Lookup!X13 -> 0.029 | O38: =Determination_Lookup!Y13 -> 0.027 | Q38: =Determination_Lookup!Z13 -> 0.023 | Z38: Cost of Debt | AC38: =(1+AC32)/(1+AC44)-1 -> 0.01513673632 | AD38: =(1+AD32)/(1+AD44)-1 -> 0.01193362953 | AE38: 0.01037291755 | AF38: 0.0089002589 | AG38: 0.007778867314 | AH38: 0.007026440129 | AI38: 0.006191488673 | AJ38: 0.00662592233 | AK38: 0.007313592233 | AL38: 0.007313592233
F39: Franking credit value | K39: =Determination_Lookup!W14 -> 0.5 | M39: =Determination_Lookup!X14 -> 0.5 | O39: =Determination_Lookup!Y14 -> 0.5 | Q39: =Determination_Lookup!Z14 -> 0.5
Z40: Return on Equity | AC40: =IF(AE65<>0,(AE65/100),IF(AE63<>0,(AE63/100),(AE61/100))) -> 0.041 | AD40: =+$AC$40 -> 0.041 | AE40: 0.041 | AF40: 0.041 | AG40: 0.041 | AH40: 0.041 | AI40: 0.041 | AJ40: 0.041 | AK40: 0.041 | AL40: 0.041
E41: 'Vanilla' After Tax WACC (Real) | K41: =ROUND(((K33+K35*K36)*(1-K37))+((K33+K34)*K37),3) -> 0.052 | M41: =ROUND(((M33+M35*M36)*(1-M37))+((M33+M34)*M37),3) -> 0.06 | O41: =ROUND(((O33+O35*O36)*(1-O37))+((O33+O34)*O37),3) -> 0.045 | Q41: =ROUND(((Q33+Q35*Q36)*(1-Q37))+((Q33+Q34)*Q37),3) -> 0.04
Z42: RRR (real) | AC42: =ROUND((AC40*(1-AC43)+AC38*AC43),4) -> 0.0255 | AD42: 0.0236 | AE42: 0.0226 | AF42: 0.0217 | AG42: 0.0211 | AH42: 0.0206 | AI42: 0.0201 | AJ42: 0.0204 | AK42: 0.0208 | AL42: 0.0208
Z43: Gearing | AC43: 0.6 | AD43: =+AC43 -> 0.6 | AE43: 0.6 | AF43: 0.6 | AG43: 0.6 | AH43: 0.6 | AI43: 0.6 | AJ43: 0.6 | AK43: 0.6 | AL43: 0.6
Z44: Forecast Inflation | AC44: 0.03 | AD44: 0.03 | AE44: 0.03 | AF44: 0.03 | AG44: 0.03 | AH44: 0.03 | AI44: 0.03 | AJ44: 0.03 | AK44: 0.03 | AL44: 0.03
E45: Form of price control selected
E47: Price caps | I47: 2
E49: Revenue cap / Hybrid Tariff Basket | Z49: PREMO Assessment Matrix (linked to Regulatory Rate of Return calculation above)
AB52: Water business self-assessment
AB54: Leading | AC54: Advanced | AD54: Standard | AE54: Basic
Z55: ESC assessment of submission | AA55: Leading | AB55: 4.9
AA56: Advanced | AB56: 4.3 | AC56: 4.5
AA57: Standard | AB57: 3.7 | AC57: 3.9 | AD57: 4.1
AA58: Basic | AD58: 3.5 | AE58: 3.7
Z61: Water business self-assessment (Maximum allowable ROE) | AD61: Standard | AE61: =+VLOOKUP(AD61,$AD$72:$AE$76,2,FALSE) -> 4.1
Z63: ROE Override (Must be less than Maximum allowable ROE) | AE63: =+IF(AD63<=AE61,AD63,"CHECK") -> 0
Z65: ESC assessment of submission | AD65: [Select] | AE65: =IFERROR(IF(AD65=AD61,AE61,VLOOKUP(AD61&AD65,AD79:AE83,2,FALSE)),0) -> 0
AD67: Difference | AE67: =IFERROR(IF(AE65=0,"",AE65-AE61),"") -> 
AD71: Business self assessment
AD72: [Select]
AD73: Leading | AE73: =+AB55 -> 4.9
AD74: Advanced | AE74: =+AC56 -> 4.5
AD75: Standard | AE75: =+AD57 -> 4.1
AD76: Basic | AE76: =+AE58 -> 3.7
AD78: downgrading
AD79: =AD54&AA58 -> StandardBasic | AE79: =+AD58 -> 3.5
AD80: =+AC54&AA57 -> AdvancedStandard | AE80: =+AC57 -> 3.9
AD81: =+AB54&AA56 -> LeadingAdvanced | AE81: =+AB56 -> 4.3
AD82: =+AB54&AA57 -> LeadingStandard | AE82: =+AB57 -> 3.7
AD83: =+AD61&"Basic" -> StandardBasic | AE83: CHECK

Sheet Expenditure_Detail
B1: Expenditure - Detail
B2: =+Model_Name -> Lower Murray Water - Rural
B3: Go to Table of Contents
L4: FIRST REG PERIOD | P4: SECOND REG PERIOD | U4: THIRD REG PERIOD | Z4: FOURTH REG PERIOD | AE4: FIFTH REG PERIOD | AJ4: SIXTH REG PERIOD
K5: 2006 | L5: 2007 | M5: 2008 | N5: 2009 | O5: 2010 | P5: 2011 | Q5: 2012 | R5: 2013 | S5: 2014 | T5: 2015 | U5: 2016 | V5: 2017 | W5: 2018 | X5: 2019 | Y5: 2020 | Z5: 2021 | AA5: 2022 | AB5: 2023 | AC5: 2024 | AD5: 2025 | AE5: 2026 | AF5: 2027 | AG5: 2028 | AH5: 2024 | AI5: 2025 | AJ5: 2026 | AK5: 2027 | AL5: 2028
B6: $m, 01/01/23 | K6: =+CONCATENATE(K5-1,"-",RIGHT(K5,2)) -> 2005-06 | L6: =+CONCATENATE(L5-1,"-",RIGHT(L5,2)) -> 2006-07 | M6: 2007-08 | N6: 2008-09 | O6: 2009-10 | P6: 2010-11 | Q6: 2011-12 | R6: 2012-13 | S6: 2013-14 | T6: 2014-15 | U6: 2015-16 | V6: 2016-17 | W6: 2017-18 | X6: 2018-19 | Y6: 2019-20 | Z6: 2020-21 | AA6: 2021-22 | AB6: 2022-23 | AC6: 2023-24 | AD6: 2024-25 | AE6: 2025-26 | AF6: 2026-27 | AG6: 2027-28 | AH6: =+CONCATENATE(AH5-1,"-",RIGHT(AH5,2)) -> 2023-24 | AI6: 2024-25 | AJ6: 2025-26 | AK6: 2026-27 | AL6: 2027-28
B8: This worksheet outlines the key cost drivers of operating expenditure - capitalised costs are excluded. This tab does not link to the Rev&RAV_FO worksheet
C11: Expenditure Summary
D13: Total Labour costs | W13: =W34 -> 8.585611804 | X13: 8.709213362 | Y13: 8.898912121 | Z13: 8.516601876 | AA13: 9.216918504 | AB13: 9.576344 | AC13: 7.851448 | AD13: 7.793455 | AE13: 7.831311 | AF13: 7.819077 | AG13: 7.780955 | AH13: 7.780955 | AI13: 7.780955 | AJ13: 7.780955 | AK13: 7.780955 | AL13: 7.780955
D14: Total Energy costs | W14: =W93 -> 4.255610573 | X14: =X93 -> 5.794923782 | Y14: 4.866112369 | Z14: 4.901548739 | AA14: 4.066077216 | AB14: 3.720145175 | AC14: 3.982304032 | AD14: 3.990253864 | AE14: 4.06457404 | AF14: 4.130291 | AG14: 4.056391248 | AH14: =AH93 -> 4.056391248 | AI14: 4.056391248 | AJ14: 4.056391248 | AK14: 4.056391248 | AL14: 4.056391248
D15: Total IT costs | W15: =W104 -> 0.6662477503 | X15: =X104 -> 0.634526011 | Y15: 0.6931318914 | Z15: 0.8361262925 | AA15: 0.8640202756 | AB15: 0.9588913 | AC15: 0.98623304 | AD15: 1.03587154 | AE15: 1.03600566 | AF15: 1.06904266 | AG15: 1.06660328 | AH15: =AH104 -> 1.06660328 | AI15: 1.06660328 | AJ15: 1.06660328 | AK15: 1.06660328 | AL15: 1.06660328
D16: Total Chemical costs | W16: =W115 -> 0.04936153575 | X16: =X115 -> 0.04509695915 | Y16: 0.0206883681 | Z16: 0.05099983276 | AA16: 0.0269784631 | AB16: 0.0445 | AC16: 0.0445 | AD16: 0.0445 | AE16: 0.0445 | AF16: 0.0445 | AG16: 0.0445 | AH16: =AH115 -> 0.0445 | AI16: 0.0445 | AJ16: 0.0445 | AK16: 0.0445 | AL16: 0.0445
C21: Labour assumptions
D23: Current FTEs (at 30 June) | W23: =[3]Expenditure_Detail!W23 -> 76.424 | X23: =[3]Expenditure_Detail!X23 -> 85.527 | Y23: =[3]Expenditure_Detail!Y23 -> 94.308 | Z23: =[3]Expenditure_Detail!Z23 -> 89.1072 | AA23: =[3]Expenditure_Detail!AA23 -> 94.7
D24: Actual and forecast labour costs for current FTEs ($m) | W24: =[3]Expenditure_Detail!W24 -> 8.585611804 | X24: =[3]Expenditure_Detail!X24 -> 8.709213362 | Y24: =[3]Expenditure_Detail!Y24 -> 8.898912121 | Z24: =[3]Expenditure_Detail!Z24 -> 8.516601876 | AA24: =[3]Expenditure_Detail!AA24 -> 9.216918504 | AB24: =[3]Expenditure_Detail!AB24 -> 9.576344 | AC24: =[3]Expenditure_Detail!AC24 -> 7.851448 | AD24: =[3]Expenditure_Detail!AD24 -> 7.793455 | AE24: =[3]Expenditure_Detail!AE24 -> 7.831311 | AF24: =[3]Expenditure_Detail!AF24 -> 7.819077 | AG24: =[3]Expenditure_Detail!AG24 -> 7.780955 | AH24: =[3]Expenditure_Detail!AH24 -> 7.780955 | AI24: =[3]Expenditure_Detail!AI24 -> 7.780955 | AJ24: =[3]Expenditure_Detail!AJ24 -> 7.780955 | AK24: =[3]Expenditure_Detail!AK24 -> 7.780955 | AL24: =[3]Expenditure_Detail!AL24 -> 7.780955
D25: Cost per FTE ($000) | W25: =+W24/W23*10^3 -> 112.3418272 | X25: 101.8299877 | Y25: 94.36009799 | Z25: 95.57703391 | AA25: =+AA24/$AA$23*10^3 -> 97.32754493 | AB25: =+AB24/$AA$23*10^3 -> 101.1229567 | AC25: 82.9086378 | AD25: 82.29625132 | AE25: 82.69599789 | AF25: 82.56681098 | AG25: 82.16425554 | AH25: 82.16425554 | AI25: 82.16425554 | AJ25: 82.16425554 | AK25: 82.16425554 | AL25: 82.16425554
D26: Annual growth in labour costs for current FTEs | X26: =+X25/W25-1 -> -0.09357013095 | Y26: -0.07335648292 | Z26: 0.01289672166 | AA26: 0.01831518457 | AB26: 0.03899627575 | AC26: -0.1801205136 | AD26: -0.007386280849 | AE26: 0.004857409198 | AF26: -0.001562190545 | AG26: -0.004875511521 | AH26: 0 | AI26: 0 | AJ26: 0 | AK26: 0 | AL26: 0
D28: Change in FTEs in future periods (net no. annual change) | AB28: =[3]Expenditure_Detail!AB28 -> 3.8 | AC28: =[3]Expenditure_Detail!AC28 -> -21.3 | AD28: =[3]Expenditure_Detail!AD28 -> 0 | AE28: =[3]Expenditure_Detail!AE28 -> 0.2 | AF28: =[3]Expenditure_Detail!AF28 -> 0 | AG28: =[3]Expenditure_Detail!AG28 -> 0 | AH28: =[3]Expenditure_Detail!AH28 -> 0 | AI28: =[3]Expenditure_Detail!AI28 -> 0 | AJ28: =[3]Expenditure_Detail!AJ28 -> 0 | AK28: =[3]Expenditure_Detail!AK28 -> 0 | AL28: =[3]Expenditure_Detail!AL28 -> 0
D29: Increase or decrease in labour costs ($m) | AB29: =[3]Expenditure_Detail!AB29 -> 0 | AC29: =[3]Expenditure_Detail!AC29 -> 0 | AD29: =[3]Expenditure_Detail!AD29 -> 0 | AE29: =[3]Expenditure_Detail!AE29 -> 0 | AF29: =[3]Expenditure_Detail!AF29 -> 0 | AG29: =[3]Expenditure_Detail!AG29 -> 0 | AH29: =[3]Expenditure_Detail!AH29 -> 0 | AI29: =[3]Expenditure_Detail!AI29 -> 0 | AJ29: =[3]Expenditure_Detail!AJ29 -> 0 | AK29: =[3]Expenditure_Detail!AK29 -> 0 | AL29: =[3]Expenditure_Detail!AL29 -> 0
D33: Total FTEs | W33: =+W23 -> 76.424 | X33: 85.527 | Y33: 94.308 | Z33: 89.1072 | AA33: 94.7 | AB33: =+$AA$23+SUM($AB28:AB28) -> 98.5 | AC33: =+$AA$23+SUM($AB28:AC28) -> 77.2 | AD33: =+$AA$23+SUM($AB28:AD28) -> 77.2 | AE33: =+$AA$23+SUM($AB28:AE28) -> 77.4 | AF33: =+$AA$23+SUM($AB28:AF28) -> 77.4 | AG33: =+$AA$23+SUM($AB28:AG28) -> 77.4 | AH33: =+$AA$23+SUM($AB28:AH28) -> 77.4 | AI33: =+$AA$23+SUM($AB28:AI28) -> 77.4 | AJ33: =+$AA$23+SUM($AB28:AJ28) -> 77.4 | AK33: =+$AA$23+SUM($AB28:AK28) -> 77.4 | AL33: =+$AA$23+SUM($AB28:AL28) -> 77.4
D34: Total labour costs ($m) | W34: =+W24 -> 8.585611804 | X34: 8.709213362 | Y34: 8.898912121 | Z34: 8.516601876 | AA34: =+AA24 -> 9.216918504 | AB34: =+AB29+AB24 -> 9.576344 | AC34: =+AC29+AC24 -> 7.851448 | AD34: 7.793455 | AE34: 7.831311 | AF34: 7.819077 | AG34: 7.780955 | AH34: =+AH29+AH24 -> 7.780955 | AI34: =+AI29+AI24 -> 7.780955 | AJ34: =+AJ29+AJ24 -> 7.780955 | AK34: =+AK29+AK24 -> 7.780955 | AL34: =+AL29+AL24 -> 7.780955
D35: Cost per FTE | W35: =+W34/W33 -> 0.1123418272 | X35: 0.1018299877 | Y35: 0.09436009799 | Z35: 0.09557703391 | AA35: 0.09732754493 | AB35: 0.0972217665 | AC35: 0.1017026943 | AD35: 0.1009514896 | AE35: 0.1011797287 | AF35: 0.1010216667 | AG35: 0.1005291344 | AH35: =+AH34/AH33 -> 0.1005291344 | AI35: =+AI34/AI33 -> 0.1005291344 | AJ35: =+AJ34/AJ33 -> 0.1005291344 | AK35: =+AK34/AK33 -> 0.1005291344 | AL35: =+AL34/AL33 -> 0.1005291344
D36: Annual growth in total labour costs | X36: =+X34/W34-1 -> 0.01439635992 | Y36: =+Y34/X34-1 -> 0.02178138844 | Z36: =+Z34/Y34-1 -> -0.04296145867 | AA36: =+AA34/Z34-1 -> 0.08222958391 | AB36: 0.03899627575 | AC36: -0.1801205136 | AD36: -0.007386280849 | AE36: 0.004857409198 | AF36: -0.001562190545 | AG36: -0.004875511521 | AH36: 0 | AI36: 0 | AJ36: 0 | AK36: 0 | AL36: 0
D37: Annual growth in total labour costs per FTE | X37: -0.09357013095 | Y37: -0.07335648292 | Z37: 0.01289672166 | AA37: 0.01831518457 | AB37: -0.0010868293 | AC37: 0.04608975916 | AD37: -0.007386280849 | AE37: 0.002260878425 | AF37: -0.001562190545 | AG37: -0.004875511521 | AH37: 0 | AI37: 0 | AJ37: 0 | AK37: 0 | AL37: 0
C43: Energy assumptions
D45: Electricity - traditional sources
D47: BASE LOAD
D49: Large sites
D50: Total kWh | W50: =[3]Expenditure_Detail!W50 -> 21620359.91 | X50: =[3]Expenditure_Detail!X50 -> 23137480.77 | Y50: =[3]Expenditure_Detail!Y50 -> 20262733.62 | Z50: =[3]Expenditure_Detail!Z50 -> 19826392.12 | AA50: =[3]Expenditure_Detail!AA50 -> 18661357.98 | AB50: =[3]Expenditure_Detail!AB50 -> 21252790.21 | AC50: =[3]Expenditure_Detail!AC50 -> 21428990.27 | AD50: =[3]Expenditure_Detail!AD50 -> 21588432.75 | AE50: =[3]Expenditure_Detail!AE50 -> 22088600.69 | AF50: =[3]Expenditure_Detail!AF50 -> 22290660.72 | AG50: =[3]Expenditure_Detail!AG50 -> 22512843.14 | AH50: =[3]Expenditure_Detail!AH50 -> 22512843.14 | AI50: =[3]Expenditure_Detail!AI50 -> 22512843.14 | AJ50: =[3]Expenditure_Detail!AJ50 -> 22512843.14 | AK50: =[3]Expenditure_Detail!AK50 -> 22512843.14 | AL50: =[3]Expenditure_Detail!AL50 -> 22512843.14
D51: Total electricity costs ($m) | W51: =[3]Expenditure_Detail!W51 -> 4.079962017 | X51: =[3]Expenditure_Detail!X51 -> 5.660187744 | Y51: =[3]Expenditure_Detail!Y51 -> 4.705015226 | Z51: =[3]Expenditure_Detail!Z51 -> 4.801000892 | AA51: =[3]Expenditure_Detail!AA51 -> 3.93676133 | AB51: =[3]Expenditure_Detail!AB51 -> 3.522689605 | AC51: =[3]Expenditure_Detail!AC51 -> 3.797080106 | AD51: =[3]Expenditure_Detail!AD51 -> 3.805340315 | AE51: =[3]Expenditure_Detail!AE51 -> 3.879095555 | AF51: =[3]Expenditure_Detail!AF51 -> 3.943628736 | AG51: =[3]Expenditure_Detail!AG51 -> 3.871970449 | AH51: =[3]Expenditure_Detail!AH51 -> 3.871970449 | AI51: =[3]Expenditure_Detail!AI51 -> 3.871970449 | AJ51: =[3]Expenditure_Detail!AJ51 -> 3.871970449 | AK51: =[3]Expenditure_Detail!AK51 -> 3.871970449 | AL51: =[3]Expenditure_Detail!AL51 -> 3.871970449
D52: Average c/kWh | W52: =+W51/W50*100*10^6 -> 18.87092553 | X52: 24.46328449 | Y52: 23.22004184 | Z52: 24.21520195 | AA52: 21.09579236 | AB52: 16.57518646 | AC52: 17.71936082 | AD52: 17.62675577 | AE52: 17.56152691 | AF52: 17.69184317 | AG52: 17.19894029 | AH52: =+AH51/AH50*100*10^6 -> 17.19894029 | AI52: 17.19894029 | AJ52: 17.19894029 | AK52: 17.19894029 | AL52: 17.19894029
D53: % increase p.a. | X53: =+X52/W52-1 -> 0.29634789 | Y53: =+Y52/X52-1 -> -0.05082075744 | Z53: =+Z52/Y52-1 -> 0.04285780863 | AA53: =+AA52/Z52-1 -> -0.1288203003 | AB53: =+AB52/AA52-1 -> -0.2142894575 | AC53: =+AC52/AB52-1 -> 0.06902935066 | AD53: =+AD52/AC52-1 -> -0.005226207258 | AE53: =+AE52/AD52-1 -> -0.003700559202 | AF53: =+AF52/AE52-1 -> 0.007420553784 | AG53: =+AG52/AF52-1 -> -0.02786045943 | AH53: =+AH52/AG52-1 -> 0 | AI53: =+AI52/AH52-1 -> 0 | AJ53: =+AJ52/AI52-1 -> 0 | AK53: =+AK52/AJ52-1 -> 0 | AL53: =+AL52/AK52-1 -> 0
D55: Medium sites
D56: Total kWh | W56: =[3]Expenditure_Detail!W56 -> 0 | X56: =[3]Expenditure_Detail!X56 -> 0 | Y56: =[3]Expenditure_Detail!Y56 -> 0 | Z56: =[3]Expenditure_Detail!Z56 -> 0 | AA56: =[3]Expenditure_Detail!AA56 -> 0 | AB56: =[3]Expenditure_Detail!AB56 -> 0 | AC56: =[3]Expenditure_Detail!AC56 -> 0 | AD56: =[3]Expenditure_Detail!AD56 -> 0 | AE56: =[3]Expenditure_Detail!AE56 -> 0 | AF56: =[3]Expenditure_Detail!AF56 -> 0 | AG56: =[3]Expenditure_Detail!AG56 -> 0 | AH56: =[3]Expenditure_Detail!AH56 -> 0 | AI56: =[3]Expenditure_Detail!AI56 -> 0 | AJ56: =[3]Expenditure_Detail!AJ56 -> 0 | AK56: =[3]Expenditure_Detail!AK56 -> 0 | AL56: =[3]Expenditure_Detail!AL56 -> 0
D57: Total electricity costs ($m) | W57: =[3]Expenditure_Detail!W57 -> 0 | X57: =[3]Expenditure_Detail!X57 -> 0 | Y57: =[3]Expenditure_Detail!Y57 -> 0 | Z57: =[3]Expenditure_Detail!Z57 -> 0 | AA57: =[3]Expenditure_Detail!AA57 -> 0 | AB57: =[3]Expenditure_Detail!AB57 -> 0 | AC57: =[3]Expenditure_Detail!AC57 -> 0 | AD57: =[3]Expenditure_Detail!AD57 -> 0 | AE57: =[3]Expenditure_Detail!AE57 -> 0 | AF57: =[3]Expenditure_Detail!AF57 -> 0 | AG57: =[3]Expenditure_Detail!AG57 -> 0 | AH57: =[3]Expenditure_Detail!AH57 -> 0 | AI57: =[3]Expenditure_Detail!AI57 -> 0 | AJ57: =[3]Expenditure_Detail!AJ57 -> 0 | AK57: =[3]Expenditure_Detail!AK57 -> 0 | AL57: =[3]Expenditure_Detail!AL57 -> 0
D58: Average c/kWh | W58: =+W57/W56*100*10^6 ->  | AH58: =+AH57/AH56*100*10^6 -> 
D59: % increase p.a. | X59: =+X58/W58-1 ->  | Y59: =+Y58/X58-1 ->  | Z59: =+Z58/Y58-1 ->  | AA59: =+AA58/Z58-1 ->  | AB59: =+AB58/AA58-1 ->  | AC59: =+AC58/AB58-1 ->  | AD59: =+AD58/AC58-1 ->  | AE59: =+AE58/AD58-1 ->  | AF59: =+AF58/AE58-1 ->  | AG59: =+AG58/AF58-1 ->  | AH59: =+AH58/AG58-1 ->  | AI59: =+AI58/AH58-1 ->  | AJ59: =+AJ58/AI58-1 ->  | AK59: =+AK58/AJ58-1 ->  | AL59: =+AL58/AK58-1 -> 
D61: Small sites
D62: Total kWh | W62: =[3]Expenditure_Detail!W62 -> 278457.3766 | X62: =[3]Expenditure_Detail!X62 -> 149163.0928 | Y62: =[3]Expenditure_Detail!Y62 -> 128254.95 | Z62: =[3]Expenditure_Detail!Z62 -> 367218.2585 | AA62: =[3]Expenditure_Detail!AA62 -> 414247.7614 | AB62: =[3]Expenditure_Detail!AB62 -> 230773.4195 | AC62: =[3]Expenditure_Detail!AC62 -> 230773.4195 | AD62: =[3]Expenditure_Detail!AD62 -> 230773.4195 | AE62: =[3]Expenditure_Detail!AE62 -> 230773.4195 | AF62: =[3]Expenditure_Detail!AF62 -> 230773.4195 | AG62: =[3]Expenditure_Detail!AG62 -> 230773.4195 | AH62: =[3]Expenditure_Detail!AH62 -> 230773.4195 | AI62: =[3]Expenditure_Detail!AI62 -> 230773.4195 | AJ62: =[3]Expenditure_Detail!AJ62 -> 230773.4195 | AK62: =[3]Expenditure_Detail!AK62 -> 230773.4195 | AL62: =[3]Expenditure_Detail!AL62 -> 230773.4195
D63: Total electricity costs ($m) | W63: =[3]Expenditure_Detail!W63 -> 0.1756485565 | X63: =[3]Expenditure_Detail!X63 -> 0.1347360376 | Y63: =[3]Expenditure_Detail!Y63 -> 0.1610971432 | Z63: =[3]Expenditure_Detail!Z63 -> 0.1005478478 | AA63: =[3]Expenditure_Detail!AA63 -> 0.1293158852 | AB63: =[3]Expenditure_Detail!AB63 -> 0.1974555704 | AC63: =[3]Expenditure_Detail!AC63 -> 0.1852239263 | AD63: =[3]Expenditure_Detail!AD63 -> 0.1849135493 | AE63: =[3]Expenditure_Detail!AE63 -> 0.1854784845 | AF63: =[3]Expenditure_Detail!AF63 -> 0.1866622639 | AG63: =[3]Expenditure_Detail!AG63 -> 0.1844207992 | AH63: =[3]Expenditure_Detail!AH63 -> 0.1844207992 | AI63: =[3]Expenditure_Detail!AI63 -> 0.1844207992 | AJ63: =[3]Expenditure_Detail!AJ63 -> 0.1844207992 | AK63: =[3]Expenditure_Detail!AK63 -> 0.1844207992 | AL63: =[3]Expenditure_Detail!AL63 -> 0.1844207992
D64: Average c/kWh | W64: =+W63/W62*100*10^6 -> 63.07915365 | X64: 90.32799942 | Y64: 125.6069596 | Z64: 27.38095002 | AA64: 31.217039 | AB64: 85.56252745 | AC64: 80.26224456 | AD64: 80.1277503 | AE64: 80.37255112 | AF64: 80.88551289 | AG64: 79.91422911 | AH64: =+AH63/AH62*100*10^6 -> 79.91422911 | AI64: 79.91422911 | AJ64: 79.91422911 | AK64: 79.91422911 | AL64: 79.91422911
D65: % increase p.a. | X65: =+X64/W64-1 -> 0.4319786203 | Y65: =+Y64/X64-1 -> 0.390565056 | Z65: =+Z64/Y64-1 -> -0.7820108844 | AA65: =+AA64/Z64-1 -> 0.140100653 | AB65: =+AB64/AA64-1 -> 1.740891839 | AC65: =+AC64/AB64-1 -> -0.06194631044 | AD65: =+AD64/AC64-1 -> -0.001675685267 | AE65: =+AE64/AD64-1 -> 0.003055131518 | AF65: =+AF64/AE64-1 -> 0.00638230046 | AG65: =+AG64/AF64-1 -> -0.01200813024 | AH65: =+AH64/AG64-1 -> 0 | AI65: =+AI64/AH64-1 -> 0 | AJ65: =+AJ64/AI64-1 -> 0 | AK65: =+AK64/AJ64-1 -> 0 | AL65: =+AL64/AK64-1 -> 0
D68: NEW PROJECTS
D70: Large sites
D71: Total kWh | W71: =[3]Expenditure_Detail!W71 -> 0 | X71: =[3]Expenditure_Detail!X71 -> 0 | Y71: =[3]Expenditure_Detail!Y71 -> 0 | Z71: =[3]Expenditure_Detail!Z71 -> 0 | AA71: =[3]Expenditure_Detail!AA71 -> 0 | AB71: =[3]Expenditure_Detail!AB71 -> 0 | AC71: =[3]Expenditure_Detail!AC71 -> 0 | AD71: =[3]Expenditure_Detail!AD71 -> 0 | AE71: =[3]Expenditure_Detail!AE71 -> 0 | AF71: =[3]Expenditure_Detail!AF71 -> 0 | AG71: =[3]Expenditure_Detail!AG71 -> 0 | AH71: =[3]Expenditure_Detail!AH71 -> 0 | AI71: =[3]Expenditure_Detail!AI71 -> 0 | AJ71: =[3]Expenditure_Detail!AJ71 -> 0 | AK71: =[3]Expenditure_Detail!AK71 -> 0 | AL71: =[3]Expenditure_Detail!AL71 -> 0
D72: Total electricity costs ($m) | W72: =[3]Expenditure_Detail!W72 -> 0 | X72: =[3]Expenditure_Detail!X72 -> 0 | Y72: =[3]Expenditure_Detail!Y72 -> 0 | Z72: =[3]Expenditure_Detail!Z72 -> 0 | AA72: =[3]Expenditure_Detail!AA72 -> 0 | AB72: =[3]Expenditure_Detail!AB72 -> 0 | AC72: =[3]Expenditure_Detail!AC72 -> 0 | AD72: =[3]Expenditure_Detail!AD72 -> 0 | AE72: =[3]Expenditure_Detail!AE72 -> 0 | AF72: =[3]Expenditure_Detail!AF72 -> 0 | AG72: =[3]Expenditure_Detail!AG72 -> 0 | AH72: =[3]Expenditure_Detail!AH72 -> 0 | AI72: =[3]Expenditure_Detail!AI72 -> 0 | AJ72: =[3]Expenditure_Detail!AJ72 -> 0 | AK72: =[3]Expenditure_Detail!AK72 -> 0 | AL72: =[3]Expenditure_Detail!AL72 -> 0
D73: Average c/kWh | W73: =+W72/W71*100*10^6 ->  | AH73: =+AH72/AH71*100*10^6 -> 
D74: % increase p.a. | X74: =+X73/W73-1 ->  | Y74: =+Y73/X73-1 ->  | Z74: =+Z73/Y73-1 ->  | AA74: =+AA73/Z73-1 ->  | AB74: =+AB73/AA73-1 ->  | AC74: =+AC73/AB73-1 ->  | AD74: =+AD73/AC73-1 ->  | AE74: =+AE73/AD73-1 ->  | AF74: =+AF73/AE73-1 ->  | AG74: =+AG73/AF73-1 ->  | AH74: =+AH73/AG73-1 ->  | AI74: =+AI73/AH73-1 ->  | AJ74: =+AJ73/AI73-1 ->  | AK74: =+AK73/AJ73-1 ->  | AL74: =+AL73/AK73-1 -> 
D76: Medium sites
D77: Total kWh | W77: =[3]Expenditure_Detail!W77 -> 0 | X77: =[3]Expenditure_Detail!X77 -> 0 | Y77: =[3]Expenditure_Detail!Y77 -> 0 | Z77: =[3]Expenditure_Detail!Z77 -> 0 | AA77: =[3]Expenditure_Detail!AA77 -> 0 | AB77: =[3]Expenditure_Detail!AB77 -> 0 | AC77: =[3]Expenditure_Detail!AC77 -> 0 | AD77: =[3]Expenditure_Detail!AD77 -> 0 | AE77: =[3]Expenditure_Detail!AE77 -> 0 | AF77: =[3]Expenditure_Detail!AF77 -> 0 | AG77: =[3]Expenditure_Detail!AG77 -> 0 | AH77: =[3]Expenditure_Detail!AH77 -> 0 | AI77: =[3]Expenditure_Detail!AI77 -> 0 | AJ77: =[3]Expenditure_Detail!AJ77 -> 0 | AK77: =[3]Expenditure_Detail!AK77 -> 0 | AL77: =[3]Expenditure_Detail!AL77 -> 0
D78: Total electricity costs ($m) | W78: =[3]Expenditure_Detail!W78 -> 0 | X78: =[3]Expenditure_Detail!X78 -> 0 | Y78: =[3]Expenditure_Detail!Y78 -> 0 | Z78: =[3]Expenditure_Detail!Z78 -> 0 | AA78: =[3]Expenditure_Detail!AA78 -> 0 | AB78: =[3]Expenditure_Detail!AB78 -> 0 | AC78: =[3]Expenditure_Detail!AC78 -> 0 | AD78: =[3]Expenditure_Detail!AD78 -> 0 | AE78: =[3]Expenditure_Detail!AE78 -> 0 | AF78: =[3]Expenditure_Detail!AF78 -> 0 | AG78: =[3]Expenditure_Detail!AG78 -> 0 | AH78: =[3]Expenditure_Detail!AH78 -> 0 | AI78: =[3]Expenditure_Detail!AI78 -> 0 | AJ78: =[3]Expenditure_Detail!AJ78 -> 0 | AK78: =[3]Expenditure_Detail!AK78 -> 0 | AL78: =[3]Expenditure_Detail!AL78 -> 0
D79: Average c/kWh | W79: =+W78/W77*100*10^6 ->  | AH79: =+AH78/AH77*100*10^6 -> 
D80: % increase p.a. | X80: =+X79/W79-1 ->  | Y80: =+Y79/X79-1 ->  | Z80: =+Z79/Y79-1 ->  | AA80: =+AA79/Z79-1 ->  | AB80: =+AB79/AA79-1 ->  | AC80: =+AC79/AB79-1 ->  | AD80: =+AD79/AC79-1 ->  | AE80: =+AE79/AD79-1 ->  | AF80: =+AF79/AE79-1 ->  | AG80: =+AG79/AF79-1 ->  | AH80: =+AH79/AG79-1 ->  | AI80: =+AI79/AH79-1 ->  | AJ80: =+AJ79/AI79-1 ->  | AK80: =+AK79/AJ79-1 ->  | AL80: =+AL79/AK79-1 -> 
D82: Small sites
D83: Total kWh | W83: =[3]Expenditure_Detail!W83 -> 0 | X83: =[3]Expenditure_Detail!X83 -> 0 | Y83: =[3]Expenditure_Detail!Y83 -> 0 | Z83: =[3]Expenditure_Detail!Z83 -> 0 | AA83: =[3]Expenditure_Detail!AA83 -> 0 | AB83: =[3]Expenditure_Detail!AB83 -> 0 | AC83: =[3]Expenditure_Detail!AC83 -> 0 | AD83: =[3]Expenditure_Detail!AD83 -> 0 | AE83: =[3]Expenditure_Detail!AE83 -> 0 | AF83: =[3]Expenditure_Detail!AF83 -> 0 | AG83: =[3]Expenditure_Detail!AG83 -> 0 | AH83: =[3]Expenditure_Detail!AH83 -> 0 | AI83: =[3]Expenditure_Detail!AI83 -> 0 | AJ83: =[3]Expenditure_Detail!AJ83 -> 0 | AK83: =[3]Expenditure_Detail!AK83 -> 0 | AL83: =[3]Expenditure_Detail!AL83 -> 0
D84: Total electricity costs ($m) | W84: =[3]Expenditure_Detail!W84 -> 0 | X84: =[3]Expenditure_Detail!X84 -> 0 | Y84: =[3]Expenditure_Detail!Y84 -> 0 | Z84: =[3]Expenditure_Detail!Z84 -> 0 | AA84: =[3]Expenditure_Detail!AA84 -> 0 | AB84: =[3]Expenditure_Detail!AB84 -> 0 | AC84: =[3]Expenditure_Detail!AC84 -> 0 | AD84: =[3]Expenditure_Detail!AD84 -> 0 | AE84: =[3]Expenditure_Detail!AE84 -> 0 | AF84: =[3]Expenditure_Detail!AF84 -> 0 | AG84: =[3]Expenditure_Detail!AG84 -> 0 | AH84: =[3]Expenditure_Detail!AH84 -> 0 | AI84: =[3]Expenditure_Detail!AI84 -> 0 | AJ84: =[3]Expenditure_Detail!AJ84 -> 0 | AK84: =[3]Expenditure_Detail!AK84 -> 0 | AL84: =[3]Expenditure_Detail!AL84 -> 0
D85: Average c/kWh | W85: =+W84/W83*100*10^6 ->  | AD85: =+AD84/AD83*100*10^6 ->  | AH85: =+AH84/AH83*100*10^6 -> 
D86: % increase p.a. | X86: =+X85/W85-1 ->  | Y86: =+Y85/X85-1 ->  | Z86: =+Z85/Y85-1 ->  | AA86: =+AA85/Z85-1 ->  | AB86: =+AB85/AA85-1 ->  | AC86: =+AC85/AB85-1 ->  | AD86: =+AD85/AC85-1 ->  | AE86: =+AE85/AD85-1 ->  | AF86: =+AF85/AE85-1 ->  | AG86: =+AG85/AF85-1 ->  | AH86: =+AH85/AG85-1 ->  | AI86: =+AI85/AH85-1 ->  | AJ86: =+AJ85/AI85-1 ->  | AK86: =+AK85/AJ85-1 ->  | AL86: =+AL85/AK85-1 -> 
D89: Greenhouse Gas Offsets | W89: =[3]Expenditure_Detail!W89 -> 0 | X89: =[3]Expenditure_Detail!X89 -> 0 | Y89: =[3]Expenditure_Detail!Y89 -> 0 | Z89: =[3]Expenditure_Detail!Z89 -> 0 | AA89: =[3]Expenditure_Detail!AA89 -> 0 | AB89: =[3]Expenditure_Detail!AB89 -> 0 | AC89: =[3]Expenditure_Detail!AC89 -> 0 | AD89: =[3]Expenditure_Detail!AD89 -> 0 | AE89: =[3]Expenditure_Detail!AE89 -> 0 | AF89: =[3]Expenditure_Detail!AF89 -> 0 | AG89: =[3]Expenditure_Detail!AG89 -> 0 | AH89: =[3]Expenditure_Detail!AH89 -> 0 | AI89: =[3]Expenditure_Detail!AI89 -> 0 | AJ89: =[3]Expenditure_Detail!AJ89 -> 0 | AK89: =[3]Expenditure_Detail!AK89 -> 0 | AL89: =[3]Expenditure_Detail!AL89 -> 0
D90: % increase p.a. | X90: =X89/W89-1 ->  | Y90: =Y89/X89-1 ->  | Z90: =Z89/Y89-1 ->  | AA90: =AA89/Z89-1 ->  | AB90: =AB89/AA89-1 ->  | AC90: =AC89/AB89-1 ->  | AD90: =AD89/AC89-1 ->  | AH90: =AH89/AG89-1 ->  | AI90: =AI89/AH89-1 ->  | AJ90: =AJ89/AI89-1 ->  | AK90: =AK89/AJ89-1 ->  | AL90: =AL89/AK89-1 -> 
D93: TOTAL ENERGY COSTS | W93: =+SUM(W51,W57,W63,W72,W78,W84,W89) -> 4.255610573 | X93: 5.794923782 | Y93: 4.866112369 | Z93: 4.901548739 | AA93: 4.066077216 | AB93: 3.720145175 | AC93: 3.982304032 | AD93: =+SUM(AD51,AD57,AD63,AD72,AD78,AD84,AD89) -> 3.990253864 | AE93: 4.06457404 | AF93: 4.130291 | AG93: 4.056391248 | AH93: =+SUM(AH51,AH57,AH63,AH72,AH78,AH84,AH89) -> 4.056391248 | AI93: 4.056391248 | AJ93: 4.056391248 | AK93: 4.056391248 | AL93: 4.056391248
D94: % increase p.a. | X94: =X93/W93-1 -> 0.3617138321 | Y94: =Y93/X93-1 -> -0.1602801776 | Z94: =Z93/Y93-1 -> 0.007282275417 | AA94: =AA93/Z93-1 -> -0.1704505184 | AB94: =AB93/AA93-1 -> -0.08507758764 | AC94: =AC93/AB93-1 -> 0.07047006089 | AD94: =AD93/AC93-1 -> 0.001996289569 | AE94: 0.01862542548 | AF94: 0.01616822805 | AG94: -0.01789214174 | AH94: =AH93/AG93-1 -> 0 | AI94: =AI93/AH93-1 -> 0 | AJ94: =AJ93/AI93-1 -> 0 | AK94: =AK93/AJ93-1 -> 0 | AL94: =AL93/AK93-1 -> 0
C99: IT cost assumptions
D101: Water related IT costs | W101: =[3]Expenditure_Detail!W101 -> 0.6662477503 | X101: =[3]Expenditure_Detail!X101 -> 0.634526011 | Y101: =[3]Expenditure_Detail!Y101 -> 0.6931318914 | Z101: =[3]Expenditure_Detail!Z101 -> 0.8361262925 | AA101: =[3]Expenditure_Detail!AA101 -> 0.8640202756 | AB101: =[3]Expenditure_Detail!AB101 -> 0.9588913 | AC101: =[3]Expenditure_Detail!AC101 -> 0.98623304 | AD101: =[3]Expenditure_Detail!AD101 -> 1.03587154 | AE101: =[3]Expenditure_Detail!AE101 -> 1.03600566 | AF101: =[3]Expenditure_Detail!AF101 -> 1.06904266 | AG101: =[3]Expenditure_Detail!AG101 -> 1.06660328 | AH101: =[3]Expenditure_Detail!AH101 -> 1.06660328 | AI101: =[3]Expenditure_Detail!AI101 -> 1.06660328 | AJ101: =[3]Expenditure_Detail!AJ101 -> 1.06660328 | AK101: =[3]Expenditure_Detail!AK101 -> 1.06660328 | AL101: =[3]Expenditure_Detail!AL101 -> 1.06660328
D102: Sewerage and trade waste related IT costs
D103: Other IT costs
D104: Total IT costs | W104: =SUM(W101:W103) -> 0.6662477503 | X104: 0.634526011 | Y104: 0.6931318914 | Z104: 0.8361262925 | AA104: 0.8640202756 | AB104: 0.9588913 | AC104: 0.98623304 | AD104: =SUM(AD101:AD103) -> 1.03587154 | AE104: 1.03600566 | AF104: 1.06904266 | AG104: 1.06660328 | AH104: =SUM(AH101:AH103) -> 1.06660328 | AI104: 1.06660328 | AJ104: 1.06660328 | AK104: 1.06660328 | AL104: 1.06660328
D105: % increase p.a. | X105: =X104/W104-1 -> -0.04761252746 | Y105: =Y104/X104-1 -> 0.09236166742 | Z105: =Z104/Y104-1 -> 0.2063018638 | AA105: =AA104/Z104-1 -> 0.03336096876 | AB105: =AB104/AA104-1 -> 0.1098018497 | AC105: =AC104/AB104-1 -> 0.02851390976 | AD105: =AD104/AC104-1 -> 0.05033141052 | AE105: 0.0001294755139 | AF105: 0.03188882192 | AG105: -0.002281835975 | AH105: =AH104/AG104-1 -> 0 | AI105: =AI104/AH104-1 -> 0 | AJ105: =AJ104/AI104-1 -> 0 | AK105: =AK104/AJ104-1 -> 0 | AL105: =AL104/AK104-1 -> 0
C110: Chemical cost assumptions
D112: Water related chemical costs | W112: =[3]Expenditure_Detail!W112 -> 0.04936153575 | X112: =[3]Expenditure_Detail!X112 -> 0.04509695915 | Y112: =[3]Expenditure_Detail!Y112 -> 0.0206883681 | Z112: =[3]Expenditure_Detail!Z112 -> 0.05099983276 | AA112: =[3]Expenditure_Detail!AA112 -> 0.0269784631 | AB112: =[3]Expenditure_Detail!AB112 -> 0.0445 | AC112: =[3]Expenditure_Detail!AC112 -> 0.0445 | AD112: =[3]Expenditure_Detail!AD112 -> 0.0445 | AE112: =[3]Expenditure_Detail!AE112 -> 0.0445 | AF112: =[3]Expenditure_Detail!AF112 -> 0.0445 | AG112: =[3]Expenditure_Detail!AG112 -> 0.0445 | AH112: =[3]Expenditure_Detail!AH112 -> 0.0445 | AI112: =[3]Expenditure_Detail!AI112 -> 0.0445 | AJ112: =[3]Expenditure_Detail!AJ112 -> 0.0445 | AK112: =[3]Expenditure_Detail!AK112 -> 0.0445 | AL112: =[3]Expenditure_Detail!AL112 -> 0.0445
D113: Sewerage and trade waste related chemical costs
D114: Other chemical costs
D115: Total chemical costs | W115: =SUM(W112:W114) -> 0.04936153575 | X115: 0.04509695915 | Y115: 0.0206883681 | Z115: 0.05099983276 | AA115: 0.0269784631 | AB115: 0.0445 | AC115: 0.0445 | AD115: =SUM(AD112:AD114) -> 0.0445 | AE115: 0.0445 | AF115: 0.0445 | AG115: 0.0445 | AH115: =SUM(AH112:AH114) -> 0.0445 | AI115: 0.0445 | AJ115: 0.0445 | AK115: 0.0445 | AL115: 0.0445
D116: % increase p.a. | X116: =X115/W115-1 -> -0.08639473093 | Y116: =Y115/X115-1 -> -0.5412469379 | Z116: =Z115/Y115-1 -> 1.46514527 | AA116: =AA115/Z115-1 -> -0.4710087927 | AB116: =AB115/AA115-1 -> 0.6494638641 | AC116: =AC115/AB115-1 -> 0 | AD116: =AD115/AC115-1 -> 0 | AE116: 0 | AF116: 0 | AG116: 0 | AH116: =AH115/AG115-1 -> 0 | AI116: =AI115/AH115-1 -> 0 | AJ116: =AJ115/AI115-1 -> 0 | AK116: =AK115/AJ115-1 -> 0 | AL116: =AL115/AK115-1 -> 0

Sheet Opex_FO
B1: Operating Expenditure - Forecast
B2: =+Model_Name -> Lower Murray Water - Rural
B3: Go to Table of Contents
L4: FIRST REG PERIOD | P4: SECOND REG PERIOD | U4: THIRD REG PERIOD | Z4: FOURTH REG PERIOD | AE4: FIFTH REG PERIOD | AJ4: SIXTH REG PERIOD
K5: 2006 | L5: 2007 | M5: 2008 | N5: 2009 | O5: 2010 | P5: 2011 | Q5: 2012 | R5: 2013 | S5: 2014 | T5: 2015 | U5: 2016 | V5: 2017 | W5: 2018 | X5: 2019 | Y5: 2020 | Z5: 2021 | AA5: 2022 | AB5: 2023 | AC5: 2024 | AD5: 2025 | AE5: 2026 | AF5: 2027 | AG5: 2028 | AH5: 2029 | AI5: 2030 | AJ5: 2031 | AK5: 2032 | AL5: 2033
B6: $m, 01/01/23 | K6: =+CONCATENATE(K5-1,"-",RIGHT(K5,2)) -> 2005-06 | L6: =+CONCATENATE(L5-1,"-",RIGHT(L5,2)) -> 2006-07 | M6: 2007-08 | N6: 2008-09 | O6: 2009-10 | P6: 2010-11 | Q6: 2011-12 | R6: 2012-13 | S6: 2013-14 | T6: 2014-15 | U6: 2015-16 | V6: 2016-17 | W6: 2017-18 | X6: 2018-19 | Y6: 2019-20 | Z6: 2020-21 | AA6: 2021-22 | AB6: 2022-23 | AC6: 2023-24 | AD6: 2024-25 | AE6: 2025-26 | AF6: 2026-27 | AG6: 2027-28 | AH6: =+CONCATENATE(AH5-1,"-",RIGHT(AH5,2)) -> 2028-29 | AI6: 2029-30 | AJ6: 2030-31 | AK6: 2031-32 | AL6: 2032-33
C9: Parameters
D11: Cost efficiency improvement rate (% per annum)
D13: Customer growth forecast (% per annum) | T13: =IF(T15="","",T15/S15-1) ->  | U13: =IF(U15="","",U15/T15-1) -> 
D15: Water customers (No.) - Residential & Non-Residential | AB15: =+AA$15*(1+AB$13) -> 0 | AC15: 0 | AD15: 0 | AE15: 0 | AF15: 0 | AG15: 0 | AN15: Not used for LMW-R
D17: Sewer customers (No.) - Residential & Non-Residential | AB17: =+AA$17*(1+AB$13) -> 0 | AC17: 0 | AD17: 0 | AE17: 0 | AF17: 0 | AG17: 0 | AN17: Not used for LMW-R
C21: Baseline Forecast
D23: Baseline year - total prescribed operating expenditure in 2021-22: | AA23: =+Opex_Breakdown!AA37 -> 22.84504289
D25: Less non-controllable expenditure items incurred in 2021-22:
E26: External bulk water charges (excl. temporary purchases) | AA26: =+Opex_Breakdown!AA29 -> 3.267688283
E27: External temporary water purchases | AA27: =+Opex_Breakdown!AA30 -> 0 | AC27: Comparison with approved 2021-22 total controllable opex
E28: Licence fees | AA28: =+Opex_Breakdown!AA31 -> 0.04868784489 | AC28: per 2018 determination model
E29: Environment Contribution | AA29: =+Opex_Breakdown!AA32 -> 0.4899251908
E30: Other non-controllable | AA30: =+Opex_Breakdown!AA33 -> 0
AA31: =SUM(AA26:AA30) -> 3.806301319 | AD31: 2021-22 | AE31: Difference | AF31: %
D33: Baseline year - total controllable operating expenditure in 2021-22: | AA33: =+AA23-AA31 -> 19.03874157 | AD33: =+Determination_Lookup!Q19 -> 17.64863396 | AE33: =+AA49-AD33 -> -0.1423513914 | AF33: =+AE33/AD33 -> -0.008065858908
D35: Adjustments for non-recurring expenditure items incurred in 2021-22 and any efficiency savings to be realised from 2021-22: | AC35: ($, 2022-23)
D37: 1 | E37: =[3]Opex_FO!E37 -> Corporate Cost Allocation chages | AA37: =[3]Opex_FO!AA37 -> 0.895107
D38: 2 | E38: =[3]Opex_FO!E38 -> PS5 Planning Costs | AA38: =[3]Opex_FO!AA38 -> 0.385466
D39: 3 | E39: =[3]Opex_FO!E39 -> Millewa PS Temp Pump | AA39: =[3]Opex_FO!AA39 -> 0.288808
D40: 4 | E40: =[3]Opex_FO!E40 -> Covid-19 Costs | AA40: =[3]Opex_FO!AA40 -> 0.178416
D41: 5 | E41: =[3]Opex_FO!E41 -> WEP Costs | AA41: =[3]Opex_FO!AA41 -> 0.157878
D42: 6 | E42: =[3]Opex_FO!E42 -> Electricity | AA42: =[3]Opex_FO!AA42 -> -0.290835
D43: 7 | E43: =[3]Opex_FO!E43 -> Training & Travel | AA43: =[3]Opex_FO!AA43 -> -0.082381
D44: 8 | AA44: =[3]Opex_FO!AA44 -> 0
D45: 9 | AA45: =[3]Opex_FO!AA45 -> 0
D46: 10 | AA46: =[3]Opex_FO!AA46 -> 0
AA47: =SUM(AA37:AA46) -> 1.532459
D49: Baseline controllable operating expenditure (2021-22) | AA49: =+AA33-AA47 -> 17.50628257
D51: Baseline controllable operating expenditure (Forecast) | AB51: =+AA49 -> 17.50628257 | AC51: =+AB51 -> 17.50628257 | AD51: =+AC51 -> 17.50628257 | AE51: =+AD51 -> 17.50628257 | AF51: =+AE51 -> 17.50628257 | AG51: =+AF51 -> 17.50628257 | AH51: =+AG51 -> 17.50628257 | AI51: =+AH51 -> 17.50628257 | AJ51: =+AI51 -> 17.50628257 | AK51: =+AJ51 -> 17.50628257 | AL51: =+AK51 -> 17.50628257
C55: Operating expenditure - reconciliation
D58: Baseline controllable operating expenditure (Forecast) | AC58: =+AC51 -> 17.50628257 | AD58: 17.50628257 | AE58: 17.50628257 | AF58: 17.50628257 | AG58: 17.50628257 | AH58: =+AH51 -> 17.50628257 | AI58: 17.50628257 | AJ58: 17.50628257 | AK58: 17.50628257 | AL58: 17.50628257
H59: Controllable
D60: Forecast variations to baseline operating expenditure (above or below baseline) | H60: only
D62: 1 | E62: =[3]Opex_FO!E62 -> Electricity | H62: Irrigation | AC62: =[3]Opex_FO!AC62 -> -0.3746064158 | AD62: =[3]Opex_FO!AD62 -> -0.3666575838 | AE62: =[3]Opex_FO!AE62 -> -0.2923374078 | AF62: =[3]Opex_FO!AF62 -> -0.2266204478 | AG62: =[3]Opex_FO!AG62 -> -0.3005201998 | AH62: =[3]Opex_FO!AH62 -> -0.3005201998 | AI62: =[3]Opex_FO!AI62 -> -0.3005201998 | AJ62: =[3]Opex_FO!AJ62 -> -0.3005201998 | AK62: =[3]Opex_FO!AK62 -> -0.3005201998 | AL62: =[3]Opex_FO!AL62 -> -0.3005201998
D63: 2 | E63: =[3]Opex_FO!E63 -> LGC's | H63: Irrigation | AC63: =[3]Opex_FO!AC63 -> 0 | AD63: =[3]Opex_FO!AD63 -> 0.062528048 | AE63: =[3]Opex_FO!AE63 -> 0.370195472 | AF63: =[3]Opex_FO!AF63 -> 0.255633625 | AG63: =[3]Opex_FO!AG63 -> 0.187526672 | AH63: =[3]Opex_FO!AH63 -> 0.187526672 | AI63: =[3]Opex_FO!AI63 -> 0.187526672 | AJ63: =[3]Opex_FO!AJ63 -> 0.187526672 | AK63: =[3]Opex_FO!AK63 -> 0.187526672 | AL63: =[3]Opex_FO!AL63 -> 0.187526672
D64: 3 | E64: =[3]Opex_FO!E64 -> PS6 Consulting Costs | H64: Irrigation | AC64: =[3]Opex_FO!AC64 -> 0 | AD64: =[3]Opex_FO!AD64 -> 0 | AE64: =[3]Opex_FO!AE64 -> 0 | AF64: =[3]Opex_FO!AF64 -> 0.1692 | AG64: =[3]Opex_FO!AG64 -> 0.047 | AH64: =[3]Opex_FO!AH64 -> 0 | AI64: =[3]Opex_FO!AI64 -> 0 | AJ64: =[3]Opex_FO!AJ64 -> 0 | AK64: =[3]Opex_FO!AK64 -> 0.1692 | AL64: =[3]Opex_FO!AL64 -> 0.047
D65: 4 | E65: =[3]Opex_FO!E65 -> 0 | H65: Bulk water services | AC65: =[3]Opex_FO!AC65 -> 0 | AD65: =[3]Opex_FO!AD65 -> 0 | AE65: =[3]Opex_FO!AE65 -> 0 | AF65: =[3]Opex_FO!AF65 -> 0 | AG65: =[3]Opex_FO!AG65 -> 0 | AH65: =[3]Opex_FO!AH65 -> 0 | AI65: =[3]Opex_FO!AI65 -> 0 | AJ65: =[3]Opex_FO!AJ65 -> 0 | AK65: =[3]Opex_FO!AK65 -> 0 | AL65: =[3]Opex_FO!AL65 -> 0
D66: 5 | E66: =[3]Opex_FO!E66 -> 0 | H66: Bulk water services | AC66: =[3]Opex_FO!AC66 -> 0 | AD66: =[3]Opex_FO!AD66 -> 0 | AE66: =[3]Opex_FO!AE66 -> 0 | AF66: =[3]Opex_FO!AF66 -> 0 | AG66: =[3]Opex_FO!AG66 -> 0 | AH66: =[3]Opex_FO!AH66 -> 0 | AI66: =[3]Opex_FO!AI66 -> 0 | AJ66: =[3]Opex_FO!AJ66 -> 0 | AK66: =[3]Opex_FO!AK66 -> 0 | AL66: =[3]Opex_FO!AL66 -> 0
D67: 6 | E67: =[3]Opex_FO!E67 -> 0 | H67: Bulk water services | AC67: =[3]Opex_FO!AC67 -> 0 | AD67: =[3]Opex_FO!AD67 -> 0 | AE67: =[3]Opex_FO!AE67 -> 0 | AF67: =[3]Opex_FO!AF67 -> 0 | AG67: =[3]Opex_FO!AG67 -> 0 | AH67: =[3]Opex_FO!AH67 -> 0 | AI67: =[3]Opex_FO!AI67 -> 0 | AJ67: =[3]Opex_FO!AJ67 -> 0 | AK67: =[3]Opex_FO!AK67 -> 0 | AL67: =[3]Opex_FO!AL67 -> 0
D68: 7 | E68: =[3]Opex_FO!E68 -> 0 | H68: Bulk water services | AC68: =[3]Opex_FO!AC68 -> 0 | AD68: =[3]Opex_FO!AD68 -> 0 | AE68: =[3]Opex_FO!AE68 -> 0 | AF68: =[3]Opex_FO!AF68 -> 0 | AG68: =[3]Opex_FO!AG68 -> 0 | AH68: =[3]Opex_FO!AH68 -> 0 | AI68: =[3]Opex_FO!AI68 -> 0 | AJ68: =[3]Opex_FO!AJ68 -> 0 | AK68: =[3]Opex_FO!AK68 -> 0 | AL68: =[3]Opex_FO!AL68 -> 0
D69: 8 | E69: =[3]Opex_FO!E69 -> 0 | H69: Bulk water services | AC69: =[3]Opex_FO!AC69 -> 0 | AD69: =[3]Opex_FO!AD69 -> 0 | AE69: =[3]Opex_FO!AE69 -> 0 | AF69: =[3]Opex_FO!AF69 -> 0 | AG69: =[3]Opex_FO!AG69 -> 0 | AH69: =[3]Opex_FO!AH69 -> 0 | AI69: =[3]Opex_FO!AI69 -> 0 | AJ69: =[3]Opex_FO!AJ69 -> 0 | AK69: =[3]Opex_FO!AK69 -> 0 | AL69: =[3]Opex_FO!AL69 -> 0
D70: 9 | E70: =[3]Opex_FO!E70 -> 0 | H70: Bulk water services | AC70: =[3]Opex_FO!AC70 -> 0 | AD70: =[3]Opex_FO!AD70 -> 0 | AE70: =[3]Opex_FO!AE70 -> 0 | AF70: =[3]Opex_FO!AF70 -> 0 | AG70: =[3]Opex_FO!AG70 -> 0 | AH70: =[3]Opex_FO!AH70 -> 0 | AI70: =[3]Opex_FO!AI70 -> 0 | AJ70: =[3]Opex_FO!AJ70 -> 0 | AK70: =[3]Opex_FO!AK70 -> 0 | AL70: =[3]Opex_FO!AL70 -> 0
D71: 10 | E71: =[3]Opex_FO!E71 -> 0 | H71: Bulk water services | AC71: =[3]Opex_FO!AC71 -> 0 | AD71: =[3]Opex_FO!AD71 -> 0 | AE71: =[3]Opex_FO!AE71 -> 0 | AF71: =[3]Opex_FO!AF71 -> 0 | AG71: =[3]Opex_FO!AG71 -> 0 | AH71: =[3]Opex_FO!AH71 -> 0 | AI71: =[3]Opex_FO!AI71 -> 0 | AJ71: =[3]Opex_FO!AJ71 -> 0 | AK71: =[3]Opex_FO!AK71 -> 0 | AL71: =[3]Opex_FO!AL71 -> 0
D72: 11 | E72: =[3]Opex_FO!E72 -> 0 | H72: Bulk water services | AC72: =[3]Opex_FO!AC72 -> 0 | AD72: =[3]Opex_FO!AD72 -> 0 | AE72: =[3]Opex_FO!AE72 -> 0 | AF72: =[3]Opex_FO!AF72 -> 0 | AG72: =[3]Opex_FO!AG72 -> 0 | AH72: =[3]Opex_FO!AH72 -> 0 | AI72: =[3]Opex_FO!AI72 -> 0 | AJ72: =[3]Opex_FO!AJ72 -> 0 | AK72: =[3]Opex_FO!AK72 -> 0 | AL72: =[3]Opex_FO!AL72 -> 0
D73: 12 | E73: =[3]Opex_FO!E73 -> 0 | H73: Bulk water services | AC73: =[3]Opex_FO!AC73 -> 0 | AD73: =[3]Opex_FO!AD73 -> 0 | AE73: =[3]Opex_FO!AE73 -> 0 | AF73: =[3]Opex_FO!AF73 -> 0 | AG73: =[3]Opex_FO!AG73 -> 0 | AH73: =[3]Opex_FO!AH73 -> 0 | AI73: =[3]Opex_FO!AI73 -> 0 | AJ73: =[3]Opex_FO!AJ73 -> 0 | AK73: =[3]Opex_FO!AK73 -> 0 | AL73: =[3]Opex_FO!AL73 -> 0
D74: 13 | E74: =[3]Opex_FO!E74 -> 0 | H74: [Service] | AC74: =[3]Opex_FO!AC74 -> 0 | AD74: =[3]Opex_FO!AD74 -> 0 | AE74: =[3]Opex_FO!AE74 -> 0 | AF74: =[3]Opex_FO!AF74 -> 0 | AG74: =[3]Opex_FO!AG74 -> 0 | AH74: =[3]Opex_FO!AH74 -> 0 | AI74: =[3]Opex_FO!AI74 -> 0 | AJ74: =[3]Opex_FO!AJ74 -> 0 | AK74: =[3]Opex_FO!AK74 -> 0 | AL74: =[3]Opex_FO!AL74 -> 0
D75: 14 | E75: =[3]Opex_FO!E75 -> 0 | H75: [Service] | AC75: =[3]Opex_FO!AC75 -> 0 | AD75: =[3]Opex_FO!AD75 -> 0 | AE75: =[3]Opex_FO!AE75 -> 0 | AF75: =[3]Opex_FO!AF75 -> 0 | AG75: =[3]Opex_FO!AG75 -> 0 | AH75: =[3]Opex_FO!AH75 -> 0 | AI75: =[3]Opex_FO!AI75 -> 0 | AJ75: =[3]Opex_FO!AJ75 -> 0 | AK75: =[3]Opex_FO!AK75 -> 0 | AL75: =[3]Opex_FO!AL75 -> 0
D76: 15 | E76: =[3]Opex_FO!E76 -> Total identified variations | H76: Irrigation | AC76: =[3]Opex_FO!AC76 -> -0.2243617614 | AD76: =[3]Opex_FO!AD76 -> -0.3459484814 | AE76: =[3]Opex_FO!AE76 -> -0.2422938214 | AF76: =[3]Opex_FO!AF76 -> -0.1706397344 | AG76: =[3]Opex_FO!AG76 -> -0.3237423394 | AH76: =[3]Opex_FO!AH76 -> -0.2717115316 | AI76: =[3]Opex_FO!AI76 -> -0.2728810232 | AJ76: =[3]Opex_FO!AJ76 -> -0.2740408802 | AK76: =[3]Opex_FO!AK76 -> -0.4519101189 | AL76: =[3]Opex_FO!AL76 -> -0.3308493758
D78: Total changes required to baseline operating expenditure | AC78: =SUM(AC62:AC76) -> -0.5989681773 | AD78: =SUM(AD62:AD76) -> -0.6500780173 | AE78: -0.1644357573 | AF78: 0.02757344275 | AG78: =SUM(AG62:AG76) -> -0.3897358673 | AH78: -0.3847050595 | AI78: -0.3858745511 | AJ78: -0.387034408 | AK78: -0.3957036468 | AL78: -0.3968429037
D81: Total controllable operating expenditure | AC81: =+AC78+AC58 -> 16.90731439 | AD81: 16.85620455 | AE81: 17.34184681 | AF81: 17.53385601 | AG81: 17.1165467 | AH81: 17.12157751 | AI81: 17.12040802 | AJ81: 17.11924816 | AK81: 17.11057892 | AL81: 17.10943966
D83: Non-controllable operating expenditure
D84: External bulk water charges (excl. temporary purchases) | AC84: =+Opex_Breakdown!AC29 -> 3.33298755 | AD84: =+Opex_Breakdown!AD29 -> 3.48410855 | AE84: =+Opex_Breakdown!AE29 -> 3.63523055 | AF84: =+Opex_Breakdown!AF29 -> 3.78635155 | AG84: =+Opex_Breakdown!AG29 -> 3.78635155 | AH84: =+Opex_Breakdown!AH29 -> 3.78635155 | AI84: =+Opex_Breakdown!AI29 -> 3.78635155 | AJ84: =+Opex_Breakdown!AJ29 -> 3.78635155 | AK84: =+Opex_Breakdown!AK29 -> 3.78635155 | AL84: =+Opex_Breakdown!AL29 -> 3.78635155
D85: External temporary water purchases | AC85: =+Opex_Breakdown!AC30 -> 0 | AD85: =+Opex_Breakdown!AD30 -> 0 | AE85: =+Opex_Breakdown!AE30 -> 0 | AF85: =+Opex_Breakdown!AF30 -> 0 | AG85: =+Opex_Breakdown!AG30 -> 0 | AH85: =+Opex_Breakdown!AH30 -> 0 | AI85: =+Opex_Breakdown!AI30 -> 0 | AJ85: =+Opex_Breakdown!AJ30 -> 0 | AK85: =+Opex_Breakdown!AK30 -> 0 | AL85: =+Opex_Breakdown!AL30 -> 0
D86: Licence fees | AC86: =+Opex_Breakdown!AC31 -> 0.01504 | AD86: =+Opex_Breakdown!AD31 -> 0.01504 | AE86: =+Opex_Breakdown!AE31 -> 0.01504 | AF86: =+Opex_Breakdown!AF31 -> 0.02256 | AG86: =+Opex_Breakdown!AG31 -> 0.02256 | AH86: =+Opex_Breakdown!AH31 -> 0.01504 | AI86: =+Opex_Breakdown!AI31 -> 0.01504 | AJ86: =+Opex_Breakdown!AJ31 -> 0.01504 | AK86: =+Opex_Breakdown!AK31 -> 0.02256 | AL86: =+Opex_Breakdown!AL31 -> 0.02256
D87: Environment Contribution | AC87: =+Opex_Breakdown!AC32 -> 0.4662 | AD87: =+Opex_Breakdown!AD32 -> 0.4662 | AE87: =+Opex_Breakdown!AE32 -> 0.4662 | AF87: =+Opex_Breakdown!AF32 -> 0.4662 | AG87: =+Opex_Breakdown!AG32 -> 0.4662 | AH87: =+Opex_Breakdown!AH32 -> 0.4662 | AI87: =+Opex_Breakdown!AI32 -> 0.4662 | AJ87: =+Opex_Breakdown!AJ32 -> 0.4662 | AK87: =+Opex_Breakdown!AK32 -> 0.4662 | AL87: =+Opex_Breakdown!AL32 -> 0.4662
D88: Other non-controllable | AC88: =+Opex_Breakdown!AC33 -> 0 | AD88: =+Opex_Breakdown!AD33 -> 0 | AE88: =+Opex_Breakdown!AE33 -> 0 | AF88: =+Opex_Breakdown!AF33 -> 0 | AG88: =+Opex_Breakdown!AG33 -> 0 | AH88: =+Opex_Breakdown!AH33 -> 0 | AI88: =+Opex_Breakdown!AI33 -> 0 | AJ88: =+Opex_Breakdown!AJ33 -> 0 | AK88: =+Opex_Breakdown!AK33 -> 0 | AL88: =+Opex_Breakdown!AL33 -> 0
D89: Total non-controllable operating expenditure | AC89: =SUM(AC84:AC88) -> 3.81422755 | AD89: 3.96534855 | AE89: 4.11647055 | AF89: 4.27511155 | AG89: 4.27511155 | AH89: 4.26759155 | AI89: 4.26759155 | AJ89: 4.26759155 | AK89: 4.27511155 | AL89: 4.27511155
D92: Total prescribed operating expenditure | AC92: =+AC89+AC81 -> 20.72154194 | AD92: 20.8215531 | AE92: 21.45831736 | AF92: 21.80896756 | AG92: 21.39165825 | AH92: 21.38916906 | AI92: 21.38799957 | AJ92: 21.38683971 | AK92: 21.38569047 | AL92: =+AL89+AL81 -> 21.38455121
AB95: To reconcile to 'Opex_Breakdown' tab row 37 >> | AC95: =+Opex_Breakdown!AC37 -> 20.72154194 | AD95: =+Opex_Breakdown!AD37 -> 20.8215531 | AE95: =+Opex_Breakdown!AE37 -> 21.45831736 | AF95: =+Opex_Breakdown!AF37 -> 21.80896756 | AG95: =+Opex_Breakdown!AG37 -> 21.39165825 | AH95: =+Opex_Breakdown!AH37 -> 21.38916906 | AI95: =+Opex_Breakdown!AI37 -> 21.38799957 | AJ95: =+Opex_Breakdown!AJ37 -> 21.38683971 | AK95: =+Opex_Breakdown!AK37 -> 21.38569047 | AL95: =+Opex_Breakdown!AL37 -> 21.38455121
AB96: Difference | AC96: =+AC95-AC92 -> 0 | AD96: 0 | AE96: 0 | AF96: 0 | AG96: =+AG95-AG92 -> 0 | AH96: 0 | AI96: 0 | AJ96: 0 | AK96: 0 | AL96: 0
AB97: Test | AC97: =IF(ROUND(AC95,2)=ROUND(AC92,2),0,1) -> 0 | AD97: 0 | AE97: 0 | AF97: 0 | AG97: 0 | AH97: 0 | AI97: 0 | AJ97: 0 | AK97: 0 | AL97: 0
AC136: =+AC$157 -> 2023-24 | AD136: 2024-25 | AE136: 2025-26 | AF136: 2026-27 | AG136: 2027-28 | AH136: 2028-29 | AI136: 2029-30 | AJ136: 2030-31 | AK136: 2031-32 | AL136: 2032-33
AB137: Total controllable opex | AC137: =+AC81 -> 16.90731439 | AD137: 16.85620455 | AE137: 17.34184681 | AF137: 17.53385601 | AG137: 17.1165467 | AH137: =+AH81 -> 17.12157751 | AI137: 17.12040802 | AJ137: 17.11924816 | AK137: 17.11057892 | AL137: 17.10943966
AB138: Change - $ | AD138: =+AD137-AC137 -> -0.05110984 | AE138: 0.48564226 | AF138: 0.1920092 | AG138: -0.41730931 | AH138: =+AH137-AG137 -> 0.005030807765 | AI138: =+AI137-AH137 -> -0.001169491592 | AJ138: =+AJ137-AI137 -> -0.001159856944 | AK138: =+AK137-AJ137 -> -0.008669238762 | AL138: =+AL137-AK137 -> -0.001139256896
AB139: Change - % | AD139: =IFERROR(AD138/AC137,"") -> -0.003022942546 | AE139: 0.02881089029 | AF139: 0.01107201569 | AG139: -0.02380020172 | AH139: =IFERROR(AH138/AG137,"") -> 0.0002939148798 | AI139: =IFERROR(AI138/AH137,"") -> -6.830513084e-05 | AJ139: =IFERROR(AJ138/AI137,"") -> -6.774703865e-05 | AK139: =IFERROR(AK138/AJ137,"") -> -0.000506403008 | AL139: =IFERROR(AL138/AK137,"") -> -6.65820193e-05
AC141: =+AC$157 -> 2023-24 | AD141: 2024-25 | AE141: 2025-26 | AF141: 2026-27 | AG141: 2027-28 | AH141: 2028-29 | AI141: 2029-30 | AJ141: 2030-31 | AK141: 2031-32 | AL141: 2032-33
AB142: Total non-controllable opex | AC142: =+AC89 -> 3.81422755 | AD142: 3.96534855 | AE142: 4.11647055 | AF142: 4.27511155 | AG142: 4.27511155 | AH142: =+AH89 -> 4.26759155 | AI142: 4.26759155 | AJ142: 4.26759155 | AK142: 4.27511155 | AL142: 4.27511155
AB143: Change - $ | AD143: =+AD142-AC142 -> 0.151121 | AE143: 0.151122 | AF143: 0.158641 | AG143: 0 | AH143: =+AH142-AG142 -> -0.00752 | AI143: =+AI142-AH142 -> 0 | AJ143: =+AJ142-AI142 -> 0 | AK143: =+AK142-AJ142 -> 0.00752 | AL143: =+AL142-AK142 -> 0
AB144: Change - % | AD144: =IFERROR(AD143/AC142,"") -> 0.039620342 | AE144: 0.0381106473 | AF144: 0.03853811125 | AG144: 0 | AH144: =IFERROR(AH143/AG142,"") -> -0.001759018428 | AI144: =IFERROR(AI143/AH142,"") -> 0 | AJ144: =IFERROR(AJ143/AI142,"") -> 0 | AK144: =IFERROR(AK143/AJ142,"") -> 0.001762118027 | AL144: =IFERROR(AL143/AK142,"") -> 0
AC146: =+AC$157 -> 2023-24 | AD146: 2024-25 | AE146: 2025-26 | AF146: 2026-27 | AG146: 2027-28 | AH146: 2028-29 | AI146: 2029-30 | AJ146: 2030-31 | AK146: 2031-32 | AL146: 2032-33
AB147: Total prescribed opex | AC147: =+AC137+AC142 -> 20.72154194 | AD147: 20.8215531 | AE147: 21.45831736 | AF147: 21.80896756 | AG147: 21.39165825 | AH147: =+AH137+AH142 -> 21.38916906 | AI147: 21.38799957 | AJ147: 21.38683971 | AK147: 21.38569047 | AL147: 21.38455121
AB148: Change - $ | AD148: =+AD147-AC147 -> 0.10001116 | AE148: 0.63676426 | AF148: 0.3506502 | AG148: -0.41730931 | AH148: =+AH147-AG147 -> -0.002489192235 | AI148: =+AI147-AH147 -> -0.001169491592 | AJ148: =+AJ147-AI147 -> -0.001159856944 | AK148: =+AK147-AJ147 -> -0.001149238762 | AL148: =+AL147-AK147 -> -0.001139256896
AB149: Change - % | AD149: =IFERROR(AD148/AC147,"") -> 0.004826434263 | AE149: 0.0305819771 | AF149: 0.01634099236 | AG149: -0.0191347577 | AH149: =IFERROR(AH148/AG147,"") -> -0.0001163627525 | AI149: =IFERROR(AI148/AH147,"") -> -5.467681277e-05 | AJ149: =IFERROR(AJ148/AI147,"") -> -5.422933267e-05 | AK149: =IFERROR(AK148/AJ147,"") -> -5.373579161e-05 | AL149: =IFERROR(AL148/AK147,"") -> -5.327192486e-05
AB152: Controllable vs. Non-controllable opex - % | AC152: =+AC$157 -> 2023-24 | AD152: 2024-25 | AE152: 2025-26 | AF152: 2026-27 | AG152: 2027-28 | AH152: 2028-29 | AI152: 2029-30 | AJ152: 2030-31 | AK152: 2031-32 | AL152: 2032-33
AB153: Controllable opex - % | AC153: =+AC81/AC92 -> 0.8159293569 | AD153: 0.8095555826 | AE153: 0.8081643364 | AF153: 0.8039746018 | AG153: 0.8001505306 | AH153: =+AH81/AH92 -> 0.8004788527 | AI153: 0.8004679429 | AJ153: 0.8004571219 | AK153: 0.8000947617 | AL153: 0.8000841118
AB154: Non-controllable opex - % | AC154: =+AC89/AC92 -> 0.1840706431 | AD154: 0.1904444174 | AE154: 0.1918356636 | AF154: 0.1960253982 | AG154: 0.1998494694 | AH154: =+AH89/AH92 -> 0.1995211473 | AI154: 0.1995320571 | AJ154: 0.1995428781 | AK154: 0.1999052383 | AL154: 0.1999158882
AC155: =SUM(AC153:AC154) -> 1 | AD155: 1 | AE155: 1 | AF155: 1 | AG155: 1 | AH155: =SUM(AH153:AH154) -> 1 | AI155: 1 | AJ155: 1 | AK155: 1 | AL155: 1
AA157: =+AA6 -> 2021-22 | AB157: 2022-23 | AC157: =+AC6 -> 2023-24 | AD157: 2024-25 | AE157: 2025-26 | AF157: 2026-27 | AG157: 2027-28 | AH157: =+AH6 -> 2028-29 | AI157: 2029-30 | AJ157: 2030-31 | AK157: 2031-32 | AL157: 2032-33
Z158: Third Reg period Opex | AA158: =+AA166-SUM(AA159:AA165) -> 19.03874157 | AB158: =+AB166-SUM(AB159:AB165) -> 18.47427614
Z159: baseline opex | AC159: =+AC58 -> 17.50628257 | AD159: 17.50628257 | AE159: 17.50628257 | AF159: 17.50628257 | AG159: 17.50628257 | AH159: =+AH58 -> 17.50628257 | AI159: 17.50628257 | AJ159: 17.50628257 | AK159: 17.50628257 | AL159: 17.50628257
Z160: Forecast variations to baseline operating expenditure | AC160: =+AC78 -> -0.5989681773 | AD160: -0.6500780173 | AE160: -0.1644357573 | AF160: 0.02757344275 | AG160: -0.3897358673 | AH160: =+AH78 -> -0.3847050595 | AI160: -0.3858745511 | AJ160: -0.387034408 | AK160: -0.3957036468 | AL160: -0.3968429037
Z161: Licence fees | AA161: =+AA191 -> 0.04868784489 | AB161: =+AB191 -> 0.0285 | AC161: =+AC86 -> 0.01504 | AD161: 0.01504 | AE161: 0.01504 | AF161: 0.02256 | AG161: 0.02256 | AH161: =+AH86 -> 0.01504 | AI161: 0.01504 | AJ161: 0.01504 | AK161: 0.02256 | AL161: 0.02256
Z162: Environment Contribution | AA162: =+AA192 -> 0.4899251908 | AB162: =+AB192 -> 0.4662 | AC162: =+AC87 -> 0.4662 | AD162: 0.4662 | AE162: 0.4662 | AF162: 0.4662 | AG162: 0.4662 | AH162: =+AH87 -> 0.4662 | AI162: 0.4662 | AJ162: 0.4662 | AK162: 0.4662 | AL162: 0.4662
Z163: External bulk water charges | AA163: =+AA189 -> 3.267688283 | AB163: =+AB189 -> 3.184012737 | AC163: =+AC84 -> 3.33298755 | AD163: 3.48410855 | AE163: 3.63523055 | AF163: 3.78635155 | AG163: 3.78635155 | AH163: =+AH84 -> 3.78635155 | AI163: 3.78635155 | AJ163: 3.78635155 | AK163: 3.78635155 | AL163: 3.78635155
Z164: External temporary water purchases | AA164: =+AA190 -> 0 | AB164: =+AB190 -> 0 | AC164: =+AC85 -> 0 | AD164: 0 | AE164: 0 | AF164: 0 | AG164: 0 | AH164: =+AH85 -> 0 | AI164: 0 | AJ164: 0 | AK164: 0 | AL164: 0
Z165: Other non-controllable | AA165: =+AA193 -> 0 | AB165: =+AB193 -> 0 | AC165: =+AC88 -> 0 | AD165: 0 | AE165: 0 | AF165: 0 | AG165: 0 | AH165: =+AH88 -> 0 | AI165: 0 | AJ165: 0 | AK165: 0 | AL165: 0
Z166: Total prescribed opex | AA166: =+Opex_Breakdown!AA37 -> 22.84504289 | AB166: =+Opex_Breakdown!AB37 -> 22.15298888 | AC166: =SUM(AC159:AC165) -> 20.72154194 | AD166: 20.8215531 | AE166: 21.45831736 | AF166: 21.80896756 | AG166: 21.39165825 | AH166: =SUM(AH159:AH165) -> 21.38916906 | AI166: 21.38799957 | AJ166: 21.38683971 | AK166: 21.38569047 | AL166: 21.38455121
AC168: =+AC$157 -> 2023-24 | AD168: 2024-25 | AE168: 2025-26 | AF168: 2026-27 | AG168: 2027-28 | AH168: 2028-29 | AI168: 2029-30 | AJ168: 2030-31 | AK168: 2031-32 | AL168: 2032-33
AB169: baseline opex | AC169: =+AC159/AC$166 -> 0.8448349364 | AD169: 0.8407769816 | AE169: 0.8158273677 | AF169: 0.8027102851 | AG169: 0.8183695889 | AH169: =+AH159/AH$166 -> 0.8184648277 | AI169: 0.8185095812 | AJ169: 0.8185539708 | AK169: 0.8185979588 | AL169: 0.8186415694
AB170: Forecast variations to baseline operating expenditure | AC170: =+AC160/AC$166 -> -0.02890557947 | AD170: -0.03122139901 | AE170: -0.007663031285 | AF170: 0.001264316739 | AG170: -0.01821905823 | AH170: =+AH160/AH$166 -> -0.01798597498 | AI170: -0.01804163825 | AJ170: -0.01809684896 | AK170: -0.01850319714 | AL170: -0.01855745766
AB171: Licence fees | AC171: =+AC161/AC$166 -> 0.0007258147122 | AD171: 0.0007223284415 | AE171: 0.0007008937256 | AF171: 0.001034436864 | AG171: 0.001054616699 | AH171: =+AH161/AH$166 -> 0.0007031596206 | AI171: 0.0007031980692 | AJ171: 0.0007032362053 | AK171: 0.001054910994 | AL171: 0.001054967195
AB172: Environment Contribution | AC172: =+AC162/AC$166 -> 0.02249832572 | AD172: 0.0223902606 | AE172: 0.02172584142 | AF172: 0.02137652774 | AG172: 0.02179354188 | AH172: =+AH162/AH$166 -> 0.02179607813 | AI172: 0.02179726994 | AJ172: 0.02179845205 | AK172: 0.02179962347 | AL172: 0.02180078484
AB173: External bulk water charges (excl. temporary purchases) | AC173: =+AC163/AC$166 -> 0.1608465026 | AD173: 0.1673318284 | AE173: 0.1694089284 | AF173: 0.1736144336 | AG173: 0.1770013108 | AH173: =+AH163/AH$166 -> 0.1770219095 | AI173: 0.1770315891 | AJ173: 0.1770411899 | AK173: 0.1770507038 | AL173: 0.1770601362
AB174: External temporary water purchases | AC174: =+AC164/AC$166 -> 0 | AD174: 0 | AE174: 0 | AF174: 0 | AG174: 0 | AH174: =+AH164/AH$166 -> 0 | AI174: 0 | AJ174: 0 | AK174: 0 | AL174: 0
AB175: Other non-controllable | AC175: =+AC165/AC$166 -> 0 | AD175: 0 | AE175: 0 | AF175: 0 | AG175: 0 | AH175: =+AH165/AH$166 -> 0 | AI175: 0 | AJ175: 0 | AK175: 0 | AL175: 0
AB176: Total prescribed opex | AC176: =+AC166/AC$166 -> 1 | AD176: 1 | AE176: 1 | AF176: 1 | AG176: 1 | AH176: =+AH166/AH$166 -> 1 | AI176: 1 | AJ176: 1 | AK176: 1 | AL176: 1
AC178: =+AC$157 -> 2023-24 | AD178: 2024-25 | AE178: 2025-26 | AF178: 2026-27 | AG178: 2027-28 | AH178: 2028-29 | AI178: 2029-30 | AJ178: 2030-31 | AK178: 2031-32 | AL178: 2032-33
AB179: Irrigation | AC179: =+SUMIF($H$62:$H$76,$AB179,AC$62:AC$76) -> -0.5989681773 | AD179: -0.6500780173 | AE179: -0.1644357573 | AF179: 0.02757344275 | AG179: -0.3897358673 | AH179: -0.3847050595 | AI179: -0.3858745511 | AJ179: -0.387034408 | AK179: -0.3957036468 | AL179: -0.3968429037
AB180: Drainage | AC180: 0 | AD180: 0 | AE180: 0 | AF180: 0 | AG180: 0 | AH180: 0 | AI180: 0 | AJ180: 0 | AK180: 0 | AL180: 0
AB181: Domestic and stock | AC181: 0 | AD181: 0 | AE181: 0 | AF181: 0 | AG181: 0 | AH181: 0 | AI181: 0 | AJ181: 0 | AK181: 0 | AL181: 0
AB182: Surface water diversions | AC182: 0 | AD182: 0 | AE182: 0 | AF182: 0 | AG182: 0 | AH182: 0 | AI182: 0 | AJ182: 0 | AK182: 0 | AL182: 0
AB183: Groundwater diversions | AC183: 0 | AD183: 0 | AE183: 0 | AF183: 0 | AG183: 0 | AH183: 0 | AI183: 0 | AJ183: 0 | AK183: 0 | AL183: 0
AB184: Bulk water services | AC184: 0 | AD184: 0 | AE184: 0 | AF184: 0 | AG184: 0 | AH184: 0 | AI184: 0 | AJ184: 0 | AK184: 0 | AL184: 0
AB185: Forecast variations to baseline operating expenditure | AC185: =SUM(AC179:AC184) -> -0.5989681773 | AD185: -0.6500780173 | AE185: -0.1644357573 | AF185: 0.02757344275 | AG185: -0.3897358673 | AH185: =SUM(AH179:AH184) -> -0.3847050595 | AI185: -0.3858745511 | AJ185: -0.387034408 | AK185: -0.3957036468 | AL185: -0.3968429037
AA188: =+AA6 -> 2021-22 | AB188: 2022-23 | AC188: =+AC6 -> 2023-24 | AD188: 2024-25 | AE188: 2025-26 | AF188: 2026-27 | AG188: 2027-28 | AH188: =+AH6 -> 2028-29 | AI188: 2029-30 | AJ188: 2030-31 | AK188: 2031-32 | AL188: 2032-33
Z189: External bulk water charges (excl. temporary purchases) | AA189: =+Opex_Breakdown!AA29 -> 3.267688283 | AB189: =+Opex_Breakdown!AB29 -> 3.184012737 | AC189: =+AC84 -> 3.33298755 | AD189: 3.48410855 | AE189: 3.63523055 | AF189: 3.78635155 | AG189: 3.78635155 | AH189: =+AH84 -> 3.78635155 | AI189: 3.78635155 | AJ189: 3.78635155 | AK189: 3.78635155 | AL189: 3.78635155
Z190: External temporary water purchases | AA190: =+Opex_Breakdown!AA30 -> 0 | AB190: =+Opex_Breakdown!AB30 -> 0 | AC190: =+AC85 -> 0 | AD190: 0 | AE190: 0 | AF190: 0 | AG190: 0 | AH190: =+AH85 -> 0 | AI190: 0 | AJ190: 0 | AK190: 0 | AL190: 0
Z191: Licence fees | AA191: =+Opex_Breakdown!AA31 -> 0.04868784489 | AB191: =+Opex_Breakdown!AB31 -> 0.0285 | AC191: =+AC86 -> 0.01504 | AD191: 0.01504 | AE191: 0.01504 | AF191: 0.02256 | AG191: 0.02256 | AH191: =+AH86 -> 0.01504 | AI191: 0.01504 | AJ191: 0.01504 | AK191: 0.02256 | AL191: 0.02256
Z192: Environment Contribution | AA192: =+Opex_Breakdown!AA32 -> 0.4899251908 | AB192: =+Opex_Breakdown!AB32 -> 0.4662 | AC192: =+AC87 -> 0.4662 | AD192: 0.4662 | AE192: 0.4662 | AF192: 0.4662 | AG192: 0.4662 | AH192: =+AH87 -> 0.4662 | AI192: 0.4662 | AJ192: 0.4662 | AK192: 0.4662 | AL192: 0.4662
Z193: Other non-controllable | AA193: =+Opex_Breakdown!AA33 -> 0 | AB193: =+Opex_Breakdown!AB33 -> 0 | AC193: =+AC88 -> 0 | AD193: 0 | AE193: 0 | AF193: 0 | AG193: 0 | AH193: =+AH88 -> 0 | AI193: 0 | AJ193: 0 | AK193: 0 | AL193: 0
Z194: Total Non-controllable operating expenditure | AA194: =+Opex_Breakdown!AA34 -> 3.806301319 | AB194: =+Opex_Breakdown!AB34 -> 3.678712737 | AC194: =SUM(AC189:AC193) -> 3.81422755 | AD194: 3.96534855 | AE194: 4.11647055 | AF194: 4.27511155 | AG194: 4.27511155 | AH194: =SUM(AH189:AH193) -> 4.26759155 | AI194: 4.26759155 | AJ194: 4.26759155 | AK194: 4.27511155 | AL194: 4.27511155
AB196: Check | AC196: =IF(ROUND(AC166,2)=ROUND(AC92,2),0,1) -> 0 | AD196: =IF(ROUND(AD166,2)=ROUND(AD92,2),0,1) -> 0 | AE196: 0 | AF196: 0 | AG196: 0 | AH196: 0 | AI196: 0 | AJ196: 0 | AK196: 0 | AL196: 0
AC197: =IF(ROUND(AC185,2)=ROUND(AC160,2),0,1) -> 0 | AD197: =IF(ROUND(AD185,2)=ROUND(AD160,2),0,1) -> 0 | AE197: 0 | AF197: 0 | AG197: 0 | AH197: 0 | AI197: 0 | AJ197: 0 | AK197: 0 | AL197: 0
AC198: =IF(ROUND(AC147,2)=ROUND(AC166,2),0,1) -> 0 | AD198: =IF(ROUND(AD147,2)=ROUND(AD166,2),0,1) -> 0 | AE198: 0 | AF198: 0 | AG198: 0 | AH198: 0 | AI198: 0 | AJ198: 0 | AK198: 0 | AL198: 0
AC199: =IF(ROUND(AC194,2)=ROUND(AC142,2),0,1) -> 0 | AD199: =IF(ROUND(AD194,2)=ROUND(AD142,2),0,1) -> 0 | AE199: 0 | AF199: 0 | AG199: 0 | AH199: 0 | AI199: 0 | AJ199: 0 | AK199: 0 | AL199: 0

Sheet Opex_Breakdown
A1: 80 | B1: Operating Expenditure - Breakdown
B2: =+Contents!H7 -> Lower Murray Water - Rural
B3: Go to Table of Contents
L4: FIRST REG PERIOD | P4: SECOND REG PERIOD | U4: THIRD REG PERIOD | Z4: FOURTH REG PERIOD | AE4: FIFTH REG PERIOD | AJ4: SIXTH REG PERIOD
K6: 2006 | L6: 2007 | M6: 2008 | N6: 2009 | O6: 2010 | P6: 2011 | Q6: 2012 | R6: 2013 | S6: 2014 | T6: 2015 | U6: 2016 | V6: 2017 | W6: 2018 | X6: 2019 | Y6: 2020 | Z6: 2021 | AA6: 2022 | AB6: 2023 | AC6: 2024 | AD6: 2025 | AE6: 2026 | AF6: 2027 | AG6: 2028 | AH6: 2029 | AI6: 2030 | AJ6: 2031 | AK6: 2032 | AL6: 2033
B7: $m, 01/01/23 | K7: =+CONCATENATE(K6-1,"-",RIGHT(K6,2)) -> 2005-06 | L7: =+CONCATENATE(L6-1,"-",RIGHT(L6,2)) -> 2006-07 | M7: 2007-08 | N7: 2008-09 | O7: 2009-10 | P7: 2010-11 | Q7: 2011-12 | R7: 2012-13 | S7: 2013-14 | T7: 2014-15 | U7: 2015-16 | V7: 2016-17 | W7: 2017-18 | X7: =+CONCATENATE(X6-1,"-",RIGHT(X6,2)) -> 2018-19 | Y7: =+CONCATENATE(Y6-1,"-",RIGHT(Y6,2)) -> 2019-20 | Z7: =+CONCATENATE(Z6-1,"-",RIGHT(Z6,2)) -> 2020-21 | AA7: =+CONCATENATE(AA6-1,"-",RIGHT(AA6,2)) -> 2021-22 | AB7: =+CONCATENATE(AB6-1,"-",RIGHT(AB6,2)) -> 2022-23 | AC7: =+CONCATENATE(AC6-1,"-",RIGHT(AC6,2)) -> 2023-24 | AD7: 2024-25 | AE7: 2025-26 | AF7: 2026-27 | AG7: =+CONCATENATE(AG6-1,"-",RIGHT(AG6,2)) -> 2027-28 | AH7: 2028-29 | AI7: 2029-30 | AJ7: 2030-31 | AK7: 2031-32 | AL7: 2032-33
D10: Operating Expenditure Summary
E12: Irrigation | W12: =+W56-W50-W53 -> 13.70707508 | X12: 14.40557372 | Y12: 13.91968315 | Z12: 13.61259718 | AA12: 12.9889356 | AB12: 12.26945357 | AC12: 11.90326498 | AD12: 11.9408446 | AE12: 12.38105996 | AF12: 12.40359123 | AG12: 12.17712712 | AH12: =+AH56-AH50-AH53 -> 12.1797437 | AI12: 12.17895139 | AJ12: 12.17816568 | AK12: 12.17325105 | AL12: 12.17247924
E13: Drainage | W13: =W66-W60-W63 -> 3.671785885 | X13: 3.490252179 | Y13: 3.406511708 | Z13: 3.063227765 | AA13: 3.548461426 | AB13: 3.489799855 | AC13: 2.904049435 | AD13: 2.815189606 | AE13: 2.838139539 | AF13: 2.978533141 | AG13: 2.831644421 | AH13: =AH66-AH60-AH63 -> 2.833278512 | AI13: 2.833127127 | AJ13: 2.832976897 | AK13: 2.830664593 | AL13: 2.830517097
E14: Domestic and stock | W14: =W76-W70-W73 -> 0.7188393628 | X14: 1.063412923 | Y14: 0.6356066233 | Z14: 1.247046462 | AA14: 0.9099715399 | AB14: 1.076102057 | AC14: 0.7339500718 | AD14: 0.7498153758 | AE14: 0.7645257401 | AF14: 0.7640477523 | AG14: 0.7494461344 | AH14: =AH76-AH70-AH73 -> 0.7495515597 | AI14: 0.7495417929 | AJ14: 0.7495321006 | AK14: 0.7493829197 | AL14: 0.7493734038
E15: Surface water diversions | W15: =W86-W80-W83 -> 1.638960186 | X15: 1.597663653 | Y15: 1.640994198 | Z15: 1.470900983 | AA15: 1.591373 | AB15: 1.638920655 | AC15: 1.359049902 | AD15: 1.343354968 | AE15: 1.351121569 | AF15: 1.380683885 | AG15: 1.351329024 | AH15: =AH86-AH80-AH83 -> 1.352003739 | AI15: 1.35178771 | AJ15: 1.351573485 | AK15: 1.350280356 | AL15: 1.350069919
E16: Groundwater diversions | W16: =W96-W90-W93 -> 0 | X16: 0 | Y16: 0 | Z16: 0 | AA16: 0 | AB16: 0 | AC16: 0.007 | AD16: 0.007 | AE16: 0.007 | AF16: 0.007 | AG16: 0.007 | AH16: =AH96-AH90-AH93 -> 0.007 | AI16: 0.007 | AJ16: 0.007 | AK16: 0.007 | AL16: 0.007
E17: Bulk water services | W17: =W106-W103 -> 0 | X17: 0 | Y17: 0 | Z17: 0 | AA17: 0 | AB17: 0 | AC17: 0 | AD17: 0 | AE17: 0 | AF17: 0 | AG17: 0 | AH17: =AH106-AH103 -> 0 | AI17: 0 | AJ17: 0 | AK17: 0 | AL17: 0
E18: Total controllable operating expenditure | W18: =SUM(W12:W17) -> 19.73666051 | X18: =SUM(X12:X17) -> 20.55690248 | Y18: =SUM(Y12:Y17) -> 19.60279568 | Z18: =SUM(Z12:Z17) -> 19.39377239 | AA18: =SUM(AA12:AA17) -> 19.03874157 | AB18: =SUM(AB12:AB17) -> 18.47427614 | AC18: =SUM(AC12:AC17) -> 16.90731439 | AD18: =SUM(AD12:AD17) -> 16.85620455 | AE18: =SUM(AE12:AE17) -> 17.34184681 | AF18: =SUM(AF12:AF17) -> 17.53385601 | AG18: =SUM(AG12:AG17) -> 17.1165467 | AH18: =SUM(AH12:AH17) -> 17.12157751 | AI18: =SUM(AI12:AI17) -> 17.12040802 | AJ18: =SUM(AJ12:AJ17) -> 17.11924816 | AK18: =SUM(AK12:AK17) -> 17.11057892 | AL18: =SUM(AL12:AL17) -> 17.10943966
E21: Operations & Maintenance | W21: =W49+W59+W69+W79+W89+W99 -> 12.45933843 | X21: 14.00689233 | Y21: 12.15645567 | Z21: 13.00573347 | AA21: 11.02122015 | AB21: 10.26152881 | AC21: 9.9852916 | AD21: 9.873833234 | AE21: 10.0284865 | AF21: 10.09324006 | AG21: 9.938248684 | AH21: =AH49+AH59+AH69+AH79+AH89+AH99 -> 9.937599705 | AI21: 9.936956398 | AJ21: 9.936318711 | AK21: 9.935686597 | AL21: 9.935060006
E22: Customer Service and billing | W22: =W51+W61+W71+W81+W91+W101 -> 2.962912128 | X22: 2.412761775 | Y22: 3.015703544 | Z22: 3.161169139 | AA22: 2.680298413 | AB22: 3.01585618 | AC22: 2.9109209 | AD22: 2.871967396 | AE22: 2.890067308 | AF22: 2.896447778 | AG22: 2.891890336 | AH22: =AH51+AH61+AH71+AH81+AH91+AH101 -> 2.890050122 | AI22: 2.889523938 | AJ22: 2.889001768 | AK22: 2.888484644 | AL22: 2.887971978
E23: GSL Payments | W23: =W52+W62+W72+W82+W92+W102 -> 0 | X23: 0 | Y23: 0 | Z23: 0 | AA23: 0 | AB23: 0 | AC23: 0 | AD23: 0 | AE23: 0 | AF23: 0 | AG23: 0 | AH23: =AH52+AH62+AH72+AH82+AH92+AH102 -> 0 | AI23: 0 | AJ23: 0 | AK23: 0 | AL23: 0
E24: Corporate | W24: =W54+W64+W74+W84+W94+W104 -> 4.314409953 | X24: 4.137248377 | Y24: 4.430636473 | Z24: 3.226869781 | AA24: 5.337223002 | AB24: 5.19689115 | AC24: 4.01110189 | AD24: 4.11040392 | AE24: 4.423293 | AF24: 4.54416817 | AG24: 4.28640768 | AH24: =AH54+AH64+AH74+AH84+AH94+AH104 -> 4.29392768 | AI24: 4.29392768 | AJ24: 4.29392768 | AK24: 4.28640768 | AL24: 4.28640768
E25: Other operating expenditure | W25: =W55+W65+W75+W85+W95+W105 -> 0 | X25: 0 | Y25: 0 | Z25: 0 | AA25: 0 | AB25: 0 | AC25: 0 | AD25: 0 | AE25: 0 | AF25: 0 | AG25: 0 | AH25: =AH55+AH65+AH75+AH85+AH95+AH105 -> 0 | AI25: 0 | AJ25: 0 | AK25: 0 | AL25: 0
E26: Total controllable operating expenditure | W26: =SUM(W21:W25) -> 19.73666051 | X26: 20.55690248 | Y26: 19.60279568 | Z26: 19.39377239 | AA26: 19.03874157 | AB26: 18.47427614 | AC26: 16.90731439 | AD26: 16.85620455 | AE26: 17.34184681 | AF26: 17.53385601 | AG26: 17.1165467 | AH26: =SUM(AH21:AH25) -> 17.12157751 | AI26: 17.12040802 | AJ26: 17.11924816 | AK26: 17.11057892 | AL26: 17.10943966
AC27: =IF(ROUND(AC18,2)=ROUND(AC26,2),0,1) -> 0 | AD27: =IF(ROUND(AD18,2)=ROUND(AD26,2),0,1) -> 0 | AE27: 0 | AF27: 0 | AG27: 0 | AH27: 0 | AI27: 0 | AJ27: 0 | AK27: 0 | AL27: 0
E29: External bulk water charges (excl. temporary purchases) | W29: =W50+W60+W70+W80+W90 -> 3.650353304 | X29: 3.561409978 | Y29: 3.339636054 | Z29: 3.199535273 | AA29: 3.267688283 | AB29: 3.184012737 | AC29: 3.33298755 | AD29: 3.48410855 | AE29: 3.63523055 | AF29: 3.78635155 | AG29: 3.78635155 | AH29: =AH50+AH60+AH70+AH80+AH90 -> 3.78635155 | AI29: 3.78635155 | AJ29: 3.78635155 | AK29: 3.78635155 | AL29: 3.78635155
E30: External temporary water purchases | W30: =+W109 -> 0 | X30: 0 | Y30: 0 | Z30: 0 | AA30: 0 | AB30: 0 | AC30: 0 | AD30: 0 | AE30: 0 | AF30: 0 | AG30: 0 | AH30: =+AH109 -> 0 | AI30: 0 | AJ30: 0 | AK30: 0 | AL30: 0
E31: Licence fees | W31: =+W116 -> 0 | X31: 0 | Y31: 0 | Z31: 0.02222262324 | AA31: 0.04868784489 | AB31: 0.0285 | AC31: 0.01504 | AD31: 0.01504 | AE31: 0.01504 | AF31: 0.02256 | AG31: 0.02256 | AH31: =+AH116 -> 0.01504 | AI31: 0.01504 | AJ31: 0.01504 | AK31: 0.02256 | AL31: 0.02256
E32: Environment Contribution | W32: =W118 -> 0.4148687783 | X32: 0.5642885755 | Y32: 0.5570613497 | Z32: 0.4953874786 | AA32: 0.4899251908 | AB32: 0.4662 | AC32: 0.4662 | AD32: 0.4662 | AE32: 0.4662 | AF32: 0.4662 | AG32: 0.4662 | AH32: =AH118 -> 0.4662 | AI32: 0.4662 | AJ32: 0.4662 | AK32: 0.4662 | AL32: 0.4662
E33: Other non-controllable | W33: =+W131 -> 0 | X33: 0 | Y33: 0 | Z33: 0 | AA33: 0 | AB33: 0 | AC33: 0 | AD33: 0 | AE33: 0 | AF33: 0 | AG33: =+AG131 -> 0 | AH33: 0 | AI33: 0 | AJ33: 0 | AK33: 0 | AL33: =+AL131 -> 0
E34: Total non-controllable operating expenditure | W34: =SUM(W29:W33) -> 4.065222082 | X34: 4.125698554 | Y34: 3.896697404 | Z34: 3.717145375 | AA34: 3.806301319 | AB34: 3.678712737 | AC34: 3.81422755 | AD34: 3.96534855 | AE34: 4.11647055 | AF34: 4.27511155 | AG34: 4.27511155 | AH34: =SUM(AH29:AH33) -> 4.26759155 | AI34: 4.26759155 | AJ34: 4.26759155 | AK34: 4.27511155 | AL34: 4.27511155
E37: Total prescribed operating expenditure | W37: =+W34+W18 -> 23.8018826 | X37: 24.68260103 | Y37: 23.49949309 | Z37: 23.11091777 | AA37: 22.84504289 | AB37: 22.15298888 | AC37: 20.72154194 | AD37: 20.8215531 | AE37: 21.45831736 | AF37: 21.80896756 | AG37: 21.39165825 | AH37: =+AH34+AH18 -> 21.38916906 | AI37: 21.38799957 | AJ37: 21.38683971 | AK37: 21.38569047 | AL37: 21.38455121
AB40: To reconcile to 'Opex_FO' tab row 92>> | AC40: =+Opex_FO!AC92 -> 20.72154194 | AD40: =+Opex_FO!AD92 -> 20.8215531 | AE40: =+Opex_FO!AE92 -> 21.45831736 | AF40: =+Opex_FO!AF92 -> 21.80896756 | AG40: =+Opex_FO!AG92 -> 21.39165825 | AH40: =+Opex_FO!AH92 -> 21.38916906 | AI40: =+Opex_FO!AI92 -> 21.38799957 | AJ40: =+Opex_FO!AJ92 -> 21.38683971 | AK40: =+Opex_FO!AK92 -> 21.38569047 | AL40: =+Opex_FO!AL92 -> 21.38455121
AB41: Difference | AC41: =+AC40-AC37 -> 0 | AD41: 0 | AE41: 0 | AF41: 0 | AG41: 0 | AH41: 0 | AI41: 0 | AJ41: 0 | AK41: 0 | AL41: 0
AB42: Test | AC42: =IF(ROUND(AC40,2)=ROUND(AC37,2),0,1) -> 0 | AD42: 0 | AE42: 0 | AF42: 0 | AG42: 0 | AH42: 0 | AI42: 0 | AJ42: 0 | AK42: 0 | AL42: 0
B46: Total operating expenditure
C48: Irrigation
D49: Operations & Maintenance | W49: =[3]Opex_Breakdown!W49 -> 9.687721347 | X49: =[3]Opex_Breakdown!X49 -> 10.85328846 | Y49: =[3]Opex_Breakdown!Y49 -> 9.896686052 | Z49: =[3]Opex_Breakdown!Z49 -> 9.872921844 | AA49: =[3]Opex_Breakdown!AA49 -> 8.422003933 | AB49: =[3]Opex_Breakdown!AB49 -> 7.672985776 | AC49: =[3]Opex_Breakdown!AC49 -> 7.956874918 | AD49: =[3]Opex_Breakdown!AD49 -> 7.930676137 | AE49: =[3]Opex_Breakdown!AE49 -> 8.0677248 | AF49: =[3]Opex_Breakdown!AF49 -> 8.06547701 | AG49: =[3]Opex_Breakdown!AG49 -> 8.009991338 | AH49: =[3]Opex_Breakdown!AH49 -> 8.009483998 | AI49: =[3]Opex_Breakdown!AI49 -> 8.008981091 | AJ49: =[3]Opex_Breakdown!AJ49 -> 8.008482578 | AK49: =[3]Opex_Breakdown!AK49 -> 8.007988421 | AL49: =[3]Opex_Breakdown!AL49 -> 8.007498582
D50: External bulk charges (excl. temporary purchases) | W50: =[3]Opex_Breakdown!W50 -> 1.343105691 | X50: =[3]Opex_Breakdown!X50 -> 1.310080671 | Y50: =[3]Opex_Breakdown!Y50 -> 1.186460992 | Z50: =[3]Opex_Breakdown!Z50 -> 1.136708978 | AA50: =[3]Opex_Breakdown!AA50 -> 1.133539073 | AB50: =[3]Opex_Breakdown!AB50 -> 1.110642737 | AC50: =[3]Opex_Breakdown!AC50 -> 1.16026255 | AD50: =[3]Opex_Breakdown!AD50 -> 1.21203055 | AE50: =[3]Opex_Breakdown!AE50 -> 1.26379755 | AF50: =[3]Opex_Breakdown!AF50 -> 1.31556555 | AG50: =[3]Opex_Breakdown!AG50 -> 1.31556555 | AH50: =[3]Opex_Breakdown!AH50 -> 1.31556555 | AI50: =[3]Opex_Breakdown!AI50 -> 1.31556555 | AJ50: =[3]Opex_Breakdown!AJ50 -> 1.31556555 | AK50: =[3]Opex_Breakdown!AK50 -> 1.31556555 | AL50: =[3]Opex_Breakdown!AL50 -> 1.31556555
D51: Customer Service and billing | W51: =[3]Opex_Breakdown!W51 -> 1.805428952 | X51: =[3]Opex_Breakdown!X51 -> 1.506206908 | Y51: =[3]Opex_Breakdown!Y51 -> 1.8686804 | Z51: =[3]Opex_Breakdown!Z51 -> 1.989853107 | AA51: =[3]Opex_Breakdown!AA51 -> 1.624180497 | AB51: =[3]Opex_Breakdown!AB51 -> 1.786060405 | AC51: =[3]Opex_Breakdown!AC51 -> 1.747651997 | AD51: =[3]Opex_Breakdown!AD51 -> 1.728809208 | AE51: =[3]Opex_Breakdown!AE51 -> 1.738764271 | AF51: =[3]Opex_Breakdown!AF51 -> 1.742273568 | AG51: =[3]Opex_Breakdown!AG51 -> 1.739766948 | AH51: =[3]Opex_Breakdown!AH51 -> 1.738754819 | AI51: =[3]Opex_Breakdown!AI51 -> 1.738465414 | AJ51: =[3]Opex_Breakdown!AJ51 -> 1.738178217 | AK51: =[3]Opex_Breakdown!AK51 -> 1.737893796 | AL51: =[3]Opex_Breakdown!AL51 -> 1.737611826
D52: GSL Payments | W52: =[3]Opex_Breakdown!W52 -> 0 | X52: =[3]Opex_Breakdown!X52 -> 0 | Y52: =[3]Opex_Breakdown!Y52 -> 0 | Z52: =[3]Opex_Breakdown!Z52 -> 0 | AA52: =[3]Opex_Breakdown!AA52 -> 0 | AB52: =[3]Opex_Breakdown!AB52 -> 0 | AC52: =[3]Opex_Breakdown!AC52 -> 0 | AD52: =[3]Opex_Breakdown!AD52 -> 0 | AE52: =[3]Opex_Breakdown!AE52 -> 0 | AF52: =[3]Opex_Breakdown!AF52 -> 0 | AG52: =[3]Opex_Breakdown!AG52 -> 0 | AH52: =[3]Opex_Breakdown!AH52 -> 0 | AI52: =[3]Opex_Breakdown!AI52 -> 0 | AJ52: =[3]Opex_Breakdown!AJ52 -> 0 | AK52: =[3]Opex_Breakdown!AK52 -> 0 | AL52: =[3]Opex_Breakdown!AL52 -> 0
D53: Licence Fees | W53: =[3]Opex_Breakdown!W53 -> 0 | X53: =[3]Opex_Breakdown!X53 -> 0 | Y53: =[3]Opex_Breakdown!Y53 -> 0 | Z53: =[3]Opex_Breakdown!Z53 -> 0 | AA53: =[3]Opex_Breakdown!AA53 -> 0 | AB53: =[3]Opex_Breakdown!AB53 -> 0 | AC53: =[3]Opex_Breakdown!AC53 -> 0 | AD53: =[3]Opex_Breakdown!AD53 -> 0 | AE53: =[3]Opex_Breakdown!AE53 -> 0 | AF53: =[3]Opex_Breakdown!AF53 -> 0 | AG53: =[3]Opex_Breakdown!AG53 -> 0 | AH53: =[3]Opex_Breakdown!AH53 -> 0 | AI53: =[3]Opex_Breakdown!AI53 -> 0 | AJ53: =[3]Opex_Breakdown!AJ53 -> 0 | AK53: =[3]Opex_Breakdown!AK53 -> 0 | AL53: =[3]Opex_Breakdown!AL53 -> 0
D54: Corporate | W54: =[3]Opex_Breakdown!W54 -> 2.21392478 | X54: =[3]Opex_Breakdown!X54 -> 2.046078353 | Y54: =[3]Opex_Breakdown!Y54 -> 2.154316702 | Z54: =[3]Opex_Breakdown!Z54 -> 1.749822231 | AA54: =[3]Opex_Breakdown!AA54 -> 2.942751171 | AB54: =[3]Opex_Breakdown!AB54 -> 2.810407392 | AC54: =[3]Opex_Breakdown!AC54 -> 2.198738066 | AD54: =[3]Opex_Breakdown!AD54 -> 2.281359254 | AE54: =[3]Opex_Breakdown!AE54 -> 2.574570891 | AF54: =[3]Opex_Breakdown!AF54 -> 2.595840653 | AG54: =[3]Opex_Breakdown!AG54 -> 2.427368835 | AH54: =[3]Opex_Breakdown!AH54 -> 2.431504881 | AI54: =[3]Opex_Breakdown!AI54 -> 2.431504881 | AJ54: =[3]Opex_Breakdown!AJ54 -> 2.431504881 | AK54: =[3]Opex_Breakdown!AK54 -> 2.427368835 | AL54: =[3]Opex_Breakdown!AL54 -> 2.427368835
D55: Other operating expenditure | W55: =[3]Opex_Breakdown!W55 -> 0 | X55: =[3]Opex_Breakdown!X55 -> 0 | Y55: =[3]Opex_Breakdown!Y55 -> 0 | Z55: =[3]Opex_Breakdown!Z55 -> 0 | AA55: =[3]Opex_Breakdown!AA55 -> 0 | AB55: =[3]Opex_Breakdown!AB55 -> 0 | AC55: =[3]Opex_Breakdown!AC55 -> 0 | AD55: =[3]Opex_Breakdown!AD55 -> 0 | AE55: =[3]Opex_Breakdown!AE55 -> 0 | AF55: =[3]Opex_Breakdown!AF55 -> 0 | AG55: =[3]Opex_Breakdown!AG55 -> 0 | AH55: =[3]Opex_Breakdown!AH55 -> 0 | AI55: =[3]Opex_Breakdown!AI55 -> 0 | AJ55: =[3]Opex_Breakdown!AJ55 -> 0 | AK55: =[3]Opex_Breakdown!AK55 -> 0 | AL55: =[3]Opex_Breakdown!AL55 -> 0
C56: =+CONCATENATE("Total ",C48) -> Total Irrigation | W56: =+SUM(W49:W55) -> 15.05018077 | X56: 15.71565439 | Y56: =+SUM(Y49:Y55) -> 15.10614415 | Z56: 14.74930616 | AA56: 14.12247468 | AB56: 13.38009631 | AC56: 13.06352753 | AD56: 13.15287515 | AE56: 13.64485751 | AF56: 13.71915678 | AG56: 13.49269267 | AH56: =+SUM(AH49:AH55) -> 13.49530925 | AI56: 13.49451694 | AJ56: 13.49373123 | AK56: 13.4888166 | AL56: 13.48804479
C58: Drainage
D59: =+D49 -> Operations & Maintenance | W59: =[3]Opex_Breakdown!W59 -> 1.600626567 | X59: =[3]Opex_Breakdown!X59 -> 1.563063275 | Y59: =[3]Opex_Breakdown!Y59 -> 1.252627485 | Z59: =[3]Opex_Breakdown!Z59 -> 1.418624429 | AA59: =[3]Opex_Breakdown!AA59 -> 1.336783434 | AB59: =[3]Opex_Breakdown!AB59 -> 1.170618612 | AC59: =[3]Opex_Breakdown!AC59 -> 1.02422098 | AD59: =[3]Opex_Breakdown!AD59 -> 0.9326633671 | AE59: =[3]Opex_Breakdown!AE59 -> 0.9480740727 | AF59: =[3]Opex_Breakdown!AF59 -> 1.019328805 | AG59: =[3]Opex_Breakdown!AG59 -> 0.9284537047 | AH59: =[3]Opex_Breakdown!AH59 -> 0.9284537047 | AI59: =[3]Opex_Breakdown!AI59 -> 0.9284537047 | AJ59: =[3]Opex_Breakdown!AJ59 -> 0.9284537047 | AK59: =[3]Opex_Breakdown!AK59 -> 0.9284537047 | AL59: =[3]Opex_Breakdown!AL59 -> 0.9284537047
D60: External bulk charges (excl. temporary purchases) | W60: =[3]Opex_Breakdown!W60 -> 0 | X60: =[3]Opex_Breakdown!X60 -> 0 | Y60: =[3]Opex_Breakdown!Y60 -> 0 | Z60: =[3]Opex_Breakdown!Z60 -> 0 | AA60: =[3]Opex_Breakdown!AA60 -> 0 | AB60: =[3]Opex_Breakdown!AB60 -> 0 | AC60: =[3]Opex_Breakdown!AC60 -> 0 | AD60: =[3]Opex_Breakdown!AD60 -> 0 | AE60: =[3]Opex_Breakdown!AE60 -> 0 | AF60: =[3]Opex_Breakdown!AF60 -> 0 | AG60: =[3]Opex_Breakdown!AG60 -> 0 | AH60: =[3]Opex_Breakdown!AH60 -> 0 | AI60: =[3]Opex_Breakdown!AI60 -> 0 | AJ60: =[3]Opex_Breakdown!AJ60 -> 0 | AK60: =[3]Opex_Breakdown!AK60 -> 0 | AL60: =[3]Opex_Breakdown!AL60 -> 0
D61: Customer Service and billing | W61: =[3]Opex_Breakdown!W61 -> 0.6734592231 | X61: =[3]Opex_Breakdown!X61 -> 0.5326033699 | Y61: =[3]Opex_Breakdown!Y61 -> 0.6707969479 | Z61: =[3]Opex_Breakdown!Z61 -> 0.7053530531 | AA61: =[3]Opex_Breakdown!AA61 -> 0.682166521 | AB61: =[3]Opex_Breakdown!AB61 -> 0.7912821932 | AC61: =[3]Opex_Breakdown!AC61 -> 0.7373132585 | AD61: =[3]Opex_Breakdown!AD61 -> 0.7274567732 | AE61: =[3]Opex_Breakdown!AE61 -> 0.7326641725 | AF61: =[3]Opex_Breakdown!AF61 -> 0.7344998529 | AG61: =[3]Opex_Breakdown!AG61 -> 0.7331886634 | AH61: =[3]Opex_Breakdown!AH61 -> 0.7326592283 | AI61: =[3]Opex_Breakdown!AI61 -> 0.7325078435 | AJ61: =[3]Opex_Breakdown!AJ61 -> 0.7323576135 | AK61: =[3]Opex_Breakdown!AK61 -> 0.7322088353 | AL61: =[3]Opex_Breakdown!AL61 -> 0.7320613398
D62: GSL Payments | W62: =[3]Opex_Breakdown!W62 -> 0 | X62: =[3]Opex_Breakdown!X62 -> 0 | Y62: =[3]Opex_Breakdown!Y62 -> 0 | Z62: =[3]Opex_Breakdown!Z62 -> 0 | AA62: =[3]Opex_Breakdown!AA62 -> 0 | AB62: =[3]Opex_Breakdown!AB62 -> 0 | AC62: =[3]Opex_Breakdown!AC62 -> 0 | AD62: =[3]Opex_Breakdown!AD62 -> 0 | AE62: =[3]Opex_Breakdown!AE62 -> 0 | AF62: =[3]Opex_Breakdown!AF62 -> 0 | AG62: =[3]Opex_Breakdown!AG62 -> 0 | AH62: =[3]Opex_Breakdown!AH62 -> 0 | AI62: =[3]Opex_Breakdown!AI62 -> 0 | AJ62: =[3]Opex_Breakdown!AJ62 -> 0 | AK62: =[3]Opex_Breakdown!AK62 -> 0 | AL62: =[3]Opex_Breakdown!AL62 -> 0
D63: Licence Fees | W63: =[3]Opex_Breakdown!W63 -> 0 | X63: =[3]Opex_Breakdown!X63 -> 0 | Y63: =[3]Opex_Breakdown!Y63 -> 0 | Z63: =[3]Opex_Breakdown!Z63 -> 0 | AA63: =[3]Opex_Breakdown!AA63 -> 0 | AB63: =[3]Opex_Breakdown!AB63 -> 0 | AC63: =[3]Opex_Breakdown!AC63 -> 0 | AD63: =[3]Opex_Breakdown!AD63 -> 0 | AE63: =[3]Opex_Breakdown!AE63 -> 0 | AF63: =[3]Opex_Breakdown!AF63 -> 0 | AG63: =[3]Opex_Breakdown!AG63 -> 0 | AH63: =[3]Opex_Breakdown!AH63 -> 0 | AI63: =[3]Opex_Breakdown!AI63 -> 0 | AJ63: =[3]Opex_Breakdown!AJ63 -> 0 | AK63: =[3]Opex_Breakdown!AK63 -> 0 | AL63: =[3]Opex_Breakdown!AL63 -> 0
D64: Corporate | W64: =[3]Opex_Breakdown!W64 -> 1.397700096 | X64: =[3]Opex_Breakdown!X64 -> 1.394585535 | Y64: =[3]Opex_Breakdown!Y64 -> 1.483087275 | Z64: =[3]Opex_Breakdown!Z64 -> 0.939250283 | AA64: =[3]Opex_Breakdown!AA64 -> 1.529511471 | AB64: =[3]Opex_Breakdown!AB64 -> 1.527899051 | AC64: =[3]Opex_Breakdown!AC64 -> 1.142515196 | AD64: =[3]Opex_Breakdown!AD64 -> 1.155069466 | AE64: =[3]Opex_Breakdown!AE64 -> 1.157401294 | AF64: =[3]Opex_Breakdown!AF64 -> 1.224704483 | AG64: =[3]Opex_Breakdown!AG64 -> 1.170002053 | AH64: =[3]Opex_Breakdown!AH64 -> 1.172165579 | AI64: =[3]Opex_Breakdown!AI64 -> 1.172165579 | AJ64: =[3]Opex_Breakdown!AJ64 -> 1.172165579 | AK64: =[3]Opex_Breakdown!AK64 -> 1.170002053 | AL64: =[3]Opex_Breakdown!AL64 -> 1.170002053
D65: Other operating expenditure | W65: =[3]Opex_Breakdown!W65 -> 0 | X65: =[3]Opex_Breakdown!X65 -> 0 | Y65: =[3]Opex_Breakdown!Y65 -> 0 | Z65: =[3]Opex_Breakdown!Z65 -> 0 | AA65: =[3]Opex_Breakdown!AA65 -> 0 | AB65: =[3]Opex_Breakdown!AB65 -> 0 | AC65: =[3]Opex_Breakdown!AC65 -> 0 | AD65: =[3]Opex_Breakdown!AD65 -> 0 | AE65: =[3]Opex_Breakdown!AE65 -> 0 | AF65: =[3]Opex_Breakdown!AF65 -> 0 | AG65: =[3]Opex_Breakdown!AG65 -> 0 | AH65: =[3]Opex_Breakdown!AH65 -> 0 | AI65: =[3]Opex_Breakdown!AI65 -> 0 | AJ65: =[3]Opex_Breakdown!AJ65 -> 0 | AK65: =[3]Opex_Breakdown!AK65 -> 0 | AL65: =[3]Opex_Breakdown!AL65 -> 0
C66: =+CONCATENATE("Total ",C58) -> Total Drainage | W66: =+SUM(W59:W65) -> 3.671785885 | X66: 3.490252179 | Y66: =+SUM(Y59:Y65) -> 3.406511708 | Z66: 3.063227765 | AA66: 3.548461426 | AB66: 3.489799855 | AC66: 2.904049435 | AD66: 2.815189606 | AE66: 2.838139539 | AF66: 2.978533141 | AG66: 2.831644421 | AH66: =+SUM(AH59:AH65) -> 2.833278512 | AI66: 2.833127127 | AJ66: 2.832976897 | AK66: 2.830664593 | AL66: 2.830517097
C68: Domestic and stock
D69: =+D59 -> Operations & Maintenance | W69: =[3]Opex_Breakdown!W69 -> 0.5915685259 | X69: =[3]Opex_Breakdown!X69 -> 0.9705997614 | Y69: =[3]Opex_Breakdown!Y69 -> 0.4826778178 | Z69: =[3]Opex_Breakdown!Z69 -> 1.123746642 | AA69: =[3]Opex_Breakdown!AA69 -> 0.7475783643 | AB69: =[3]Opex_Breakdown!AB69 -> 0.9072842382 | AC69: =[3]Opex_Breakdown!AC69 -> 0.5945795842 | AD69: =[3]Opex_Breakdown!AD69 -> 0.6059412262 | AE69: =[3]Opex_Breakdown!AE69 -> 0.6040833522 | AF69: =[3]Opex_Breakdown!AF69 -> 0.6048277052 | AG69: =[3]Opex_Breakdown!AG69 -> 0.5975796404 | AH69: =[3]Opex_Breakdown!AH69 -> 0.5975796404 | AI69: =[3]Opex_Breakdown!AI69 -> 0.5975796404 | AJ69: =[3]Opex_Breakdown!AJ69 -> 0.5975796404 | AK69: =[3]Opex_Breakdown!AK69 -> 0.5975796404 | AL69: =[3]Opex_Breakdown!AL69 -> 0.5975796404
D70: External bulk charges (excl. temporary purchases) | W70: =[3]Opex_Breakdown!W70 -> 0.05502572796 | X70: =[3]Opex_Breakdown!X70 -> 0.05521296501 | Y70: =[3]Opex_Breakdown!Y70 -> 0.05520562675 | Z70: =[3]Opex_Breakdown!Z70 -> 0.04808328414 | AA70: =[3]Opex_Breakdown!AA70 -> 0.05522263985 | AB70: =[3]Opex_Breakdown!AB70 -> 0.053651 | AC70: =[3]Opex_Breakdown!AC70 -> 0.056188 | AD70: =[3]Opex_Breakdown!AD70 -> 0.058724 | AE70: =[3]Opex_Breakdown!AE70 -> 0.061261 | AF70: =[3]Opex_Breakdown!AF70 -> 0.063797 | AG70: =[3]Opex_Breakdown!AG70 -> 0.063797 | AH70: =[3]Opex_Breakdown!AH70 -> 0.063797 | AI70: =[3]Opex_Breakdown!AI70 -> 0.063797 | AJ70: =[3]Opex_Breakdown!AJ70 -> 0.063797 | AK70: =[3]Opex_Breakdown!AK70 -> 0.063797 | AL70: =[3]Opex_Breakdown!AL70 -> 0.063797
D71: Customer Service and billing | W71: =[3]Opex_Breakdown!W71 -> 0.05631213608 | X71: =[3]Opex_Breakdown!X71 -> 0.04044134037 | Y71: =[3]Opex_Breakdown!Y71 -> 0.05660569486 | Z71: =[3]Opex_Breakdown!Z71 -> 0.04793674181 | AA71: =[3]Opex_Breakdown!AA71 -> 0.04313199301 | AB71: =[3]Opex_Breakdown!AB71 -> 0.05003115365 | AC71: =[3]Opex_Breakdown!AC71 -> 0.04756859732 | AD71: =[3]Opex_Breakdown!AD71 -> 0.04693269505 | AE71: =[3]Opex_Breakdown!AE71 -> 0.04726865629 | AF71: =[3]Opex_Breakdown!AF71 -> 0.04738708729 | AG71: =[3]Opex_Breakdown!AG71 -> 0.04730249441 | AH71: =[3]Opex_Breakdown!AH71 -> 0.04726833731 | AI71: =[3]Opex_Breakdown!AI71 -> 0.04725857055 | AJ71: =[3]Opex_Breakdown!AJ71 -> 0.04724887829 | AK71: =[3]Opex_Breakdown!AK71 -> 0.04723927969 | AL71: =[3]Opex_Breakdown!AL71 -> 0.04722976386
D72: GSL Payments | W72: =[3]Opex_Breakdown!W72 -> 0 | X72: =[3]Opex_Breakdown!X72 -> 0 | Y72: =[3]Opex_Breakdown!Y72 -> 0 | Z72: =[3]Opex_Breakdown!Z72 -> 0 | AA72: =[3]Opex_Breakdown!AA72 -> 0 | AB72: =[3]Opex_Breakdown!AB72 -> 0 | AC72: =[3]Opex_Breakdown!AC72 -> 0 | AD72: =[3]Opex_Breakdown!AD72 -> 0 | AE72: =[3]Opex_Breakdown!AE72 -> 0 | AF72: =[3]Opex_Breakdown!AF72 -> 0 | AG72: =[3]Opex_Breakdown!AG72 -> 0 | AH72: =[3]Opex_Breakdown!AH72 -> 0 | AI72: =[3]Opex_Breakdown!AI72 -> 0 | AJ72: =[3]Opex_Breakdown!AJ72 -> 0 | AK72: =[3]Opex_Breakdown!AK72 -> 0 | AL72: =[3]Opex_Breakdown!AL72 -> 0
D73: Licence Fees | W73: =[3]Opex_Breakdown!W73 -> 0 | X73: =[3]Opex_Breakdown!X73 -> 0 | Y73: =[3]Opex_Breakdown!Y73 -> 0 | Z73: =[3]Opex_Breakdown!Z73 -> 0 | AA73: =[3]Opex_Breakdown!AA73 -> 0 | AB73: =[3]Opex_Breakdown!AB73 -> 0 | AC73: =[3]Opex_Breakdown!AC73 -> 0 | AD73: =[3]Opex_Breakdown!AD73 -> 0 | AE73: =[3]Opex_Breakdown!AE73 -> 0 | AF73: =[3]Opex_Breakdown!AF73 -> 0 | AG73: =[3]Opex_Breakdown!AG73 -> 0 | AH73: =[3]Opex_Breakdown!AH73 -> 0 | AI73: =[3]Opex_Breakdown!AI73 -> 0 | AJ73: =[3]Opex_Breakdown!AJ73 -> 0 | AK73: =[3]Opex_Breakdown!AK73 -> 0 | AL73: =[3]Opex_Breakdown!AL73 -> 0
D74: Corporate | W74: =[3]Opex_Breakdown!W74 -> 0.07095870088 | X74: =[3]Opex_Breakdown!X74 -> 0.05237182084 | Y74: =[3]Opex_Breakdown!Y74 -> 0.09632311058 | Z74: =[3]Opex_Breakdown!Z74 -> 0.07536307769 | AA74: =[3]Opex_Breakdown!AA74 -> 0.1192611826 | AB74: =[3]Opex_Breakdown!AB74 -> 0.1187866652 | AC74: =[3]Opex_Breakdown!AC74 -> 0.09180189019 | AD74: =[3]Opex_Breakdown!AD74 -> 0.09694145448 | AE74: =[3]Opex_Breakdown!AE74 -> 0.1131737316 | AF74: =[3]Opex_Breakdown!AF74 -> 0.1118329598 | AG74: =[3]Opex_Breakdown!AG74 -> 0.1045639996 | AH74: =[3]Opex_Breakdown!AH74 -> 0.104703582 | AI74: =[3]Opex_Breakdown!AI74 -> 0.104703582 | AJ74: =[3]Opex_Breakdown!AJ74 -> 0.104703582 | AK74: =[3]Opex_Breakdown!AK74 -> 0.1045639996 | AL74: =[3]Opex_Breakdown!AL74 -> 0.1045639996
D75: Other operating expenditure | W75: =[3]Opex_Breakdown!W75 -> 0 | X75: =[3]Opex_Breakdown!X75 -> 0 | Y75: =[3]Opex_Breakdown!Y75 -> 0 | Z75: =[3]Opex_Breakdown!Z75 -> 0 | AA75: =[3]Opex_Breakdown!AA75 -> 0 | AB75: =[3]Opex_Breakdown!AB75 -> 0 | AC75: =[3]Opex_Breakdown!AC75 -> 0 | AD75: =[3]Opex_Breakdown!AD75 -> 0 | AE75: =[3]Opex_Breakdown!AE75 -> 0 | AF75: =[3]Opex_Breakdown!AF75 -> 0 | AG75: =[3]Opex_Breakdown!AG75 -> 0 | AH75: =[3]Opex_Breakdown!AH75 -> 0 | AI75: =[3]Opex_Breakdown!AI75 -> 0 | AJ75: =[3]Opex_Breakdown!AJ75 -> 0 | AK75: =[3]Opex_Breakdown!AK75 -> 0 | AL75: =[3]Opex_Breakdown!AL75 -> 0
C76: =+CONCATENATE("Total ",C68) -> Total Domestic and stock | W76: =+SUM(W69:W75) -> 0.7738650908 | X76: 1.118625888 | Y76: =+SUM(Y69:Y75) -> 0.69081225 | Z76: 1.295129746 | AA76: 0.9651941798 | AB76: 1.129753057 | AC76: 0.7901380718 | AD76: 0.8085393758 | AE76: 0.8257867401 | AF76: 0.8278447523 | AG76: 0.8132431344 | AH76: =+SUM(AH69:AH75) -> 0.8133485597 | AI76: 0.8133387929 | AJ76: 0.8133291006 | AK76: 0.8131799197 | AL76: 0.8131704038
C78: Surface water diversions
D79: =+D59 -> Operations & Maintenance | W79: =[3]Opex_Breakdown!W79 -> 0.5794219922 | X79: =[3]Opex_Breakdown!X79 -> 0.6199408275 | Y79: =[3]Opex_Breakdown!Y79 -> 0.5244643116 | Z79: =[3]Opex_Breakdown!Z79 -> 0.5904405569 | AA79: =[3]Opex_Breakdown!AA79 -> 0.5148544204 | AB79: =[3]Opex_Breakdown!AB79 -> 0.5106401841 | AC79: =[3]Opex_Breakdown!AC79 -> 0.4026161169 | AD79: =[3]Opex_Breakdown!AD79 -> 0.3975525044 | AE79: =[3]Opex_Breakdown!AE79 -> 0.4016042775 | AF79: =[3]Opex_Breakdown!AF79 -> 0.3966065414 | AG79: =[3]Opex_Breakdown!AG79 -> 0.3952240005 | AH79: =[3]Opex_Breakdown!AH79 -> 0.3950823624 | AI79: =[3]Opex_Breakdown!AI79 -> 0.394941962 | AJ79: =[3]Opex_Breakdown!AJ79 -> 0.3948027883 | AK79: =[3]Opex_Breakdown!AK79 -> 0.3946648307 | AL79: =[3]Opex_Breakdown!AL79 -> 0.3945280786
D80: External bulk charges (excl. temporary purchases) | W80: =[3]Opex_Breakdown!W80 -> 2.252221885 | X80: =[3]Opex_Breakdown!X80 -> 2.196116342 | Y80: =[3]Opex_Breakdown!Y80 -> 2.097969435 | Z80: =[3]Opex_Breakdown!Z80 -> 2.014743011 | AA80: =[3]Opex_Breakdown!AA80 -> 2.07892657 | AB80: =[3]Opex_Breakdown!AB80 -> 2.019719 | AC80: =[3]Opex_Breakdown!AC80 -> 2.116537 | AD80: =[3]Opex_Breakdown!AD80 -> 2.213354 | AE80: =[3]Opex_Breakdown!AE80 -> 2.310172 | AF80: =[3]Opex_Breakdown!AF80 -> 2.406989 | AG80: =[3]Opex_Breakdown!AG80 -> 2.406989 | AH80: =[3]Opex_Breakdown!AH80 -> 2.406989 | AI80: =[3]Opex_Breakdown!AI80 -> 2.406989 | AJ80: =[3]Opex_Breakdown!AJ80 -> 2.406989 | AK80: =[3]Opex_Breakdown!AK80 -> 2.406989 | AL80: =[3]Opex_Breakdown!AL80 -> 2.406989
D81: Customer Service and billing | W81: =[3]Opex_Breakdown!W81 -> 0.4277118172 | X81: =[3]Opex_Breakdown!X81 -> 0.3335101573 | Y81: =[3]Opex_Breakdown!Y81 -> 0.4196205011 | Z81: =[3]Opex_Breakdown!Z81 -> 0.4180262369 | AA81: =[3]Opex_Breakdown!AA81 -> 0.3308194022 | AB81: =[3]Opex_Breakdown!AB81 -> 0.3884824282 | AC81: =[3]Opex_Breakdown!AC81 -> 0.3783870474 | AD81: =[3]Opex_Breakdown!AD81 -> 0.3687687189 | AE81: =[3]Opex_Breakdown!AE81 -> 0.3713702082 | AF81: =[3]Opex_Breakdown!AF81 -> 0.3722872693 | AG81: =[3]Opex_Breakdown!AG81 -> 0.3716322311 | AH81: =[3]Opex_Breakdown!AH81 -> 0.3713677382 | AI81: =[3]Opex_Breakdown!AI81 -> 0.3712921101 | AJ81: =[3]Opex_Breakdown!AJ81 -> 0.3712170589 | AK81: =[3]Opex_Breakdown!AK81 -> 0.3711427329 | AL81: =[3]Opex_Breakdown!AL81 -> 0.3710690477
D82: GSL Payments | W82: =[3]Opex_Breakdown!W82 -> 0 | X82: =[3]Opex_Breakdown!X82 -> 0 | Y82: =[3]Opex_Breakdown!Y82 -> 0 | Z82: =[3]Opex_Breakdown!Z82 -> 0 | AA82: =[3]Opex_Breakdown!AA82 -> 0 | AB82: =[3]Opex_Breakdown!AB82 -> 0 | AC82: =[3]Opex_Breakdown!AC82 -> 0 | AD82: =[3]Opex_Breakdown!AD82 -> 0 | AE82: =[3]Opex_Breakdown!AE82 -> 0 | AF82: =[3]Opex_Breakdown!AF82 -> 0 | AG82: =[3]Opex_Breakdown!AG82 -> 0 | AH82: =[3]Opex_Breakdown!AH82 -> 0 | AI82: =[3]Opex_Breakdown!AI82 -> 0 | AJ82: =[3]Opex_Breakdown!AJ82 -> 0 | AK82: =[3]Opex_Breakdown!AK82 -> 0 | AL82: =[3]Opex_Breakdown!AL82 -> 0
D83: Licence Fees | W83: =[3]Opex_Breakdown!W83 -> 0 | X83: =[3]Opex_Breakdown!X83 -> 0 | Y83: =[3]Opex_Breakdown!Y83 -> 0 | Z83: =[3]Opex_Breakdown!Z83 -> 0 | AA83: =[3]Opex_Breakdown!AA83 -> 0 | AB83: =[3]Opex_Breakdown!AB83 -> 0 | AC83: =[3]Opex_Breakdown!AC83 -> 0 | AD83: =[3]Opex_Breakdown!AD83 -> 0 | AE83: =[3]Opex_Breakdown!AE83 -> 0 | AF83: =[3]Opex_Breakdown!AF83 -> 0 | AG83: =[3]Opex_Breakdown!AG83 -> 0 | AH83: =[3]Opex_Breakdown!AH83 -> 0 | AI83: =[3]Opex_Breakdown!AI83 -> 0 | AJ83: =[3]Opex_Breakdown!AJ83 -> 0 | AK83: =[3]Opex_Breakdown!AK83 -> 0 | AL83: =[3]Opex_Breakdown!AL83 -> 0
D84: Corporate | W84: =[3]Opex_Breakdown!W84 -> 0.6318263769 | X84: =[3]Opex_Breakdown!X84 -> 0.6442126684 | Y84: =[3]Opex_Breakdown!Y84 -> 0.6969093852 | Z84: =[3]Opex_Breakdown!Z84 -> 0.4624341893 | AA84: =[3]Opex_Breakdown!AA84 -> 0.7456991773 | AB84: =[3]Opex_Breakdown!AB84 -> 0.7397980428 | AC84: =[3]Opex_Breakdown!AC84 -> 0.5780467376 | AD84: =[3]Opex_Breakdown!AD84 -> 0.577033745 | AE84: =[3]Opex_Breakdown!AE84 -> 0.5781470832 | AF84: =[3]Opex_Breakdown!AF84 -> 0.6117900739 | AG84: =[3]Opex_Breakdown!AG84 -> 0.5844727928 | AH84: =[3]Opex_Breakdown!AH84 -> 0.5855536379 | AI84: =[3]Opex_Breakdown!AI84 -> 0.5855536379 | AJ84: =[3]Opex_Breakdown!AJ84 -> 0.5855536379 | AK84: =[3]Opex_Breakdown!AK84 -> 0.5844727928 | AL84: =[3]Opex_Breakdown!AL84 -> 0.5844727928
D85: Other operating expenditure | W85: =[3]Opex_Breakdown!W85 -> 0 | X85: =[3]Opex_Breakdown!X85 -> 0 | Y85: =[3]Opex_Breakdown!Y85 -> 0 | Z85: =[3]Opex_Breakdown!Z85 -> 0 | AA85: =[3]Opex_Breakdown!AA85 -> 0 | AB85: =[3]Opex_Breakdown!AB85 -> 0 | AC85: =[3]Opex_Breakdown!AC85 -> 0 | AD85: =[3]Opex_Breakdown!AD85 -> 0 | AE85: =[3]Opex_Breakdown!AE85 -> 0 | AF85: =[3]Opex_Breakdown!AF85 -> 0 | AG85: =[3]Opex_Breakdown!AG85 -> 0 | AH85: =[3]Opex_Breakdown!AH85 -> 0 | AI85: =[3]Opex_Breakdown!AI85 -> 0 | AJ85: =[3]Opex_Breakdown!AJ85 -> 0 | AK85: =[3]Opex_Breakdown!AK85 -> 0 | AL85: =[3]Opex_Breakdown!AL85 -> 0
C86: =+CONCATENATE("Total ",C78) -> Total Surface water diversions | W86: =+SUM(W79:W85) -> 3.891182071 | X86: 3.793779996 | Y86: =+SUM(Y79:Y85) -> 3.738963633 | Z86: 3.485643994 | AA86: 3.67029957 | AB86: 3.658639655 | AC86: 3.475586902 | AD86: 3.556708968 | AE86: 3.661293569 | AF86: 3.787672885 | AG86: 3.758318024 | AH86: =+SUM(AH79:AH85) -> 3.758992739 | AI86: 3.75877671 | AJ86: 3.758562485 | AK86: 3.757269356 | AL86: 3.757058919
C88: Groundwater diversions
D89: =+D69 -> Operations & Maintenance | W89: =[3]Opex_Breakdown!W89 -> 0 | X89: =[3]Opex_Breakdown!X89 -> 0 | Y89: =[3]Opex_Breakdown!Y89 -> 0 | Z89: =[3]Opex_Breakdown!Z89 -> 0 | AA89: =[3]Opex_Breakdown!AA89 -> 0 | AB89: =[3]Opex_Breakdown!AB89 -> 0 | AC89: =[3]Opex_Breakdown!AC89 -> 0.007 | AD89: =[3]Opex_Breakdown!AD89 -> 0.007 | AE89: =[3]Opex_Breakdown!AE89 -> 0.007 | AF89: =[3]Opex_Breakdown!AF89 -> 0.007 | AG89: =[3]Opex_Breakdown!AG89 -> 0.007 | AH89: =[3]Opex_Breakdown!AH89 -> 0.007 | AI89: =[3]Opex_Breakdown!AI89 -> 0.007 | AJ89: =[3]Opex_Breakdown!AJ89 -> 0.007 | AK89: =[3]Opex_Breakdown!AK89 -> 0.007 | AL89: =[3]Opex_Breakdown!AL89 -> 0.007
D90: External bulk charges (excl. temporary purchases) | W90: =[3]Opex_Breakdown!W90 -> 0 | X90: =[3]Opex_Breakdown!X90 -> 0 | Y90: =[3]Opex_Breakdown!Y90 -> 0 | Z90: =[3]Opex_Breakdown!Z90 -> 0 | AA90: =[3]Opex_Breakdown!AA90 -> 0 | AB90: =[3]Opex_Breakdown!AB90 -> 0 | AC90: =[3]Opex_Breakdown!AC90 -> 0 | AD90: =[3]Opex_Breakdown!AD90 -> 0 | AE90: =[3]Opex_Breakdown!AE90 -> 0 | AF90: =[3]Opex_Breakdown!AF90 -> 0 | AG90: =[3]Opex_Breakdown!AG90 -> 0 | AH90: =[3]Opex_Breakdown!AH90 -> 0 | AI90: =[3]Opex_Breakdown!AI90 -> 0 | AJ90: =[3]Opex_Breakdown!AJ90 -> 0 | AK90: =[3]Opex_Breakdown!AK90 -> 0 | AL90: =[3]Opex_Breakdown!AL90 -> 0
D91: Customer Service and billing | W91: =[3]Opex_Breakdown!W91 -> 0 | X91: =[3]Opex_Breakdown!X91 -> 0 | Y91: =[3]Opex_Breakdown!Y91 -> 0 | Z91: =[3]Opex_Breakdown!Z91 -> 0 | AA91: =[3]Opex_Breakdown!AA91 -> 0 | AB91: =[3]Opex_Breakdown!AB91 -> 0 | AC91: =[3]Opex_Breakdown!AC91 -> 0 | AD91: =[3]Opex_Breakdown!AD91 -> 0 | AE91: =[3]Opex_Breakdown!AE91 -> 0 | AF91: =[3]Opex_Breakdown!AF91 -> 0 | AG91: =[3]Opex_Breakdown!AG91 -> 0 | AH91: =[3]Opex_Breakdown!AH91 -> 0 | AI91: =[3]Opex_Breakdown!AI91 -> 0 | AJ91: =[3]Opex_Breakdown!AJ91 -> 0 | AK91: =[3]Opex_Breakdown!AK91 -> 0 | AL91: =[3]Opex_Breakdown!AL91 -> 0
D92: GSL Payments | W92: =[3]Opex_Breakdown!W92 -> 0 | X92: =[3]Opex_Breakdown!X92 -> 0 | Y92: =[3]Opex_Breakdown!Y92 -> 0 | Z92: =[3]Opex_Breakdown!Z92 -> 0 | AA92: =[3]Opex_Breakdown!AA92 -> 0 | AB92: =[3]Opex_Breakdown!AB92 -> 0 | AC92: =[3]Opex_Breakdown!AC92 -> 0 | AD92: =[3]Opex_Breakdown!AD92 -> 0 | AE92: =[3]Opex_Breakdown!AE92 -> 0 | AF92: =[3]Opex_Breakdown!AF92 -> 0 | AG92: =[3]Opex_Breakdown!AG92 -> 0 | AH92: =[3]Opex_Breakdown!AH92 -> 0 | AI92: =[3]Opex_Breakdown!AI92 -> 0 | AJ92: =[3]Opex_Breakdown!AJ92 -> 0 | AK92: =[3]Opex_Breakdown!AK92 -> 0 | AL92: =[3]Opex_Breakdown!AL92 -> 0
D93: Licence fees | W93: =[3]Opex_Breakdown!W93 -> 0 | X93: =[3]Opex_Breakdown!X93 -> 0 | Y93: =[3]Opex_Breakdown!Y93 -> 0 | Z93: =[3]Opex_Breakdown!Z93 -> 0 | AA93: =[3]Opex_Breakdown!AA93 -> 0 | AB93: =[3]Opex_Breakdown!AB93 -> 0 | AC93: =[3]Opex_Breakdown!AC93 -> 0 | AD93: =[3]Opex_Breakdown!AD93 -> 0 | AE93: =[3]Opex_Breakdown!AE93 -> 0 | AF93: =[3]Opex_Breakdown!AF93 -> 0 | AG93: =[3]Opex_Breakdown!AG93 -> 0 | AH93: =[3]Opex_Breakdown!AH93 -> 0 | AI93: =[3]Opex_Breakdown!AI93 -> 0 | AJ93: =[3]Opex_Breakdown!AJ93 -> 0 | AK93: =[3]Opex_Breakdown!AK93 -> 0 | AL93: =[3]Opex_Breakdown!AL93 -> 0
D94: Corporate | W94: =[3]Opex_Breakdown!W94 -> 0 | X94: =[3]Opex_Breakdown!X94 -> 0 | Y94: =[3]Opex_Breakdown!Y94 -> 0 | Z94: =[3]Opex_Breakdown!Z94 -> 0 | AA94: =[3]Opex_Breakdown!AA94 -> 0 | AB94: =[3]Opex_Breakdown!AB94 -> 0 | AC94: =[3]Opex_Breakdown!AC94 -> 0 | AD94: =[3]Opex_Breakdown!AD94 -> 0 | AE94: =[3]Opex_Breakdown!AE94 -> 0 | AF94: =[3]Opex_Breakdown!AF94 -> 0 | AG94: =[3]Opex_Breakdown!AG94 -> 0 | AH94: =[3]Opex_Breakdown!AH94 -> 0 | AI94: =[3]Opex_Breakdown!AI94 -> 0 | AJ94: =[3]Opex_Breakdown!AJ94 -> 0 | AK94: =[3]Opex_Breakdown!AK94 -> 0 | AL94: =[3]Opex_Breakdown!AL94 -> 0
D95: Other operating expenditure | W95: =[3]Opex_Breakdown!W95 -> 0 | X95: =[3]Opex_Breakdown!X95 -> 0 | Y95: =[3]Opex_Breakdown!Y95 -> 0 | Z95: =[3]Opex_Breakdown!Z95 -> 0 | AA95: =[3]Opex_Breakdown!AA95 -> 0 | AB95: =[3]Opex_Breakdown!AB95 -> 0 | AC95: =[3]Opex_Breakdown!AC95 -> 0 | AD95: =[3]Opex_Breakdown!AD95 -> 0 | AE95: =[3]Opex_Breakdown!AE95 -> 0 | AF95: =[3]Opex_Breakdown!AF95 -> 0 | AG95: =[3]Opex_Breakdown!AG95 -> 0 | AH95: =[3]Opex_Breakdown!AH95 -> 0 | AI95: =[3]Opex_Breakdown!AI95 -> 0 | AJ95: =[3]Opex_Breakdown!AJ95 -> 0 | AK95: =[3]Opex_Breakdown!AK95 -> 0 | AL95: =[3]Opex_Breakdown!AL95 -> 0
C96: =+CONCATENATE("Total ",C88) -> Total Groundwater diversions | W96: =+SUM(W89:W95) -> 0 | X96: 0 | Y96: =+SUM(Y89:Y95) -> 0 | Z96: 0 | AA96: 0 | AB96: 0 | AC96: 0.007 | AD96: 0.007 | AE96: 0.007 | AF96: 0.007 | AG96: 0.007 | AH96: =+SUM(AH89:AH95) -> 0.007 | AI96: 0.007 | AJ96: 0.007 | AK96: 0.007 | AL96: 0.007
C98: Bulk water services
D99: =+D79 -> Operations & Maintenance | W99: =[3]Opex_Breakdown!W99 -> 0 | X99: =[3]Opex_Breakdown!X99 -> 0 | Y99: =[3]Opex_Breakdown!Y99 -> 0 | Z99: =[3]Opex_Breakdown!Z99 -> 0 | AA99: =[3]Opex_Breakdown!AA99 -> 0 | AB99: =[3]Opex_Breakdown!AB99 -> 0 | AC99: =[3]Opex_Breakdown!AC99 -> 0 | AD99: =[3]Opex_Breakdown!AD99 -> 0 | AE99: =[3]Opex_Breakdown!AE99 -> 0 | AF99: =[3]Opex_Breakdown!AF99 -> 0 | AG99: =[3]Opex_Breakdown!AG99 -> 0 | AH99: =[3]Opex_Breakdown!AH99 -> 0 | AI99: =[3]Opex_Breakdown!AI99 -> 0 | AJ99: =[3]Opex_Breakdown!AJ99 -> 0 | AK99: =[3]Opex_Breakdown!AK99 -> 0 | AL99: =[3]Opex_Breakdown!AL99 -> 0
D100: External bulk charges (excl. temporary purchases) | W100: =[3]Opex_Breakdown!W100 -> 0 | X100: =[3]Opex_Breakdown!X100 -> 0 | Y100: =[3]Opex_Breakdown!Y100 -> 0 | Z100: =[3]Opex_Breakdown!Z100 -> 0 | AA100: =[3]Opex_Breakdown!AA100 -> 0 | AB100: =[3]Opex_Breakdown!AB100 -> 0 | AC100: =[3]Opex_Breakdown!AC100 -> 0 | AD100: =[3]Opex_Breakdown!AD100 -> 0 | AE100: =[3]Opex_Breakdown!AE100 -> 0 | AF100: =[3]Opex_Breakdown!AF100 -> 0 | AG100: =[3]Opex_Breakdown!AG100 -> 0 | AH100: =[3]Opex_Breakdown!AH100 -> 0 | AI100: =[3]Opex_Breakdown!AI100 -> 0 | AJ100: =[3]Opex_Breakdown!AJ100 -> 0 | AK100: =[3]Opex_Breakdown!AK100 -> 0 | AL100: =[3]Opex_Breakdown!AL100 -> 0
D101: Customer Service and billing | W101: =[3]Opex_Breakdown!W101 -> 0 | X101: =[3]Opex_Breakdown!X101 -> 0 | Y101: =[3]Opex_Breakdown!Y101 -> 0 | Z101: =[3]Opex_Breakdown!Z101 -> 0 | AA101: =[3]Opex_Breakdown!AA101 -> 0 | AB101: =[3]Opex_Breakdown!AB101 -> 0 | AC101: =[3]Opex_Breakdown!AC101 -> 0 | AD101: =[3]Opex_Breakdown!AD101 -> 0 | AE101: =[3]Opex_Breakdown!AE101 -> 0 | AF101: =[3]Opex_Breakdown!AF101 -> 0 | AG101: =[3]Opex_Breakdown!AG101 -> 0 | AH101: =[3]Opex_Breakdown!AH101 -> 0 | AI101: =[3]Opex_Breakdown!AI101 -> 0 | AJ101: =[3]Opex_Breakdown!AJ101 -> 0 | AK101: =[3]Opex_Breakdown!AK101 -> 0 | AL101: =[3]Opex_Breakdown!AL101 -> 0
D102: GSL Payments | W102: =[3]Opex_Breakdown!W102 -> 0 | X102: =[3]Opex_Breakdown!X102 -> 0 | Y102: =[3]Opex_Breakdown!Y102 -> 0 | Z102: =[3]Opex_Breakdown!Z102 -> 0 | AA102: =[3]Opex_Breakdown!AA102 -> 0 | AB102: =[3]Opex_Breakdown!AB102 -> 0 | AC102: =[3]Opex_Breakdown!AC102 -> 0 | AD102: =[3]Opex_Breakdown!AD102 -> 0 | AE102: =[3]Opex_Breakdown!AE102 -> 0 | AF102: =[3]Opex_Breakdown!AF102 -> 0 | AG102: =[3]Opex_Breakdown!AG102 -> 0 | AH102: =[3]Opex_Breakdown!AH102 -> 0 | AI102: =[3]Opex_Breakdown!AI102 -> 0 | AJ102: =[3]Opex_Breakdown!AJ102 -> 0 | AK102: =[3]Opex_Breakdown!AK102 -> 0 | AL102: =[3]Opex_Breakdown!AL102 -> 0
D103: Licence fees | W103: =[3]Opex_Breakdown!W103 -> 0 | X103: =[3]Opex_Breakdown!X103 -> 0 | Y103: =[3]Opex_Breakdown!Y103 -> 0 | Z103: =[3]Opex_Breakdown!Z103 -> 0 | AA103: =[3]Opex_Breakdown!AA103 -> 0 | AB103: =[3]Opex_Breakdown!AB103 -> 0 | AC103: =[3]Opex_Breakdown!AC103 -> 0 | AD103: =[3]Opex_Breakdown!AD103 -> 0 | AE103: =[3]Opex_Breakdown!AE103 -> 0 | AF103: =[3]Opex_Breakdown!AF103 -> 0 | AG103: =[3]Opex_Breakdown!AG103 -> 0 | AH103: =[3]Opex_Breakdown!AH103 -> 0 | AI103: =[3]Opex_Breakdown!AI103 -> 0 | AJ103: =[3]Opex_Breakdown!AJ103 -> 0 | AK103: =[3]Opex_Breakdown!AK103 -> 0 | AL103: =[3]Opex_Breakdown!AL103 -> 0
D104: Corporate | W104: =[3]Opex_Breakdown!W104 -> 0 | X104: =[3]Opex_Breakdown!X104 -> 0 | Y104: =[3]Opex_Breakdown!Y104 -> 0 | Z104: =[3]Opex_Breakdown!Z104 -> 0 | AA104: =[3]Opex_Breakdown!AA104 -> 0 | AB104: =[3]Opex_Breakdown!AB104 -> 0 | AC104: =[3]Opex_Breakdown!AC104 -> 0 | AD104: =[3]Opex_Breakdown!AD104 -> 0 | AE104: =[3]Opex_Breakdown!AE104 -> 0 | AF104: =[3]Opex_Breakdown!AF104 -> 0 | AG104: =[3]Opex_Breakdown!AG104 -> 0 | AH104: =[3]Opex_Breakdown!AH104 -> 0 | AI104: =[3]Opex_Breakdown!AI104 -> 0 | AJ104: =[3]Opex_Breakdown!AJ104 -> 0 | AK104: =[3]Opex_Breakdown!AK104 -> 0 | AL104: =[3]Opex_Breakdown!AL104 -> 0
D105: Other operating expenditure | W105: =[3]Opex_Breakdown!W105 -> 0 | X105: =[3]Opex_Breakdown!X105 -> 0 | Y105: =[3]Opex_Breakdown!Y105 -> 0 | Z105: =[3]Opex_Breakdown!Z105 -> 0 | AA105: =[3]Opex_Breakdown!AA105 -> 0 | AB105: =[3]Opex_Breakdown!AB105 -> 0 | AC105: =[3]Opex_Breakdown!AC105 -> 0 | AD105: =[3]Opex_Breakdown!AD105 -> 0 | AE105: =[3]Opex_Breakdown!AE105 -> 0 | AF105: =[3]Opex_Breakdown!AF105 -> 0 | AG105: =[3]Opex_Breakdown!AG105 -> 0 | AH105: =[3]Opex_Breakdown!AH105 -> 0 | AI105: =[3]Opex_Breakdown!AI105 -> 0 | AJ105: =[3]Opex_Breakdown!AJ105 -> 0 | AK105: =[3]Opex_Breakdown!AK105 -> 0 | AL105: =[3]Opex_Breakdown!AL105 -> 0
C106: =+CONCATENATE("Total ",C98) -> Total Bulk water services | W106: =[3]Opex_Breakdown!W106 -> 0 | X106: =[3]Opex_Breakdown!X106 -> 0 | Y106: =[3]Opex_Breakdown!Y106 -> 0 | Z106: =[3]Opex_Breakdown!Z106 -> 0 | AA106: =[3]Opex_Breakdown!AA106 -> 0 | AB106: =[3]Opex_Breakdown!AB106 -> 0 | AC106: =[3]Opex_Breakdown!AC106 -> 0 | AD106: =[3]Opex_Breakdown!AD106 -> 0 | AE106: =[3]Opex_Breakdown!AE106 -> 0 | AF106: =[3]Opex_Breakdown!AF106 -> 0 | AG106: =[3]Opex_Breakdown!AG106 -> 0 | AH106: =[3]Opex_Breakdown!AH106 -> 0 | AI106: =[3]Opex_Breakdown!AI106 -> 0 | AJ106: =[3]Opex_Breakdown!AJ106 -> 0 | AK106: =[3]Opex_Breakdown!AK106 -> 0 | AL106: =[3]Opex_Breakdown!AL106 -> 0
C109: External temporary water purchases | W109: =[3]Opex_Breakdown!W109 -> 0 | X109: =[3]Opex_Breakdown!X109 -> 0 | Y109: =[3]Opex_Breakdown!Y109 -> 0 | Z109: =[3]Opex_Breakdown!Z109 -> 0 | AA109: =[3]Opex_Breakdown!AA109 -> 0 | AB109: =[3]Opex_Breakdown!AB109 -> 0 | AC109: =[3]Opex_Breakdown!AC109 -> 0 | AD109: =[3]Opex_Breakdown!AD109 -> 0 | AE109: =[3]Opex_Breakdown!AE109 -> 0 | AF109: =[3]Opex_Breakdown!AF109 -> 0 | AG109: =[3]Opex_Breakdown!AG109 -> 0 | AH109: =[3]Opex_Breakdown!AH109 -> 0 | AI109: =[3]Opex_Breakdown!AI109 -> 0 | AJ109: =[3]Opex_Breakdown!AJ109 -> 0 | AK109: =[3]Opex_Breakdown!AK109 -> 0 | AL109: =[3]Opex_Breakdown!AL109 -> 0
C112: Licence fees
D113: Essential Services Commission | W113: =[3]Opex_Breakdown!W113 -> 0 | X113: =[3]Opex_Breakdown!X113 -> 0 | Y113: =[3]Opex_Breakdown!Y113 -> 0 | Z113: =[3]Opex_Breakdown!Z113 -> 0.02222262324 | AA113: =[3]Opex_Breakdown!AA113 -> 0.04868784489 | AB113: =[3]Opex_Breakdown!AB113 -> 0.0285 | AC113: =[3]Opex_Breakdown!AC113 -> 0.01504 | AD113: =[3]Opex_Breakdown!AD113 -> 0.01504 | AE113: =[3]Opex_Breakdown!AE113 -> 0.01504 | AF113: =[3]Opex_Breakdown!AF113 -> 0.02256 | AG113: =[3]Opex_Breakdown!AG113 -> 0.02256 | AH113: =[3]Opex_Breakdown!AH113 -> 0.01504 | AI113: =[3]Opex_Breakdown!AI113 -> 0.01504 | AJ113: =[3]Opex_Breakdown!AJ113 -> 0.01504 | AK113: =[3]Opex_Breakdown!AK113 -> 0.02256 | AL113: =[3]Opex_Breakdown!AL113 -> 0.02256
D114: Department of Human Services | W114: =[3]Opex_Breakdown!W114 -> 0 | X114: =[3]Opex_Breakdown!X114 -> 0 | Y114: =[3]Opex_Breakdown!Y114 -> 0 | Z114: =[3]Opex_Breakdown!Z114 -> 0 | AA114: =[3]Opex_Breakdown!AA114 -> 0 | AB114: =[3]Opex_Breakdown!AB114 -> 0 | AC114: =[3]Opex_Breakdown!AC114 -> 0 | AD114: =[3]Opex_Breakdown!AD114 -> 0 | AE114: =[3]Opex_Breakdown!AE114 -> 0 | AF114: =[3]Opex_Breakdown!AF114 -> 0 | AG114: =[3]Opex_Breakdown!AG114 -> 0 | AH114: =[3]Opex_Breakdown!AH114 -> 0 | AI114: =[3]Opex_Breakdown!AI114 -> 0 | AJ114: =[3]Opex_Breakdown!AJ114 -> 0 | AK114: =[3]Opex_Breakdown!AK114 -> 0 | AL114: =[3]Opex_Breakdown!AL114 -> 0
D115: Environment Protection Authority | W115: =[3]Opex_Breakdown!W115 -> 0 | X115: =[3]Opex_Breakdown!X115 -> 0 | Y115: =[3]Opex_Breakdown!Y115 -> 0 | Z115: =[3]Opex_Breakdown!Z115 -> 0 | AA115: =[3]Opex_Breakdown!AA115 -> 0 | AB115: =[3]Opex_Breakdown!AB115 -> 0 | AC115: =[3]Opex_Breakdown!AC115 -> 0 | AD115: =[3]Opex_Breakdown!AD115 -> 0 | AE115: =[3]Opex_Breakdown!AE115 -> 0 | AF115: =[3]Opex_Breakdown!AF115 -> 0 | AG115: =[3]Opex_Breakdown!AG115 -> 0 | AH115: =[3]Opex_Breakdown!AH115 -> 0 | AI115: =[3]Opex_Breakdown!AI115 -> 0 | AJ115: =[3]Opex_Breakdown!AJ115 -> 0 | AK115: =[3]Opex_Breakdown!AK115 -> 0 | AL115: =[3]Opex_Breakdown!AL115 -> 0
C116: =+CONCATENATE("Total ",C112) -> Total Licence fees | W116: =+SUM(W113:W115) -> 0 | X116: 0 | Y116: =+SUM(Y113:Y115) -> 0 | Z116: =+SUM(Z113:Z115) -> 0.02222262324 | AA116: =+SUM(AA113:AA115) -> 0.04868784489 | AB116: =+SUM(AB113:AB115) -> 0.0285 | AC116: =+SUM(AC113:AC115) -> 0.01504 | AD116: 0.01504 | AE116: 0.01504 | AF116: 0.02256 | AG116: 0.02256 | AH116: =+SUM(AH113:AH115) -> 0.01504 | AI116: 0.01504 | AJ116: 0.01504 | AK116: 0.02256 | AL116: 0.02256
C118: Environment Contribution | W118: =[3]Opex_Breakdown!W118 -> 0.4148687783 | X118: =[3]Opex_Breakdown!X118 -> 0.5642885755 | Y118: =[3]Opex_Breakdown!Y118 -> 0.5570613497 | Z118: =[3]Opex_Breakdown!Z118 -> 0.4953874786 | AA118: =[3]Opex_Breakdown!AA118 -> 0.4899251908 | AB118: =[3]Opex_Breakdown!AB118 -> 0.4662 | AC118: =[3]Opex_Breakdown!AC118 -> 0.4662 | AD118: =[3]Opex_Breakdown!AD118 -> 0.4662 | AE118: =[3]Opex_Breakdown!AE118 -> 0.4662 | AF118: =[3]Opex_Breakdown!AF118 -> 0.4662 | AG118: =[3]Opex_Breakdown!AG118 -> 0.4662 | AH118: =[3]Opex_Breakdown!AH118 -> 0.4662 | AI118: =[3]Opex_Breakdown!AI118 -> 0.4662 | AJ118: =[3]Opex_Breakdown!AJ118 -> 0.4662 | AK118: =[3]Opex_Breakdown!AK118 -> 0.4662 | AL118: =[3]Opex_Breakdown!AL118 -> 0.4662
C120: Other non-controllable
D121: [Non-controllable 1] | E121: 0 | F121: 0 | G121: 0 | H121: 0 | I121: 0 | J121: 0
D122: [Non-controllable 2] | E122: 0 | F122: 0 | G122: 0 | H122: 0 | I122: 0 | J122: 0
D123: [Non-controllable 3] | E123: 0 | F123: 0 | G123: 0 | H123: 0 | I123: 0 | J123: 0
D124: [Non-controllable 4] | E124: 0 | F124: 0 | G124: 0 | H124: 0 | I124: 0 | J124: 0
D125: [Non-controllable 5] | E125: 0 | F125: 0 | G125: 0 | H125: 0 | I125: 0 | J125: 0
D126: [Non-controllable 6] | E126: 0 | F126: 0 | G126: 0 | H126: 0 | I126: 0 | J126: 0
D127: [Non-controllable 7] | E127: 0 | F127: 0 | G127: 0 | H127: 0 | I127: 0 | J127: 0
D128: [Non-controllable 8] | E128: 0 | F128: 0 | G128: 0 | H128: 0 | I128: 0 | J128: 0
D129: [Non-controllable 9] | E129: 0 | F129: 0 | G129: 0 | H129: 0 | I129: 0 | J129: 0
D130: [Non-controllable 10] | E130: 0 | F130: 0 | G130: 0 | H130: 0 | I130: 0 | J130: 0
W131: =SUM(W121:W130) -> 0 | X131: 0 | Y131: =SUM(Y121:Y130) -> 0 | Z131: 0 | AA131: 0 | AB131: 0 | AC131: 0 | AD131: 0 | AE131: 0 | AF131: 0 | AG131: =SUM(AG121:AG130) -> 0 | AH131: =SUM(AH121:AH130) -> 0 | AI131: 0 | AJ131: 0 | AK131: 0 | AL131: =SUM(AL121:AL130) -> 0

Sheet Capex_FO input
B1: Capital Expenditure - Forecast Input
B2: =+Contents!H7 -> Lower Murray Water - Rural
B3: Go to Table of Contents
C7: Input Summary | F7: FIFTH REG PERIOD | K7: SIXTH REG PERIOD
D9: =+O39 -> 2023-24 | E9: 2024-25 | F9: 2025-26 | G9: 2026-27 | H9: 2027-28 | I9: 2028-29 | J9: 2029-30 | K9: 2030-31 | L9: 2031-32 | M9: 2032-33
C10: By Cost Driver
C11: Net capital expenditure - Renewals | D11: =+SUMIF($F$42:$F$724,"Renewals",AV$42:AV$724) -> 6.512921752 | E11: 6.230321728 | F11: 6.482369496 | G11: 6.105586096 | H11: 5.222011608 | I11: 5.359119855 | J11: 6.538656018 | K11: 8.793656018 | L11: 7.542656018 | M11: 6.509656018
C12: Net capital expenditure - Growth | D12: =+SUMIF($F$42:$F$724,"Growth",AV$42:AV$724) -> 7 | E12: 0 | F12: 0 | G12: 0 | H12: 0 | I12: 0 | J12: 0 | K12: 0 | L12: 0 | M12: 0
C13: Net capital expenditure - Improvements / Compliance | D13: =+SUMIF($F$42:$F$724,"Improvements / Compliance",AV$42:AV$724) -> -1.35629991 | E13: 2.10770009 | F13: 1.40570009 | G13: 3.01850009 | H13: 3.01750009 | I13: 2.35038009 | J13: 8.03238009 | K13: 11.83738009 | L13: 1.63838009 | M13: 1.56038009
C14: Government Contributions | D14: =+Z41 -> 0 | E14: =+AA41 -> 0 | F14: 0 | G14: 0 | H14: 0 | I14: 0 | J14: 0 | K14: 0 | L14: 0 | M14: 0
C15: Customer Contributions | D15: =+AK41 -> 3.92161991 | E15: =+AL41 -> 0.1716199095 | F15: 0.1716199095 | G15: 0.1716199095 | H15: 0.1716199095 | I15: 0.1716199095 | J15: 0.1716199095 | K15: 0.1716199095 | L15: 0.1716199095 | M15: 0.1716199095
C16: Total prescribed capex | D16: =SUM(D11:D15) -> 16.07824175 | E16: 8.509641728 | F16: 8.059689496 | G16: 9.295706096 | H16: 8.411131608 | I16: 7.881119855 | J16: 14.74265602 | K16: 20.80265602 | L16: 9.352656018 | M16: 8.241656018
C18: By Capital Type
C19: Top 10 Major Projects | D19: =+SUMIF($H$42:$H$724,$C$19,O$42:O$724) -> 0.47032 | E19: 0.32032 | F19: 0.32032 | G19: 0.74312 | H19: 1.56312 | I19: 0.15 | J19: 0 | K19: 0 | L19: 0.22 | M19: 0.63
C20: Significant projects | D20: =+SUMIF($H$42:$H$724,$C$20,O$42:O$724) -> 11.86 | E20: 5.425 | F20: 5.109 | G20: 6.621 | H20: 4.842 | I20: 4.824 | J20: 11.969 | K20: 18.029 | L20: 6.359 | M20: 4.838
C21: Capital Programs / Allocation | D21: =+SUMIF($H$42:$H$724,$C$21,O$42:O$724) -> 1.213 | E21: 1.056 | F21: 1.056 | G21: 1.056 | H21: 1.056 | I21: 2.109 | J21: 2.109 | K21: 2.109 | L21: 2.109 | M21: 2.109
C22: Other Capital expenditure | D22: =+SUMIF($H$42:$H$724,$C$22,O$42:O$724) -> 2.534921752 | E22: 1.708321728 | F22: 1.574369496 | G22: 0.875586096 | H22: 0.950011608 | I22: 0.7981198552 | J22: 0.6646560181 | K22: 0.6646560181 | L22: 0.6646560181 | M22: 0.6646560181
C23: Total prescribed capex | D23: =SUM(D19:D22) -> 16.07824175 | E23: =SUM(E19:E22) -> 8.509641728 | F23: 8.059689496 | G23: 9.295706096 | H23: 8.411131608 | I23: 7.881119855 | J23: 14.74265602 | K23: 20.80265602 | L23: 9.352656018 | M23: 8.241656018
C25: Difference | D25: =+D23-D16 -> 0 | E25: =+E23-E16 -> 0 | F25: 0 | G25: 0 | H25: 0 | I25: 0 | J25: 0 | K25: 0 | L25: 0 | M25: 0
C26: Test | D26: =IF(ROUND(D23,2)=ROUND(D16,2),0,1) -> 0 | E26: =IF(ROUND(E23,2)=ROUND(E16,2),0,1) -> 0 | F26: 0 | G26: 0 | H26: 0 | I26: 0 | J26: 0 | K26: 0 | L26: 0 | M26: 0
C29: Total prescribed capex | D29: =+D23 -> 16.07824175 | E29: =+E23 -> 8.509641728 | F29: 8.059689496 | G29: 9.295706096 | H29: 8.411131608 | I29: 7.881119855 | J29: 14.74265602 | K29: 20.80265602 | L29: 9.352656018 | M29: 8.241656018
C32: Regulatory Depreciation | D32: =+BG41 -> 0.202747204 | E32: =+BH41 -> 0.5734641095 | F32: 0.885760234 | G32: 1.145056267 | H32: 1.396035679 | I32: 1.47013093 | J32: 1.43574256 | K32: 1.981128393 | L32: 2.595521123 | M32: 3.02316553
B35: $m, 01/01/23
O36: Gross capital expenditure | Z36: Government contributions | AK36: Customer contributions | AV36: Net capital expenditure | BG36: Regulatory Depreciation | BR36: Accumulated capex | CC36: Gross capital expenditure | CN36: Tax Depreciation
O37: $m, 01/01/23 | Z37: $m, 01/01/23 | AK37: $m, 01/01/23 | AV37: $m, 01/01/23 | BG37: $m, 01/01/23 | BR37: $m, 01/01/23 | CC37: Nominal,$ | CN37: Nominal,$
O39: 2023-24 | P39: 2024-25 | Q39: 2025-26 | R39: 2026-27 | S39: 2027-28 | T39: 2028-29 | U39: 2029-30 | V39: 2030-31 | W39: 2031-32 | X39: 2032-33 | Z39: 2023-24 | AA39: 2024-25 | AB39: 2025-26 | AC39: 2026-27 | AD39: 2027-28 | AE39: 2028-29 | AF39: 2029-30 | AG39: 2030-31 | AH39: 2031-32 | AI39: 2032-33 | AK39: 2023-24 | AL39: 2024-25 | AM39: 2025-26 | AN39: 2026-27 | AO39: 2027-28 | AP39: 2028-29 | AQ39: 2029-30 | AR39: 2030-31 | AS39: 2031-32 | AT39: 2032-33 | AV39: 2023-24 | AW39: 2024-25 | AX39: 2025-26 | AY39: 2026-27 | AZ39: 2027-28 | BA39: 2028-29 | BB39: 2029-30 | BC39: 2030-31 | BD39: 2031-32 | BE39: 2032-33 | BG39: 2023-24 | BH39: 2024-25 | BI39: 2025-26 | BJ39: 2026-27 | BK39: 2027-28 | BL39: 2028-29 | BM39: 2029-30 | BN39: 2030-31 | BO39: 2031-32 | BP39: 2032-33 | BR39: 2023-24 | BS39: 2024-25 | BT39: 2025-26 | BU39: 2026-27 | BV39: 2027-28 | BW39: 2028-29 | BX39: 2029-30 | BY39: 2030-31 | BZ39: 2031-32 | CA39: 2032-33 | CC39: 2023-24 | CD39: 2024-25 | CE39: 2025-26 | CF39: 2026-27 | CG39: 2027-28 | CH39: 2028-29 | CI39: 2029-30 | CJ39: 2030-31 | CK39: 2031-32 | CL39: 2032-33 | CN39: 2023-24 | CO39: 2024-25 | CP39: 2025-26 | CQ39: 2026-27 | CR39: 2027-28 | CS39: 2028-29 | CT39: 2029-30 | CU39: 2030-31 | CV39: 2031-32 | CW39: 2032-33
BG40: 1 | BH40: 2 | BI40: 3 | BJ40: 4 | BK40: 5 | BL40: 6 | BM40: 7 | BN40: 8 | BO40: 9 | BP40: 10 | CN40: 1 | CO40: 2 | CP40: 3 | CQ40: 4 | CR40: 5 | CS40: 6 | CT40: 7 | CU40: 8 | CV40: 9 | CW40: 10
C41: Project/program Name | E41: Service | F41: Major cost driver | G41: Asset category | H41: Capital type | J41: Depreciation Method | K41: Year asset operational | L41: Asset life (Regulatory) | M41: Asset life (Tax) | O41: =SUM(O42:O724) -> 16.07824175 | P41: 8.509641728 | Q41: 8.059689496 | R41: 9.295706096 | S41: 8.411131608 | T41: 7.881119855 | U41: 14.74265602 | V41: 20.80265602 | W41: 9.352656018 | X41: 8.241656018 | Z41: =SUM(Z42:Z724) -> 0 | AA41: 0 | AB41: 0 | AC41: 0 | AD41: 0 | AE41: 0 | AF41: 0 | AG41: 0 | AH41: 0 | AI41: 0 | AK41: =SUM(AK42:AK724) -> 3.92161991 | AL41: 0.1716199095 | AM41: 0.1716199095 | AN41: 0.1716199095 | AO41: 0.1716199095 | AP41: 0.1716199095 | AQ41: 0.1716199095 | AR41: 0.1716199095 | AS41: 0.1716199095 | AT41: 0.1716199095 | AV41: =SUM(AV42:AV724) -> 12.15662184 | AW41: 8.338021818 | AX41: 7.888069586 | AY41: 9.124086186 | AZ41: 8.239511698 | BA41: 7.709499946 | BB41: 14.57103611 | BC41: 20.63103611 | BD41: 9.181036109 | BE41: 8.070036109 | BG41: =SUM(BG42:BG724) -> 0.202747204 | BH41: 0.5734641095 | BI41: 0.885760234 | BJ41: 1.145056267 | BK41: 1.396035679 | BL41: 1.47013093 | BM41: 1.43574256 | BN41: 1.981128393 | BO41: 2.595521123 | BP41: 3.02316553 | BR41: =SUM(BR42:BR724) -> 8.969621842 | BS41: 6.245021818 | BT41: 5.017069586 | BU41: 5.642086186 | BV41: 6.610511698 | BW41: 3.169499946 | BX41: 6.393036109 | BY41: 27.35403611 | BZ41: 6.381036109 | CA41: 30.12703611 | CC41: =SUM(CC42:CC724) -> 16.560589 | CD41: 9.027878909 | CE41: 8.807040324 | CF41: 10.46239911 | CG41: 9.750806809 | CH41: 9.410469262 | CI41: 18.13160734 | CJ41: 26.35218226 | CK41: 12.20309477 | CL41: 11.07609652 | CN41: =SUM(CN42:CN724) -> 0.732906488 | CO41: 2.007840784 | CP41: 2.625715309 | CQ41: 3.702143421 | CR41: 4.193769624 | CS41: 4.607981974 | CT41: 5.275512877 | CU41: 6.840245059 | CV41: 7.897317032 | CW41: 8.376102386
C42: ='[3]Capex_FO input'!C42 -> ROB - Decommission selected section of reduntant channel (rubbish dumping /ongoing opex) | D42: ='[3]Capex_FO input'!D42 -> 0 | E42: ='[3]Capex_FO input'!E42 -> Irrigation | F42: ='[3]Capex_FO input'!F42 -> Improvements / Compliance | G42: ='[3]Capex_FO input'!G42 -> Pipelines/network | H42: ='[3]Capex_FO input'!H42 -> Top 10 Major Projects | I42: ='[3]Capex_FO input'!I42 -> 0 | J42: ='[3]Capex_FO input'!J42 -> Straight line | K42: ='[3]Capex_FO input'!K42 -> 2032-33 | L42: ='[3]Capex_FO input'!L42 -> 45 | M42: ='[3]Capex_FO input'!M42 -> 22.22222222 | O42: ='[3]Capex_FO input'!O42 -> 0.15 | P42: ='[3]Capex_FO input'!P42 -> 0 | Q42: ='[3]Capex_FO input'!Q42 -> 0 | R42: ='[3]Capex_FO input'!R42 -> 0.22 | S42: ='[3]Capex_FO input'!S42 -> 0.63 | T42: ='[3]Capex_FO input'!T42 -> 0.15 | U42: ='[3]Capex_FO input'!U42 -> 0 | V42: ='[3]Capex_FO input'!V42 -> 0 | W42: ='[3]Capex_FO input'!W42 -> 0.22 | X42: ='[3]Capex_FO input'!X42 -> 0.63 | Z42: ='[3]Capex_FO input'!Z42 -> 0 | AA42: ='[3]Capex_FO input'!AA42 -> 0 | AB42: ='[3]Capex_FO input'!AB42 -> 0 | AC42: ='[3]Capex_FO input'!AC42 -> 0 | AD42: ='[3]Capex_FO input'!AD42 -> 0 | AE42: ='[3]Capex_FO input'!AE42 -> 0 | AF42: ='[3]Capex_FO input'!AF42 -> 0 | AG42: ='[3]Capex_FO input'!AG42 -> 0 | AH42: ='[3]Capex_FO input'!AH42 -> 0 | AI42: ='[3]Capex_FO input'!AI42 -> 0 | AK42: ='[3]Capex_FO input'!AK42 -> 0 | AL42: ='[3]Capex_FO input'!AL42 -> 0 | AM42: ='[3]Capex_FO input'!AM42 -> 0 | AN42: ='[3]Capex_FO input'!AN42 -> 0 | AO42: ='[3]Capex_FO input'!AO42 -> 0 | AP42: ='[3]Capex_FO input'!AP42 -> 0 | AQ42: ='[3]Capex_FO input'!AQ42 -> 0 | AR42: ='[3]Capex_FO input'!AR42 -> 0 | AS42: ='[3]Capex_FO input'!AS42 -> 0 | AT42: ='[3]Capex_FO input'!AT42 -> 0 | AV42: =+O42-Z42-AK42 -> 0.15 | AW42: =+P42-AA42-AL42 -> 0 | AX42: 0 | AY42: 0.22 | AZ42: 0.63 | BA42: 0.15 | BB42: 0 | BC42: 0 | BD42: 0.22 | BE42: 0.63 | BG42: =IF($L42=0,0, IF($L42<=0.5,BR42, IF($J42="straight line", IF((LEFT(BG$39,4)*1)-INT($L42)<LEFT($BG$39,4)*1,0,((OFFSET(BR42,0,-INT($L42+0.5),1,1))/$L42)*(IF($L42-INT($L42)>0.5,$L42-0.5-INT($L42),IF($L42-INT($L42)<=0.5,$L42-0.5-INT($L42)+1,0)))) +BR42/$L42*0.5, IF($J42="Declining Balance",-$BG$38,0)))) -> 0 | BH42: =IF($L42=0,0, IF($L42<=0.5,BS42, IF(AND($J42="straight line",$L42<1.51),(BR42-((BR42/$L42)*0.5))+BS42/$L42*0.5, IF($J42="straight line", IF((LEFT(BH$39,4)*1)-INT($L42)<LEFT($BG$39,4)*1,0,((OFFSET(BS42,0,-INT($L42+0.5),1,1))/$L42)*(IF($L42-INT($L42)>0.5,$L42-0.5-INT($L42),IF($L42-INT($L42)<=0.5,$L42-0.5-INT($L42)+1,0)))) +BS42/$L42*0.5 +SUM(OFFSET(BS42,0,MAX(-INT($L42+(0.5-(10^-12))),-BH$40)+1,1,MIN(INT($L42+(0.5-(10^-12))),BH$40)-1))*1/$L42, IF($J42="Declining Balance",-$BG$38,0))))) -> 0 | BI42: =IF($L42=0,0, IF($L42<=0.5,BT42, IF(AND($J42="straight line",$L42<1.51),(BS42-((BS42/$L42)*0.5))+BT42/$L42*0.5, IF($J42="straight line", IF((LEFT(BI$39,4)*1)-INT($L42)<LEFT($BG$39,4)*1,0,((OFFSET(BT42,0,-INT($L42+0.5),1,1))/$L42)*(IF($L42-INT($L42)>0.5,$L42-0.5-INT($L42),IF($L42-INT($L42)<=0.5,$L42-0.5-INT($L42)+1,0)))) +BT42/$L42*0.5 +SUM(OFFSET(BT42,0,MAX(-INT($L42+(0.5-(10^-12))),-BI$40)+1,1,MIN(INT($L42+(0.5-(10^-12))),BI$40)-1))*1/$L42, IF($J42="Declining Balance",-$BG$38,0))))) -> 0 | BJ42: 0 | BK42: 0 | BL42: 0 | BM42: 0 | BN42: 0 | BO42: 0 | BP42: 0.02222222222 | BR42: =+IF($K42="Ongoing",AV42,IF(RIGHT($K42,2)=RIGHT(BR$39,2),SUM($AV42:AV42),0)+IF(RIGHT(BR$39,2)>RIGHT($K42,2),AV42,0)) -> 0 | BS42: =+IF($K42="Ongoing",AW42,IF(RIGHT($K42,2)=RIGHT(BS$39,2),SUM($AV42:AW42),0)+IF(RIGHT(BS$39,2)>RIGHT($K42,2),AW42,0)) -> 0 | BT42: =+IF($K42="Ongoing",AX42,IF(RIGHT($K42,2)=RIGHT(BT$39,2),SUM($AV42:AX42),0)+IF(RIGHT(BT$39,2)>RIGHT($K42,2),AX42,0)) -> 0 | BU42: =+IF($K42="Ongoing",AY42,IF(RIGHT($K42,2)=RIGHT(BU$39,2),SUM($AV42:AY42),0)+IF(RIGHT(BU$39,2)>RIGHT($K42,2),AY42,0)) -> 0 | BV42: =+IF($K42="Ongoing",AZ42,IF(RIGHT($K42,2)=RIGHT(BV$39,2),SUM($AV42:AZ42),0)+IF(RIGHT(BV$39,2)>RIGHT($K42,2),AZ42,0)) -> 0 | BW42: =+IF($K42="Ongoing",BA42,IF(RIGHT($K42,2)=RIGHT(BW$39,2),SUM($AV42:BA42),0)+IF(RIGHT(BW$39,2)>RIGHT($K42,2),BA42,0)) -> 0 | BX42: =+IF($K42="Ongoing",BB42,IF(RIGHT($K42,2)=RIGHT(BX$39,2),SUM($AV42:BB42),0)+IF(RIGHT(BX$39,2)>RIGHT($K42,2),BB42,0)) -> 0 | BY42: =+IF($K42="Ongoing",BC42,IF(RIGHT($K42,2)=RIGHT(BY$39,2),SUM($AV42:BC42),0)+IF(RIGHT(BY$39,2)>RIGHT($K42,2),BC42,0)) -> 0 | BZ42: =+IF($K42="Ongoing",BD42,IF(RIGHT($K42,2)=RIGHT(BZ$39,2),SUM($AV42:BD42),0)+IF(RIGHT(BZ$39,2)>RIGHT($K42,2),BD42,0)) -> 0 | CA42: =+IF($K42="Ongoing",BE42,IF(RIGHT($K42,2)=RIGHT(CA$39,2),SUM($AV42:BE42),0)+IF(RIGHT(CA$39,2)>RIGHT($K42,2),BE42,0)) -> 2 | CC42: =+O42*KeyAssumptionsPriceControl_FO!AC$15 -> 0.1545 | CD42: =+P42*KeyAssumptionsPriceControl_FO!AD$15 -> 0 | CE42: =+Q42*KeyAssumptionsPriceControl_FO!AE$15 -> 0 | CF42: =+R42*KeyAssumptionsPriceControl_FO!AF$15 -> 0.2476119382 | CG42: =+S42*KeyAssumptionsPriceControl_FO!AG$15 -> 0.7303426668 | CH42: =+T42*KeyAssumptionsPriceControl_FO!AH$15 -> 0.1791078445 | CI42: =+U42*KeyAssumptionsPriceControl_FO!AI$15 -> 0 | CJ42: =+V42*KeyAssumptionsPriceControl_FO!AJ$15 -> 0 | CK42: =+W42*KeyAssumptionsPriceControl_FO!AK$15 -> 0.2870501004 | CL42: =+X42*KeyAssumptionsPriceControl_FO!AL$15 -> 0.846667319 | CN42: =IF($M42=0,0, IF($M42<=0.5,CC42, IF($J42="straight line", IF((LEFT(CN$39,4)*1)-INT($M42)<LEFT($CN$39,4)*1,0,((OFFSET(CC42,0,-INT($M42+0.5),1,1))/$M42)*(IF($M42-INT($M42)>0.5,$M42-0.5-INT($M42),IF($M42-INT($M42)<=0.5,$M42-0.5-INT($M42)+1,0)))) +CC42/$M42*0.5, IF($J42="Declining Balance",-$CN$38,0)))) -> 0.00347625 | CO42: =IF($M42=0,0, IF($M42<=0.5,CD42, IF(AND($J42="straight line",$M42<1.51),(CC42-((CC42/$M42)*0.5))+CD42/$M42*0.5, IF($J42="straight line", IF((LEFT(CO$39,4)*1)-INT($M42)<LEFT($CN$39,4)*1,0,((OFFSET(CD42,0,-INT($M42+0.5),1,1))/$M42)*(IF($M42-INT($M42)>0.5,$M42-0.5-INT($M42),IF($M42-INT($M42)<=0.5,$M42-0.5-INT($M42)+1,0)))) +CD42/$M42*0.5 +SUM(OFFSET(CD42,0,MAX(-INT($M42+(0.5-(10^-12))),-CO$40)+1,1,MIN(INT($M42+(0.5-(10^-12))),CO$40)-1))*1/$M42, IF($J42="Declining Balance",-$CN$38,0))))) -> 0.0069525 | CP42: =IF($M42=0,0, IF($M42<=0.5,CE42, IF(AND($J42="straight line",$M42<1.51),(CD42-((CD42/$M42)*0.5))+CE42/$M42*0.5, IF($J42="straight line", IF((LEFT(CP$39,4)*1)-INT($M42)<LEFT($CN$39,4)*1,0,((OFFSET(CE42,0,-INT($M42+0.5),1,1))/$M42)*(IF($M42-INT($M42)>0.5,$M42-0.5-INT($M42),IF($M42-INT($M42)<=0.5,$M42-0.5-INT($M42)+1,0)))) +CE42/$M42*0.5 +SUM(OFFSET(CE42,0,MAX(-INT($M42+(0.5-(10^-12))),-CP$40)+1,1,MIN(INT($M42+(0.5-(10^-12))),CP$40)-1))*1/$M42, IF($J42="Declining Balance",-$CN$38,0))))) -> 0.0069525 | CQ42: 0.01252376861 | CR42: 0.03452774722 | CS42: 0.05499038373 | CT42: 0.05902031023 | CU42: 0.05902031023 | CV42: 0.06547893749 | CW42: 0.09098757942
C43: ='[3]Capex_FO input'!C43 -> ROB - Decommision and seal the old suction | D43: ='[3]Capex_FO input'!D43 -> 0 | E43: ='[3]Capex_FO input'!E43 -> Irrigation | F43: ='[3]Capex_FO input'!F43 -> Improvements / Compliance | G43: ='[3]Capex_FO input'!G43 -> Pipelines/network | H43: ='[3]Capex_FO input'!H43 -> Top 10 Major Projects | I43: ='[3]Capex_FO input'!I43 -> 0 | J43: Straight line | K43: ='[3]Capex_FO input'!K43 -> 2026-27 | L43: ='[3]Capex_FO input'!L43 -> 45 | M43: ='[3]Capex_FO input'!M43 -> 22.22222222 | O43: ='[3]Capex_FO input'!O43 -> 0 | P43: ='[3]Capex_FO input'!P43 -> 0 | Q43: ='[3]Capex_FO input'!Q43 -> 0 | R43: ='[3]Capex_FO input'!R43 -> 0.15 | S43: ='[3]Capex_FO input'!S43 -> 0 | T43: ='[3]Capex_FO input'!T43 -> 0 | U43: ='[3]Capex_FO input'!U43 -> 0 | V43: ='[3]Capex_FO input'!V43 -> 0 | W43: ='[3]Capex_FO input'!W43 -> 0 | X43: ='[3]Capex_FO input'!X43 -> 0 | Z43: ='[3]Capex_FO input'!Z43 -> 0 | AA43: ='[3]Capex_FO input'!AA43 -> 0 | AB43: ='[3]Capex_FO input'!AB43 -> 0 | AC43: ='[3]Capex_FO input'!AC43 -> 0 | AD43: ='[3]Capex_FO input'!AD43 -> 0 | AE43: ='[3]Capex_FO input'!AE43 -> 0 | AF43: ='[3]Capex_FO input'!AF43 -> 0 | AG43: ='[3]Capex_FO input'!AG43 -> 0 | AH43: ='[3]Capex_FO input'!AH43 -> 0 | AI43: ='[3]Capex_FO input'!AI43 -> 0 | AK43: ='[3]Capex_FO input'!AK43 -> 0 | AL43: ='[3]Capex_FO input'!AL43 -> 0 | AM43: ='[3]Capex_FO input'!AM43 -> 0 | AN43: ='[3]Capex_FO input'!AN43 -> 0 | AO43: ='[3]Capex_FO input'!AO43 -> 0 | AP43: ='[3]Capex_FO input'!AP43 -> 0 | AQ43: ='[3]Capex_FO input'!AQ43 -> 0 | AR43: ='[3]Capex_FO input'!AR43 -> 0 | AS43: ='[3]Capex_FO input'!AS43 -> 0 | AT43: ='[3]Capex_FO input'!AT43 -> 0 | AV43: =+O43-Z43-AK43 -> 0 | AW43: 0 | AX43: 0 | AY43: 0.15 | AZ43: 0 | BA43: 0 | BB43: 0 | BC43: 0 | BD43: 0 | BE43: 0 | BG43: =IF($L43=0,0, IF($L43<=0.5,BR43, IF($J43="straight line", IF((LEFT(BG$39,4)*1)-INT($L43)<LEFT($BG$39,4)*1,0,((OFFSET(BR43,0,-INT($L43+0.5),1,1))/$L43)*(IF($L43-INT($L43)>0.5,$L43-0.5-INT($L43),IF($L43-INT($L43)<=0.5,$L43-0.5-INT($L43)+1,0)))) +BR43/$L43*0.5, IF($J43="Declining Balance",-$BG$38,0)))) -> 0 | BH43: =IF($L43=0,0, IF($L43<=0.5,BS43, IF(AND($J43="straight line",$L43<1.51),(BR43-((BR43/$L43)*0.5))+BS43/$L43*0.5, IF($J43="straight line", IF((LEFT(BH$39,4)*1)-INT($L43)<LEFT($BG$39,4)*1,0,((OFFSET(BS43,0,-INT($L43+0.5),1,1))/$L43)*(IF($L43-INT($L43)>0.5,$L43-0.5-INT($L43),IF($L43-INT($L43)<=0.5,$L43-0.5-INT($L43)+1,0)))) +BS43/$L43*0.5 +SUM(OFFSET(BS43,0,MAX(-INT($L43+(0.5-(10^-12))),-BH$40)+1,1,MIN(INT($L43+(0.5-(10^-12))),BH$40)-1))*1/$L43, IF($J43="Declining Balance",-$BG$38,0))))) -> 0 | BI43: 0 | BJ43: 0.001666666667 | BK43: 0.003333333333 | BL43: 0.003333333333 | BM43: 0.003333333333 | BN43: 0.003333333333 | BO43: 0.003333333333 | BP43: 0.003333333333 | BR43: =+IF($K43="Ongoing",AV43,IF(RIGHT($K43,2)=RIGHT(BR$39,2),SUM($AV43:AV43),0)+IF(RIGHT(BR$39,2)>RIGHT($K43,2),AV43,0)) -> 0 | BS43: =+IF($K43="Ongoing",AW43,IF(RIGHT($K43,2)=RIGHT(BS$39,2),SUM($AV43:AW43),0)+IF(RIGHT(BS$39,2)>RIGHT($K43,2),AW43,0)) -> 0 | BT43: =+IF($K43="Ongoing",AX43,IF(RIGHT($K43,2)=RIGHT(BT$39,2),SUM($AV43:AX43),0)+IF(RIGHT(BT$39,2)>RIGHT($K43,2),AX43,0)) -> 0 | BU43: =+IF($K43="Ongoing",AY43,IF(RIGHT($K43,2)=RIGHT(BU$39,2),SUM($AV43:AY43),0)+IF(RIGHT(BU$39,2)>RIGHT($K43,2),AY43,0)) -> 0.15 | BV43: =+IF($K43="Ongoing",AZ43,IF(RIGHT($K43,2)=RIGHT(BV$39,2),SUM($AV43:AZ43),0)+IF(RIGHT(BV$39,2)>RIGHT($K43,2),AZ43,0)) -> 0 | BW43: =+IF($K43="Ongoing",BA43,IF(RIGHT($K43,2)=RIGHT(BW$39,2),SUM($AV43:BA43),0)+IF(RIGHT(BW$39,2)>RIGHT($K43,2),BA43,0)) -> 0 | BX43: =+IF($K43="Ongoing",BB43,IF(RIGHT($K43,2)=RIGHT(BX$39,2),SUM($AV43:BB43),0)+IF(RIGHT(BX$39,2)>RIGHT($K43,2),BB43,0)) -> 0 | BY43: =+IF($K43="Ongoing",BC43,IF(RIGHT($K43,2)=RIGHT(BY$39,2),SUM($AV43:BC43),0)+IF(RIGHT(BY$39,2)>RIGHT($K43,2),BC43,0)) -> 0 | BZ43: =+IF($K43="Ongoing",BD43,IF(RIGHT($K43,2)=RIGHT(BZ$39,2),SUM($AV43:BD43),0)+IF(RIGHT(BZ$39,2)>RIGHT($K43,2),BD43,0)) -> 0 | CA43: =+IF($K43="Ongoing",BE43,IF(RIGHT($K43,2)=RIGHT(CA$39,2),SUM($AV43:BE43),0)+IF(RIGHT(CA$39,2)>RIGHT($K43,2),BE43,0)) -> 0 | CC43: =+O43*KeyAssumptionsPriceControl_FO!AC$15 -> 0 | CD43: =+P43*KeyAssumptionsPriceControl_FO!AD$15 -> 0 | CE43: =+Q43*KeyAssumptionsPriceControl_FO!AE$15 -> 0 | CF43: =+R43*KeyAssumptionsPriceControl_FO!AF$15 -> 0.1688263215 | CG43: =+S43*KeyAssumptionsPriceControl_FO!AG$15 -> 0 | CH43: =+T43*KeyAssumptionsPriceControl_FO!AH$15 -> 0 | CI43: =+U43*KeyAssumptionsPriceControl_FO!AI$15 -> 0 | CJ43: =+V43*KeyAssumptionsPriceControl_FO!AJ$15 -> 0 | CK43: =+W43*KeyAssumptionsPriceControl_FO!AK$15 -> 0 | CL43: =+X43*KeyAssumptionsPriceControl_FO!AL$15 -> 0 | CN43: =IF($M43=0,0, IF($M43<=0.5,CC43, IF($J43="straight line", IF((LEFT(CN$39,4)*1)-INT($M43)<LEFT($CN$39,4)*1,0,((OFFSET(CC43,0,-INT($M43+0.5),1,1))/$M43)*(IF($M43-INT($M43)>0.5,$M43-0.5-INT($M43),IF($M43-INT($M43)<=0.5,$M43-0.5-INT($M43)+1,0)))) +CC43/$M43*0.5, IF($J43="Declining Balance",-$CN$38,0)))) -> 0 | CO43: =IF($M43=0,0, IF($M43<=0.5,CD43, IF(AND($J43="straight line",$M43<1.51),(CC43-((CC43/$M43)*0.5))+CD43/$M43*0.5, IF($J43="straight line", IF((LEFT(CO$39,4)*1)-INT($M43)<LEFT($CN$39,4)*1,0,((OFFSET(CD43,0,-INT($M43+0.5),1,1))/$M43)*(IF($M43-INT($M43)>0.5,$M43-0.5-INT($M43),IF($M43-INT($M43)<=0.5,$M43-0.5-INT($M43)+1,0)))) +CD43/$M43*0.5 +SUM(OFFSET(CD43,0,MAX(-INT($M43+(0.5-(10^-12))),-CO$40)+1,1,MIN(INT($M43+(0.5-(10^-12))),CO$40)-1))*1/$M43, IF($J43="Declining Balance",-$CN$38,0))))) -> 0 | CP43: 0 | CQ43: 0.003798592234 | CR43: 0.007597184468 | CS43: 0.007597184468 | CT43: 0.007597184468 | CU43: 0.007597184468 | CV43: 0.007597184468 | CW43: 0.007597184468
C44: ='[3]Capex_FO input'!C44 -> ROB - Decommision the ols PS ( main and relift ) and rising main | D44: ='[3]Capex_FO input'!D44 -> 0 | E44: ='[3]Capex_FO input'!E44 -> Irrigation | F44: ='[3]Capex_FO input'!F44 -> Improvements / Compliance | G44: ='[3]Capex_FO input'!G44 -> Pipelines/network | H44: ='[3]Capex_FO input'!H44 -> Top 10 Major Projects | I44: ='[3]Capex_FO input'!I44 -> 0 | J44: Straight line | K44: ='[3]Capex_FO input'!K44 -> 2027-28 | L44: ='[3]Capex_FO input'!L44 -> 45 | M44: ='[3]Capex_FO input'!M44 -> 22.22222222 | O44: ='[3]Capex_FO input'!O44 -> 0 | P44: ='[3]Capex_FO input'!P44 -> 0 | Q44: ='[3]Capex_FO input'!Q44 -> 0 | R44: ='[3]Capex_FO input'!R44 -> 0.22 | S44: ='[3]Capex_FO input'!S44 -> 0.78 | T44: ='[3]Capex_FO input'!T44 -> 0 | U44: ='[3]Capex_FO input'!U44 -> 0 | V44: ='[3]Capex_FO input'!V44 -> 0 | W44: ='[3]Capex_FO input'!W44 -> 0 | X44: ='[3]Capex_FO input'!X44 -> 0 | Z44: ='[3]Capex_FO input'!Z44 -> 0 | AA44: ='[3]Capex_FO input'!AA44 -> 0 | AB44: ='[3]Capex_FO input'!AB44 -> 0 | AC44: ='[3]Capex_FO input'!AC44 -> 0 | AD44: ='[3]Capex_FO input'!AD44 -> 0 | AE44: ='[3]Capex_FO input'!AE44 -> 0 | AF44: ='[3]Capex_FO input'!AF44 -> 0 | AG44: ='[3]Capex_FO input'!AG44 -> 0 | AH44: ='[3]Capex_FO input'!AH44 -> 0 | AI44: ='[3]Capex_FO input'!AI44 -> 0 | AK44: ='[3]Capex_FO input'!AK44 -> 0 | AL44: ='[3]Capex_FO input'!AL44 -> 0 | AM44: ='[3]Capex_FO input'!AM44 -> 0 | AN44: ='[3]Capex_FO input'!AN44 -> 0 | AO44: ='[3]Capex_FO input'!AO44 -> 0 | AP44: ='[3]Capex_FO input'!AP44 -> 0 | AQ44: ='[3]Capex_FO input'!AQ44 -> 0 | AR44: ='[3]Capex_FO input'!AR44 -> 0 | AS44: ='[3]Capex_FO input'!AS44 -> 0 | AT44: ='[3]Capex_FO input'!AT44 -> 0 | AV44: 0 | AW44: 0 | AX44: 0 | AY44: 0.22 | AZ44: 0.78 | BA44: 0 | BB44: 0 | BC44: 0 | BD44: 0 | BE44: 0 | BG44: 0 | BH44: 0 | BI44: 0 | BJ44: 0 | BK44: 0.01111111111 | BL44: 0.02222222222 | BM44: 0.02222222222 | BN44: 0.02222222222 | BO44: 0.02222222222 | BP44: 0.02222222222 | BR44: =+IF($K44="Ongoing",AV44,IF(RIGHT($K44,2)=RIGHT(BR$39,2),SUM($AV44:AV44),0)+IF(RIGHT(BR$39,2)>RIGHT($K44,2),AV44,0)) -> 0 | BS44: =+IF($K44="Ongoing",AW44,IF(RIGHT($K44,2)=RIGHT(BS$39,2),SUM($AV44:AW44),0)+IF(RIGHT(BS$39,2)>RIGHT($K44,2),AW44,0)) -> 0 | BT44: =+IF($K44="Ongoing",AX44,IF(RIGHT($K44,2)=RIGHT(BT$39,2),SUM($AV44:AX44),0)+IF(RIGHT(BT$39,2)>RIGHT($K44,2),AX44,0)) -> 0 | BU44: =+IF($K44="Ongoing",AY44,IF(RIGHT($K44,2)=RIGHT(BU$39,2),SUM($AV44:AY44),0)+IF(RIGHT(BU$39,2)>RIGHT($K44,2),AY44,0)) -> 0 | BV44: =+IF($K44="Ongoing",AZ44,IF(RIGHT($K44,2)=RIGHT(BV$39,2),SUM($AV44:AZ44),0)+IF(RIGHT(BV$39,2)>RIGHT($K44,2),AZ44,0)) -> 1 | BW44: =+IF($K44="Ongoing",BA44,IF(RIGHT($K44,2)=RIGHT(BW$39,2),SUM($AV44:BA44),0)+IF(RIGHT(BW$39,2)>RIGHT($K44,2),BA44,0)) -> 0 | BX44: =+IF($K44="Ongoing",BB44,IF(RIGHT($K44,2)=RIGHT(BX$39,2),SUM($AV44:BB44),0)+IF(RIGHT(BX$39,2)>RIGHT($K44,2),BB44,0)) -> 0 | BY44: =+IF($K44="Ongoing",BC44,IF(RIGHT($K44,2)=RIGHT(BY$39,2),SUM($AV44:BC44),0)+IF(RIGHT(BY$39,2)>RIGHT($K44,2),BC44,0)) -> 0 | BZ44: =+IF($K44="Ongoing",BD44,IF(RIGHT($K44,2)=RIGHT(BZ$39,2),SUM($AV44:BD44),0)+IF(RIGHT(BZ$39,2)>RIGHT($K44,2),BD44,0)) -> 0 | CA44: =+IF($K44="Ongoing",BE44,IF(RIGHT($K44,2)=RIGHT(CA$39,2),SUM($AV44:BE44),0)+IF(RIGHT(CA$39,2)>RIGHT($K44,2),BE44,0)) -> 0 | CC44: =+O44*KeyAssumptionsPriceControl_FO!AC$15 -> 0 | CD44: =+P44*KeyAssumptionsPriceControl_FO!AD$15 -> 0 | CE44: =+Q44*KeyAssumptionsPriceControl_FO!AE$15 -> 0 | CF44: =+R44*KeyAssumptionsPriceControl_FO!AF$15 -> 0.2476119382 | CG44: =+S44*KeyAssumptionsPriceControl_FO!AG$15 -> 0.904233778 | CH44: =+T44*KeyAssumptionsPriceControl_FO!AH$15 -> 0 | CI44: =+U44*KeyAssumptionsPriceControl_FO!AI$15 -> 0 | CJ44: =+V44*KeyAssumptionsPriceControl_FO!AJ$15 -> 0 | CK44: =+W44*KeyAssumptionsPriceControl_FO!AK$15 -> 0 | CL44: =+X44*KeyAssumptionsPriceControl_FO!AL$15 -> 0 | CN44: 0 | CO44: 0 | CP44: 0 | CQ44: 0.00557126861 | CR44: 0.03148779722 | CS44: 0.05183305723 | CT44: 0.05183305723 | CU44: 0.05183305723 | CV44: 0.05183305723 | CW44: 0.05183305723
C45: ='[3]Capex_FO input'!C45 -> BTS: Customer CRM, Portal Phase 2 | D45: ='[3]Capex_FO input'!D45 -> 0 | E45: ='[3]Capex_FO input'!E45 -> Irrigation | F45: ='[3]Capex_FO input'!F45 -> Improvements / Compliance | G45: ='[3]Capex_FO input'!G45 -> Corporate | H45: ='[3]Capex_FO input'!H45 -> Top 10 Major Projects | I45: ='[3]Capex_FO input'!I45 -> 0 | J45: Straight line | K45: ='[3]Capex_FO input'!K45 -> Ongoing | L45: ='[3]Capex_FO input'!L45 -> 15 | M45: ='[3]Capex_FO input'!M45 -> 2.5 | O45: ='[3]Capex_FO input'!O45 -> 0.1672 | P45: ='[3]Capex_FO input'!P45 -> 0.1672 | Q45: ='[3]Capex_FO input'!Q45 -> 0.1672 | R45: ='[3]Capex_FO input'!R45 -> 0 | S45: ='[3]Capex_FO input'!S45 -> 0 | T45: ='[3]Capex_FO input'!T45 -> 0 | U45: ='[3]Capex_FO input'!U45 -> 0 | V45: ='[3]Capex_FO input'!V45 -> 0 | W45: ='[3]Capex_FO input'!W45 -> 0 | X45: ='[3]Capex_FO input'!X45 -> 0 | Z45: ='[3]Capex_FO input'!Z45 -> 0 | AA45: ='[3]Capex_FO input'!AA45 -> 0 | AB45: ='[3]Capex_FO input'!AB45 -> 0 | AC45: ='[3]Capex_FO input'!AC45 -> 0 | AD45: ='[3]Capex_FO input'!AD45 -> 0 | AE45: ='[3]Capex_FO input'!AE45 -> 0 | AF45: ='[3]Capex_FO input'!AF45 -> 0 | AG45: ='[3]Capex_FO input'!AG45 -> 0 | AH45: ='[3]Capex_FO input'!AH45 -> 0 | AI45: ='[3]Capex_FO input'!AI45 -> 0 | AK45: ='[3]Capex_FO input'!AK45 -> 0 | AL45: ='[3]Capex_FO input'!AL45 -> 0 | AM45: ='[3]Capex_FO input'!AM45 -> 0 | AN45: ='[3]Capex_FO input'!AN45 -> 0 | AO45: ='[3]Capex_FO input'!AO45 -> 0 | AP45: ='[3]Capex_FO input'!AP45 -> 0 | AQ45: ='[3]Capex_FO input'!AQ45 -> 0 | AR45: ='[3]Capex_FO input'!AR45 -> 0 | AS45: ='[3]Capex_FO input'!AS45 -> 0 | AT45: ='[3]Capex_FO input'!AT45 -> 0 | AV45: 0.1672 | AW45: 0.1672 | AX45: 0.1672 | AY45: 0 | AZ45: 0 | BA45: 0 | BB45: 0 | BC45: 0 | BD45: 0 | BE45: 0 | BG45: 0.005573333333 | BH45: 0.01672 | BI45: 0.02786666667 | BJ45: 0.03344 | BK45: 0.03344 | BL45: 0.03344 | BM45: 0.03344 | BN45: 0.03344 | BO45: 0.03344 | BP45: 0.03344 | BR45: =+IF($K45="Ongoing",AV45,IF(RIGHT($K45,2)=RIGHT(BR$39,2),SUM($AV45:AV45),0)+IF(RIGHT(BR$39,2)>RIGHT($K45,2),AV45,0)) -> 0.1672 | BS45: =+IF($K45="Ongoing",AW45,IF(RIGHT($K45,2)=RIGHT(BS$39,2),SUM($AV45:AW45),0)+IF(RIGHT(BS$39,2)>RIGHT($K45,2),AW45,0)) -> 0.1672 | BT45: =+IF($K45="Ongoing",AX45,IF(RIGHT($K45,2)=RIGHT(BT$39,2),SUM($AV45:AX45),0)+IF(RIGHT(BT$39,2)>RIGHT($K45,2),AX45,0)) -> 0.1672 | BU45: =+IF($K45="Ongoing",AY45,IF(RIGHT($K45,2)=RIGHT(BU$39,2),SUM($AV45:AY45),0)+IF(RIGHT(BU$39,2)>RIGHT($K45,2),AY45,0)) -> 0 | BV45: =+IF($K45="Ongoing",AZ45,IF(RIGHT($K45,2)=RIGHT(BV$39,2),SUM($AV45:AZ45),0)+IF(RIGHT(BV$39,2)>RIGHT($K45,2),AZ45,0)) -> 0 | BW45: =+IF($K45="Ongoing",BA45,IF(RIGHT($K45,2)=RIGHT(BW$39,2),SUM($AV45:BA45),0)+IF(RIGHT(BW$39,2)>RIGHT($K45,2),BA45,0)) -> 0 | BX45: =+IF($K45="Ongoing",BB45,IF(RIGHT($K45,2)=RIGHT(BX$39,2),SUM($AV45:BB45),0)+IF(RIGHT(BX$39,2)>RIGHT($K45,2),BB45,0)) -> 0 | BY45: =+IF($K45="Ongoing",BC45,IF(RIGHT($K45,2)=RIGHT(BY$39,2),SUM($AV45:BC45),0)+IF(RIGHT(BY$39,2)>RIGHT($K45,2),BC45,0)) -> 0 | BZ45: =+IF($K45="Ongoing",BD45,IF(RIGHT($K45,2)=RIGHT(BZ$39,2),SUM($AV45:BD45),0)+IF(RIGHT(BZ$39,2)>RIGHT($K45,2),BD45,0)) -> 0 | CA45: =+IF($K45="Ongoing",BE45,IF(RIGHT($K45,2)=RIGHT(CA$39,2),SUM($AV45:BE45),0)+IF(RIGHT(CA$39,2)>RIGHT($K45,2),BE45,0)) -> 0 | CC45: =+O45*KeyAssumptionsPriceControl_FO!AC$15 -> 0.172216 | CD45: =+P45*KeyAssumptionsPriceControl_FO!AD$15 -> 0.17738248 | CE45: =+Q45*KeyAssumptionsPriceControl_FO!AE$15 -> 0.1827039544 | CF45: =+R45*KeyAssumptionsPriceControl_FO!AF$15 -> 0 | CG45: =+S45*KeyAssumptionsPriceControl_FO!AG$15 -> 0 | CH45: =+T45*KeyAssumptionsPriceControl_FO!AH$15 -> 0 | CI45: =+U45*KeyAssumptionsPriceControl_FO!AI$15 -> 0 | CJ45: =+V45*KeyAssumptionsPriceControl_FO!AJ$15 -> 0 | CK45: =+W45*KeyAssumptionsPriceControl_FO!AK$15 -> 0 | CL45: =+X45*KeyAssumptionsPriceControl_FO!AL$15 -> 0 | CN45: 0.0344432 | CO45: 0.104362896 | CP45: 0.1074937829 | CQ45: 0.1419679818 | CR45: 0.070952992 | CS45: 0.07308158176 | CT45: 0 | CU45: 0 | CV45: 0 | CW45: 0
C46: ='[3]Capex_FO input'!C46 -> BTS: INFOR Asset Management | D46: ='[3]Capex_FO input'!D46 -> 0 | E46: ='[3]Capex_FO input'!E46 -> Irrigation | F46: ='[3]Capex_FO input'!F46 -> Improvements / Compliance | G46: ='[3]Capex_FO input'!G46 -> Corporate | H46: ='[3]Capex_FO input'!H46 -> Top 10 Major Projects | I46: ='[3]Capex_FO input'!I46 -> 0 | J46: Straight line | K46: ='[3]Capex_FO input'!K46 -> Ongoing | L46: ='[3]Capex_FO input'!L46 -> 15 | M46: ='[3]Capex_FO input'!M46 -> 2.5 | O46: ='[3]Capex_FO input'!O46 -> 0.15312 | P46: ='[3]Capex_FO input'!P46 -> 0.15312 | Q46: ='[3]Capex_FO input'!Q46 -> 0.15312 | R46: ='[3]Capex_FO input'!R46 -> 0.15312 | S46: ='[3]Capex_FO input'!S46 -> 0.15312 | T46: ='[3]Capex_FO input'!T46 -> 0 | U46: ='[3]Capex_FO input'!U46 -> 0 | V46: ='[3]Capex_FO input'!V46 -> 0 | W46: ='[3]Capex_FO input'!W46 -> 0 | X46: ='[3]Capex_FO input'!X46 -> 0 | Z46: ='[3]Capex_FO input'!Z46 -> 0 | AA46: ='[3]Capex_FO input'!AA46 -> 0 | AB46: ='[3]Capex_FO input'!AB46 -> 0 | AC46: ='[3]Capex_FO input'!AC46 -> 0 | AD46: ='[3]Capex_FO input'!AD46 -> 0 | AE46: ='[3]Capex_FO input'!AE46 -> 0 | AF46: ='[3]Capex_FO input'!AF46 -> 0 | AG46: ='[3]Capex_FO input'!AG46 -> 0 | AH46: ='[3]Capex_FO input'!AH46 -> 0 | AI46: ='[3]Capex_FO input'!AI46 -> 0 | AK46: ='[3]Capex_FO input'!AK46 -> 0 | AL46: ='[3]Capex_FO input'!AL46 -> 0 | AM46: ='[3]Capex_FO input'!AM46 -> 0 | AN46: ='[3]Capex_FO input'!AN46 -> 0 | AO46: ='[3]Capex_FO input'!AO46 -> 0 | AP46: ='[3]Capex_FO input'!AP46 -> 0 | AQ46: ='[3]Capex_FO input'!AQ46 -> 0 | AR46: ='[3]Capex_FO input'!AR46 -> 0 | AS46: ='[3]Capex_FO input'!AS46 -> 0 | AT46: ='[3]Capex_FO input'!AT46 -> 0 | AV46: 0.15312 | AW46: 0.15312 | AX46: 0.15312 | AY46: 0.15312 | AZ46: 0.15312 | BA46: 0 | BB46: 0 | BC46: 0 | BD46: 0 | BE46: 0 | BG46: 0.005104 | BH46: 0.015312 | BI46: 0.02552 | BJ46: 0.035728 | BK46: 0.045936 | BL46: 0.05104 | BM46: 0.05104 | BN46: 0.05104 | BO46: 0.05104 | BP46: 0.05104 | BR46: =+IF($K46="Ongoing",AV46,IF(RIGHT($K46,2)=RIGHT(BR$39,2),SUM($AV46:AV46),0)+IF(RIGHT(BR$39,2)>RIGHT($K46,2),AV46,0)) -> 0.15312 | BS46: =+IF($K46="Ongoing",AW46,IF(RIGHT($K46,2)=RIGHT(BS$39,2),SUM($AV46:AW46),0)+IF(RIGHT(BS$39,2)>RIGHT($K46,2),AW46,0)) -> 0.15312 | BT46: =+IF($K46="Ongoing",AX46,IF(RIGHT($K46,2)=RIGHT(BT$39,2),SUM($AV46:AX46),0)+IF(RIGHT(BT$39,2)>RIGHT($K46,2),AX46,0)) -> 0.15312 | BU46: =+IF($K46="Ongoing",AY46,IF(RIGHT($K46,2)=RIGHT(BU$39,2),SUM($AV46:AY46),0)+IF(RIGHT(BU$39,2)>RIGHT($K46,2),AY46,0)) -> 0.15312 | BV46: =+IF($K46="Ongoing",AZ46,IF(RIGHT($K46,2)=RIGHT(BV$39,2),SUM($AV46:AZ46),0)+IF(RIGHT(BV$39,2)>RIGHT($K46,2),AZ46,0)) -> 0.15312 | BW46: =+IF($K46="Ongoing",BA46,IF(RIGHT($K46,2)=RIGHT(BW$39,2),SUM($AV46:BA46),0)+IF(RIGHT(BW$39,2)>RIGHT($K46,2),BA46,0)) -> 0 | BX46: =+IF($K46="Ongoing",BB46,IF(RIGHT($K46,2)=RIGHT(BX$39,2),SUM($AV46:BB46),0)+IF(RIGHT(BX$39,2)>RIGHT($K46,2),BB46,0)) -> 0 | BY46: =+IF($K46="Ongoing",BC46,IF(RIGHT($K46,2)=RIGHT(BY$39,2),SUM($AV46:BC46),0)+IF(RIGHT(BY$39,2)>RIGHT($K46,2),BC46,0)) -> 0 | BZ46: =+IF($K46="Ongoing",BD46,IF(RIGHT($K46,2)=RIGHT(BZ$39,2),SUM($AV46:BD46),0)+IF(RIGHT(BZ$39,2)>RIGHT($K46,2),BD46,0)) -> 0 | CA46: =+IF($K46="Ongoing",BE46,IF(RIGHT($K46,2)=RIGHT(CA$39,2),SUM($AV46:BE46),0)+IF(RIGHT(CA$39,2)>RIGHT($K46,2),BE46,0)) -> 0 | CC46: =+O46*KeyAssumptionsPriceControl_FO!AC$15 -> 0.1577136 | CD46: =+P46*KeyAssumptionsPriceControl_FO!AD$15 -> 0.162445008 | CE46: =+Q46*KeyAssumptionsPriceControl_FO!AE$15 -> 0.1673183582 | CF46: =+R46*KeyAssumptionsPriceControl_FO!AF$15 -> 0.172337909 | CG46: =+S46*KeyAssumptionsPriceControl_FO!AG$15 -> 0.1775080463 | CH46: =+T46*KeyAssumptionsPriceControl_FO!AH$15 -> 0 | CI46: =+U46*KeyAssumptionsPriceControl_FO!AI$15 -> 0 | CJ46: =+V46*KeyAssumptionsPriceControl_FO!AJ$15 -> 0 | CK46: =+W46*KeyAssumptionsPriceControl_FO!AK$15 -> 0 | CL46: =+X46*KeyAssumptionsPriceControl_FO!AL$15 -> 0 | CN46: 0.03154272 | CO46: 0.0955744416 | CP46: 0.09844167485 | CQ46: 0.1644803651 | CR46: 0.169414776 | CS46: 0.1379305618 | CT46: 0.06893516359 | CU46: 0.0710032185 | CV46: 0 | CW46: 0
C47: ='[3]Capex_FO input'!C47 -> 0 | D47: ='[3]Capex_FO input'!D47 -> 0 | E47: ='[3]Capex_FO input'!E47 -> 0 | F47: ='[3]Capex_FO input'!F47 -> 0 | G47: ='[3]Capex_FO input'!G47 -> 0 | H47: ='[3]Capex_FO input'!H47 -> Top 10 Major Projects | I47: ='[3]Capex_FO input'!I47 -> 0 | J47: Straight line | K47: ='[3]Capex_FO input'!K47 -> 0 | L47: ='[3]Capex_FO input'!L47 -> 0 | M47: ='[3]Capex_FO input'!M47 -> 0 | O47: ='[3]Capex_FO input'!O47 -> 0 | P47: ='[3]Capex_FO input'!P47 -> 0 | Q47: ='[3]Capex_FO input'!Q47 -> 0 | R47: ='[3]Capex_FO input'!R47 -> 0 | S47: ='[3]Capex_FO input'!S47 -> 0 | T47: ='[3]Capex_FO input'!T47 -> 0 | U47: ='[3]Capex_FO input'!U47 -> 0 | V47: ='[3]Capex_FO input'!V47 -> 0 | W47: ='[3]Capex_FO input'!W47 -> 0 | X47: ='[3]Capex_FO input'!X47 -> 0 | Z47: ='[3]Capex_FO input'!Z47 -> 0 | AA47: ='[3]Capex_FO input'!AA47 -> 0 | AB47: ='[3]Capex_FO input'!AB47 -> 0 | AC47: ='[3]Capex_FO input'!AC47 -> 0 | AD47: ='[3]Capex_FO input'!AD47 -> 0 | AE47: ='[3]Capex_FO input'!AE47 -> 0 | AF47: ='[3]Capex_FO input'!AF47 -> 0 | AG47: ='[3]Capex_FO input'!AG47 -> 0 | AH47: ='[3]Capex_FO input'!AH47 -> 0 | AI47: ='[3]Capex_FO input'!AI47 -> 0 | AK47: ='[3]Capex_FO input'!AK47 -> 0 | AL47: ='[3]Capex_FO input'!AL47 -> 0 | AM47: ='[3]Capex_FO input'!AM47 -> 0 | AN47: ='[3]Capex_FO input'!AN47 -> 0 | AO47: ='[3]Capex_FO input'!AO47 -> 0 | AP47: ='[3]Capex_FO input'!AP47 -> 0 | AQ47: ='[3]Capex_FO input'!AQ47 -> 0 | AR47: ='[3]Capex_FO input'!AR47 -> 0 | AS47: ='[3]Capex_FO input'!AS47 -> 0 | AT47: ='[3]Capex_FO input'!AT47 -> 0 | AV47: 0 | AW47: 0 | AX47: 0 | AY47: 0 | AZ47: 0 | BA47: 0 | BB47: 0 | BC47: 0 | BD47: 0 | BE47: 0 | BG47: 0 | BH47: 0 | BI47: 0 | BJ47: 0 | BK47: 0 | BL47: 0 | BM47: 0 | BN47: 0 | BO47: 0 | BP47: 0 | BR47: =+IF($K47="Ongoing",AV47,IF(RIGHT($K47,2)=RIGHT(BR$39,2),SUM($AV47:AV47),0)+IF(RIGHT(BR$39,2)>RIGHT($K47,2),AV47,0)) -> 0 | BS47: =+IF($K47="Ongoing",AW47,IF(RIGHT($K47,2)=RIGHT(BS$39,2),SUM($AV47:AW47),0)+IF(RIGHT(BS$39,2)>RIGHT($K47,2),AW47,0)) -> 0 | BT47: =+IF($K47="Ongoing",AX47,IF(RIGHT($K47,2)=RIGHT(BT$39,2),SUM($AV47:AX47),0)+IF(RIGHT(BT$39,2)>RIGHT($K47,2),AX47,0)) -> 0 | BU47: =+IF($K47="Ongoing",AY47,IF(RIGHT($K47,2)=RIGHT(BU$39,2),SUM($AV47:AY47),0)+IF(RIGHT(BU$39,2)>RIGHT($K47,2),AY47,0)) -> 0 | BV47: =+IF($K47="Ongoing",AZ47,IF(RIGHT($K47,2)=RIGHT(BV$39,2),SUM($AV47:AZ47),0)+IF(RIGHT(BV$39,2)>RIGHT($K47,2),AZ47,0)) -> 0 | BW47: =+IF($K47="Ongoing",BA47,IF(RIGHT($K47,2)=RIGHT(BW$39,2),SUM($AV47:BA47),0)+IF(RIGHT(BW$39,2)>RIGHT($K47,2),BA47,0)) -> 0 | BX47: =+IF($K47="Ongoing",BB47,IF(RIGHT($K47,2)=RIGHT(BX$39,2),SUM($AV47:BB47),0)+IF(RIGHT(BX$39,2)>RIGHT($K47,2),BB47,0)) -> 0 | BY47: =+IF($K47="Ongoing",BC47,IF(RIGHT($K47,2)=RIGHT(BY$39,2),SUM($AV47:BC47),0)+IF(RIGHT(BY$39,2)>RIGHT($K47,2),BC47,0)) -> 0 | BZ47: =+IF($K47="Ongoing",BD47,IF(RIGHT($K47,2)=RIGHT(BZ$39,2),SUM($AV47:BD47),0)+IF(RIGHT(BZ$39,2)>RIGHT($K47,2),BD47,0)) -> 0 | CA47: =+IF($K47="Ongoing",BE47,IF(RIGHT($K47,2)=RIGHT(CA$39,2),SUM($AV47:BE47),0)+IF(RIGHT(CA$39,2)>RIGHT($K47,2),BE47,0)) -> 0 | CC47: =+O47*KeyAssumptionsPriceControl_FO!AC$15 -> 0 | CD47: =+P47*KeyAssumptionsPriceControl_FO!AD$15 -> 0 | CE47: =+Q47*KeyAssumptionsPriceControl_FO!AE$15 -> 0 | CF47: =+R47*KeyAssumptionsPriceControl_FO!AF$15 -> 0 | CG47: =+S47*KeyAssumptionsPriceControl_FO!AG$15 -> 0 | CH47: =+T47*KeyAssumptionsPriceControl_FO!AH$15 -> 0 | CI47: =+U47*KeyAssumptionsPriceControl_FO!AI$15 -> 0 | CJ47: =+V47*KeyAssumptionsPriceControl_FO!AJ$15 -> 0 | CK47: =+W47*KeyAssumptionsPriceControl_FO!AK$15 -> 0 | CL47: =+X47*KeyAssumptionsPriceControl_FO!AL$15 -> 0 | CN47: 0 | CO47: 0 | CP47: 0 | CQ47: 0 | CR47: 0 | CS47: 0 | CT47: 0 | CU47: 0 | CV47: 0 | CW47: 0
C48: ='[3]Capex_FO input'!C48 -> 0 | D48: ='[3]Capex_FO input'!D48 -> 0 | E48: ='[3]Capex_FO input'!E48 -> 0 | F48: ='[3]Capex_FO input'!F48 -> 0 | G48: ='[3]Capex_FO input'!G48 -> 0 | H48: ='[3]Capex_FO input'!H48 -> Top 10 Major Projects | I48: ='[3]Capex_FO input'!I48 -> 0 | J48: Straight line | K48: ='[3]Capex_FO input'!K48 -> 0 | L48: ='[3]Capex_FO input'!L48 -> 0 | M48: ='[3]Capex_FO input'!M48 -> 0 | O48: ='[3]Capex_FO input'!O48 -> 0 | P48: ='[3]Capex_FO input'!P48 -> 0 | Q48: ='[3]Capex_FO input'!Q48 -> 0 | R48: ='[3]Capex_FO input'!R48 -> 0 | S48: ='[3]Capex_FO input'!S48 -> 0 | T48: ='[3]Capex_FO input'!T48 -> 0 | U48: ='[3]Capex_FO input'!U48 -> 0 | V48: ='[3]Capex_FO input'!V48 -> 0 | W48: ='[3]Capex_FO input'!W48 -> 0 | X48: ='[3]Capex_FO input'!X48 -> 0 | Z48: ='[3]Capex_FO input'!Z48 -> 0 | AA48: ='[3]Capex_FO input'!AA48 -> 0 | AB48: ='[3]Capex_FO input'!AB48 -> 0 | AC48: ='[3]Capex_FO input'!AC48 -> 0 | AD48: ='[3]Capex_FO input'!AD48 -> 0 | AE48: ='[3]Capex_FO input'!AE48 -> 0 | AF48: ='[3]Capex_FO input'!AF48 -> 0 | AG48: ='[3]Capex_FO input'!AG48 -> 0 | AH48: ='[3]Capex_FO input'!AH48 -> 0 | AI48: ='[3]Capex_FO input'!AI48 -> 0 | AK48: ='[3]Capex_FO input'!AK48 -> 0 | AL48: ='[3]Capex_FO input'!AL48 -> 0 | AM48: ='[3]Capex_FO input'!AM48 -> 0 | AN48: ='[3]Capex_FO input'!AN48 -> 0 | AO48: ='[3]Capex_FO input'!AO48 -> 0 | AP48: ='[3]Capex_FO input'!AP48 -> 0 | AQ48: ='[3]Capex_FO input'!AQ48 -> 0 | AR48: ='[3]Capex_FO input'!AR48 -> 0 | AS48: ='[3]Capex_FO input'!AS48 -> 0 | AT48: ='[3]Capex_FO input'!AT48 -> 0 | AV48: 0 | AW48: 0 | AX48: 0 | AY48: 0 | AZ48: 0 | BA48: 0 | BB48: 0 | BC48: 0 | BD48: 0 | BE48: 0 | BG48: 0 | BH48: 0 | BI48: 0 | BJ48: 0 | BK48: 0 | BL48: 0 | BM48: 0 | BN48: 0 | BO48: 0 | BP48: 0 | BR48: =+IF($K48="Ongoing",AV48,IF(RIGHT($K48,2)=RIGHT(BR$39,2),SUM($AV48:AV48),0)+IF(RIGHT(BR$39,2)>RIGHT($K48,2),AV48,0)) -> 0 | BS48: =+IF($K48="Ongoing",AW48,IF(RIGHT($K48,2)=RIGHT(BS$39,2),SUM($AV48:AW48),0)+IF(RIGHT(BS$39,2)>RIGHT($K48,2),AW48,0)) -> 0 | BT48: =+IF($K48="Ongoing",AX48,IF(RIGHT($K48,2)=RIGHT(BT$39,2),SUM($AV48:AX48),0)+IF(RIGHT(BT$39,2)>RIGHT($K48,2),AX48,0)) -> 0 | BU48: =+IF($K48="Ongoing",AY48,IF(RIGHT($K48,2)=RIGHT(BU$39,2),SUM($AV48:AY48),0)+IF(RIGHT(BU$39,2)>RIGHT($K48,2),AY48,0)) -> 0 | BV48: =+IF($K48="Ongoing",AZ48,IF(RIGHT($K48,2)=RIGHT(BV$39,2),SUM($AV48:AZ48),0)+IF(RIGHT(BV$39,2)>RIGHT($K48,2),AZ48,0)) -> 0 | BW48: =+IF($K48="Ongoing",BA48,IF(RIGHT($K48,2)=RIGHT(BW$39,2),SUM($AV48:BA48),0)+IF(RIGHT(BW$39,2)>RIGHT($K48,2),BA48,0)) -> 0 | BX48: =+IF($K48="Ongoing",BB48,IF(RIGHT($K48,2)=RIGHT(BX$39,2),SUM($AV48:BB48),0)+IF(RIGHT(BX$39,2)>RIGHT($K48,2),BB48,0)) -> 0 | BY48: =+IF($K48="Ongoing",BC48,IF(RIGHT($K48,2)=RIGHT(BY$39,2),SUM($AV48:BC48),0)+IF(RIGHT(BY$39,2)>RIGHT($K48,2),BC48,0)) -> 0 | BZ48: =+IF($K48="Ongoing",BD48,IF(RIGHT($K48,2)=RIGHT(BZ$39,2),SUM($AV48:BD48),0)+IF(RIGHT(BZ$39,2)>RIGHT($K48,2),BD48,0)) -> 0 | CA48: =+IF($K48="Ongoing",BE48,IF(RIGHT($K48,2)=RIGHT(CA$39,2),SUM($AV48:BE48),0)+IF(RIGHT(CA$39,2)>RIGHT($K48,2),BE48,0)) -> 0 | CC48: =+O48*KeyAssumptionsPriceControl_FO!AC$15 -> 0 | CD48: =+P48*KeyAssumptionsPriceControl_FO!AD$15 -> 0 | CE48: =+Q48*KeyAssumptionsPriceControl_FO!AE$15 -> 0 | CF48: =+R48*KeyAssumptionsPriceControl_FO!AF$15 -> 0 | CG48: =+S48*KeyAssumptionsPriceControl_FO!AG$15 -> 0 | CH48: =+T48*KeyAssumptionsPriceControl_FO!AH$15 -> 0 | CI48: =+U48*KeyAssumptionsPriceControl_FO!AI$15 -> 0 | CJ48: =+V48*KeyAssumptionsPriceControl_FO!AJ$15 -> 0 | CK48: =+W48*KeyAssumptionsPriceControl_FO!AK$15 -> 0 | CL48: =+X48*KeyAssumptionsPriceControl_FO!AL$15 -> 0 | CN48: 0 | CO48: 0 | CP48: 0 | CQ48: 0 | CR48: 0 | CS48: 0 | CT48: 0 | CU48: 0 | CV48: 0 | CW48: 0
C49: ='[3]Capex_FO input'!C49 -> 0 | D49: ='[3]Capex_FO input'!D49 -> 0 | E49: ='[3]Capex_FO input'!E49 -> 0 | F49: ='[3]Capex_FO input'!F49 -> 0 | G49: ='[3]Capex_FO input'!G49 -> 0 | H49: ='[3]Capex_FO input'!H54 -> 0 | I49: ='[3]Capex_FO input'!I54 -> 0 | J49: Straight line | K49: ='[3]Capex_FO input'!K54 -> 0 | L49: ='[3]Capex_FO input'!L54 -> 0 | M49: ='[3]Capex_FO input'!M54 -> 0 | O49: ='[3]Capex_FO input'!O54 -> 0 | P49: ='[3]Capex_FO input'!P54 -> 0 | Q49: ='[3]Capex_FO input'!Q54 -> 0 | R49: ='[3]Capex_FO input'!R54 -> 0 | S49: ='[3]Capex_FO input'!S54 -> 0 | T49: ='[3]Capex_FO input'!T54 -> 0 | U49: ='[3]Capex_FO input'!U54 -> 0 | V49: ='[3]Capex_FO input'!V54 -> 0 | W49: ='[3]Capex_FO input'!W54 -> 0 | X49: ='[3]Capex_FO input'!X54 -> 0 | Z49: ='[3]Capex_FO input'!Z49 -> 0 | AA49: ='[3]Capex_FO input'!AA49 -> 0 | AB49: ='[3]Capex_FO input'!AB49 -> 0 | AC49: ='[3]Capex_FO input'!AC49 -> 0 | AD49: ='[3]Capex_FO input'!AD49 -> 0 | AE49: ='[3]Capex_FO input'!AE49 -> 0 | AF49: ='[3]Capex_FO input'!AF49 -> 0 | AG49: ='[3]Capex_FO input'!AG49 -> 0 | AH49: ='[3]Capex_FO input'!AH49 -> 0 | AI49: ='[3]Capex_FO input'!AI49 -> 0 | AK49: ='[3]Capex_FO input'!AK49 -> 0 | AL49: ='[3]Capex_FO input'!AL49 -> 0 | AM49: ='[3]Capex_FO input'!AM49 -> 0 | AN49: ='[3]Capex_FO input'!AN49 -> 0 | AO49: ='[3]Capex_FO input'!AO49 -> 0 | AP49: ='[3]Capex_FO input'!AP49 -> 0 | AQ49: ='[3]Capex_FO input'!AQ49 -> 0 | AR49: ='[3]Capex_FO input'!AR49 -> 0 | AS49: ='[3]Capex_FO input'!AS49 -> 0 | AT49: ='[3]Capex_FO input'!AT49 -> 0 | AV49: 0 | AW49: 0 | AX49: 0 | AY49: 0 | AZ49: 0 | BA49: 0 | BB49: 0 | BC49: 0 | BD49: 0 | BE49: 0 | BG49: 0 | BH49: 0 | BI49: 0 | BJ49: 0 | BK49: 0 | BL49: 0 | BM49: 0 | BN49: 0 | BO49: 0 | BP49: 0 | BR49: =+IF($K49="Ongoing",AV49,IF(RIGHT($K49,2)=RIGHT(BR$39,2),SUM($AV49:AV49),0)+IF(RIGHT(BR$39,2)>RIGHT($K49,2),AV49,0)) -> 0 | BS49: =+IF($K49="Ongoing",AW49,IF(RIGHT($K49,2)=RIGHT(BS$39,2),SUM($AV49:AW49),0)+IF(RIGHT(BS$39,2)>RIGHT($K49,2),AW49,0)) -> 0 | BT49: =+IF($K49="Ongoing",AX49,IF(RIGHT($K49,2)=RIGHT(BT$39,2),SUM($AV49:AX49),0)+IF(RIGHT(BT$39,2)>RIGHT($K49,2),AX49,0)) -> 0 | BU49: =+IF($K49="Ongoing",AY49,IF(RIGHT($K49,2)=RIGHT(BU$39,2),SUM($AV49:AY49),0)+IF(RIGHT(BU$39,2)>RIGHT($K49,2),AY49,0)) -> 0 | BV49: =+IF($K49="Ongoing",AZ49,IF(RIGHT($K49,2)=RIGHT(BV$39,2),SUM($AV49:AZ49),0)+IF(RIGHT(BV$39,2)>RIGHT($K49,2),AZ49,0)) -> 0 | BW49: =+IF($K49="Ongoing",BA49,IF(RIGHT($K49,2)=RIGHT(BW$39,2),SUM($AV49:BA49),0)+IF(RIGHT(BW$39,2)>RIGHT($K49,2),BA49,0)) -> 0 | BX49: =+IF($K49="Ongoing",BB49,IF(RIGHT($K49,2)=RIGHT(BX$39,2),SUM($AV49:BB49),0)+IF(RIGHT(BX$39,2)>RIGHT($K49,2),BB49,0)) -> 0 | BY49: =+IF($K49="Ongoing",BC49,IF(RIGHT($K49,2)=RIGHT(BY$39,2),SUM($AV49:BC49),0)+IF(RIGHT(BY$39,2)>RIGHT($K49,2),BC49,0)) -> 0 | BZ49: =+IF($K49="Ongoing",BD49,IF(RIGHT($K49,2)=RIGHT(BZ$39,2),SUM($AV49:BD49),0)+IF(RIGHT(BZ$39,2)>RIGHT($K49,2),BD49,0)) -> 0 | CA49: =+IF($K49="Ongoing",BE49,IF(RIGHT($K49,2)=RIGHT(CA$39,2),SUM($AV49:BE49),0)+IF(RIGHT(CA$39,2)>RIGHT($K49,2),BE49,0)) -> 0 | CC49: =+O49*KeyAssumptionsPriceControl_FO!AC$15 -> 0 | CD49: =+P49*KeyAssumptionsPriceControl_FO!AD$15 -> 0 | CE49: =+Q49*KeyAssumptionsPriceControl_FO!AE$15 -> 0 | CF49: =+R49*KeyAssumptionsPriceControl_FO!AF$15 -> 0 | CG49: =+S49*KeyAssumptionsPriceControl_FO!AG$15 -> 0 | CH49: =+T49*KeyAssumptionsPriceControl_FO!AH$15 -> 0 | CI49: =+U49*KeyAssumptionsPriceControl_FO!AI$15 -> 0 | CJ49: =+V49*KeyAssumptionsPriceControl_FO!AJ$15 -> 0 | CK49: =+W49*KeyAssumptionsPriceControl_FO!AK$15 -> 0 | CL49: =+X49*KeyAssumptionsPriceControl_FO!AL$15 -> 0 | CN49: 0 | CO49: 0 | CP49: 0 | CQ49: 0 | CR49: 0 | CS49: 0 | CT49: 0 | CU49: 0 | CV49: 0 | CW49: 0
C50: ='[3]Capex_FO input'!C50 -> 0 | D50: ='[3]Capex_FO input'!D50 -> 0 | E50: ='[3]Capex_FO input'!E50 -> 0 | F50: ='[3]Capex_FO input'!F50 -> 0 | G50: ='[3]Capex_FO input'!G50 -> 0 | H50: ='[3]Capex_FO input'!H55 -> 0 | I50: ='[3]Capex_FO input'!I55 -> 0 | J50: Straight line | K50: ='[3]Capex_FO input'!K55 -> 0 | L50: ='[3]Capex_FO input'!L55 -> 0 | M50: ='[3]Capex_FO input'!M55 -> 0 | O50: ='[3]Capex_FO input'!O55 -> 0 | P50: ='[3]Capex_FO input'!P55 -> 0 | Q50: ='[3]Capex_FO input'!Q55 -> 0 | R50: ='[3]Capex_FO input'!R55 -> 0 | S50: ='[3]Capex_FO input'!S55 -> 0 | T50: ='[3]Capex_FO input'!T55 -> 0 | U50: ='[3]Capex_FO input'!U55 -> 0 | V50: ='[3]Capex_FO input'!V55 -> 0 | W50: ='[3]Capex_FO input'!W55 -> 0 | X50: ='[3]Capex_FO input'!X55 -> 0 | Z50: ='[3]Capex_FO input'!Z50 -> 0 | AA50: ='[3]Capex_FO input'!AA50 -> 0 | AB50: ='[3]Capex_FO input'!AB50 -> 0 | AC50: ='[3]Capex_FO input'!AC50 -> 0 | AD50: ='[3]Capex_FO input'!AD50 -> 0 | AE50: ='[3]Capex_FO input'!AE50 -> 0 | AF50: ='[3]Capex_FO input'!AF50 -> 0 | AG50: ='[3]Capex_FO input'!AG50 -> 0 | AH50: ='[3]Capex_FO input'!AH50 -> 0 | AI50: ='[3]Capex_FO input'!AI50 -> 0 | AK50: ='[3]Capex_FO input'!AK50 -> 0 | AL50: ='[3]Capex_FO input'!AL50 -> 0 | AM50: ='[3]Capex_FO input'!AM50 -> 0 | AN50: ='[3]Capex_FO input'!AN50 -> 0 | AO50: ='[3]Capex_FO input'!AO50 -> 0 | AP50: ='[3]Capex_FO input'!AP50 -> 0 | AQ50: ='[3]Capex_FO input'!AQ50 -> 0 | AR50: ='[3]Capex_FO input'!AR50 -> 0 | AS50: ='[3]Capex_FO input'!AS50 -> 0 | AT50: ='[3]Capex_FO input'!AT50 -> 0 | AV50: 0 | AW50: 0 | AX50: 0 | AY50: 0 | AZ50: 0 | BA50: 0 | BB50: 0 | BC50: 0 | BD50: 0 | BE50: 0 | BG50: 0 | BH50: 0 | BI50: 0 | BJ50: 0 | BK50: 0 | BL50: 0 | BM50: 0 | BN50: 0 | BO50: 0 | BP50: 0 | BR50: =+IF($K50="Ongoing",AV50,IF(RIGHT($K50,2)=RIGHT(BR$39,2),SUM($AV50:AV50),0)+IF(RIGHT(BR$39,2)>RIGHT($K50,2),AV50,0)) -> 0 | BS50: =+IF($K50="Ongoing",AW50,IF(RIGHT($K50,2)=RIGHT(BS$39,2),SUM($AV50:AW50),0)+IF(RIGHT(BS$39,2)>RIGHT($K50,2),AW50,0)) -> 0 | BT50: =+IF($K50="Ongoing",AX50,IF(RIGHT($K50,2)=RIGHT(BT$39,2),SUM($AV50:AX50),0)+IF(RIGHT(BT$39,2)>RIGHT($K50,2),AX50,0)) -> 0 | BU50: =+IF($K50="Ongoing",AY50,IF(RIGHT($K50,2)=RIGHT(BU$39,2),SUM($AV50:AY50),0)+IF(RIGHT(BU$39,2)>RIGHT($K50,2),AY50,0)) -> 0 | BV50: =+IF($K50="Ongoing",AZ50,IF(RIGHT($K50,2)=RIGHT(BV$39,2),SUM($AV50:AZ50),0)+IF(RIGHT(BV$39,2)>RIGHT($K50,2),AZ50,0)) -> 0 | BW50: =+IF($K50="Ongoing",BA50,IF(RIGHT($K50,2)=RIGHT(BW$39,2),SUM($AV50:BA50),0)+IF(RIGHT(BW$39,2)>RIGHT($K50,2),BA50,0)) -> 0 | BX50: =+IF($K50="Ongoing",BB50,IF(RIGHT($K50,2)=RIGHT(BX$39,2),SUM($AV50:BB50),0)+IF(RIGHT(BX$39,2)>RIGHT($K50,2),BB50,0)) -> 0 | BY50: =+IF($K50="Ongoing",BC50,IF(RIGHT($K50,2)=RIGHT(BY$39,2),SUM($AV50:BC50),0)+IF(RIGHT(BY$39,2)>RIGHT($K50,2),BC50,0)) -> 0 | BZ50: =+IF($K50="Ongoing",BD50,IF(RIGHT($K50,2)=RIGHT(BZ$39,2),SUM($AV50:BD50),0)+IF(RIGHT(BZ$39,2)>RIGHT($K50,2),BD50,0)) -> 0 | CA50: =+IF($K50="Ongoing",BE50,IF(RIGHT($K50,2)=RIGHT(CA$39,2),SUM($AV50:BE50),0)+IF(RIGHT(CA$39,2)>RIGHT($K50,2),BE50,0)) -> 0 | CC50: =+O50*KeyAssumptionsPriceControl_FO!AC$15 -> 0 | CD50: =+P50*KeyAssumptionsPriceControl_FO!AD$15 -> 0 | CE50: =+Q50*KeyAssumptionsPriceControl_FO!AE$15 -> 0 | CF50: =+R50*KeyAssumptionsPriceControl_FO!AF$15 -> 0 | CG50: =+S50*KeyAssumptionsPriceControl_FO!AG$15 -> 0 | CH50: =+T50*KeyAssumptionsPriceControl_FO!AH$15 -> 0 | CI50: =+U50*KeyAssumptionsPriceControl_FO!AI$15 -> 0 | CJ50: =+V50*KeyAssumptionsPriceControl_FO!AJ$15 -> 0 | CK50: =+W50*KeyAssumptionsPriceControl_FO!AK$15 -> 0 | CL50: =+X50*KeyAssumptionsPriceControl_FO!AL$15 -> 0 | CN50: 0 | CO50: 0 | CP50: 0 | CQ50: 0 | CR50: 0 | CS50: 0 | CT50: 0 | CU50: 0 | CV50: 0 | CW50: 0
C51: ='[3]Capex_FO input'!C51 -> 0 | D51: ='[3]Capex_FO input'!D51 -> 0 | E51: ='[3]Capex_FO input'!E51 -> 0 | F51: ='[3]Capex_FO input'!F51 -> 0 | G51: ='[3]Capex_FO input'!G51 -> 0 | H51: ='[3]Capex_FO input'!H56 -> 0 | I51: ='[3]Capex_FO input'!I56 -> 0 | J51: Straight line | K51: ='[3]Capex_FO input'!K56 -> 0 | L51: ='[3]Capex_FO input'!L56 -> 0 | M51: ='[3]Capex_FO input'!M56 -> 0 | O51: ='[3]Capex_FO input'!O56 -> 0 | P51: ='[3]Capex_FO input'!P56 -> 0 | Q51: ='[3]Capex_FO input'!Q56 -> 0 | R51: ='[3]Capex_FO input'!R56 -> 0 | S51: ='[3]Capex_FO input'!S56 -> 0 | T51: ='[3]Capex_FO input'!T56 -> 0 | U51: ='[3]Capex_FO input'!U56 -> 0 | V51: ='[3]Capex_FO input'!V56 -> 0 | W51: ='[3]Capex_FO input'!W56 -> 0 | X51: ='[3]Capex_FO input'!X56 -> 0 | Z51: ='[3]Capex_FO input'!Z51 -> 0 | AA51: ='[3]Capex_FO input'!AA51 -> 0 | AB51: ='[3]Capex_FO input'!AB51 -> 0 | AC51: ='[3]Capex_FO input'!AC51 -> 0 | AD51: ='[3]Capex_FO input'!AD51 -> 0 | AE51: ='[3]Capex_FO input'!AE51 -> 0 | AF51: ='[3]Capex_FO input'!AF51 -> 0 | AG51: ='[3]Capex_FO input'!AG51 -> 0 | AH51: ='[3]Capex_FO input'!AH51 -> 0 | AI51: ='[3]Capex_FO input'!AI51 -> 0 | AK51: ='[3]Capex_FO input'!AK51 -> 0 | AL51: ='[3]Capex_FO input'!AL51 -> 0 | AM51: ='[3]Capex_FO input'!AM51 -> 0 | AN51: ='[3]Capex_FO input'!AN51 -> 0 | AO51: ='[3]Capex_FO input'!AO51 -> 0 | AP51: ='[3]Capex_FO input'!AP51 -> 0 | AQ51: ='[3]Capex_FO input'!AQ51 -> 0 | AR51: ='[3]Capex_FO input'!AR51 -> 0 | AS51: ='[3]Capex_FO input'!AS51 -> 0 | AT51: ='[3]Capex_FO input'!AT51 -> 0 | AV51: 0 | AW51: 0 | AX51: 0 | AY51: 0 | AZ51: 0 | BA51: 0 | BB51: 0 | BC51: 0 | BD51: 0 | BE51: 0 | BG51: 0 | BH51: 0 | BI51: 0 | BJ51: 0 | BK51: 0 | BL51: 0 | BM51: 0 | BN51: 0 | BO51: 0 | BP51: 0 | BR51: =+IF($K51="Ongoing",AV51,IF(RIGHT($K51,2)=RIGHT(BR$39,2),SUM($AV51:AV51),0)+IF(RIGHT(BR$39,2)>RIGHT($K51,2),AV51,0)) -> 0 | BS51: =+IF($K51="Ongoing",AW51,IF(RIGHT($K51,2)=RIGHT(BS$39,2),SUM($AV51:AW51),0)+IF(RIGHT(BS$39,2)>RIGHT($K51,2),AW51,0)) -> 0 | BT51: =+IF($K51="Ongoing",AX51,IF(RIGHT($K51,2)=RIGHT(BT$39,2),SUM($AV51:AX51),0)+IF(RIGHT(BT$39,2)>RIGHT($K51,2),AX51,0)) -> 0 | BU51: =+IF($K51="Ongoing",AY51,IF(RIGHT($K51,2)=RIGHT(BU$39,2),SUM($AV51:AY51),0)+IF(RIGHT(BU$39,2)>RIGHT($K51,2),AY51,0)) -> 0 | BV51: =+IF($K51="Ongoing",AZ51,IF(RIGHT($K51,2)=RIGHT(BV$39,2),SUM($AV51:AZ51),0)+IF(RIGHT(BV$39,2)>RIGHT($K51,2),AZ51,0)) -> 0 | BW51: =+IF($K51="Ongoing",BA51,IF(RIGHT($K51,2)=RIGHT(BW$39,2),SUM($AV51:BA51),0)+IF(RIGHT(BW$39,2)>RIGHT($K51,2),BA51,0)) -> 0 | BX51: =+IF($K51="Ongoing",BB51,IF(RIGHT($K51,2)=RIGHT(BX$39,2),SUM($AV51:BB51),0)+IF(RIGHT(BX$39,2)>RIGHT($K51,2),BB51,0)) -> 0 | BY51: =+IF($K51="Ongoing",BC51,IF(RIGHT($K51,2)=RIGHT(BY$39,2),SUM($AV51:BC51),0)+IF(RIGHT(BY$39,2)>RIGHT($K51,2),BC51,0)) -> 0 | BZ51: =+IF($K51="Ongoing",BD51,IF(RIGHT($K51,2)=RIGHT(BZ$39,2),SUM($AV51:BD51),0)+IF(RIGHT(BZ$39,2)>RIGHT($K51,2),BD51,0)) -> 0 | CA51: =+IF($K51="Ongoing",BE51,IF(RIGHT($K51,2)=RIGHT(CA$39,2),SUM($AV51:BE51),0)+IF(RIGHT(CA$39,2)>RIGHT($K51,2),BE51,0)) -> 0 | CC51: =+O51*KeyAssumptionsPriceControl_FO!AC$15 -> 0 | CD51: =+P51*KeyAssumptionsPriceControl_FO!AD$15 -> 0 | CE51: =+Q51*KeyAssumptionsPriceControl_FO!AE$15 -> 0 | CF51: =+R51*KeyAssumptionsPriceControl_FO!AF$15 -> 0 | CG51: =+S51*KeyAssumptionsPriceControl_FO!AG$15 -> 0 | CH51: =+T51*KeyAssumptionsPriceControl_FO!AH$15 -> 0 | CI51: =+U51*KeyAssumptionsPriceControl_FO!AI$15 -> 0 | CJ51: =+V51*KeyAssumptionsPriceControl_FO!AJ$15 -> 0 | CK51: =+W51*KeyAssumptionsPriceControl_FO!AK$15 -> 0 | CL51: =+X51*KeyAssumptionsPriceControl_FO!AL$15 -> 0 | CN51: 0 | CO51: 0 | CP51: 0 | CQ51: 0 | CR51: 0 | CS51: 0 | CT51: 0 | CU51: 0 | CV51: 0 | CW51: 0
C52: ='[3]Capex_FO input'!C52 -> 0 | D52: ='[3]Capex_FO input'!D52 -> 0 | E52: ='[3]Capex_FO input'!E52 -> 0 | F52: ='[3]Capex_FO input'!F52 -> 0 | G52: ='[3]Capex_FO input'!G52 -> 0 | H52: ='[3]Capex_FO input'!H57 -> 0 | I52: ='[3]Capex_FO input'!I57 -> 0 | J52: Straight line | K52: ='[3]Capex_FO input'!K57 -> 0 | L52: ='[3]Capex_FO input'!L57 -> 0 | M52: ='[3]Capex_FO input'!M57 -> 0 | O52: ='[3]Capex_FO input'!O57 -> 0 | P52: ='[3]Capex_FO input'!P57 -> 0 | Q52: ='[3]Capex_FO input'!Q57 -> 0 | R52: ='[3]Capex_FO input'!R57 -> 0 | S52: ='[3]Capex_FO input'!S57 -> 0 | T52: ='[3]Capex_FO input'!T57 -> 0 | U52: ='[3]Capex_FO input'!U57 -> 0 | V52: ='[3]Capex_FO input'!V57 -> 0 | W52: ='[3]Capex_FO input'!W57 -> 0 | X52: ='[3]Capex_FO input'!X57 -> 0 | Z52: ='[3]Capex_FO input'!Z52 -> 0 | AA52: ='[3]Capex_FO input'!AA52 -> 0 | AB52: ='[3]Capex_FO input'!AB52 -> 0 | AC52: ='[3]Capex_FO input'!AC52 -> 0 | AD52: ='[3]Capex_FO input'!AD52 -> 0 | AE52: ='[3]Capex_FO input'!AE52 -> 0 | AF52: ='[3]Capex_FO input'!AF52 -> 0 | AG52: ='[3]Capex_FO input'!AG52 -> 0 | AH52: ='[3]Capex_FO input'!AH52 -> 0 | AI52: ='[3]Capex_FO input'!AI52 -> 0 | AK52: ='[3]Capex_FO input'!AK52 -> 0 | AL52: ='[3]Capex_FO input'!AL52 -> 0 | AM52: ='[3]Capex_FO input'!AM52 -> 0 | AN52: ='[3]Capex_FO input'!AN52 -> 0 | AO52: ='[3]Capex_FO input'!AO52 -> 0 | AP52: ='[3]Capex_FO input'!AP52 -> 0 | AQ52: ='[3]Capex_FO input'!AQ52 -> 0 | AR52: ='[3]Capex_FO input'!AR52 -> 0 | AS52: ='[3]Capex_FO input'!AS52 -> 0 | AT52: ='[3]Capex_FO input'!AT52 -> 0 | AV52: =+O52-Z52-AK52 -> 0 | AW52: =+P52-AA52-AL52 -> 0 | AX52: =+Q52-AB52-AM52 -> 0 | AY52: =+R52-AC52-AN52 -> 0 | AZ52: =+S52-AD52-AO52 -> 0 | BA52: =+T52-AE52-AP52 -> 0 | BB52: =+U52-AF52-AQ52 -> 0 | BC52: =+V52-AG52-AR52 -> 0 | BD52: =+W52-AH52-AS52 -> 0 | BE52: =+X52-AI52-AT52 -> 0 | BG52: =IF($L52=0,0, IF($L52<=0.5,BR52, IF($J52="straight line", IF((LEFT(BG$39,4)*1)-INT($L52)<LEFT($BG$39,4)*1,0,((OFFSET(BR52,0,-INT($L52+0.5),1,1))/$L52)*(IF($L52-INT($L52)>0.5,$L52-0.5-INT($L52),IF($L52-INT($L52)<=0.5,$L52-0.5-INT($L52)+1,0)))) +BR52/$L52*0.5, IF($J52="Declining Balance",-$BG$38,0)))) -> 0 | BH52: =IF($L52=0,0, IF($L52<=0.5,BS52, IF(AND($J52="straight line",$L52<1.51),(BR52-((BR52/$L52)*0.5))+BS52/$L52*0.5, IF($J52="straight line", IF((LEFT(BH$39,4)*1)-INT($L52)<LEFT($BG$39,4)*1,0,((OFFSET(BS52,0,-INT($L52+0.5),1,1))/$L52)*(IF($L52-INT($L52)>0.5,$L52-0.5-INT($L52),IF($L52-INT($L52)<=0.5,$L52-0.5-INT($L52)+1,0)))) +BS52/$L52*0.5 +SUM(OFFSET(BS52,0,MAX(-INT($L52+(0.5-(10^-12))),-BH$40)+1,1,MIN(INT($L52+(0.5-(10^-12))),BH$40)-1))*1/$L52, IF($J52="Declining Balance",-$BG$38,0))))) -> 0 | BI52: =IF($L52=0,0, IF($L52<=0.5,BT52, IF(AND($J52="straight line",$L52<1.51),(BS52-((BS52/$L52)*0.5))+BT52/$L52*0.5, IF($J52="straight line", IF((LEFT(BI$39,4)*1)-INT($L52)<LEFT($BG$39,4)*1,0,((OFFSET(BT52,0,-INT($L52+0.5),1,1))/$L52)*(IF($L52-INT($L52)>0.5,$L52-0.5-INT($L52),IF($L52-INT($L52)<=0.5,$L52-0.5-INT($L52)+1,0)))) +BT52/$L52*0.5 +SUM(OFFSET(BT52,0,MAX(-INT($L52+(0.5-(10^-12))),-BI$40)+1,1,MIN(INT($L52+(0.5-(10^-12))),BI$40)-1))*1/$L52, IF($J52="Declining Balance",-$BG$38,0))))) -> 0 | BJ52: =IF($L52=0,0, IF($L52<=0.5,BU52, IF(AND($J52="straight line",$L52<1.51),(BT52-((BT52/$L52)*0.5))+BU52/$L52*0.5, IF($J52="straight line", IF((LEFT(BJ$39,4)*1)-INT($L52)<LEFT($BG$39,4)*1,0,((OFFSET(BU52,0,-INT($L52+0.5),1,1))/$L52)*(IF($L52-INT($L52)>0.5,$L52-0.5-INT($L52),IF($L52-INT($L52)<=0.5,$L52-0.5-INT($L52)+1,0)))) +BU52/$L52*0.5 +SUM(OFFSET(BU52,0,MAX(-INT($L52+(0.5-(10^-12))),-BJ$40)+1,1,MIN(INT($L52+(0.5-(10^-12))),BJ$40)-1))*1/$L52, IF($J52="Declining Balance",-$BG$38,0))))) -> 0 | BK52: =IF($L52=0,0, IF($L52<=0.5,BV52, IF(AND($J52="straight line",$L52<1.51),(BU52-((BU52/$L52)*0.5))+BV52/$L52*0.5, IF($J52="straight line", IF((LEFT(BK$39,4)*1)-INT($L52)<LEFT($BG$39,4)*1,0,((OFFSET(BV52,0,-INT($L52+0.5),1,1))/$L52)*(IF($L52-INT($L52)>0.5,$L52-0.5-INT($L52),IF($L52-INT($L52)<=0.5,$L52-0.5-INT($L52)+1,0)))) +BV52/$L52*0.5 +SUM(OFFSET(BV52,0,MAX(-INT($L52+(0.5-(10^-12))),-BK$40)+1,1,MIN(INT($L52+(0.5-(10^-12))),BK$40)-1))*1/$L52, IF($J52="Declining Balance",-$BG$38,0))))) -> 0 | BL52: =IF($L52=0,0, IF($L52<=0.5,BW52, IF(AND($J52="straight line",$L52<1.51),(BV52-((BV52/$L52)*0.5))+BW52/$L52*0.5, IF($J52="straight line", IF((LEFT(BL$39,4)*1)-INT($L52)<LEFT($BG$39,4)*1,0,((OFFSET(BW52,0,-INT($L52+0.5),1,1))/$L52)*(IF($L52-INT($L52)>0.5,$L52-0.5-INT($L52),IF($L52-INT($L52)<=0.5,$L52-0.5-INT($L52)+1,0)))) +BW52/$L52*0.5 +SUM(OFFSET(BW52,0,MAX(-INT($L52+(0.5-(10^-12))),-BL$40)+1,1,MIN(INT($L52+(0.5-(10^-12))),BL$40)-1))*1/$L52, IF($J52="Declining Balance",-$BG$38,0))))) -> 0 | BM52: =IF($L52=0,0, IF($L52<=0.5,BX52, IF(AND($J52="straight line",$L52<1.51),(BW52-((BW52/$L52)*0.5))+BX52/$L52*0.5, IF($J52="straight line", IF((LEFT(BM$39,4)*1)-INT($L52)<LEFT($BG$39,4)*1,0,((OFFSET(BX52,0,-INT($L52+0.5),1,1))/$L52)*(IF($L52-INT($L52)>0.5,$L52-0.5-INT($L52),IF($L52-INT($L52)<=0.5,$L52-0.5-INT($L52)+1,0)))) +BX52/$L52*0.5 +SUM(OFFSET(BX52,0,MAX(-INT($L52+(0.5-(10^-12))),-BM$40)+1,1,MIN(INT($L52+(0.5-(10^-12))),BM$40)-1))*1/$L52, IF($J52="Declining Balance",-$BG$38,0))))) -> 0 | BN52: =IF($L52=0,0, IF($L52<=0.5,BY52, IF(AND($J52="straight line",$L52<1.51),(BX52-((BX52/$L52)*0.5))+BY52/$L52*0.5, IF($J52="straight line", IF((LEFT(BN$39,4)*1)-INT($L52)<LEFT($BG$39,4)*1,0,((OFFSET(BY52,0,-INT($L52+0.5),1,1))/$L52)*(IF($L52-INT($L52)>0.5,$L52-0.5-INT($L52),IF($L52-INT($L52)<=0.5,$L52-0.5-INT($L52)+1,0)))) +BY52/$L52*0.5 +SUM(OFFSET(BY52,0,MAX(-INT($L52+(0.5-(10^-12))),-BN$40)+1,1,MIN(INT($L52+(0.5-(10^-12))),BN$40)-1))*1/$L52, IF($J52="Declining Balance",-$BG$38,0))))) -> 0 | BO52: =IF($L52=0,0, IF($L52<=0.5,BZ52, IF(AND($J52="straight line",$L52<1.51),(BY52-((BY52/$L52)*0.5))+BZ52/$L52*0.5, IF($J52="straight line", IF((LEFT(BO$39,4)*1)-INT($L52)<LEFT($BG$39,4)*1,0,((OFFSET(BZ52,0,-INT($L52+0.5),1,1))/$L52)*(IF($L52-INT($L52)>0.5,$L52-0.5-INT($L52),IF($L52-INT($L52)<=0.5,$L52-0.5-INT($L52)+1,0)))) +BZ52/$L52*0.5 +SUM(OFFSET(BZ52,0,MAX(-INT($L52+(0.5-(10^-12))),-BO$40)+1,1,MIN(INT($L52+(0.5-(10^-12))),BO$40)-1))*1/$L52, IF($J52="Declining Balance",-$BG$38,0))))) -> 0 | BP52: =IF($L52=0,0, IF($L52<=0.5,CA52, IF(AND($J52="straight line",$L52<1.51),(BZ52-((BZ52/$L52)*0.5))+CA52/$L52*0.5, IF($J52="straight line", IF((LEFT(BP$39,4)*1)-INT($L52)<LEFT($BG$39,4)*1,0,((OFFSET(CA52,0,-INT($L52+0.5),1,1))/$L52)*(IF($L52-INT($L52)>0.5,$L52-0.5-INT($L52),IF($L52-INT($L52)<=0.5,$L52-0.5-INT($L52)+1,0)))) +CA52/$L52*0.5 +SUM(OFFSET(CA52,0,MAX(-INT($L52+(0.5-(10^-12))),-BP$40)+1,1,MIN(INT($L52+(0.5-(10^-12))),BP$40)-1))*1/$L52, IF($J52="Declining Balance",-$BG$38,0))))) -> 0 | BR52: =+IF($K52="Ongoing",AV52,IF(RIGHT($K52,2)=RIGHT(BR$39,2),SUM($AV52:AV52),0)+IF(RIGHT(BR$39,2)>RIGHT($K52,2),AV52,0)) -> 0 | BS52: =+IF($K52="Ongoing",AW52,IF(RIGHT($K52,2)=RIGHT(BS$39,2),SUM($AV52:AW52),0)+IF(RIGHT(BS$39,2)>RIGHT($K52,2),AW52,0)) -> 0 | BT52: =+IF($K52="Ongoing",AX52,IF(RIGHT($K52,2)=RIGHT(BT$39,2),SUM($AV52:AX52),0)+IF(RIGHT(BT$39,2)>RIGHT($K52,2),AX52,0)) -> 0 | BU52: =+IF($K52="Ongoing",AY52,IF(RIGHT($K52,2)=RIGHT(BU$39,2),SUM($AV52:AY52),0)+IF(RIGHT(BU$39,2)>RIGHT($K52,2),AY52,0)) -> 0 | BV52: =+IF($K52="Ongoing",AZ52,IF(RIGHT($K52,2)=RIGHT(BV$39,2),SUM($AV52:AZ52),0)+IF(RIGHT(BV$39,2)>RIGHT($K52,2),AZ52,0)) -> 0 | BW52: =+IF($K52="Ongoing",BA52,IF(RIGHT($K52,2)=RIGHT(BW$39,2),SUM($AV52:BA52),0)+IF(RIGHT(BW$39,2)>RIGHT($K52,2),BA52,0)) -> 0 | BX52: =+IF($K52="Ongoing",BB52,IF(RIGHT($K52,2)=RIGHT(BX$39,2),SUM($AV52:BB52),0)+IF(RIGHT(BX$39,2)>RIGHT($K52,2),BB52,0)) -> 0 | BY52: =+IF($K52="Ongoing",BC52,IF(RIGHT($K52,2)=RIGHT(BY$39,2),SUM($AV52:BC52),0)+IF(RIGHT(BY$39,2)>RIGHT($K52,2),BC52,0)) -> 0 | BZ52: =+IF($K52="Ongoing",BD52,IF(RIGHT($K52,2)=RIGHT(BZ$39,2),SUM($AV52:BD52),0)+IF(RIGHT(BZ$39,2)>RIGHT($K52,2),BD52,0)) -> 0 | CA52: =+IF($K52="Ongoing",BE52,IF(RIGHT($K52,2)=RIGHT(CA$39,2),SUM($AV52:BE52),0)+IF(RIGHT(CA$39,2)>RIGHT($K52,2),BE52,0)) -> 0 | CC52: =+O52*KeyAssumptionsPriceControl_FO!AC$15 -> 0 | CD52: =+P52*KeyAssumptionsPriceControl_FO!AD$15 -> 0 | CE52: =+Q52*KeyAssumptionsPriceControl_FO!AE$15 -> 0 | CF52: =+R52*KeyAssumptionsPriceControl_FO!AF$15 -> 0 | CG52: =+S52*KeyAssumptionsPriceControl_FO!AG$15 -> 0 | CH52: =+T52*KeyAssumptionsPriceControl_FO!AH$15 -> 0 | CI52: =+U52*KeyAssumptionsPriceControl_FO!AI$15 -> 0 | CJ52: =+V52*KeyAssumptionsPriceControl_FO!AJ$15 -> 0 | CK52: =+W52*KeyAssumptionsPriceControl_FO!AK$15 -> 0 | CL52: =+X52*KeyAssumptionsPriceControl_FO!AL$15 -> 0 | CN52: =IF($M52=0,0, IF($M52<=0.5,CC52, IF($J52="straight line", IF((LEFT(CN$39,4)*1)-INT($M52)<LEFT($CN$39,4)*1,0,((OFFSET(CC52,0,-INT($M52+0.5),1,1))/$M52)*(IF($M52-INT($M52)>0.5,$M52-0.5-INT($M52),IF($M52-INT($M52)<=0.5,$M52-0.5-INT($M52)+1,0)))) +CC52/$M52*0.5, IF($J52="Declining Balance",-$CN$38,0)))) -> 0 | CO52: =IF($M52=0,0, IF($M52<=0.5,CD52, IF(AND($J52="straight line",$M52<1.51),(CC52-((CC52/$M52)*0.5))+CD52/$M52*0.5, IF($J52="straight line", IF((LEFT(CO$39,4)*1)-INT($M52)<LEFT($CN$39,4)*1,0,((OFFSET(CD52,0,-INT($M52+0.5),1,1))/$M52)*(IF($M52-INT($M52)>0.5,$M52-0.5-INT($M52),IF($M52-INT($M52)<=0.5,$M52-0.5-INT($M52)+1,0)))) +CD52/$M52*0.5 +SUM(OFFSET(CD52,0,MAX(-INT($M52+(0.5-(10^-12))),-CO$40)+1,1,MIN(INT($M52+(0.5-(10^-12))),CO$40)-1))*1/$M52, IF($J52="Declining Balance",-$CN$38,0))))) -> 0 | CP52: =IF($M52=0,0, IF($M52<=0.5,CE52, IF(AND($J52="straight line",$M52<1.51),(CD52-((CD52/$M52)*0.5))+CE52/$M52*0.5, IF($J52="straight line", IF((LEFT(CP$39,4)*1)-INT($M52)<LEFT($CN$39,4)*1,0,((OFFSET(CE52,0,-INT($M52+0.5),1,1))/$M52)*(IF($M52-INT($M52)>0.5,$M52-0.5-INT($M52),IF($M52-INT($M52)<=0.5,$M52-0.5-INT($M52)+1,0)))) +CE52/$M52*0.5 +SUM(OFFSET(CE52,0,MAX(-INT($M52+(0.5-(10^-12))),-CP$40)+1,1,MIN(INT($M52+(0.5-(10^-12))),CP$40)-1))*1/$M52, IF($J52="Declining Balance",-$CN$38,0))))) -> 0 | CQ52: =IF($M52=0,0, IF($M52<=0.5,CF52, IF(AND($J52="straight line",$M52<1.51),(CE52-((CE52/$M52)*0.5))+CF52/$M52*0.5, IF($J52="straight line", IF((LEFT(CQ$39,4)*1)-INT($M52)<LEFT($CN$39,4)*1,0,((OFFSET(CF52,0,-INT($M52+0.5),1,1))/$M52)*(IF($M52-INT($M52)>0.5,$M52-0.5-INT($M52),IF($M52-INT($M52)<=0.5,$M52-0.5-INT($M52)+1,0)))) +CF52/$M52*0.5 +SUM(OFFSET(CF52,0,MAX(-INT($M52+(0.5-(10^-12))),-CQ$40)+1,1,MIN(INT($M52+(0.5-(10^-12))),CQ$40)-1))*1/$M52, IF($J52="Declining Balance",-$CN$38,0))))) -> 0 | CR52: =IF($M52=0,0, IF($M52<=0.5,CG52, IF(AND($J52="straight line",$M52<1.51),(CF52-((CF52/$M52)*0.5))+CG52/$M52*0.5, IF($J52="straight line", IF((LEFT(CR$39,4)*1)-INT($M52)<LEFT($CN$39,4)*1,0,((OFFSET(CG52,0,-INT($M52+0.5),1,1))/$M52)*(IF($M52-INT($M52)>0.5,$M52-0.5-INT($M52),IF($M52-INT($M52)<=0.5,$M52-0.5-INT($M52)+1,0)))) +CG52/$M52*0.5 +SUM(OFFSET(CG52,0,MAX(-INT($M52+(0.5-(10^-12))),-CR$40)+1,1,MIN(INT($M52+(0.5-(10^-12))),CR$40)-1))*1/$M52, IF($J52="Declining Balance",-$CN$38,0))))) -> 0 | CS52: =IF($M52=0,0, IF($M52<=0.5,CH52, IF(AND($J52="straight line",$M52<1.51),(CG52-((CG52/$M52)*0.5))+CH52/$M52*0.5, IF($J52="straight line", IF((LEFT(CS$39,4)*1)-INT($M52)<LEFT($CN$39,4)*1,0,((OFFSET(CH52,0,-INT($M52+0.5),1,1))/$M52)*(IF($M52-INT($M52)>0.5,$M52-0.5-INT($M52),IF($M52-INT($M52)<=0.5,$M52-0.5-INT($M52)+1,0)))) +CH52/$M52*0.5 +SUM(OFFSET(CH52,0,MAX(-INT($M52+(0.5-(10^-12))),-CS$40)+1,1,MIN(INT($M52+(0.5-(10^-12))),CS$40)-1))*1/$M52, IF($J52="Declining Balance",-$CN$38,0))))) -> 0 | CT52: =IF($M52=0,0, IF($M52<=0.5,CI52, IF(AND($J52="straight line",$M52<1.51),(CH52-((CH52/$M52)*0.5))+CI52/$M52*0.5, IF($J52="straight line", IF((LEFT(CT$39,4)*1)-INT($M52)<LEFT($CN$39,4)*1,0,((OFFSET(CI52,0,-INT($M52+0.5),1,1))/$M52)*(IF($M52-INT($M52)>0.5,$M52-0.5-INT($M52),IF($M52-INT($M52)<=0.5,$M52-0.5-INT($M52)+1,0)))) +CI52/$M52*0.5 +SUM(OFFSET(CI52,0,MAX(-INT($M52+(0.5-(10^-12))),-CT$40)+1,1,MIN(INT($M52+(0.5-(10^-12))),CT$40)-1))*1/$M52, IF($J52="Declining Balance",-$CN$38,0))))) -> 0 | CU52: =IF($M52=0,0, IF($M52<=0.5,CJ52, IF(AND($J52="straight line",$M52<1.51),(CI52-((CI52/$M52)*0.5))+CJ52/$M52*0.5, IF($J52="straight line", IF((LEFT(CU$39,4)*1)-INT($M52)<LEFT($CN$39,4)*1,0,((OFFSET(CJ52,0,-INT($M52+0.5),1,1))/$M52)*(IF($M52-INT($M52)>0.5,$M52-0.5-INT($M52),IF($M52-INT($M52)<=0.5,$M52-0.5-INT($M52)+1,0)))) +CJ52/$M52*0.5 +SUM(OFFSET(CJ52,0,MAX(-INT($M52+(0.5-(10^-12))),-CU$40)+1,1,MIN(INT($M52+(0.5-(10^-12))),CU$40)-1))*1/$M52, IF($J52="Declining Balance",-$CN$38,0))))) -> 0 | CV52: =IF($M52=0,0, IF($M52<=0.5,CK52, IF(AND($J52="straight line",$M52<1.51),(CJ52-((CJ52/$M52)*0.5))+CK52/$M52*0.5, IF($J52="straight line", IF((LEFT(CV$39,4)*1)-INT($M52)<LEFT($CN$39,4)*1,0,((OFFSET(CK52,0,-INT($M52+0.5),1,1))/$M52)*(IF($M52-INT($M52)>0.5,$M52-0.5-INT($M52),IF($M52-INT($M52)<=0.5,$M52-0.5-INT($M52)+1,0)))) +CK52/$M52*0.5 +SUM(OFFSET(CK52,0,MAX(-INT($M52+(0.5-(10^-12))),-CV$40)+1,1,MIN(INT($M52+(0.5-(10^-12))),CV$40)-1))*1/$M52, IF($J52="Declining Balance",-$CN$38,0))))) -> 0 | CW52: =IF($M52=0,0, IF($M52<=0.5,CL52, IF(AND($J52="straight line",$M52<1.51),(CK52-((CK52/$M52)*0.5))+CL52/$M52*0.5, IF($J52="straight line", IF((LEFT(CW$39,4)*1)-INT($M52)<LEFT($CN$39,4)*1,0,((OFFSET(CL52,0,-INT($M52+0.5),1,1))/$M52)*(IF($M52-INT($M52)>0.5,$M52-0.5-INT($M52),IF($M52-INT($M52)<=0.5,$M52-0.5-INT($M52)+1,0)))) +CL52/$M52*0.5 +SUM(OFFSET(CL52,0,MAX(-INT($M52+(0.5-(10^-12))),-CW$40)+1,1,MIN(INT($M52+(0.5-(10^-12))),CW$40)-1))*1/$M52, IF($J52="Declining Balance",-$CN$38,0))))) -> 0
C53: ='[3]Capex_FO input'!C53 -> 0 | D53: ='[3]Capex_FO input'!D53 -> 0 | E53: ='[3]Capex_FO input'!E53 -> 0 | F53: ='[3]Capex_FO input'!F53 -> 0 | G53: ='[3]Capex_FO input'!G53 -> 0 | Z53: ='[3]Capex_FO input'!Z53 -> 0 | AA53: ='[3]Capex_FO input'!AA53 -> 0 | AB53: ='[3]Capex_FO input'!AB53 -> 0 | AC53: ='[3]Capex_FO input'!AC53 -> 0 | AD53: ='[3]Capex_FO input'!AD53 -> 0 | AE53: ='[3]Capex_FO input'!AE53 -> 0 | AF53: ='[3]Capex_FO input'!AF53 -> 0 | AG53: ='[3]Capex_FO input'!AG53 -> 0 | AH53: ='[3]Capex_FO input'!AH53 -> 0 | AI53: ='[3]Capex_FO input'!AI53 -> 0 | AK53: ='[3]Capex_FO input'!AK53 -> 0 | AL53: ='[3]Capex_FO input'!AL53 -> 0 | AM53: ='[3]Capex_FO input'!AM53 -> 0 | AN53: ='[3]Capex_FO input'!AN53 -> 0 | AO53: ='[3]Capex_FO input'!AO53 -> 0 | AP53: ='[3]Capex_FO input'!AP53 -> 0 | AQ53: ='[3]Capex_FO input'!AQ53 -> 0 | AR53: ='[3]Capex_FO input'!AR53 -> 0 | AS53: ='[3]Capex_FO input'!AS53 -> 0 | AT53: ='[3]Capex_FO input'!AT53 -> 0 | AV53: 0 | AW53: 0 | AX53: 0 | AY53: 0 | AZ53: 0 | BA53: 0 | BB53: 0 | BC53: 0 | BD53: 0 | BE53: 0 | BG53: 0 | BH53: 0 | BI53: 0 | BJ53: 0 | BK53: 0 | BL53: 0 | BM53: 0 | BN53: 0 | BO53: 0 | BP53: 0 | BR53: =+IF($K53="Ongoing",AV53,IF(RIGHT($K53,2)=RIGHT(BR$39,2),SUM($AV53:AV53),0)+IF(RIGHT(BR$39,2)>RIGHT($K53,2),AV53,0)) -> 0 | BS53: =+IF($K53="Ongoing",AW53,IF(RIGHT($K53,2)=RIGHT(BS$39,2),SUM($AV53:AW53),0)+IF(RIGHT(BS$39,2)>RIGHT($K53,2),AW53,0)) -> 0 | BT53: =+IF($K53="Ongoing",AX53,IF(RIGHT($K53,2)=RIGHT(BT$39,2),SUM($AV53:AX53),0)+IF(RIGHT(BT$39,2)>RIGHT($K53,2),AX53,0)) -> 0 | BU53: =+IF($K53="Ongoing",AY53,IF(RIGHT($K53,2)=RIGHT(BU$39,2),SUM($AV53:AY53),0)+IF(RIGHT(BU$39,2)>RIGHT($K53,2),AY53,0)) -> 0 | BV53: =+IF($K53="Ongoing",AZ53,IF(RIGHT($K53,2)=RIGHT(BV$39,2),SUM($AV53:AZ53),0)+IF(RIGHT(BV$39,2)>RIGHT($K53,2),AZ53,0)) -> 0 | BW53: =+IF($K53="Ongoing",BA53,IF(RIGHT($K53,2)=RIGHT(BW$39,2),SUM($AV53:BA53),0)+IF(RIGHT(BW$39,2)>RIGHT($K53,2),BA53,0)) -> 0 | BX53: =+IF($K53="Ongoing",BB53,IF(RIGHT($K53,2)=RIGHT(BX$39,2),SUM($AV53:BB53),0)+IF(RIGHT(BX$39,2)>RIGHT($K53,2),BB53,0)) -> 0 | BY53: =+IF($K53="Ongoing",BC53,IF(RIGHT($K53,2)=RIGHT(BY$39,2),SUM($AV53:BC53),0)+IF(RIGHT(BY$39,2)>RIGHT($K53,2),BC53,0)) -> 0 | BZ53: =+IF($K53="Ongoing",BD53,IF(RIGHT($K53,2)=RIGHT(BZ$39,2),SUM($AV53:BD53),0)+IF(RIGHT(BZ$39,2)>RIGHT($K53,2),BD53,0)) -> 0 | CA53: =+IF($K53="Ongoing",BE53,IF(RIGHT($K53,2)=RIGHT(CA$39,2),SUM($AV53:BE53),0)+IF(RIGHT(CA$39,2)>RIGHT($K53,2),BE53,0)) -> 0 | CC53: =+O53*KeyAssumptionsPriceControl_FO!AC$15 -> 0 | CD53: =+P53*KeyAssumptionsPriceControl_FO!AD$15 -> 0 | CE53: =+Q53*KeyAssumptionsPriceControl_FO!AE$15 -> 0 | CF53: =+R53*KeyAssumptionsPriceControl_FO!AF$15 -> 0 | CG53: =+S53*KeyAssumptionsPriceControl_FO!AG$15 -> 0 | CH53: =+T53*KeyAssumptionsPriceControl_FO!AH$15 -> 0 | CI53: =+U53*KeyAssumptionsPriceControl_FO!AI$15 -> 0 | CJ53: =+V53*KeyAssumptionsPriceControl_FO!AJ$15 -> 0 | CK53: =+W53*KeyAssumptionsPriceControl_FO!AK$15 -> 0 | CL53: =+X53*KeyAssumptionsPriceControl_FO!AL$15 -> 0 | CN53: 0 | CO53: 0 | CP53: 0 | CQ53: 0 | CR53: 0 | CS53: 0 | CT53: 0 | CU53: 0 | CV53: 0 | CW53: 0
C54: ='[3]Capex_FO input'!C54 -> 0 | D54: ='[3]Capex_FO input'!D54 -> 0 | E54: ='[3]Capex_FO input'!E54 -> 0 | F54: ='[3]Capex_FO input'!F54 -> 0 | G54: ='[3]Capex_FO input'!G54 -> 0 | Z54: ='[3]Capex_FO input'!Z54 -> 0 | AA54: ='[3]Capex_FO input'!AA54 -> 0 | AB54: ='[3]Capex_FO input'!AB54 -> 0 | AC54: ='[3]Capex_FO input'!AC54 -> 0 | AD54: ='[3]Capex_FO input'!AD54 -> 0 | AE54: ='[3]Capex_FO input'!AE54 -> 0 | AF54: ='[3]Capex_FO input'!AF54 -> 0 | AG54: ='[3]Capex_FO input'!AG54 -> 0 | AH54: ='[3]Capex_FO input'!AH54 -> 0 | AI54: ='[3]Capex_FO input'!AI54 -> 0 | AK54: ='[3]Capex_FO input'!AK54 -> 0 | AL54: ='[3]Capex_FO input'!AL54 -> 0 | AM54: ='[3]Capex_FO input'!AM54 -> 0 | AN54: ='[3]Capex_FO input'!AN54 -> 0 | AO54: ='[3]Capex_FO input'!AO54 -> 0 | AP54: ='[3]Capex_FO input'!AP54 -> 0 | AQ54: ='[3]Capex_FO input'!AQ54 -> 0 | AR54: ='[3]Capex_FO input'!AR54 -> 0 | AS54: ='[3]Capex_FO input'!AS54 -> 0 | AT54: ='[3]Capex_FO input'!AT54 -> 0 | AV54: 0 | AW54: 0 | AX54: 0 | AY54: 0 | AZ54: 0 | BA54: 0 | BB54: 0 | BC54: 0 | BD54: 0 | BE54: 0 | BG54: 0 | BH54: 0 | BI54: 0 | BJ54: 0 | BK54: 0 | BL54: 0 | BM54: 0 | BN54: 0 | BO54: 0 | BP54: 0 | BR54: =+IF($K54="Ongoing",AV54,IF(RIGHT($K54,2)=RIGHT(BR$39,2),SUM($AV54:AV54),0)+IF(RIGHT(BR$39,2)>RIGHT($K54,2),AV54,0)) -> 0 | BS54: =+IF($K54="Ongoing",AW54,IF(RIGHT($K54,2)=RIGHT(BS$39,2),SUM($AV54:AW54),0)+IF(RIGHT(BS$39,2)>RIGHT($K54,2),AW54,0)) -> 0 | BT54: =+IF($K54="Ongoing",AX54,IF(RIGHT($K54,2)=RIGHT(BT$39,2),SUM($AV54:AX54),0)+IF(RIGHT(BT$39,2)>RIGHT($K54,2),AX54,0)) -> 0 | BU54: =+IF($K54="Ongoing",AY54,IF(RIGHT($K54,2)=RIGHT(BU$39,2),SUM($AV54:AY54),0)+IF(RIGHT(BU$39,2)>RIGHT($K54,2),AY54,0)) -> 0 | BV54: =+IF($K54="Ongoing",AZ54,IF(RIGHT($K54,2)=RIGHT(BV$39,2),SUM($AV54:AZ54),0)+IF(RIGHT(BV$39,2)>RIGHT($K54,2),AZ54,0)) -> 0 | BW54: =+IF($K54="Ongoing",BA54,IF(RIGHT($K54,2)=RIGHT(BW$39,2),SUM($AV54:BA54),0)+IF(RIGHT(BW$39,2)>RIGHT($K54,2),BA54,0)) -> 0 | BX54: =+IF($K54="Ongoing",BB54,IF(RIGHT($K54,2)=RIGHT(BX$39,2),SUM($AV54:BB54),0)+IF(RIGHT(BX$39,2)>RIGHT($K54,2),BB54,0)) -> 0 | BY54: =+IF($K54="Ongoing",BC54,IF(RIGHT($K54,2)=RIGHT(BY$39,2),SUM($AV54:BC54),0)+IF(RIGHT(BY$39,2)>RIGHT($K54,2),BC54,0)) -> 0 | BZ54: =+IF($K54="Ongoing",BD54,IF(RIGHT($K54,2)=RIGHT(BZ$39,2),SUM($AV54:BD54),0)+IF(RIGHT(BZ$39,2)>RIGHT($K54,2),BD54,0)) -> 0 | CA54: =+IF($K54="Ongoing",BE54,IF(RIGHT($K54,2)=RIGHT(CA$39,2),SUM($AV54:BE54),0)+IF(RIGHT(CA$39,2)>RIGHT($K54,2),BE54,0)) -> 0 | CC54: =+O54*KeyAssumptionsPriceControl_FO!AC$15 -> 0 | CD54: =+P54*KeyAssumptionsPriceControl_FO!AD$15 -> 0 | CE54: =+Q54*KeyAssumptionsPriceControl_FO!AE$15 -> 0 | CF54: =+R54*KeyAssumptionsPriceControl_FO!AF$15 -> 0 | CG54: =+S54*KeyAssumptionsPriceControl_FO!AG$15 -> 0 | CH54: =+T54*KeyAssumptionsPriceControl_FO!AH$15 -> 0 | CI54: =+U54*KeyAssumptionsPriceControl_FO!AI$15 -> 0 | CJ54: =+V54*KeyAssumptionsPriceControl_FO!AJ$15 -> 0 | CK54: =+W54*KeyAssumptionsPriceControl_FO!AK$15 -> 0 | CL54: =+X54*KeyAssumptionsPriceControl_FO!AL$15 -> 0 | CN54: 0 | CO54: 0 | CP54: 0 | CQ54: 0 | CR54: 0 | CS54: 0 | CT54: 0 | CU54: 0 | CV54: 0 | CW54: 0
C55: ='[3]Capex_FO input'!C55 -> 0 | D55: ='[3]Capex_FO input'!D55 -> 0 | E55: ='[3]Capex_FO input'!E55 -> 0 | F55: ='[3]Capex_FO input'!F55 -> 0 | G55: ='[3]Capex_FO input'!G55 -> 0 | Z55: ='[3]Capex_FO input'!Z55 -> 0 | AA55: ='[3]Capex_FO input'!AA55 -> 0 | AB55: ='[3]Capex_FO input'!AB55 -> 0 | AC55: ='[3]Capex_FO input'!AC55 -> 0 | AD55: ='[3]Capex_FO input'!AD55 -> 0 | AE55: ='[3]Capex_FO input'!AE55 -> 0 | AF55: ='[3]Capex_FO input'!AF55 -> 0 | AG55: ='[3]Capex_FO input'!AG55 -> 0 | AH55: ='[3]Capex_FO input'!AH55 -> 0 | AI55: ='[3]Capex_FO input'!AI55 -> 0 | AK55: ='[3]Capex_FO input'!AK55 -> 0 | AL55: ='[3]Capex_FO input'!AL55 -> 0 | AM55: ='[3]Capex_FO input'!AM55 -> 0 | AN55: ='[3]Capex_FO input'!AN55 -> 0 | AO55: ='[3]Capex_FO input'!AO55 -> 0 | AP55: ='[3]Capex_FO input'!AP55 -> 0 | AQ55: ='[3]Capex_FO input'!AQ55 -> 0 | AR55: ='[3]Capex_FO input'!AR55 -> 0 | AS55: ='[3]Capex_FO input'!AS55 -> 0 | AT55: ='[3]Capex_FO input'!AT55 -> 0 | AV55: 0 | AW55: 0 | AX55: 0 | AY55: 0 | AZ55: 0 | BA55: 0 | BB55: 0 | BC55: 0 | BD55: 0 | BE55: 0 | BG55: 0 | BH55: 0 | BI55: 0 | BJ55: 0 | BK55: 0 | BL55: 0 | BM55: 0 | BN55: 0 | BO55: 0 | BP55: 0 | BR55: =+IF($K55="Ongoing",AV55,IF(RIGHT($K55,2)=RIGHT(BR$39,2),SUM($AV55:AV55),0)+IF(RIGHT(BR$39,2)>RIGHT($K55,2),AV55,0)) -> 0 | BS55: =+IF($K55="Ongoing",AW55,IF(RIGHT($K55,2)=RIGHT(BS$39,2),SUM($AV55:AW55),0)+IF(RIGHT(BS$39,2)>RIGHT($K55,2),AW55,0)) -> 0 | BT55: =+IF($K55="Ongoing",AX55,IF(RIGHT($K55,2)=RIGHT(BT$39,2),SUM($AV55:AX55),0)+IF(RIGHT(BT$39,2)>RIGHT($K55,2),AX55,0)) -> 0 | BU55: =+IF($K55="Ongoing",AY55,IF(RIGHT($K55,2)=RIGHT(BU$39,2),SUM($AV55:AY55),0)+IF(RIGHT(BU$39,2)>RIGHT($K55,2),AY55,0)) -> 0 | BV55: =+IF($K55="Ongoing",AZ55,IF(RIGHT($K55,2)=RIGHT(BV$39,2),SUM($AV55:AZ55),0)+IF(RIGHT(BV$39,2)>RIGHT($K55,2),AZ55,0)) -> 0 | BW55: =+IF($K55="Ongoing",BA55,IF(RIGHT($K55,2)=RIGHT(BW$39,2),SUM($AV55:BA55),0)+IF(RIGHT(BW$39,2)>RIGHT($K55,2),BA55,0)) -> 0 | BX55: =+IF($K55="Ongoing",BB55,IF(RIGHT($K55,2)=RIGHT(BX$39,2),SUM($AV55:BB55),0)+IF(RIGHT(BX$39,2)>RIGHT($K55,2),BB55,0)) -> 0 | BY55: =+IF($K55="Ongoing",BC55,IF(RIGHT($K55,2)=RIGHT(BY$39,2),SUM($AV55:BC55),0)+IF(RIGHT(BY$39,2)>RIGHT($K55,2),BC55,0)) -> 0 | BZ55: =+IF($K55="Ongoing",BD55,IF(RIGHT($K55,2)=RIGHT(BZ$39,2),SUM($AV55:BD55),0)+IF(RIGHT(BZ$39,2)>RIGHT($K55,2),BD55,0)) -> 0 | CA55: =+IF($K55="Ongoing",BE55,IF(RIGHT($K55,2)=RIGHT(CA$39,2),SUM($AV55:BE55),0)+IF(RIGHT(CA$39,2)>RIGHT($K55,2),BE55,0)) -> 0 | CC55: =+O55*KeyAssumptionsPriceControl_FO!AC$15 -> 0 | CD55: =+P55*KeyAssumptionsPriceControl_FO!AD$15 -> 0 | CE55: =+Q55*KeyAssumptionsPriceControl_FO!AE$15 -> 0 | CF55: =+R55*KeyAssumptionsPriceControl_FO!AF$15 -> 0 | CG55: =+S55*KeyAssumptionsPriceControl_FO!AG$15 -> 0 | CH55: =+T55*KeyAssumptionsPriceControl_FO!AH$15 -> 0 | CI55: =+U55*KeyAssumptionsPriceControl_FO!AI$15 -> 0 | CJ55: =+V55*KeyAssumptionsPriceControl_FO!AJ$15 -> 0 | CK55: =+W55*KeyAssumptionsPriceControl_FO!AK$15 -> 0 | CL55: =+X55*KeyAssumptionsPriceControl_FO!AL$15 -> 0 | CN55: 0 | CO55: 0 | CP55: 0 | CQ55: 0 | CR55: 0 | CS55: 0 | CT55: 0 | CU55: 0 | CV55: 0 | CW55: 0
C56: ='[3]Capex_FO input'!C56 -> 0 | D56: ='[3]Capex_FO input'!D56 -> 0 | E56: ='[3]Capex_FO input'!E56 -> 0 | F56: ='[3]Capex_FO input'!F56 -> 0 | G56: ='[3]Capex_FO input'!G56 -> 0 | Z56: ='[3]Capex_FO input'!Z56 -> 0 | AA56: ='[3]Capex_FO input'!AA56 -> 0 | AB56: ='[3]Capex_FO input'!AB56 -> 0 | AC56: ='[3]Capex_FO input'!AC56 -> 0 | AD56: ='[3]Capex_FO input'!AD56 -> 0 | AE56: ='[3]Capex_FO input'!AE56 -> 0 | AF56: ='[3]Capex_FO input'!AF56 -> 0 | AG56: ='[3]Capex_FO input'!AG56 -> 0 | AH56: ='[3]Capex_FO input'!AH56 -> 0 | AI56: ='[3]Capex_FO input'!AI56 -> 0 | AK56: ='[3]Capex_FO input'!AK56 -> 0 | AL56: ='[3]Capex_FO input'!AL56 -> 0 | AM56: ='[3]Capex_FO input'!AM56 -> 0 | AN56: ='[3]Capex_FO input'!AN56 -> 0 | AO56: ='[3]Capex_FO input'!AO56 -> 0 | AP56: ='[3]Capex_FO input'!AP56 -> 0 | AQ56: ='[3]Capex_FO input'!AQ56 -> 0 | AR56: ='[3]Capex_FO input'!AR56 -> 0 | AS56: ='[3]Capex_FO input'!AS56 -> 0 | AT56: ='[3]Capex_FO input'!AT56 -> 0 | AV56: =+O56-Z56-AK56 -> 0 | AW56: =+P56-AA56-AL56 -> 0 | AX56: =+Q56-AB56-AM56 -> 0 | AY56: =+R56-AC56-AN56 -> 0 | AZ56: =+S56-AD56-AO56 -> 0 | BA56: =+T56-AE56-AP56 -> 0 | BB56: =+U56-AF56-AQ56 -> 0 | BC56: =+V56-AG56-AR56 -> 0 | BD56: =+W56-AH56-AS56 -> 0 | BE56: =+X56-AI56-AT56 -> 0 | BG56: =IF($L56=0,0, IF($L56<=0.5,BR56, IF($J56="straight line", IF((LEFT(BG$39,4)*1)-INT($L56)<LEFT($BG$39,4)*1,0,((OFFSET(BR56,0,-INT($L56+0.5),1,1))/$L56)*(IF($L56-INT($L56)>0.5,$L56-0.5-INT($L56),IF($L56-INT($L56)<=0.5,$L56-0.5-INT($L56)+1,0)))) +BR56/$L56*0.5, IF($J56="Declining Balance",-$BG$38,0)))) -> 0 | BH56: =IF($L56=0,0, IF($L56<=0.5,BS56, IF(AND($J56="straight line",$L56<1.51),(BR56-((BR56/$L56)*0.5))+BS56/$L56*0.5, IF($J56="straight line", IF((LEFT(BH$39,4)*1)-INT($L56)<LEFT($BG$39,4)*1,0,((OFFSET(BS56,0,-INT($L56+0.5),1,1))/$L56)*(IF($L56-INT($L56)>0.5,$L56-0.5-INT($L56),IF($L56-INT($L56)<=0.5,$L56-0.5-INT($L56)+1,0)))) +BS56/$L56*0.5 +SUM(OFFSET(BS56,0,MAX(-INT($L56+(0.5-(10^-12))),-BH$40)+1,1,MIN(INT($L56+(0.5-(10^-12))),BH$40)-1))*1/$L56, IF($J56="Declining Balance",-$BG$38,0))))) -> 0 | BI56: =IF($L56=0,0, IF($L56<=0.5,BT56, IF(AND($J56="straight line",$L56<1.51),(BS56-((BS56/$L56)*0.5))+BT56/$L56*0.5, IF($J56="straight line", IF((LEFT(BI$39,4)*1)-INT($L56)<LEFT($BG$39,4)*1,0,((OFFSET(BT56,0,-INT($L56+0.5),1,1))/$L56)*(IF($L56-INT($L56)>0.5,$L56-0.5-INT($L56),IF($L56-INT($L56)<=0.5,$L56-0.5-INT($L56)+1,0)))) +BT56/$L56*0.5 +SUM(OFFSET(BT56,0,MAX(-INT($L56+(0.5-(10^-12))),-BI$40)+1,1,MIN(INT($L56+(0.5-(10^-12))),BI$40)-1))*1/$L56, IF($J56="Declining Balance",-$BG$38,0))))) -> 0 | BJ56: =IF($L56=0,0, IF($L56<=0.5,BU56, IF(AND($J56="straight line",$L56<1.51),(BT56-((BT56/$L56)*0.5))+BU56/$L56*0.5, IF($J56="straight line", IF((LEFT(BJ$39,4)*1)-INT($L56)<LEFT($BG$39,4)*1,0,((OFFSET(BU56,0,-INT($L56+0.5),1,1))/$L56)*(IF($L56-INT($L56)>0.5,$L56-0.5-INT($L56),IF($L56-INT($L56)<=0.5,$L56-0.5-INT($L56)+1,0)))) +BU56/$L56*0.5 +SUM(OFFSET(BU56,0,MAX(-INT($L56+(0.5-(10^-12))),-BJ$40)+1,1,MIN(INT($L56+(0.5-(10^-12))),BJ$40)-1))*1/$L56, IF($J56="Declining Balance",-$BG$38,0))))) -> 0 | BK56: =IF($L56=0,0, IF($L56<=0.5,BV56, IF(AND($J56="straight line",$L56<1.51),(BU56-((BU56/$L56)*0.5))+BV56/$L56*0.5, IF($J56="straight line", IF((LEFT(BK$39,4)*1)-INT($L56)<LEFT($BG$39,4)*1,0,((OFFSET(BV56,0,-INT($L56+0.5),1,1))/$L56)*(IF($L56-INT($L56)>0.5,$L56-0.5-INT($L56),IF($L56-INT($L56)<=0.5,$L56-0.5-INT($L56)+1,0)))) +BV56/$L56*0.5 +SUM(OFFSET(BV56,0,MAX(-INT($L56+(0.5-(10^-12))),-BK$40)+1,1,MIN(INT($L56+(0.5-(10^-12))),BK$40)-1))*1/$L56, IF($J56="Declining Balance",-$BG$38,0))))) -> 0 | BL56: =IF($L56=0,0, IF($L56<=0.5,BW56, IF(AND($J56="straight line",$L56<1.51),(BV56-((BV56/$L56)*0.5))+BW56/$L56*0.5, IF($J56="straight line", IF((LEFT(BL$39,4)*1)-INT($L56)<LEFT($BG$39,4)*1,0,((OFFSET(BW56,0,-INT($L56+0.5),1,1))/$L56)*(IF($L56-INT($L56)>0.5,$L56-0.5-INT($L56),IF($L56-INT($L56)<=0.5,$L56-0.5-INT($L56)+1,0)))) +BW56/$L56*0.5 +SUM(OFFSET(BW56,0,MAX(-INT($L56+(0.5-(10^-12))),-BL$40)+1,1,MIN(INT($L56+(0.5-(10^-12))),BL$40)-1))*1/$L56, IF($J56="Declining Balance",-$BG$38,0))))) -> 0 | BM56: =IF($L56=0,0, IF($L56<=0.5,BX56, IF(AND($J56="straight line",$L56<1.51),(BW56-((BW56/$L56)*0.5))+BX56/$L56*0.5, IF($J56="straight line", IF((LEFT(BM$39,4)*1)-INT($L56)<LEFT($BG$39,4)*1,0,((OFFSET(BX56,0,-INT($L56+0.5),1,1))/$L56)*(IF($L56-INT($L56)>0.5,$L56-0.5-INT($L56),IF($L56-INT($L56)<=0.5,$L56-0.5-INT($L56)+1,0)))) +BX56/$L56*0.5 +SUM(OFFSET(BX56,0,MAX(-INT($L56+(0.5-(10^-12))),-BM$40)+1,1,MIN(INT($L56+(0.5-(10^-12))),BM$40)-1))*1/$L56, IF($J56="Declining Balance",-$BG$38,0))))) -> 0 | BN56: =IF($L56=0,0, IF($L56<=0.5,BY56, IF(AND($J56="straight line",$L56<1.51),(BX56-((BX56/$L56)*0.5))+BY56/$L56*0.5, IF($J56="straight line", IF((LEFT(BN$39,4)*1)-INT($L56)<LEFT($BG$39,4)*1,0,((OFFSET(BY56,0,-INT($L56+0.5),1,1))/$L56)*(IF($L56-INT($L56)>0.5,$L56-0.5-INT($L56),IF($L56-INT($L56)<=0.5,$L56-0.5-INT($L56)+1,0)))) +BY56/$L56*0.5 +SUM(OFFSET(BY56,0,MAX(-INT($L56+(0.5-(10^-12))),-BN$40)+1,1,MIN(INT($L56+(0.5-(10^-12))),BN$40)-1))*1/$L56, IF($J56="Declining Balance",-$BG$38,0))))) -> 0 | BO56: =IF($L56=0,0, IF($L56<=0.5,BZ56, IF(AND($J56="straight line",$L56<1.51),(BY56-((BY56/$L56)*0.5))+BZ56/$L56*0.5, IF($J56="straight line", IF((LEFT(BO$39,4)*1)-INT($L56)<LEFT($BG$39,4)*1,0,((OFFSET(BZ56,0,-INT($L56+0.5),1,1))/$L56)*(IF($L56-INT($L56)>0.5,$L56-0.5-INT($L56),IF($L56-INT($L56)<=0.5,$L56-0.5-INT($L56)+1,0)))) +BZ56/$L56*0.5 +SUM(OFFSET(BZ56,0,MAX(-INT($L56+(0.5-(10^-12))),-BO$40)+1,1,MIN(INT($L56+(0.5-(10^-12))),BO$40)-1))*1/$L56, IF($J56="Declining Balance",-$BG$38,0))))) -> 0 | BP56: =IF($L56=0,0, IF($L56<=0.5,CA56, IF(AND($J56="straight line",$L56<1.51),(BZ56-((BZ56/$L56)*0.5))+CA56/$L56*0.5, IF($J56="straight line", IF((LEFT(BP$39,4)*1)-INT($L56)<LEFT($BG$39,4)*1,0,((OFFSET(CA56,0,-INT($L56+0.5),1,1))/$L56)*(IF($L56-INT($L56)>0.5,$L56-0.5-INT($L56),IF($L56-INT($L56)<=0.5,$L56-0.5-INT($L56)+1,0)))) +CA56/$L56*0.5 +SUM(OFFSET(CA56,0,MAX(-INT($L56+(0.5-(10^-12))),-BP$40)+1,1,MIN(INT($L56+(0.5-(10^-12))),BP$40)-1))*1/$L56, IF($J56="Declining Balance",-$BG$38,0))))) -> 0 | BR56: =+IF($K56="Ongoing",AV56,IF(RIGHT($K56,2)=RIGHT(BR$39,2),SUM($AV56:AV56),0)+IF(RIGHT(BR$39,2)>RIGHT($K56,2),AV56,0)) -> 0 | BS56: =+IF($K56="Ongoing",AW56,IF(RIGHT($K56,2)=RIGHT(BS$39,2),SUM($AV56:AW56),0)+IF(RIGHT(BS$39,2)>RIGHT($K56,2),AW56,0)) -> 0 | BT56: =+IF($K56="Ongoing",AX56,IF(RIGHT($K56,2)=RIGHT(BT$39,2),SUM($AV56:AX56),0)+IF(RIGHT(BT$39,2)>RIGHT($K56,2),AX56,0)) -> 0 | BU56: =+IF($K56="Ongoing",AY56,IF(RIGHT($K56,2)=RIGHT(BU$39,2),SUM($AV56:AY56),0)+IF(RIGHT(BU$39,2)>RIGHT($K56,2),AY56,0)) -> 0 | BV56: =+IF($K56="Ongoing",AZ56,IF(RIGHT($K56,2)=RIGHT(BV$39,2),SUM($AV56:AZ56),0)+IF(RIGHT(BV$39,2)>RIGHT($K56,2),AZ56,0)) -> 0 | BW56: =+IF($K56="Ongoing",BA56,IF(RIGHT($K56,2)=RIGHT(BW$39,2),SUM($AV56:BA56),0)+IF(RIGHT(BW$39,2)>RIGHT($K56,2),BA56,0)) -> 0 | BX56: =+IF($K56="Ongoing",BB56,IF(RIGHT($K56,2)=RIGHT(BX$39,2),SUM($AV56:BB56),0)+IF(RIGHT(BX$39,2)>RIGHT($K56,2),BB56,0)) -> 0 | BY56: =+IF($K56="Ongoing",BC56,IF(RIGHT($K56,2)=RIGHT(BY$39,2),SUM($AV56:BC56),0)+IF(RIGHT(BY$39,2)>RIGHT($K56,2),BC56,0)) -> 0 | BZ56: =+IF($K56="Ongoing",BD56,IF(RIGHT($K56,2)=RIGHT(BZ$39,2),SUM($AV56:BD56),0)+IF(RIGHT(BZ$39,2)>RIGHT($K56,2),BD56,0)) -> 0 | CA56: =+IF($K56="Ongoing",BE56,IF(RIGHT($K56,2)=RIGHT(CA$39,2),SUM($AV56:BE56),0)+IF(RIGHT(CA$39,2)>RIGHT($K56,2),BE56,0)) -> 0 | CC56: =+O56*KeyAssumptionsPriceControl_FO!AC$15 -> 0 | CD56: =+P56*KeyAssumptionsPriceControl_FO!AD$15 -> 0 | CE56: =+Q56*KeyAssumptionsPriceControl_FO!AE$15 -> 0 | CF56: =+R56*KeyAssumptionsPriceControl_FO!AF$15 -> 0 | CG56: =+S56*KeyAssumptionsPriceControl_FO!AG$15 -> 0 | CH56: =+T56*KeyAssumptionsPriceControl_FO!AH$15 -> 0 | CI56: =+U56*KeyAssumptionsPriceControl_FO!AI$15 -> 0 | CJ56: =+V56*KeyAssumptionsPriceControl_FO!AJ$15 -> 0 | CK56: =+W56*KeyAssumptionsPriceControl_FO!AK$15 -> 0 | CL56: =+X56*KeyAssumptionsPriceControl_FO!AL$15 -> 0 | CN56: =IF($M56=0,0, IF($M56<=0.5,CC56, IF($J56="straight line", IF((LEFT(CN$39,4)*1)-INT($M56)<LEFT($CN$39,4)*1,0,((OFFSET(CC56,0,-INT($M56+0.5),1,1))/$M56)*(IF($M56-INT($M56)>0.5,$M56-0.5-INT($M56),IF($M56-INT($M56)<=0.5,$M56-0.5-INT($M56)+1,0)))) +CC56/$M56*0.5, IF($J56="Declining Balance",-$CN$38,0)))) -> 0 | CO56: =IF($M56=0,0, IF($M56<=0.5,CD56, IF(AND($J56="straight line",$M56<1.51),(CC56-((CC56/$M56)*0.5))+CD56/$M56*0.5, IF($J56="straight line", IF((LEFT(CO$39,4)*1)-INT($M56)<LEFT($CN$39,4)*1,0,((OFFSET(CD56,0,-INT($M56+0.5),1,1))/$M56)*(IF($M56-INT($M56)>0.5,$M56-0.5-INT($M56),IF($M56-INT($M56)<=0.5,$M56-0.5-INT($M56)+1,0)))) +CD56/$M56*0.5 +SUM(OFFSET(CD56,0,MAX(-INT($M56+(0.5-(10^-12))),-CO$40)+1,1,MIN(INT($M56+(0.5-(10^-12))),CO$40)-1))*1/$M56, IF($J56="Declining Balance",-$CN$38,0))))) -> 0 | CP56: =IF($M56=0,0, IF($M56<=0.5,CE56, IF(AND($J56="straight line",$M56<1.51),(CD56-((CD56/$M56)*0.5))+CE56/$M56*0.5, IF($J56="straight line", IF((LEFT(CP$39,4)*1)-INT($M56)<LEFT($CN$39,4)*1,0,((OFFSET(CE56,0,-INT($M56+0.5),1,1))/$M56)*(IF($M56-INT($M56)>0.5,$M56-0.5-INT($M56),IF($M56-INT($M56)<=0.5,$M56-0.5-INT($M56)+1,0)))) +CE56/$M56*0.5 +SUM(OFFSET(CE56,0,MAX(-INT($M56+(0.5-(10^-12))),-CP$40)+1,1,MIN(INT($M56+(0.5-(10^-12))),CP$40)-1))*1/$M56, IF($J56="Declining Balance",-$CN$38,0))))) -> 0 | CQ56: =IF($M56=0,0, IF($M56<=0.5,CF56, IF(AND($J56="straight line",$M56<1.51),(CE56-((CE56/$M56)*0.5))+CF56/$M56*0.5, IF($J56="straight line", IF((LEFT(CQ$39,4)*1)-INT($M56)<LEFT($CN$39,4)*1,0,((OFFSET(CF56,0,-INT($M56+0.5),1,1))/$M56)*(IF($M56-INT($M56)>0.5,$M56-0.5-INT($M56),IF($M56-INT($M56)<=0.5,$M56-0.5-INT($M56)+1,0)))) +CF56/$M56*0.5 +SUM(OFFSET(CF56,0,MAX(-INT($M56+(0.5-(10^-12))),-CQ$40)+1,1,MIN(INT($M56+(0.5-(10^-12))),CQ$40)-1))*1/$M56, IF($J56="Declining Balance",-$CN$38,0))))) -> 0 | CR56: =IF($M56=0,0, IF($M56<=0.5,CG56, IF(AND($J56="straight line",$M56<1.51),(CF56-((CF56/$M56)*0.5))+CG56/$M56*0.5, IF($J56="straight line", IF((LEFT(CR$39,4)*1)-INT($M56)<LEFT($CN$39,4)*1,0,((OFFSET(CG56,0,-INT($M56+0.5),1,1))/$M56)*(IF($M56-INT($M56)>0.5,$M56-0.5-INT($M56),IF($M56-INT($M56)<=0.5,$M56-0.5-INT($M56)+1,0)))) +CG56/$M56*0.5 +SUM(OFFSET(CG56,0,MAX(-INT($M56+(0.5-(10^-12))),-CR$40)+1,1,MIN(INT($M56+(0.5-(10^-12))),CR$40)-1))*1/$M56, IF($J56="Declining Balance",-$CN$38,0))))) -> 0 | CS56: =IF($M56=0,0, IF($M56<=0.5,CH56, IF(AND($J56="straight line",$M56<1.51),(CG56-((CG56/$M56)*0.5))+CH56/$M56*0.5, IF($J56="straight line", IF((LEFT(CS$39,4)*1)-INT($M56)<LEFT($CN$39,4)*1,0,((OFFSET(CH56,0,-INT($M56+0.5),1,1))/$M56)*(IF($M56-INT($M56)>0.5,$M56-0.5-INT($M56),IF($M56-INT($M56)<=0.5,$M56-0.5-INT($M56)+1,0)))) +CH56/$M56*0.5 +SUM(OFFSET(CH56,0,MAX(-INT($M56+(0.5-(10^-12))),-CS$40)+1,1,MIN(INT($M56+(0.5-(10^-12))),CS$40)-1))*1/$M56, IF($J56="Declining Balance",-$CN$38,0))))) -> 0 | CT56: =IF($M56=0,0, IF($M56<=0.5,CI56, IF(AND($J56="straight line",$M56<1.51),(CH56-((CH56/$M56)*0.5))+CI56/$M56*0.5, IF($J56="straight line", IF((LEFT(CT$39,4)*1)-INT($M56)<LEFT($CN$39,4)*1,0,((OFFSET(CI56,0,-INT($M56+0.5),1,1))/$M56)*(IF($M56-INT($M56)>0.5,$M56-0.5-INT($M56),IF($M56-INT($M56)<=0.5,$M56-0.5-INT($M56)+1,0)))) +CI56/$M56*0.5 +SUM(OFFSET(CI56,0,MAX(-INT($M56+(0.5-(10^-12))),-CT$40)+1,1,MIN(INT($M56+(0.5-(10^-12))),CT$40)-1))*1/$M56, IF($J56="Declining Balance",-$CN$38,0))))) -> 0 | CU56: =IF($M56=0,0, IF($M56<=0.5,CJ56, IF(AND($J56="straight line",$M56<1.51),(CI56-((CI56/$M56)*0.5))+CJ56/$M56*0.5, IF($J56="straight line", IF((LEFT(CU$39,4)*1)-INT($M56)<LEFT($CN$39,4)*1,0,((OFFSET(CJ56,0,-INT($M56+0.5),1,1))/$M56)*(IF($M56-INT($M56)>0.5,$M56-0.5-INT($M56),IF($M56-INT($M56)<=0.5,$M56-0.5-INT($M56)+1,0)))) +CJ56/$M56*0.5 +SUM(OFFSET(CJ56,0,MAX(-INT($M56+(0.5-(10^-12))),-CU$40)+1,1,MIN(INT($M56+(0.5-(10^-12))),CU$40)-1))*1/$M56, IF($J56="Declining Balance",-$CN$38,0))))) -> 0 | CV56: =IF($M56=0,0, IF($M56<=0.5,CK56, IF(AND($J56="straight line",$M56<1.51),(CJ56-((CJ56/$M56)*0.5))+CK56/$M56*0.5, IF($J56="straight line", IF((LEFT(CV$39,4)*1)-INT($M56)<LEFT($CN$39,4)*1,0,((OFFSET(CK56,0,-INT($M56+0.5),1,1))/$M56)*(IF($M56-INT($M56)>0.5,$M56-0.5-INT($M56),IF($M56-INT($M56)<=0.5,$M56-0.5-INT($M56)+1,0)))) +CK56/$M56*0.5 +SUM(OFFSET(CK56,0,MAX(-INT($M56+(0.5-(10^-12))),-CV$40)+1,1,MIN(INT($M56+(0.5-(10^-12))),CV$40)-1))*1/$M56, IF($J56="Declining Balance",-$CN$38,0))))) -> 0 | CW56: =IF($M56=0,0, IF($M56<=0.5,CL56, IF(AND($J56="straight line",$M56<1.51),(CK56-((CK56/$M56)*0.5))+CL56/$M56*0.5, IF($J56="straight line", IF((LEFT(CW$39,4)*1)-INT($M56)<LEFT($CN$39,4)*1,0,((OFFSET(CL56,0,-INT($M56+0.5),1,1))/$M56)*(IF($M56-INT($M56)>0.5,$M56-0.5-INT($M56),IF($M56-INT($M56)<=0.5,$M56-0.5-INT($M56)+1,0)))) +CL56/$M56*0.5 +SUM(OFFSET(CL56,0,MAX(-INT($M56+(0.5-(10^-12))),-CW$40)+1,1,MIN(INT($M56+(0.5-(10^-12))),CW$40)-1))*1/$M56, IF($J56="Declining Balance",-$CN$38,0))))) -> 0
C58: ='[3]Capex_FO input'!C58 -> [Capex Item - Significant Project / Capital Program / Other Capex] | D58: ='[3]Capex_FO input'!D58 -> 0 | E58: ='[3]Capex_FO input'!E58 -> [Service] | F58: ='[3]Capex_FO input'!F58 -> [Major Cost Driver] | G58: ='[3]Capex_FO input'!G58 -> [Asset category] | H58: ='[3]Capex_FO input'!H58 -> [Capital type] | I58: ='[3]Capex_FO input'!I58 -> 0 | J58: Straight line | K58: ='[3]Capex_FO input'!K58 -> [Year finalised?] | L58: ='[3]Capex_FO input'!L58 -> 0 | M58: ='[3]Capex_FO input'!M58 -> 0 | O58: ='[3]Capex_FO input'!O58 -> 0 | P58: ='[3]Capex_FO input'!P58 -> 0 | Q58: ='[3]Capex_FO input'!Q58 -> 0 | R58: ='[3]Capex_FO input'!R58 -> 0 | S58: ='[3]Capex_FO input'!S58 -> 0 | T58: ='[3]Capex_FO input'!T58 -> 0 | U58: ='[3]Capex_FO input'!U58 -> 0 | V58: ='[3]Capex_FO input'!V58 -> 0 | W58: ='[3]Capex_FO input'!W58 -> 0 | X58: ='[3]Capex_FO input'!X58 -> 0 | Z58: ='[3]Capex_FO input'!Z58 -> 0 | AA58: ='[3]Capex_FO input'!AA58 -> 0 | AB58: ='[3]Capex_FO input'!AB58 -> 0 | AC58: ='[3]Capex_FO input'!AC58 -> 0 | AD58: ='[3]Capex_FO input'!AD58 -> 0 | AE58: ='[3]Capex_FO input'!AE58 -> 0 | AF58: ='[3]Capex_FO input'!AF58 -> 0 | AG58: ='[3]Capex_FO input'!AG58 -> 0 | AH58: ='[3]Capex_FO input'!AH58 -> 0 | AI58: ='[3]Capex_FO input'!AI58 -> 0 | AK58: ='[3]Capex_FO input'!AK58 -> 0 | AL58: ='[3]Capex_FO input'!AL58 -> 0 | AM58: ='[3]Capex_FO input'!AM58 -> 0 | AN58: ='[3]Capex_FO input'!AN58 -> 0 | AO58: ='[3]Capex_FO input'!AO58 -> 0 | AP58: ='[3]Capex_FO input'!AP58 -> 0 | AQ58: ='[3]Capex_FO input'!AQ58 -> 0 | AR58: ='[3]Capex_FO input'!AR58 -> 0 | AS58: ='[3]Capex_FO input'!AS58 -> 0 | AT58: ='[3]Capex_FO input'!AT58 -> 0 | AV58: 0 | AW58: 0 | AX58: 0 | AY58: 0 | AZ58: 0 | BA58: 0 | BB58: 0 | BC58: 0 | BD58: 0 | BE58: 0 | BG58: 0 | BH58: 0 | BI58: 0 | BJ58: 0 | BK58: 0 | BL58: 0 | BM58: 0 | BN58: 0 | BO58: 0 | BP58: 0 | BR58: =+IF($K58="Ongoing",AV58,IF(RIGHT($K58,2)=RIGHT(BR$39,2),SUM($AV58:AV58),0)+IF(RIGHT(BR$39,2)>RIGHT($K58,2),AV58,0)) -> 0 | BS58: =+IF($K58="Ongoing",AW58,IF(RIGHT($K58,2)=RIGHT(BS$39,2),SUM($AV58:AW58),0)+IF(RIGHT(BS$39,2)>RIGHT($K58,2),AW58,0)) -> 0 | BT58: =+IF($K58="Ongoing",AX58,IF(RIGHT($K58,2)=RIGHT(BT$39,2),SUM($AV58:AX58),0)+IF(RIGHT(BT$39,2)>RIGHT($K58,2),AX58,0)) -> 0 | BU58: =+IF($K58="Ongoing",AY58,IF(RIGHT($K58,2)=RIGHT(BU$39,2),SUM($AV58:AY58),0)+IF(RIGHT(BU$39,2)>RIGHT($K58,2),AY58,0)) -> 0 | BV58: =+IF($K58="Ongoing",AZ58,IF(RIGHT($K58,2)=RIGHT(BV$39,2),SUM($AV58:AZ58),0)+IF(RIGHT(BV$39,2)>RIGHT($K58,2),AZ58,0)) -> 0 | BW58: =+IF($K58="Ongoing",BA58,IF(RIGHT($K58,2)=RIGHT(BW$39,2),SUM($AV58:BA58),0)+IF(RIGHT(BW$39,2)>RIGHT($K58,2),BA58,0)) -> 0 | BX58: =+IF($K58="Ongoing",BB58,IF(RIGHT($K58,2)=RIGHT(BX$39,2),SUM($AV58:BB58),0)+IF(RIGHT(BX$39,2)>RIGHT($K58,2),BB58,0)) -> 0 | BY58: =+IF($K58="Ongoing",BC58,IF(RIGHT($K58,2)=RIGHT(BY$39,2),SUM($AV58:BC58),0)+IF(RIGHT(BY$39,2)>RIGHT($K58,2),BC58,0)) -> 0 | BZ58: =+IF($K58="Ongoing",BD58,IF(RIGHT($K58,2)=RIGHT(BZ$39,2),SUM($AV58:BD58),0)+IF(RIGHT(BZ$39,2)>RIGHT($K58,2),BD58,0)) -> 0 | CA58: =+IF($K58="Ongoing",BE58,IF(RIGHT($K58,2)=RIGHT(CA$39,2),SUM($AV58:BE58),0)+IF(RIGHT(CA$39,2)>RIGHT($K58,2),BE58,0)) -> 0 | CC58: =+O58*KeyAssumptionsPriceControl_FO!AC$15 -> 0 | CD58: =+P58*KeyAssumptionsPriceControl_FO!AD$15 -> 0 | CE58: =+Q58*KeyAssumptionsPriceControl_FO!AE$15 -> 0 | CF58: =+R58*KeyAssumptionsPriceControl_FO!AF$15 -> 0 | CG58: =+S58*KeyAssumptionsPriceControl_FO!AG$15 -> 0 | CH58: =+T58*KeyAssumptionsPriceControl_FO!AH$15 -> 0 | CI58: =+U58*KeyAssumptionsPriceControl_FO!AI$15 -> 0 | CJ58: =+V58*KeyAssumptionsPriceControl_FO!AJ$15 -> 0 | CK58: =+W58*KeyAssumptionsPriceControl_FO!AK$15 -> 0 | CL58: =+X58*KeyAssumptionsPriceControl_FO!AL$15 -> 0 | CN58: 0 | CO58: 0 | CP58: 0 | CQ58: 0 | CR58: 0 | CS58: 0 | CT58: 0 | CU58: 0 | CV58: 0 | CW58: 0
C59: ='[3]Capex_FO input'!C59 -> Ongoing capital programs | D59: ='[3]Capex_FO input'!D59 -> 0 | E59: ='[3]Capex_FO input'!E59 -> 0 | F59: ='[3]Capex_FO input'!F59 -> 0 | G59: ='[3]Capex_FO input'!G59 -> 0 | H59: ='[3]Capex_FO input'!H59 -> 0 | I59: ='[3]Capex_FO input'!I59 -> 0 | J59: Straight line | K59: ='[3]Capex_FO input'!K59 -> 0 | L59: ='[3]Capex_FO input'!L59 -> 0 | M59: ='[3]Capex_FO input'!M59 -> 0 | O59: ='[3]Capex_FO input'!O59 -> 0 | P59: ='[3]Capex_FO input'!P59 -> 0 | Q59: ='[3]Capex_FO input'!Q59 -> 0 | R59: ='[3]Capex_FO input'!R59 -> 0 | S59: ='[3]Capex_FO input'!S59 -> 0 | T59: ='[3]Capex_FO input'!T59 -> 0 | U59: ='[3]Capex_FO input'!U59 -> 0 | V59: ='[3]Capex_FO input'!V59 -> 0 | W59: ='[3]Capex_FO input'!W59 -> 0 | X59: ='[3]Capex_FO input'!X59 -> 0 | Z59: ='[3]Capex_FO input'!Z59 -> 0 | AA59: ='[3]Capex_FO input'!AA59 -> 0 | AB59: ='[3]Capex_FO input'!AB59 -> 0 | AC59: ='[3]Capex_FO input'!AC59 -> 0 | AD59: ='[3]Capex_FO input'!AD59 -> 0 | AE59: ='[3]Capex_FO input'!AE59 -> 0 | AF59: ='[3]Capex_FO input'!AF59 -> 0 | AG59: ='[3]Capex_FO input'!AG59 -> 0 | AH59: ='[3]Capex_FO input'!AH59 -> 0 | AI59: ='[3]Capex_FO input'!AI59 -> 0 | AK59: ='[3]Capex_FO input'!AK59 -> 0 | AL59: ='[3]Capex_FO input'!AL59 -> 0 | AM59: ='[3]Capex_FO input'!AM59 -> 0 | AN59: ='[3]Capex_FO input'!AN59 -> 0 | AO59: ='[3]Capex_FO input'!AO59 -> 0 | AP59: ='[3]Capex_FO input'!AP59 -> 0 | AQ59: ='[3]Capex_FO input'!AQ59 -> 0 | AR59: ='[3]Capex_FO input'!AR59 -> 0 | AS59: ='[3]Capex_FO input'!AS59 -> 0 | AT59: ='[3]Capex_FO input'!AT59 -> 0 | AV59: 0 | AW59: 0 | AX59: 0 | AY59: 0 | AZ59: 0 | BA59: 0 | BB59: 0 | BC59: 0 | BD59: 0 | BE59: 0 | BG59: 0 | BH59: 0 | BI59: 0 | BJ59: 0 | BK59: 0 | BL59: 0 | BM59: 0 | BN59: 0 | BO59: 0 | BP59: 0 | BR59: =+IF($K59="Ongoing",AV59,IF(RIGHT($K59,2)=RIGHT(BR$39,2),SUM($AV59:AV59),0)+IF(RIGHT(BR$39,2)>RIGHT($K59,2),AV59,0)) -> 0 | BS59: =+IF($K59="Ongoing",AW59,IF(RIGHT($K59,2)=RIGHT(BS$39,2),SUM($AV59:AW59),0)+IF(RIGHT(BS$39,2)>RIGHT($K59,2),AW59,0)) -> 0 | BT59: =+IF($K59="Ongoing",AX59,IF(RIGHT($K59,2)=RIGHT(BT$39,2),SUM($AV59:AX59),0)+IF(RIGHT(BT$39,2)>RIGHT($K59,2),AX59,0)) -> 0 | BU59: =+IF($K59="Ongoing",AY59,IF(RIGHT($K59,2)=RIGHT(BU$39,2),SUM($AV59:AY59),0)+IF(RIGHT(BU$39,2)>RIGHT($K59,2),AY59,0)) -> 0 | BV59: =+IF($K59="Ongoing",AZ59,IF(RIGHT($K59,2)=RIGHT(BV$39,2),SUM($AV59:AZ59),0)+IF(RIGHT(BV$39,2)>RIGHT($K59,2),AZ59,0)) -> 0 | BW59: =+IF($K59="Ongoing",BA59,IF(RIGHT($K59,2)=RIGHT(BW$39,2),SUM($AV59:BA59),0)+IF(RIGHT(BW$39,2)>RIGHT($K59,2),BA59,0)) -> 0 | BX59: =+IF($K59="Ongoing",BB59,IF(RIGHT($K59,2)=RIGHT(BX$39,2),SUM($AV59:BB59),0)+IF(RIGHT(BX$39,2)>RIGHT($K59,2),BB59,0)) -> 0 | BY59: =+IF($K59="Ongoing",BC59,IF(RIGHT($K59,2)=RIGHT(BY$39,2),SUM($AV59:BC59),0)+IF(RIGHT(BY$39,2)>RIGHT($K59,2),BC59,0)) -> 0 | BZ59: =+IF($K59="Ongoing",BD59,IF(RIGHT($K59,2)=RIGHT(BZ$39,2),SUM($AV59:BD59),0)+IF(RIGHT(BZ$39,2)>RIGHT($K59,2),BD59,0)) -> 0 | CA59: =+IF($K59="Ongoing",BE59,IF(RIGHT($K59,2)=RIGHT(CA$39,2),SUM($AV59:BE59),0)+IF(RIGHT(CA$39,2)>RIGHT($K59,2),BE59,0)) -> 0 | CC59: =+O59*KeyAssumptionsPriceControl_FO!AC$15 -> 0 | CD59: =+P59*KeyAssumptionsPriceControl_FO!AD$15 -> 0 | CE59: =+Q59*KeyAssumptionsPriceControl_FO!AE$15 -> 0 | CF59: =+R59*KeyAssumptionsPriceControl_FO!AF$15 -> 0 | CG59: =+S59*KeyAssumptionsPriceControl_FO!AG$15 -> 0 | CH59: =+T59*KeyAssumptionsPriceControl_FO!AH$15 -> 0 | CI59: =+U59*KeyAssumptionsPriceControl_FO!AI$15 -> 0 | CJ59: =+V59*KeyAssumptionsPriceControl_FO!AJ$15 -> 0 | CK59: =+W59*KeyAssumptionsPriceControl_FO!AK$15 -> 0 | CL59: =+X59*KeyAssumptionsPriceControl_FO!AL$15 -> 0 | CN59: 0 | CO59: 0 | CP59: 0 | CQ59: 0 | CR59: 0 | CS59: 0 | CT59: 0 | CU59: 0 | CV59: 0 | CW59: 0
C60: ='[3]Capex_FO input'!C60 -> Upgrade Metermade | D60: ='[3]Capex_FO input'!D60 -> 0 | E60: ='[3]Capex_FO input'!E60 -> Irrigation | F60: ='[3]Capex_FO input'!F60 -> Renewals | G60: ='[3]Capex_FO input'!G60 -> Pipelines/network | H60: ='[3]Capex_FO input'!H60 -> Capital Programs / Allocation | I60: ='[3]Capex_FO input'!I60 -> 0 | J60: Straight line | K60: ='[3]Capex_FO input'!K60 -> 2030-31 | L60: ='[3]Capex_FO input'!L60 -> 5 | M60: ='[3]Capex_FO input'!M60 -> 6.666666667 | O60: ='[3]Capex_FO input'!O60 -> 0 | P60: ='[3]Capex_FO input'!P60 -> 0 | Q60: ='[3]Capex_FO input'!Q60 -> 0 | R60: ='[3]Capex_FO input'!R60 -> 0 | S60: ='[3]Capex_FO input'!S60 -> 0 | T60: ='[3]Capex_FO input'!T60 -> 1 | U60: ='[3]Capex_FO input'!U60 -> 1 | V60: ='[3]Capex_FO input'!V60 -> 1 | W60: ='[3]Capex_FO input'!W60 -> 0 | X60: ='[3]Capex_FO input'!X60 -> 0 | Z60: ='[3]Capex_FO input'!Z60 -> 0 | AA60: ='[3]Capex_FO input'!AA60 -> 0 | AB60: ='[3]Capex_FO input'!AB60 -> 0 | AC60: ='[3]Capex_FO input'!AC60 -> 0 | AD60: ='[3]Capex_FO input'!AD60 -> 0 | AE60: ='[3]Capex_FO input'!AE60 -> 0 | AF60: ='[3]Capex_FO input'!AF60 -> 0 | AG60: ='[3]Capex_FO input'!AG60 -> 0 | AH60: ='[3]Capex_FO input'!AH60 -> 0 | AI60: ='[3]Capex_FO input'!AI60 -> 0 | AK60: ='[3]Capex_FO input'!AK60 -> 0 | AL60: ='[3]Capex_FO input'!AL60 -> 0 | AM60: ='[3]Capex_FO input'!AM60 -> 0 | AN60: ='[3]Capex_FO input'!AN60 -> 0 | AO60: ='[3]Capex_FO input'!AO60 -> 0 | AP60: ='[3]Capex_FO input'!AP60 -> 0 | AQ60: ='[3]Capex_FO input'!AQ60 -> 0 | AR60: ='[3]Capex_FO input'!AR60 -> 0 | AS60: ='[3]Capex_FO input'!AS60 -> 0 | AT60: ='[3]Capex_FO input'!AT60 -> 0 | AV60: 0 | AW60: 0 | AX60: 0 | AY60: 0 | AZ60: 0 | BA60: 1 | BB60: 1 | BC60: 1 | BD60: 0 | BE60: 0 | BG60: 0 | BH60: 0 | BI60: 0 | BJ60: 0 | BK60: 0 | BL60: 0 | BM60: 0 | BN60: 0.3 | BO60: 0.6 | BP60: 0.6 | BR60: =+IF($K60="Ongoing",AV60,IF(RIGHT($K60,2)=RIGHT(BR$39,2),SUM($AV60:AV60),0)+IF(RIGHT(BR$39,2)>RIGHT($K60,2),AV60,0)) -> 0 | BS60: =+IF($K60="Ongoing",AW60,IF(RIGHT($K60,2)=RIGHT(BS$39,2),SUM($AV60:AW60),0)+IF(RIGHT(BS$39,2)>RIGHT($K60,2),AW60,0)) -> 0 | BT60: =+IF($K60="Ongoing",AX60,IF(RIGHT($K60,2)=RIGHT(BT$39,2),SUM($AV60:AX60),0)+IF(RIGHT(BT$39,2)>RIGHT($K60,2),AX60,0)) -> 0 | BU60: =+IF($K60="Ongoing",AY60,IF(RIGHT($K60,2)=RIGHT(BU$39,2),SUM($AV60:AY60),0)+IF(RIGHT(BU$39,2)>RIGHT($K60,2),AY60,0)) -> 0 | BV60: =+IF($K60="Ongoing",AZ60,IF(RIGHT($K60,2)=RIGHT(BV$39,2),SUM($AV60:AZ60),0)+IF(RIGHT(BV$39,2)>RIGHT($K60,2),AZ60,0)) -> 0 | BW60: =+IF($K60="Ongoing",BA60,IF(RIGHT($K60,2)=RIGHT(BW$39,2),SUM($AV60:BA60),0)+IF(RIGHT(BW$39,2)>RIGHT($K60,2),BA60,0)) -> 0 | BX60: =+IF($K60="Ongoing",BB60,IF(RIGHT($K60,2)=RIGHT(BX$39,2),SUM($AV60:BB60),0)+IF(RIGHT(BX$39,2)>RIGHT($K60,2),BB60,0)) -> 0 | BY60: =+IF($K60="Ongoing",BC60,IF(RIGHT($K60,2)=RIGHT(BY$39,2),SUM($AV60:BC60),0)+IF(RIGHT(BY$39,2)>RIGHT($K60,2),BC60,0)) -> 3 | BZ60: =+IF($K60="Ongoing",BD60,IF(RIGHT($K60,2)=RIGHT(BZ$39,2),SUM($AV60:BD60),0)+IF(RIGHT(BZ$39,2)>RIGHT($K60,2),BD60,0)) -> 0 | CA60: =+IF($K60="Ongoing",BE60,IF(RIGHT($K60,2)=RIGHT(CA$39,2),SUM($AV60:BE60),0)+IF(RIGHT(CA$39,2)>RIGHT($K60,2),BE60,0)) -> 0 | CC60: =+O60*KeyAssumptionsPriceControl_FO!AC$15 -> 0 | CD60: =+P60*KeyAssumptionsPriceControl_FO!AD$15 -> 0 | CE60: =+Q60*KeyAssumptionsPriceControl_FO!AE$15 -> 0 | CF60: =+R60*KeyAssumptionsPriceControl_FO!AF$15 -> 0 | CG60: =+S60*KeyAssumptionsPriceControl_FO!AG$15 -> 0 | CH60: =+T60*KeyAssumptionsPriceControl_FO!AH$15 -> 1.194052297 | CI60: =+U60*KeyAssumptionsPriceControl_FO!AI$15 -> 1.229873865 | CJ60: =+V60*KeyAssumptionsPriceControl_FO!AJ$15 -> 1.266770081 | CK60: =+W60*KeyAssumptionsPriceControl_FO!AK$15 -> 0 | CL60: =+X60*KeyAssumptionsPriceControl_FO!AL$15 -> 0 | CN60: 0 | CO60: 0 | CP60: 0 | CQ60: 0 | CR60: 0 | CS60: 0.08955392224 | CT60: 0.2713483844 | CU60: 0.4585966804 | CV60: 0.5536044365 | CW60: 0.5536044365
C61: ='[3]Capex_FO input'!C61 -> LMW Control Network Systems - Rural OT Firewall Install | D61: ='[3]Capex_FO input'!D61 -> 0 | E61: ='[3]Capex_FO input'!E61 -> Irrigation | F61: ='[3]Capex_FO input'!F61 -> Renewals | G61: ='[3]Capex_FO input'!G61 -> Pipelines/network | H61: ='[3]Capex_FO input'!H61 -> Capital Programs / Allocation | I61: ='[3]Capex_FO input'!I61 -> 0 | J61: Straight line | K61: ='[3]Capex_FO input'!K61 -> 2023-24 | L61: ='[3]Capex_FO input'!L61 -> 45 | M61: ='[3]Capex_FO input'!M61 -> 22.22222222 | O61: ='[3]Capex_FO input'!O61 -> 0.157 | P61: ='[3]Capex_FO input'!P61 -> 0 | Q61: ='[3]Capex_FO input'!Q61 -> 0 | R61: ='[3]Capex_FO input'!R61 -> 0 | S61: ='[3]Capex_FO input'!S61 -> 0 | T61: ='[3]Capex_FO input'!T61 -> 0 | U61: ='[3]Capex_FO input'!U61 -> 0 | V61: ='[3]Capex_FO input'!V61 -> 0 | W61: ='[3]Capex_FO input'!W61 -> 0 | X61: ='[3]Capex_FO input'!X61 -> 0 | Z61: ='[3]Capex_FO input'!Z61 -> 0 | AA61: ='[3]Capex_FO input'!AA61 -> 0 | AB61: ='[3]Capex_FO input'!AB61 -> 0 | AC61: ='[3]Capex_FO input'!AC61 -> 0 | AD61: ='[3]Capex_FO input'!AD61 -> 0 | AE61: ='[3]Capex_FO input'!AE61 -> 0 | AF61: ='[3]Capex_FO input'!AF61 -> 0 | AG61: ='[3]Capex_FO input'!AG61 -> 0 | AH61: ='[3]Capex_FO input'!AH61 -> 0 | AI61: ='[3]Capex_FO input'!AI61 -> 0 | AK61: ='[3]Capex_FO input'!AK61 -> 0 | AL61: ='[3]Capex_FO input'!AL61 -> 0 | AM61: ='[3]Capex_FO input'!AM61 -> 0 | AN61: ='[3]Capex_FO input'!AN61 -> 0 | AO61: ='[3]Capex_FO input'!AO61 -> 0 | AP61: ='[3]Capex_FO input'!AP61 -> 0 | AQ61: ='[3]Capex_FO input'!AQ61 -> 0 | AR61: ='[3]Capex_FO input'!AR61 -> 0 | AS61: ='[3]Capex_FO input'!AS61 -> 0 | AT61: ='[3]Capex_FO input'!AT61 -> 0 | AV61: 0.157 | AW61: 0 | AX61: 0 | AY61: 0 | AZ61: 0 | BA61: 0 | BB61: 0 | BC61: 0 | BD61: 0 | BE61: 0 | BG61: 0.001744444444 | BH61: 0.003488888889 | BI61: 0.003488888889 | BJ61: 0.003488888889 | BK61: 0.003488888889 | BL61: 0.003488888889 | BM61: 0.003488888889 | BN61: 0.003488888889 | BO61: 0.003488888889 | BP61: 0.003488888889 | BR61: =+IF($K61="Ongoing",AV61,IF(RIGHT($K61,2)=RIGHT(BR$39,2),SUM($AV61:AV61),0)+IF(RIGHT(BR$39,2)>RIGHT($K61,2),AV61,0)) -> 0.157 | BS61: =+IF($K61="Ongoing",AW61,IF(RIGHT($K61,2)=RIGHT(BS$39,2),SUM($AV61:AW61),0)+IF(RIGHT(BS$39,2)>RIGHT($K61,2),AW61,0)) -> 0 | BT61: =+IF($K61="Ongoing",AX61,IF(RIGHT($K61,2)=RIGHT(BT$39,2),SUM($AV61:AX61),0)+IF(RIGHT(BT$39,2)>RIGHT($K61,2),AX61,0)) -> 0 | BU61: =+IF($K61="Ongoing",AY61,IF(RIGHT($K61,2)=RIGHT(BU$39,2),SUM($AV61:AY61),0)+IF(RIGHT(BU$39,2)>RIGHT($K61,2),AY61,0)) -> 0 | BV61: =+IF($K61="Ongoing",AZ61,IF(RIGHT($K61,2)=RIGHT(BV$39,2),SUM($AV61:AZ61),0)+IF(RIGHT(BV$39,2)>RIGHT($K61,2),AZ61,0)) -> 0 | BW61: =+IF($K61="Ongoing",BA61,IF(RIGHT($K61,2)=RIGHT(BW$39,2),SUM($AV61:BA61),0)+IF(RIGHT(BW$39,2)>RIGHT($K61,2),BA61,0)) -> 0 | BX61: =+IF($K61="Ongoing",BB61,IF(RIGHT($K61,2)=RIGHT(BX$39,2),SUM($AV61:BB61),0)+IF(RIGHT(BX$39,2)>RIGHT($K61,2),BB61,0)) -> 0 | BY61: =+IF($K61="Ongoing",BC61,IF(RIGHT($K61,2)=RIGHT(BY$39,2),SUM($AV61:BC61),0)+IF(RIGHT(BY$39,2)>RIGHT($K61,2),BC61,0)) -> 0 | BZ61: =+IF($K61="Ongoing",BD61,IF(RIGHT($K61,2)=RIGHT(BZ$39,2),SUM($AV61:BD61),0)+IF(RIGHT(BZ$39,2)>RIGHT($K61,2),BD61,0)) -> 0 | CA61: =+IF($K61="Ongoing",BE61,IF(RIGHT($K61,2)=RIGHT(CA$39,2),SUM($AV61:BE61),0)+IF(RIGHT(CA$39,2)>RIGHT($K61,2),BE61,0)) -> 0 | CC61: =+O61*KeyAssumptionsPriceControl_FO!AC$15 -> 0.16171 | CD61: =+P61*KeyAssumptionsPriceControl_FO!AD$15 -> 0 | CE61: =+Q61*KeyAssumptionsPriceControl_FO!AE$15 -> 0 | CF61: =+R61*KeyAssumptionsPriceControl_FO!AF$15 -> 0 | CG61: =+S61*KeyAssumptionsPriceControl_FO!AG$15 -> 0 | CH61: =+T61*KeyAssumptionsPriceControl_FO!AH$15 -> 0 | CI61: =+U61*KeyAssumptionsPriceControl_FO!AI$15 -> 0 | CJ61: =+V61*KeyAssumptionsPriceControl_FO!AJ$15 -> 0 | CK61: =+W61*KeyAssumptionsPriceControl_FO!AK$15 -> 0 | CL61: =+X61*KeyAssumptionsPriceControl_FO!AL$15 -> 0 | CN61: 0.003638475 | CO61: 0.00727695 | CP61: 0.00727695 | CQ61: 0.00727695 | CR61: 0.00727695 | CS61: 0.00727695 | CT61: 0.00727695 | CU61: 0.00727695 | CV61: 0.00727695 | CW61: 0.00727695
C62: ='[3]Capex_FO input'!C62 -> Upgrade Control System - Rubicon | D62: ='[3]Capex_FO input'!D62 -> 0 | E62: ='[3]Capex_FO input'!E62 -> Irrigation | F62: ='[3]Capex_FO input'!F62 -> Renewals | G62: ='[3]Capex_FO input'!G62 -> Pipelines/network | H62: ='[3]Capex_FO input'!H62 -> Capital Programs / Allocation | I62: ='[3]Capex_FO input'!I62 -> 0 | J62: Straight line | K62: ='[3]Capex_FO input'!K62 -> 2032-33 | L62: ='[3]Capex_FO input'!L62 -> 15 | M62: ='[3]Capex_FO input'!M62 -> 6.666666667 | O62: ='[3]Capex_FO input'!O62 -> 0 | P62: ='[3]Capex_FO input'!P62 -> 0 | Q62: ='[3]Capex_FO input'!Q62 -> 0 | R62: ='[3]Capex_FO input'!R62 -> 0 | S62: ='[3]Capex_FO input'!S62 -> 0 | T62: ='[3]Capex_FO input'!T62 -> 0 | U62: ='[3]Capex_FO input'!U62 -> 0 | V62: ='[3]Capex_FO input'!V62 -> 0 | W62: ='[3]Capex_FO input'!W62 -> 1 | X62: ='[3]Capex_FO input'!X62 -> 1 | Z62: ='[3]Capex_FO input'!Z62 -> 0 | AA62: ='[3]Capex_FO input'!AA62 -> 0 | AB62: ='[3]Capex_FO input'!AB62 -> 0 | AC62: ='[3]Capex_FO input'!AC62 -> 0 | AD62: ='[3]Capex_FO input'!AD62 -> 0 | AE62: ='[3]Capex_FO input'!AE62 -> 0 | AF62: ='[3]Capex_FO input'!AF62 -> 0 | AG62: ='[3]Capex_FO input'!AG62 -> 0 | AH62: ='[3]Capex_FO input'!AH62 -> 0 | AI62: ='[3]Capex_FO input'!AI62 -> 0 | AK62: ='[3]Capex_FO input'!AK62 -> 0 | AL62: ='[3]Capex_FO input'!AL62 -> 0 | AM62: ='[3]Capex_FO input'!AM62 -> 0 | AN62: ='[3]Capex_FO input'!AN62 -> 0 | AO62: ='[3]Capex_FO input'!AO62 -> 0 | AP62: ='[3]Capex_FO input'!AP62 -> 0 | AQ62: ='[3]Capex_FO input'!AQ62 -> 0 | AR62: ='[3]Capex_FO input'!AR62 -> 0 | AS62: ='[3]Capex_FO input'!AS62 -> 0 | AT62: ='[3]Capex_FO input'!AT62 -> 0 | AV62: 0 | AW62: 0 | AX62: 0 | AY62: 0 | AZ62: 0 | BA62: 0 | BB62: 0 | BC62: 0 | BD62: 1 | BE62: 1 | BG62: 0 | BH62: 0 | BI62: 0 | BJ62: 0 | BK62: 0 | BL62: 0 | BM62: 0 | BN62: 0 | BO62: 0 | BP62: 0.06666666667 | BR62: =+IF($K62="Ongoing",AV62,IF(RIGHT($K62,2)=RIGHT(BR$39,2),SUM($AV62:AV62),0)+IF(RIGHT(BR$39,2)>RIGHT($K62,2),AV62,0)) -> 0 | BS62: =+IF($K62="Ongoing",AW62,IF(RIGHT($K62,2)=RIGHT(BS$39,2),SUM($AV62:AW62),0)+IF(RIGHT(BS$39,2)>RIGHT($K62,2),AW62,0)) -> 0 | BT62: =+IF($K62="Ongoing",AX62,IF(RIGHT($K62,2)=RIGHT(BT$39,2),SUM($AV62:AX62),0)+IF(RIGHT(BT$39,2)>RIGHT($K62,2),AX62,0)) -> 0 | BU62: =+IF($K62="Ongoing",AY62,IF(RIGHT($K62,2)=RIGHT(BU$39,2),SUM($AV62:AY62),0)+IF(RIGHT(BU$39,2)>RIGHT($K62,2),AY62,0)) -> 0 | BV62: =+IF($K62="Ongoing",AZ62,IF(RIGHT($K62,2)=RIGHT(BV$39,2),SUM($AV62:AZ62),0)+IF(RIGHT(BV$39,2)>RIGHT($K62,2),AZ62,0)) -> 0 | BW62: =+IF($K62="Ongoing",BA62,IF(RIGHT($K62,2)=RIGHT(BW$39,2),SUM($AV62:BA62),0)+IF(RIGHT(BW$39,2)>RIGHT($K62,2),BA62,0)) -> 0 | BX62: =+IF($K62="Ongoing",BB62,IF(RIGHT($K62,2)=RIGHT(BX$39,2),SUM($AV62:BB62),0)+IF(RIGHT(BX$39,2)>RIGHT($K62,2),BB62,0)) -> 0 | BY62: =+IF($K62="Ongoing",BC62,IF(RIGHT($K62,2)=RIGHT(BY$39,2),SUM($AV62:BC62),0)+IF(RIGHT(BY$39,2)>RIGHT($K62,2),BC62,0)) -> 0 | BZ62: =+IF($K62="Ongoing",BD62,IF(RIGHT($K62,2)=RIGHT(BZ$39,2),SUM($AV62:BD62),0)+IF(RIGHT(BZ$39,2)>RIGHT($K62,2),BD62,0)) -> 0 | CA62: =+IF($K62="Ongoing",BE62,IF(RIGHT($K62,2)=RIGHT(CA$39,2),SUM($AV62:BE62),0)+IF(RIGHT(CA$39,2)>RIGHT($K62,2),BE62,0)) -> 2 | CC62: =+O62*KeyAssumptionsPriceControl_FO!AC$15 -> 0 | CD62: =+P62*KeyAssumptionsPriceControl_FO!AD$15 -> 0 | CE62: =+Q62*KeyAssumptionsPriceControl_FO!AE$15 -> 0 | CF62: =+R62*KeyAssumptionsPriceControl_FO!AF$15 -> 0 | CG62: =+S62*KeyAssumptionsPriceControl_FO!AG$15 -> 0 | CH62: =+T62*KeyAssumptionsPriceControl_FO!AH$15 -> 0 | CI62: =+U62*KeyAssumptionsPriceControl_FO!AI$15 -> 0 | CJ62: =+V62*KeyAssumptionsPriceControl_FO!AJ$15 -> 0 | CK62: =+W62*KeyAssumptionsPriceControl_FO!AK$15 -> 1.304773184 | CL62: =+X62*KeyAssumptionsPriceControl_FO!AL$15 -> 1.343916379 | CN62: 0 | CO62: 0 | CP62: 0 | CQ62: 0 | CR62: 0 | CS62: 0 | CT62: 0 | CU62: 0 | CV62: 0.09785798879 | CW62: 0.296509706
C63: ='[3]Capex_FO input'!C63 -> MER Minor Capital - New | D63: ='[3]Capex_FO input'!D63 -> 0 | E63: ='[3]Capex_FO input'!E63 -> Irrigation | F63: ='[3]Capex_FO input'!F63 -> Improvements / Compliance | G63: ='[3]Capex_FO input'!G63 -> Pipelines/network | H63: ='[3]Capex_FO input'!H63 -> Capital Programs / Allocation | I63: ='[3]Capex_FO input'!I63 -> 0 | J63: Straight line | K63: ='[3]Capex_FO input'!K63 -> Ongoing | L63: ='[3]Capex_FO input'!L63 -> 45 | M63: ='[3]Capex_FO input'!M63 -> 22.22222222 | O63: ='[3]Capex_FO input'!O63 -> 0.095 | P63: ='[3]Capex_FO input'!P63 -> 0.095 | Q63: ='[3]Capex_FO input'!Q63 -> 0.095 | R63: ='[3]Capex_FO input'!R63 -> 0.095 | S63: ='[3]Capex_FO input'!S63 -> 0.095 | T63: ='[3]Capex_FO input'!T63 -> 0.1 | U63: ='[3]Capex_FO input'!U63 -> 0.1 | V63: ='[3]Capex_FO input'!V63 -> 0.1 | W63: ='[3]Capex_FO input'!W63 -> 0.1 | X63: ='[3]Capex_FO input'!X63 -> 0.1 | Z63: ='[3]Capex_FO input'!Z63 -> 0 | AA63: ='[3]Capex_FO input'!AA63 -> 0 | AB63: ='[3]Capex_FO input'!AB63 -> 0 | AC63: ='[3]Capex_FO input'!AC63 -> 0 | AD63: ='[3]Capex_FO input'!AD63 -> 0 | AE63: ='[3]Capex_FO input'!AE63 -> 0 | AF63: ='[3]Capex_FO input'!AF63 -> 0 | AG63: ='[3]Capex_FO input'!AG63 -> 0 | AH63: ='[3]Capex_FO input'!AH63 -> 0 | AI63: ='[3]Capex_FO input'!AI63 -> 0 | AK63: ='[3]Capex_FO input'!AK63 -> 0 | AL63: ='[3]Capex_FO input'!AL63 -> 0 | AM63: ='[3]Capex_FO input'!AM63 -> 0 | AN63: ='[3]Capex_FO input'!AN63 -> 0 | AO63: ='[3]Capex_FO input'!AO63 -> 0 | AP63: ='[3]Capex_FO input'!AP63 -> 0 | AQ63: ='[3]Capex_FO input'!AQ63 -> 0 | AR63: ='[3]Capex_FO input'!AR63 -> 0 | AS63: ='[3]Capex_FO input'!AS63 -> 0 | AT63: ='[3]Capex_FO input'!AT63 -> 0 | AV63: 0.095 | AW63: 0.095 | AX63: 0.095 | AY63: 0.095 | AZ63: 0.095 | BA63: 0.1 | BB63: 0.1 | BC63: 0.1 | BD63: 0.1 | BE63: 0.1 | BG63: 0.001055555556 | BH63: 0.003166666667 | BI63: 0.005277777778 | BJ63: 0.007388888889 | BK63: 0.0095 | BL63: 0.01166666667 | BM63: 0.01388888889 | BN63: 0.01611111111 | BO63: 0.01833333333 | BP63: 0.02055555556 | BR63: =+IF($K63="Ongoing",AV63,IF(RIGHT($K63,2)=RIGHT(BR$39,2),SUM($AV63:AV63),0)+IF(RIGHT(BR$39,2)>RIGHT($K63,2),AV63,0)) -> 0.095 | BS63: =+IF($K63="Ongoing",AW63,IF(RIGHT($K63,2)=RIGHT(BS$39,2),SUM($AV63:AW63),0)+IF(RIGHT(BS$39,2)>RIGHT($K63,2),AW63,0)) -> 0.095 | BT63: =+IF($K63="Ongoing",AX63,IF(RIGHT($K63,2)=RIGHT(BT$39,2),SUM($AV63:AX63),0)+IF(RIGHT(BT$39,2)>RIGHT($K63,2),AX63,0)) -> 0.095 | BU63: =+IF($K63="Ongoing",AY63,IF(RIGHT($K63,2)=RIGHT(BU$39,2),SUM($AV63:AY63),0)+IF(RIGHT(BU$39,2)>RIGHT($K63,2),AY63,0)) -> 0.095 | BV63: =+IF($K63="Ongoing",AZ63,IF(RIGHT($K63,2)=RIGHT(BV$39,2),SUM($AV63:AZ63),0)+IF(RIGHT(BV$39,2)>RIGHT($K63,2),AZ63,0)) -> 0.095 | BW63: =+IF($K63="Ongoing",BA63,IF(RIGHT($K63,2)=RIGHT(BW$39,2),SUM($AV63:BA63),0)+IF(RIGHT(BW$39,2)>RIGHT($K63,2),BA63,0)) -> 0.1 | BX63: =+IF($K63="Ongoing",BB63,IF(RIGHT($K63,2)=RIGHT(BX$39,2),SUM($AV63:BB63),0)+IF(RIGHT(BX$39,2)>RIGHT($K63,2),BB63,0)) -> 0.1 | BY63: =+IF($K63="Ongoing",BC63,IF(RIGHT($K63,2)=RIGHT(BY$39,2),SUM($AV63:BC63),0)+IF(RIGHT(BY$39,2)>RIGHT($K63,2),BC63,0)) -> 0.1 | BZ63: =+IF($K63="Ongoing",BD63,IF(RIGHT($K63,2)=RIGHT(BZ$39,2),SUM($AV63:BD63),0)+IF(RIGHT(BZ$39,2)>RIGHT($K63,2),BD63,0)) -> 0.1 | CA63: =+IF($K63="Ongoing",BE63,IF(RIGHT($K63,2)=RIGHT(CA$39,2),SUM($AV63:BE63),0)+IF(RIGHT(CA$39,2)>RIGHT($K63,2),BE63,0)) -> 0.1 | CC63: =+O63*KeyAssumptionsPriceControl_FO!AC$15 -> 0.09785 | CD63: =+P63*KeyAssumptionsPriceControl_FO!AD$15 -> 0.1007855 | CE63: =+Q63*KeyAssumptionsPriceControl_FO!AE$15 -> 0.103809065 | CF63: =+R63*KeyAssumptionsPriceControl_FO!AF$15 -> 0.106923337 | CG63: =+S63*KeyAssumptionsPriceControl_FO!AG$15 -> 0.1101310371 | CH63: =+T63*KeyAssumptionsPriceControl_FO!AH$15 -> 0.1194052297 | CI63: =+U63*KeyAssumptionsPriceControl_FO!AI$15 -> 0.1229873865 | CJ63: =+V63*KeyAssumptionsPriceControl_FO!AJ$15 -> 0.1266770081 | CK63: =+W63*KeyAssumptionsPriceControl_FO!AK$15 -> 0.1304773184 | CL63: =+X63*KeyAssumptionsPriceControl_FO!AL$15 -> 0.1343916379 | CN63: 0.002201625 | CO63: 0.00667092375 | CP63: 0.01127430146 | CQ63: 0.01601578051 | CR63: 0.02089950392 | CS63: 0.02606406992 | CT63: 0.03151790379 | CU63: 0.03713535267 | CV63: 0.04292132501 | CW63: 0.04888087653
C64: ='[3]Capex_FO input'!C64 -> MER Minor Capital - Replacement | D64: ='[3]Capex_FO input'!D64 -> 0 | E64: ='[3]Capex_FO input'!E64 -> Irrigation | F64: ='[3]Capex_FO input'!F64 -> Renewals | G64: ='[3]Capex_FO input'!G64 -> Pipelines/network | H64: ='[3]Capex_FO input'!H64 -> Capital Programs / Allocation | I64: ='[3]Capex_FO input'!I64 -> 0 | J64: Straight line | K64: ='[3]Capex_FO input'!K64 -> Ongoing | L64: ='[3]Capex_FO input'!L64 -> 45 | M64: ='[3]Capex_FO input'!M64 -> 22.22222222 | O64: ='[3]Capex_FO input'!O64 -> 0.111 | P64: ='[3]Capex_FO input'!P64 -> 0.111 | Q64: ='[3]Capex_FO input'!Q64 -> 0.111 | R64: ='[3]Capex_FO input'!R64 -> 0.111 | S64: ='[3]Capex_FO input'!S64 -> 0.111 | T64: ='[3]Capex_FO input'!T64 -> 0.116 | U64: ='[3]Capex_FO input'!U64 -> 0.116 | V64: ='[3]Capex_FO input'!V64 -> 0.116 | W64: ='[3]Capex_FO input'!W64 -> 0.116 | X64: ='[3]Capex_FO input'!X64 -> 0.116 | Z64: ='[3]Capex_FO input'!Z64 -> 0 | AA64: ='[3]Capex_FO input'!AA64 -> 0 | AB64: ='[3]Capex_FO input'!AB64 -> 0 | AC64: ='[3]Capex_FO input'!AC64 -> 0 | AD64: ='[3]Capex_FO input'!AD64 -> 0 | AE64: ='[3]Capex_FO input'!AE64 -> 0 | AF64: ='[3]Capex_FO input'!AF64 -> 0 | AG64: ='[3]Capex_FO input'!AG64 -> 0 | AH64: ='[3]Capex_FO input'!AH64 -> 0 | AI64: ='[3]Capex_FO input'!AI64 -> 0 | AK64: ='[3]Capex_FO input'!AK64 -> 0 | AL64: ='[3]Capex_FO input'!AL64 -> 0 | AM64: ='[3]Capex_FO input'!AM64 -> 0 | AN64: ='[3]Capex_FO input'!AN64 -> 0 | AO64: ='[3]Capex_FO input'!AO64 -> 0 | AP64: ='[3]Capex_FO input'!AP64 -> 0 | AQ64: ='[3]Capex_FO input'!AQ64 -> 0 | AR64: ='[3]Capex_FO input'!AR64 -> 0 | AS64: ='[3]Capex_FO input'!AS64 -> 0 | AT64: ='[3]Capex_FO input'!AT64 -> 0 | AV64: 0.111 | AW64: 0.111 | AX64: 0.111 | AY64: 0.111 | AZ64: 0.111 | BA64: 0.116 | BB64: 0.116 | BC64: 0.116 | BD64: 0.116 | BE64: 0.116 | BG64: 0.001233333333 | BH64: 0.0037 | BI64: 0.006166666667 | BJ64: 0.008633333333 | BK64: 0.0111 | BL64: 0.01362222222 | BM64: 0.0162 | BN64: 0.01877777778 | BO64: 0.02135555556 | BP64: 0.02393333333 | BR64: =+IF($K64="Ongoing",AV64,IF(RIGHT($K64,2)=RIGHT(BR$39,2),SUM($AV64:AV64),0)+IF(RIGHT(BR$39,2)>RIGHT($K64,2),AV64,0)) -> 0.111 | BS64: =+IF($K64="Ongoing",AW64,IF(RIGHT($K64,2)=RIGHT(BS$39,2),SUM($AV64:AW64),0)+IF(RIGHT(BS$39,2)>RIGHT($K64,2),AW64,0)) -> 0.111 | BT64: =+IF($K64="Ongoing",AX64,IF(RIGHT($K64,2)=RIGHT(BT$39,2),SUM($AV64:AX64),0)+IF(RIGHT(BT$39,2)>RIGHT($K64,2),AX64,0)) -> 0.111 | BU64: =+IF($K64="Ongoing",AY64,IF(RIGHT($K64,2)=RIGHT(BU$39,2),SUM($AV64:AY64),0)+IF(RIGHT(BU$39,2)>RIGHT($K64,2),AY64,0)) -> 0.111 | BV64: =+IF($K64="Ongoing",AZ64,IF(RIGHT($K64,2)=RIGHT(BV$39,2),SUM($AV64:AZ64),0)+IF(RIGHT(BV$39,2)>RIGHT($K64,2),AZ64,0)) -> 0.111 | BW64: =+IF($K64="Ongoing",BA64,IF(RIGHT($K64,2)=RIGHT(BW$39,2),SUM($AV64:BA64),0)+IF(RIGHT(BW$39,2)>RIGHT($K64,2),BA64,0)) -> 0.116 | BX64: =+IF($K64="Ongoing",BB64,IF(RIGHT($K64,2)=RIGHT(BX$39,2),SUM($AV64:BB64),0)+IF(RIGHT(BX$39,2)>RIGHT($K64,2),BB64,0)) -> 0.116 | BY64: =+IF($K64="Ongoing",BC64,IF(RIGHT($K64,2)=RIGHT(BY$39,2),SUM($AV64:BC64),0)+IF(RIGHT(BY$39,2)>RIGHT($K64,2),BC64,0)) -> 0.116 | BZ64: =+IF($K64="Ongoing",BD64,IF(RIGHT($K64,2)=RIGHT(BZ$39,2),SUM($AV64:BD64),0)+IF(RIGHT(BZ$39,2)>RIGHT($K64,2),BD64,0)) -> 0.116 | CA64: =+IF($K64="Ongoing",BE64,IF(RIGHT($K64,2)=RIGHT(CA$39,2),SUM($AV64:BE64),0)+IF(RIGHT(CA$39,2)>RIGHT($K64,2),BE64,0)) -> 0.116 | CC64: =+O64*KeyAssumptionsPriceControl_FO!AC$15 -> 0.11433 | CD64: =+P64*KeyAssumptionsPriceControl_FO!AD$15 -> 0.1177599 | CE64: =+Q64*KeyAssumptionsPriceControl_FO!AE$15 -> 0.121292697 | CF64: =+R64*KeyAssumptionsPriceControl_FO!AF$15 -> 0.1249314779 | CG64: =+S64*KeyAssumptionsPriceControl_FO!AG$15 -> 0.1286794222 | CH64: =+T64*KeyAssumptionsPriceControl_FO!AH$15 -> 0.1385100664 | CI64: =+U64*KeyAssumptionsPriceControl_FO!AI$15 -> 0.1426653684 | CJ64: =+V64*KeyAssumptionsPriceControl_FO!AJ$15 -> 0.1469453294 | CK64: =+W64*KeyAssumptionsPriceControl_FO!AK$15 -> 0.1513536893 | CL64: =+X64*KeyAssumptionsPriceControl_FO!AL$15 -> 0.1558943 | CN64: 0.002572425 | CO64: 0.00779444775 | CP64: 0.01317313118 | CQ64: 0.01871317512 | CR64: 0.02441942037 | CS64: 0.03043118387 | CT64: 0.03675763115 | CU64: 0.04327387185 | CV64: 0.04998559977 | CW64: 0.05689867953
C65: ='[3]Capex_FO input'!C65 -> MDA Minor Capital - New | D65: ='[3]Capex_FO input'!D65 -> 0 | E65: ='[3]Capex_FO input'!E65 -> Irrigation | F65: ='[3]Capex_FO input'!F65 -> Improvements / Compliance | G65: ='[3]Capex_FO input'!G65 -> Pipelines/network | H65: ='[3]Capex_FO input'!H65 -> Capital Programs / Allocation | I65: ='[3]Capex_FO input'!I65 -> 0 | J65: Straight line | K65: ='[3]Capex_FO input'!K65 -> Ongoing | L65: ='[3]Capex_FO input'!L65 -> 80 | M65: ='[3]Capex_FO input'!M65 -> 22.22222222 | O65: ='[3]Capex_FO input'!O65 -> 0.133 | P65: ='[3]Capex_FO input'!P65 -> 0.133 | Q65: ='[3]Capex_FO input'!Q65 -> 0.133 | R65: ='[3]Capex_FO input'!R65 -> 0.133 | S65: ='[3]Capex_FO input'!S65 -> 0.133 | T65: ='[3]Capex_FO input'!T65 -> 0.14 | U65: ='[3]Capex_FO input'!U65 -> 0.14 | V65: ='[3]Capex_FO input'!V65 -> 0.14 | W65: ='[3]Capex_FO input'!W65 -> 0.14 | X65: ='[3]Capex_FO input'!X65 -> 0.14 | Z65: ='[3]Capex_FO input'!Z65 -> 0 | AA65: ='[3]Capex_FO input'!AA65 -> 0 | AB65: ='[3]Capex_FO input'!AB65 -> 0 | AC65: ='[3]Capex_FO input'!AC65 -> 0 | AD65: ='[3]Capex_FO input'!AD65 -> 0 | AE65: ='[3]Capex_FO input'!AE65 -> 0 | AF65: ='[3]Capex_FO input'!AF65 -> 0 | AG65: ='[3]Capex_FO input'!AG65 -> 0 | AH65: ='[3]Capex_FO input'!AH65 -> 0 | AI65: ='[3]Capex_FO input'!AI65 -> 0 | AK65: ='[3]Capex_FO input'!AK65 -> 0 | AL65: ='[3]Capex_FO input'!AL65 -> 0 | AM65: ='[3]Capex_FO input'!AM65 -> 0 | AN65: ='[3]Capex_FO input'!AN65 -> 0 | AO65: ='[3]Capex_FO input'!AO65 -> 0 | AP65: ='[3]Capex_FO input'!AP65 -> 0 | AQ65: ='[3]Capex_FO input'!AQ65 -> 0 | AR65: ='[3]Capex_FO input'!AR65 -> 0 | AS65: ='[3]Capex_FO input'!AS65 -> 0 | AT65: ='[3]Capex_FO input'!AT65 -> 0 | AV65: 0.133 | AW65: 0.133 | AX65: 0.133 | AY65: 0.133 | AZ65: 0.133 | BA65: 0.14 | BB65: 0.14 | BC65: 0.14 | BD65: 0.14 | BE65: 0.14 | BG65: 0.00083125 | BH65: 0.00249375 | BI65: 0.00415625 | BJ65: 0.00581875 | BK65: 0.00748125 | BL65: 0.0091875 | BM65: 0.0109375 | BN65: 0.0126875 | BO65: 0.0144375 | BP65: 0.0161875 | BR65: =+IF($K65="Ongoing",AV65,IF(RIGHT($K65,2)=RIGHT(BR$39,2),SUM($AV65:AV65),0)+IF(RIGHT(BR$39,2)>RIGHT($K65,2),AV65,0)) -> 0.133 | BS65: =+IF($K65="Ongoing",AW65,IF(RIGHT($K65,2)=RIGHT(BS$39,2),SUM($AV65:AW65),0)+IF(RIGHT(BS$39,2)>RIGHT($K65,2),AW65,0)) -> 0.133 | BT65: =+IF($K65="Ongoing",AX65,IF(RIGHT($K65,2)=RIGHT(BT$39,2),SUM($AV65:AX65),0)+IF(RIGHT(BT$39,2)>RIGHT($K65,2),AX65,0)) -> 0.133 | BU65: =+IF($K65="Ongoing",AY65,IF(RIGHT($K65,2)=RIGHT(BU$39,2),SUM($AV65:AY65),0)+IF(RIGHT(BU$39,2)>RIGHT($K65,2),AY65,0)) -> 0.133 | BV65: =+IF($K65="Ongoing",AZ65,IF(RIGHT($K65,2)=RIGHT(BV$39,2),SUM($AV65:AZ65),0)+IF(RIGHT(BV$39,2)>RIGHT($K65,2),AZ65,0)) -> 0.133 | BW65: =+IF($K65="Ongoing",BA65,IF(RIGHT($K65,2)=RIGHT(BW$39,2),SUM($AV65:BA65),0)+IF(RIGHT(BW$39,2)>RIGHT($K65,2),BA65,0)) -> 0.14 | BX65: =+IF($K65="Ongoing",BB65,IF(RIGHT($K65,2)=RIGHT(BX$39,2),SUM($AV65:BB65),0)+IF(RIGHT(BX$39,2)>RIGHT($K65,2),BB65,0)) -> 0.14 | BY65: =+IF($K65="Ongoing",BC65,IF(RIGHT($K65,2)=RIGHT(BY$39,2),SUM($AV65:BC65),0)+IF(RIGHT(BY$39,2)>RIGHT($K65,2),BC65,0)) -> 0.14 | BZ65: =+IF($K65="Ongoing",BD65,IF(RIGHT($K65,2)=RIGHT(BZ$39,2),SUM($AV65:BD65),0)+IF(RIGHT(BZ$39,2)>RIGHT($K65,2),BD65,0)) -> 0.14 | CA65: =+IF($K65="Ongoing",BE65,IF(RIGHT($K65,2)=RIGHT(CA$39,2),SUM($AV65:BE65),0)+IF(RIGHT(CA$39,2)>RIGHT($K65,2),BE65,0)) -> 0.14 | CC65: =+O65*KeyAssumptionsPriceControl_FO!AC$15 -> 0.13699 | CD65: =+P65*KeyAssumptionsPriceControl_FO!AD$15 -> 0.1410997 | CE65: =+Q65*KeyAssumptionsPriceControl_FO!AE$15 -> 0.145332691 | CF65: =+R65*KeyAssumptionsPriceControl_FO!AF$15 -> 0.1496926717 | CG65: =+S65*KeyAssumptionsPriceControl_FO!AG$15 -> 0.1541834519 | CH65: =+T65*KeyAssumptionsPriceControl_FO!AH$15 -> 0.1671673215 | CI65: =+U65*KeyAssumptionsPriceControl_FO!AI$15 -> 0.1721823412 | CJ65: =+V65*KeyAssumptionsPriceControl_FO!AJ$15 -> 0.1773478114 | CK65: =+W65*KeyAssumptionsPriceControl_FO!AK$15 -> 0.1826682457 | CL65: =+X65*KeyAssumptionsPriceControl_FO!AL$15 -> 0.1881482931 | CN65: 0.003082275 | CO65: 0.00933929325 | CP65: 0.01578402205 | CQ65: 0.02242209271 | CR65: 0.02925930549 | CS65: 0.03648969789 | CT65: 0.0441250653 | CU65: 0.05198949373 | CV65: 0.06008985502 | CW65: 0.06843322714
C66: ='[3]Capex_FO input'!C66 -> MDA Minor Capital - Replacement | D66: ='[3]Capex_FO input'!D66 -> 0 | E66: ='[3]Capex_FO input'!E66 -> Irrigation | F66: ='[3]Capex_FO input'!F66 -> Renewals | G66: ='[3]Capex_FO input'!G66 -> Pipelines/network | H66: ='[3]Capex_FO input'!H66 -> Capital Programs / Allocation | I66: ='[3]Capex_FO input'!I66 -> 0 | J66: Straight line | K66: ='[3]Capex_FO input'!K66 -> Ongoing | L66: ='[3]Capex_FO input'!L66 -> 80 | M66: ='[3]Capex_FO input'!M66 -> 22.22222222 | O66: ='[3]Capex_FO input'!O66 -> 0.222 | P66: ='[3]Capex_FO input'!P66 -> 0.222 | Q66: ='[3]Capex_FO input'!Q66 -> 0.222 | R66: ='[3]Capex_FO input'!R66 -> 0.222 | S66: ='[3]Capex_FO input'!S66 -> 0.222 | T66: ='[3]Capex_FO input'!T66 -> 0.233 | U66: ='[3]Capex_FO input'!U66 -> 0.233 | V66: ='[3]Capex_FO input'!V66 -> 0.233 | W66: ='[3]Capex_FO input'!W66 -> 0.233 | X66: ='[3]Capex_FO input'!X66 -> 0.233 | Z66: ='[3]Capex_FO input'!Z66 -> 0 | AA66: ='[3]Capex_FO input'!AA66 -> 0 | AB66: ='[3]Capex_FO input'!AB66 -> 0 | AC66: ='[3]Capex_FO input'!AC66 -> 0 | AD66: ='[3]Capex_FO input'!AD66 -> 0 | AE66: ='[3]Capex_FO input'!AE66 -> 0 | AF66: ='[3]Capex_FO input'!AF66 -> 0 | AG66: ='[3]Capex_FO input'!AG66 -> 0 | AH66: ='[3]Capex_FO input'!AH66 -> 0 | AI66: ='[3]Capex_FO input'!AI66 -> 0 | AK66: ='[3]Capex_FO input'!AK66 -> 0 | AL66: ='[3]Capex_FO input'!AL66 -> 0 | AM66: ='[3]Capex_FO input'!AM66 -> 0 | AN66: ='[3]Capex_FO input'!AN66 -> 0 | AO66: ='[3]Capex_FO input'!AO66 -> 0 | AP66: ='[3]Capex_FO input'!AP66 -> 0 | AQ66: ='[3]Capex_FO input'!AQ66 -> 0 | AR66: ='[3]Capex_FO input'!AR66 -> 0 | AS66: ='[3]Capex_FO input'!AS66 -> 0 | AT66: ='[3]Capex_FO input'!AT66 -> 0 | AV66: 0.222 | AW66: 0.222 | AX66: 0.222 | AY66: 0.222 | AZ66: 0.222 | BA66: 0.233 | BB66: 0.233 | BC66: 0.233 | BD66: 0.233 | BE66: 0.233 | BG66: 0.0013875 | BH66: 0.0041625 | BI66: 0.0069375 | BJ66: 0.0097125 | BK66: 0.0124875 | BL66: 0.01533125 | BM66: 0.01824375 | BN66: 0.02115625 | BO66: 0.02406875 | BP66: 0.02698125 | BR66: =+IF($K66="Ongoing",AV66,IF(RIGHT($K66,2)=RIGHT(BR$39,2),SUM($AV66:AV66),0)+IF(RIGHT(BR$39,2)>RIGHT($K66,2),AV66,0)) -> 0.222 | BS66: =+IF($K66="Ongoing",AW66,IF(RIGHT($K66,2)=RIGHT(BS$39,2),SUM($AV66:AW66),0)+IF(RIGHT(BS$39,2)>RIGHT($K66,2),AW66,0)) -> 0.222 | BT66: =+IF($K66="Ongoing",AX66,IF(RIGHT($K66,2)=RIGHT(BT$39,2),SUM($AV66:AX66),0)+IF(RIGHT(BT$39,2)>RIGHT($K66,2),AX66,0)) -> 0.222 | BU66: =+IF($K66="Ongoing",AY66,IF(RIGHT($K66,2)=RIGHT(BU$39,2),SUM($AV66:AY66),0)+IF(RIGHT(BU$39,2)>RIGHT($K66,2),AY66,0)) -> 0.222 | BV66: =+IF($K66="Ongoing",AZ66,IF(RIGHT($K66,2)=RIGHT(BV$39,2),SUM($AV66:AZ66),0)+IF(RIGHT(BV$39,2)>RIGHT($K66,2),AZ66,0)) -> 0.222 | BW66: =+IF($K66="Ongoing",BA66,IF(RIGHT($K66,2)=RIGHT(BW$39,2),SUM($AV66:BA66),0)+IF(RIGHT(BW$39,2)>RIGHT($K66,2),BA66,0)) -> 0.233 | BX66: =+IF($K66="Ongoing",BB66,IF(RIGHT($K66,2)=RIGHT(BX$39,2),SUM($AV66:BB66),0)+IF(RIGHT(BX$39,2)>RIGHT($K66,2),BB66,0)) -> 0.233 | BY66: =+IF($K66="Ongoing",BC66,IF(RIGHT($K66,2)=RIGHT(BY$39,2),SUM($AV66:BC66),0)+IF(RIGHT(BY$39,2)>RIGHT($K66,2),BC66,0)) -> 0.233 | BZ66: =+IF($K66="Ongoing",BD66,IF(RIGHT($K66,2)=RIGHT(BZ$39,2),SUM($AV66:BD66),0)+IF(RIGHT(BZ$39,2)>RIGHT($K66,2),BD66,0)) -> 0.233 | CA66: =+IF($K66="Ongoing",BE66,IF(RIGHT($K66,2)=RIGHT(CA$39,2),SUM($AV66:BE66),0)+IF(RIGHT(CA$39,2)>RIGHT($K66,2),BE66,0)) -> 0.233 | CC66: =+O66*KeyAssumptionsPriceControl_FO!AC$15 -> 0.22866 | CD66: =+P66*KeyAssumptionsPriceControl_FO!AD$15 -> 0.2355198 | CE66: =+Q66*KeyAssumptionsPriceControl_FO!AE$15 -> 0.242585394 | CF66: =+R66*KeyAssumptionsPriceControl_FO!AF$15 -> 0.2498629558 | CG66: =+S66*KeyAssumptionsPriceControl_FO!AG$15 -> 0.2573588445 | CH66: =+T66*KeyAssumptionsPriceControl_FO!AH$15 -> 0.2782141851 | CI66: =+U66*KeyAssumptionsPriceControl_FO!AI$15 -> 0.2865606106 | CJ66: =+V66*KeyAssumptionsPriceControl_FO!AJ$15 -> 0.295157429 | CK66: =+W66*KeyAssumptionsPriceControl_FO!AK$15 -> 0.3040121518 | CL66: =+X66*KeyAssumptionsPriceControl_FO!AL$15 -> 0.3131325164 | CN66: 0.00514485 | CO66: 0.0155888955 | CP66: 0.02634626237 | CQ66: 0.03742635024 | CR66: 0.04883884074 | CS66: 0.06088923391 | CT66: 0.07359666681 | CU66: 0.0866853227 | CV66: 0.1001666383 | CW66: 0.1140523933
C67: ='[3]Capex_FO input'!C67 -> MILL Minor Capital - New | D67: ='[3]Capex_FO input'!D67 -> 0 | E67: ='[3]Capex_FO input'!E67 -> Domestic and stock | F67: ='[3]Capex_FO input'!F67 -> Improvements / Compliance | G67: ='[3]Capex_FO input'!G67 -> Pipelines/network | H67: ='[3]Capex_FO input'!H67 -> Capital Programs / Allocation | I67: ='[3]Capex_FO input'!I67 -> 0 | J67: Straight line | K67: ='[3]Capex_FO input'!K67 -> Ongoing | L67: ='[3]Capex_FO input'!L67 -> 45 | M67: ='[3]Capex_FO input'!M67 -> 22.22222222 | O67: ='[3]Capex_FO input'!O67 -> 0.013 | P67: ='[3]Capex_FO input'!P67 -> 0.013 | Q67: ='[3]Capex_FO input'!Q67 -> 0.013 | R67: ='[3]Capex_FO input'!R67 -> 0.013 | S67: ='[3]Capex_FO input'!S67 -> 0.013 | T67: ='[3]Capex_FO input'!T67 -> 0.013 | U67: ='[3]Capex_FO input'!U67 -> 0.013 | V67: ='[3]Capex_FO input'!V67 -> 0.013 | W67: ='[3]Capex_FO input'!W67 -> 0.013 | X67: ='[3]Capex_FO input'!X67 -> 0.013 | Z67: ='[3]Capex_FO input'!Z67 -> 0 | AA67: ='[3]Capex_FO input'!AA67 -> 0 | AB67: ='[3]Capex_FO input'!AB67 -> 0 | AC67: ='[3]Capex_FO input'!AC67 -> 0 | AD67: ='[3]Capex_FO input'!AD67 -> 0 | AE67: ='[3]Capex_FO input'!AE67 -> 0 | AF67: ='[3]Capex_FO input'!AF67 -> 0 | AG67: ='[3]Capex_FO input'!AG67 -> 0 | AH67: ='[3]Capex_FO input'!AH67 -> 0 | AI67: ='[3]Capex_FO input'!AI67 -> 0 | AK67: ='[3]Capex_FO input'!AK67 -> 0 | AL67: ='[3]Capex_FO input'!AL67 -> 0 | AM67: ='[3]Capex_FO input'!AM67 -> 0 | AN67: ='[3]Capex_FO input'!AN67 -> 0 | AO67: ='[3]Capex_FO input'!AO67 -> 0 | AP67: ='[3]Capex_FO input'!AP67 -> 0 | AQ67: ='[3]Capex_FO input'!AQ67 -> 0 | AR67: ='[3]Capex_FO input'!AR67 -> 0 | AS67: ='[3]Capex_FO input'!AS67 -> 0 | AT67: ='[3]Capex_FO input'!AT67 -> 0 | AV67: 0.013 | AW67: 0.013 | AX67: 0.013 | AY67: 0.013 | AZ67: 0.013 | BA67: 0.013 | BB67: 0.013 | BC67: 0.013 | BD67: 0.013 | BE67: 0.013 | BG67: 0.0001444444444 | BH67: 0.0004333333333 | BI67: 0.0007222222222 | BJ67: 0.001011111111 | BK67: 0.0013 | BL67: 0.001588888889 | BM67: 0.001877777778 | BN67: 0.002166666667 | BO67: 0.002455555556 | BP67: 0.002744444444 | BR67: =+IF($K67="Ongoing",AV67,IF(RIGHT($K67,2)=RIGHT(BR$39,2),SUM($AV67:AV67),0)+IF(RIGHT(BR$39,2)>RIGHT($K67,2),AV67,0)) -> 0.013 | BS67: =+IF($K67="Ongoing",AW67,IF(RIGHT($K67,2)=RIGHT(BS$39,2),SUM($AV67:AW67),0)+IF(RIGHT(BS$39,2)>RIGHT($K67,2),AW67,0)) -> 0.013 | BT67: =+IF($K67="Ongoing",AX67,IF(RIGHT($K67,2)=RIGHT(BT$39,2),SUM($AV67:AX67),0)+IF(RIGHT(BT$39,2)>RIGHT($K67,2),AX67,0)) -> 0.013 | BU67: =+IF($K67="Ongoing",AY67,IF(RIGHT($K67,2)=RIGHT(BU$39,2),SUM($AV67:AY67),0)+IF(RIGHT(BU$39,2)>RIGHT($K67,2),AY67,0)) -> 0.013 | BV67: =+IF($K67="Ongoing",AZ67,IF(RIGHT($K67,2)=RIGHT(BV$39,2),SUM($AV67:AZ67),0)+IF(RIGHT(BV$39,2)>RIGHT($K67,2),AZ67,0)) -> 0.013 | BW67: =+IF($K67="Ongoing",BA67,IF(RIGHT($K67,2)=RIGHT(BW$39,2),SUM($AV67:BA67),0)+IF(RIGHT(BW$39,2)>RIGHT($K67,2),BA67,0)) -> 0.013 | BX67: =+IF($K67="Ongoing",BB67,IF(RIGHT($K67,2)=RIGHT(BX$39,2),SUM($AV67:BB67),0)+IF(RIGHT(BX$39,2)>RIGHT($K67,2),BB67,0)) -> 0.013 | BY67: =+IF($K67="Ongoing",BC67,IF(RIGHT($K67,2)=RIGHT(BY$39,2),SUM($AV67:BC67),0)+IF(RIGHT(BY$39,2)>RIGHT($K67,2),BC67,0)) -> 0.013 | BZ67: =+IF($K67="Ongoing",BD67,IF(RIGHT($K67,2)=RIGHT(BZ$39,2),SUM($AV67:BD67),0)+IF(RIGHT(BZ$39,2)>RIGHT($K67,2),BD67,0)) -> 0.013 | CA67: =+IF($K67="Ongoing",BE67,IF(RIGHT($K67,2)=RIGHT(CA$39,2),SUM($AV67:BE67),0)+IF(RIGHT(CA$39,2)>RIGHT($K67,2),BE67,0)) -> 0.013 | CC67: =+O67*KeyAssumptionsPriceControl_FO!AC$15 -> 0.01339 | CD67: =+P67*KeyAssumptionsPriceControl_FO!AD$15 -> 0.0137917 | CE67: =+Q67*KeyAssumptionsPriceControl_FO!AE$15 -> 0.014205451 | CF67: =+R67*KeyAssumptionsPriceControl_FO!AF$15 -> 0.01463161453 | CG67: =+S67*KeyAssumptionsPriceControl_FO!AG$15 -> 0.01507056297 | CH67: =+T67*KeyAssumptionsPriceControl_FO!AH$15 -> 0.01552267985 | CI67: =+U67*KeyAssumptionsPriceControl_FO!AI$15 -> 0.01598836025 | CJ67: =+V67*KeyAssumptionsPriceControl_FO!AJ$15 -> 0.01646801106 | CK67: =+W67*KeyAssumptionsPriceControl_FO!AK$15 -> 0.01696205139 | CL67: =+X67*KeyAssumptionsPriceControl_FO!AL$15 -> 0.01747091293 | CN67: 0.000301275 | CO67: 0.00091286325 | CP67: 0.001542799147 | CQ67: 0.002191633122 | CR67: 0.002859932116 | CS67: 0.003548280079 | CT67: 0.004257278481 | CU67: 0.004987546836 | CV67: 0.005739723241 | CW67: 0.006514464938
C68: ='[3]Capex_FO input'!C68 -> MILL Minor Capital - Replacement | D68: ='[3]Capex_FO input'!D68 -> 0 | E68: ='[3]Capex_FO input'!E68 -> Domestic and stock | F68: ='[3]Capex_FO input'!F68 -> Renewals | G68: ='[3]Capex_FO input'!G68 -> Pipelines/network | H68: ='[3]Capex_FO input'!H68 -> Capital Programs / Allocation | I68: ='[3]Capex_FO input'!I68 -> 0 | J68: Straight line | K68: ='[3]Capex_FO input'!K68 -> Ongoing | L68: ='[3]Capex_FO input'!L68 -> 80 | M68: ='[3]Capex_FO input'!M68 -> 22.22222222 | O68: ='[3]Capex_FO input'!O68 -> 0.055 | P68: ='[3]Capex_FO input'!P68 -> 0.055 | Q68: ='[3]Capex_FO input'!Q68 -> 0.055 | R68: ='[3]Capex_FO input'!R68 -> 0.055 | S68: ='[3]Capex_FO input'!S68 -> 0.055 | T68: ='[3]Capex_FO input'!T68 -> 0.058 | U68: ='[3]Capex_FO input'!U68 -> 0.058 | V68: ='[3]Capex_FO input'!V68 -> 0.058 | W68: ='[3]Capex_FO input'!W68 -> 0.058 | X68: ='[3]Capex_FO input'!X68 -> 0.058 | Z68: ='[3]Capex_FO input'!Z68 -> 0 | AA68: ='[3]Capex_FO input'!AA68 -> 0 | AB68: ='[3]Capex_FO input'!AB68 -> 0 | AC68: ='[3]Capex_FO input'!AC68 -> 0 | AD68: ='[3]Capex_FO input'!AD68 -> 0 | AE68: ='[3]Capex_FO input'!AE68 -> 0 | AF68: ='[3]Capex_FO input'!AF68 -> 0 | AG68: ='[3]Capex_FO input'!AG68 -> 0 | AH68: ='[3]Capex_FO input'!AH68 -> 0 | AI68: ='[3]Capex_FO input'!AI68 -> 0 | AK68: ='[3]Capex_FO input'!AK68 -> 0 | AL68: ='[3]Capex_FO input'!AL68 -> 0 | AM68: ='[3]Capex_FO input'!AM68 -> 0 | AN68: ='[3]Capex_FO input'!AN68 -> 0 | AO68: ='[3]Capex_FO input'!AO68 -> 0 | AP68: ='[3]Capex_FO input'!AP68 -> 0 | AQ68: ='[3]Capex_FO input'!AQ68 -> 0 | AR68: ='[3]Capex_FO input'!AR68 -> 0 | AS68: ='[3]Capex_FO input'!AS68 -> 0 | AT68: ='[3]Capex_FO input'!AT68 -> 0 | AV68: 0.055 | AW68: 0.055 | AX68: 0.055 | AY68: 0.055 | AZ68: 0.055 | BA68: 0.058 | BB68: 0.058 | BC68: 0.058 | BD68: 0.058 | BE68: 0.058 | BG68: 0.00034375 | BH68: 0.00103125 | BI68: 0.00171875 | BJ68: 0.00240625 | BK68: 0.00309375 | BL68: 0.0038 | BM68: 0.004525 | BN68: 0.00525 | BO68: 0.005975 | BP68: 0.0067 | BR68: =+IF($K68="Ongoing",AV68,IF(RIGHT($K68,2)=RIGHT(BR$39,2),SUM($AV68:AV68),0)+IF(RIGHT(BR$39,2)>RIGHT($K68,2),AV68,0)) -> 0.055 | BS68: =+IF($K68="Ongoing",AW68,IF(RIGHT($K68,2)=RIGHT(BS$39,2),SUM($AV68:AW68),0)+IF(RIGHT(BS$39,2)>RIGHT($K68,2),AW68,0)) -> 0.055 | BT68: =+IF($K68="Ongoing",AX68,IF(RIGHT($K68,2)=RIGHT(BT$39,2),SUM($AV68:AX68),0)+IF(RIGHT(BT$39,2)>RIGHT($K68,2),AX68,0)) -> 0.055 | BU68: =+IF($K68="Ongoing",AY68,IF(RIGHT($K68,2)=RIGHT(BU$39,2),SUM($AV68:AY68),0)+IF(RIGHT(BU$39,2)>RIGHT($K68,2),AY68,0)) -> 0.055 | BV68: =+IF($K68="Ongoing",AZ68,IF(RIGHT($K68,2)=RIGHT(BV$39,2),SUM($AV68:AZ68),0)+IF(RIGHT(BV$39,2)>RIGHT($K68,2),AZ68,0)) -> 0.055 | BW68: =+IF($K68="Ongoing",BA68,IF(RIGHT($K68,2)=RIGHT(BW$39,2),SUM($AV68:BA68),0)+IF(RIGHT(BW$39,2)>RIGHT($K68,2),BA68,0)) -> 0.058 | BX68: =+IF($K68="Ongoing",BB68,IF(RIGHT($K68,2)=RIGHT(BX$39,2),SUM($AV68:BB68),0)+IF(RIGHT(BX$39,2)>RIGHT($K68,2),BB68,0)) -> 0.058 | BY68: =+IF($K68="Ongoing",BC68,IF(RIGHT($K68,2)=RIGHT(BY$39,2),SUM($AV68:BC68),0)+IF(RIGHT(BY$39,2)>RIGHT($K68,2),BC68,0)) -> 0.058 | BZ68: =+IF($K68="Ongoing",BD68,IF(RIGHT($K68,2)=RIGHT(BZ$39,2),SUM($AV68:BD68),0)+IF(RIGHT(BZ$39,2)>RIGHT($K68,2),BD68,0)) -> 0.058 | CA68: =+IF($K68="Ongoing",BE68,IF(RIGHT($K68,2)=RIGHT(CA$39,2),SUM($AV68:BE68),0)+IF(RIGHT(CA$39,2)>RIGHT($K68,2),BE68,0)) -> 0.058 | CC68: =+O68*KeyAssumptionsPriceControl_FO!AC$15 -> 0.05665 | CD68: =+P68*KeyAssumptionsPriceControl_FO!AD$15 -> 0.0583495 | CE68: =+Q68*KeyAssumptionsPriceControl_FO!AE$15 -> 0.060099985 | CF68: =+R68*KeyAssumptionsPriceControl_FO!AF$15 -> 0.06190298455 | CG68: =+S68*KeyAssumptionsPriceControl_FO!AG$15 -> 0.06376007409 | CH68: =+T68*KeyAssumptionsPriceControl_FO!AH$15 -> 0.0692550332 | CI68: =+U68*KeyAssumptionsPriceControl_FO!AI$15 -> 0.07133268419 | CJ68: =+V68*KeyAssumptionsPriceControl_FO!AJ$15 -> 0.07347266472 | CK68: =+W68*KeyAssumptionsPriceControl_FO!AK$15 -> 0.07567684466 | CL68: =+X68*KeyAssumptionsPriceControl_FO!AL$15 -> 0.07794715 | CN68: 0.001274625 | CO68: 0.00386211375 | CP68: 0.006527227163 | CQ68: 0.009272293977 | CR68: 0.0120997128 | CS68: 0.01509255271 | CT68: 0.01825577635 | CU68: 0.0215138967 | CV68: 0.02486976066 | CW68: 0.02832630054
C69: ='[3]Capex_FO input'!C69 -> RC Minor Capital - New | D69: ='[3]Capex_FO input'!D69 -> 0 | E69: ='[3]Capex_FO input'!E69 -> Irrigation | F69: ='[3]Capex_FO input'!F69 -> Improvements / Compliance | G69: ='[3]Capex_FO input'!G69 -> Pipelines/network | H69: ='[3]Capex_FO input'!H69 -> Capital Programs / Allocation | I69: ='[3]Capex_FO input'!I69 -> 0 | J69: Straight line | K69: ='[3]Capex_FO input'!K69 -> Ongoing | L69: ='[3]Capex_FO input'!L69 -> 45 | M69: ='[3]Capex_FO input'!M69 -> 22.22222222 | O69: ='[3]Capex_FO input'!O69 -> 0.111 | P69: ='[3]Capex_FO input'!P69 -> 0.111 | Q69: ='[3]Capex_FO input'!Q69 -> 0.111 | R69: ='[3]Capex_FO input'!R69 -> 0.111 | S69: ='[3]Capex_FO input'!S69 -> 0.111 | T69: ='[3]Capex_FO input'!T69 -> 0.116 | U69: ='[3]Capex_FO input'!U69 -> 0.116 | V69: ='[3]Capex_FO input'!V69 -> 0.116 | W69: ='[3]Capex_FO input'!W69 -> 0.116 | X69: ='[3]Capex_FO input'!X69 -> 0.116 | Z69: ='[3]Capex_FO input'!Z69 -> 0 | AA69: ='[3]Capex_FO input'!AA69 -> 0 | AB69: ='[3]Capex_FO input'!AB69 -> 0 | AC69: ='[3]Capex_FO input'!AC69 -> 0 | AD69: ='[3]Capex_FO input'!AD69 -> 0 | AE69: ='[3]Capex_FO input'!AE69 -> 0 | AF69: ='[3]Capex_FO input'!AF69 -> 0 | AG69: ='[3]Capex_FO input'!AG69 -> 0 | AH69: ='[3]Capex_FO input'!AH69 -> 0 | AI69: ='[3]Capex_FO input'!AI69 -> 0 | AK69: ='[3]Capex_FO input'!AK69 -> 0 | AL69: ='[3]Capex_FO input'!AL69 -> 0 | AM69: ='[3]Capex_FO input'!AM69 -> 0 | AN69: ='[3]Capex_FO input'!AN69 -> 0 | AO69: ='[3]Capex_FO input'!AO69 -> 0 | AP69: ='[3]Capex_FO input'!AP69 -> 0 | AQ69: ='[3]Capex_FO input'!AQ69 -> 0 | AR69: ='[3]Capex_FO input'!AR69 -> 0 | AS69: ='[3]Capex_FO input'!AS69 -> 0 | AT69: ='[3]Capex_FO input'!AT69 -> 0 | AV69: 0.111 | AW69: 0.111 | AX69: 0.111 | AY69: 0.111 | AZ69: 0.111 | BA69: 0.116 | BB69: 0.116 | BC69: 0.116 | BD69: 0.116 | BE69: 0.116 | BG69: 0.001233333333 | BH69: 0.0037 | BI69: 0.006166666667 | BJ69: 0.008633333333 | BK69: 0.0111 | BL69: 0.01362222222 | BM69: 0.0162 | BN69: 0.01877777778 | BO69: 0.02135555556 | BP69: 0.02393333333 | BR69: =+IF($K69="Ongoing",AV69,IF(RIGHT($K69,2)=RIGHT(BR$39,2),SUM($AV69:AV69),0)+IF(RIGHT(BR$39,2)>RIGHT($K69,2),AV69,0)) -> 0.111 | BS69: =+IF($K69="Ongoing",AW69,IF(RIGHT($K69,2)=RIGHT(BS$39,2),SUM($AV69:AW69),0)+IF(RIGHT(BS$39,2)>RIGHT($K69,2),AW69,0)) -> 0.111 | BT69: =+IF($K69="Ongoing",AX69,IF(RIGHT($K69,2)=RIGHT(BT$39,2),SUM($AV69:AX69),0)+IF(RIGHT(BT$39,2)>RIGHT($K69,2),AX69,0)) -> 0.111 | BU69: =+IF($K69="Ongoing",AY69,IF(RIGHT($K69,2)=RIGHT(BU$39,2),SUM($AV69:AY69),0)+IF(RIGHT(BU$39,2)>RIGHT($K69,2),AY69,0)) -> 0.111 | BV69: =+IF($K69="Ongoing",AZ69,IF(RIGHT($K69,2)=RIGHT(BV$39,2),SUM($AV69:AZ69),0)+IF(RIGHT(BV$39,2)>RIGHT($K69,2),AZ69,0)) -> 0.111 | BW69: =+IF($K69="Ongoing",BA69,IF(RIGHT($K69,2)=RIGHT(BW$39,2),SUM($AV69:BA69),0)+IF(RIGHT(BW$39,2)>RIGHT($K69,2),BA69,0)) -> 0.116 | BX69: =+IF($K69="Ongoing",BB69,IF(RIGHT($K69,2)=RIGHT(BX$39,2),SUM($AV69:BB69),0)+IF(RIGHT(BX$39,2)>RIGHT($K69,2),BB69,0)) -> 0.116 | BY69: =+IF($K69="Ongoing",BC69,IF(RIGHT($K69,2)=RIGHT(BY$39,2),SUM($AV69:BC69),0)+IF(RIGHT(BY$39,2)>RIGHT($K69,2),BC69,0)) -> 0.116 | BZ69: =+IF($K69="Ongoing",BD69,IF(RIGHT($K69,2)=RIGHT(BZ$39,2),SUM($AV69:BD69),0)+IF(RIGHT(BZ$39,2)>RIGHT($K69,2),BD69,0)) -> 0.116 | CA69: =+IF($K69="Ongoing",BE69,IF(RIGHT($K69,2)=RIGHT(CA$39,2),SUM($AV69:BE69),0)+IF(RIGHT(CA$39,2)>RIGHT($K69,2),BE69,0)) -> 0.116 | CC69: =+O69*KeyAssumptionsPriceControl_FO!AC$15 -> 0.11433 | CD69: =+P69*KeyAssumptionsPriceControl_FO!AD$15 -> 0.1177599 | CE69: =+Q69*KeyAssumptionsPriceControl_FO!AE$15 -> 0.121292697 | CF69: =+R69*KeyAssumptionsPriceControl_FO!AF$15 -> 0.1249314779 | CG69: =+S69*KeyAssumptionsPriceControl_FO!AG$15 -> 0.1286794222 | CH69: =+T69*KeyAssumptionsPriceControl_FO!AH$15 -> 0.1385100664 | CI69: =+U69*KeyAssumptionsPriceControl_FO!AI$15 -> 0.1426653684 | CJ69: =+V69*KeyAssumptionsPriceControl_FO!AJ$15 -> 0.1469453294 | CK69: =+W69*KeyAssumptionsPriceControl_FO!AK$15 -> 0.1513536893 | CL69: =+X69*KeyAssumptionsPriceControl_FO!AL$15 -> 0.1558943 | CN69: 0.002572425 | CO69: 0.00779444775 | CP69: 0.01317313118 | CQ69: 0.01871317512 | CR69: 0.02441942037 | CS69: 0.03043118387 | CT69: 0.03675763115 | CU69: 0.04327387185 | CV69: 0.04998559977 | CW69: 0.05689867953
C70: ='[3]Capex_FO input'!C70 -> RC Minor Capital - Replacement | D70: ='[3]Capex_FO input'!D70 -> 0 | E70: ='[3]Capex_FO input'!E70 -> Irrigation | F70: ='[3]Capex_FO input'!F70 -> Renewals | G70: ='[3]Capex_FO input'!G70 -> Pipelines/network | H70: ='[3]Capex_FO input'!H70 -> Capital Programs / Allocation | I70: ='[3]Capex_FO input'!I70 -> 0 | J70: Straight line | K70: ='[3]Capex_FO input'!K70 -> Ongoing | L70: ='[3]Capex_FO input'!L70 -> 80 | M70: ='[3]Capex_FO input'!M70 -> 22.22222222 | O70: ='[3]Capex_FO input'!O70 -> 0.211 | P70: ='[3]Capex_FO input'!P70 -> 0.211 | Q70: ='[3]Capex_FO input'!Q70 -> 0.211 | R70: ='[3]Capex_FO input'!R70 -> 0.211 | S70: ='[3]Capex_FO input'!S70 -> 0.211 | T70: ='[3]Capex_FO input'!T70 -> 0.222 | U70: ='[3]Capex_FO input'!U70 -> 0.222 | V70: ='[3]Capex_FO input'!V70 -> 0.222 | W70: ='[3]Capex_FO input'!W70 -> 0.222 | X70: ='[3]Capex_FO input'!X70 -> 0.222 | Z70: ='[3]Capex_FO input'!Z70 -> 0 | AA70: ='[3]Capex_FO input'!AA70 -> 0 | AB70: ='[3]Capex_FO input'!AB70 -> 0 | AC70: ='[3]Capex_FO input'!AC70 -> 0 | AD70: ='[3]Capex_FO input'!AD70 -> 0 | AE70: ='[3]Capex_FO input'!AE70 -> 0 | AF70: ='[3]Capex_FO input'!AF70 -> 0 | AG70: ='[3]Capex_FO input'!AG70 -> 0 | AH70: ='[3]Capex_FO input'!AH70 -> 0 | AI70: ='[3]Capex_FO input'!AI70 -> 0 | AK70: ='[3]Capex_FO input'!AK70 -> 0 | AL70: ='[3]Capex_FO input'!AL70 -> 0 | AM70: ='[3]Capex_FO input'!AM70 -> 0 | AN70: ='[3]Capex_FO input'!AN70 -> 0 | AO70: ='[3]Capex_FO input'!AO70 -> 0 | AP70: ='[3]Capex_FO input'!AP70 -> 0 | AQ70: ='[3]Capex_FO input'!AQ70 -> 0 | AR70: ='[3]Capex_FO input'!AR70 -> 0 | AS70: ='[3]Capex_FO input'!AS70 -> 0 | AT70: ='[3]Capex_FO input'!AT70 -> 0 | AV70: 0.211 | AW70: 0.211 | AX70: 0.211 | AY70: 0.211 | AZ70: 0.211 | BA70: 0.222 | BB70: 0.222 | BC70: 0.222 | BD70: 0.222 | BE70: 0.222 | BG70: 0.00131875 | BH70: 0.00395625 | BI70: 0.00659375 | BJ70: 0.00923125 | BK70: 0.01186875 | BL70: 0.014575 | BM70: 0.01735 | BN70: 0.020125 | BO70: 0.0229 | BP70: 0.025675 | BR70: =+IF($K70="Ongoing",AV70,IF(RIGHT($K70,2)=RIGHT(BR$39,2),SUM($AV70:AV70),0)+IF(RIGHT(BR$39,2)>RIGHT($K70,2),AV70,0)) -> 0.211 | BS70: =+IF($K70="Ongoing",AW70,IF(RIGHT($K70,2)=RIGHT(BS$39,2),SUM($AV70:AW70),0)+IF(RIGHT(BS$39,2)>RIGHT($K70,2),AW70,0)) -> 0.211 | BT70: =+IF($K70="Ongoing",AX70,IF(RIGHT($K70,2)=RIGHT(BT$39,2),SUM($AV70:AX70),0)+IF(RIGHT(BT$39,2)>RIGHT($K70,2),AX70,0)) -> 0.211 | BU70: =+IF($K70="Ongoing",AY70,IF(RIGHT($K70,2)=RIGHT(BU$39,2),SUM($AV70:AY70),0)+IF(RIGHT(BU$39,2)>RIGHT($K70,2),AY70,0)) -> 0.211 | BV70: =+IF($K70="Ongoing",AZ70,IF(RIGHT($K70,2)=RIGHT(BV$39,2),SUM($AV70:AZ70),0)+IF(RIGHT(BV$39,2)>RIGHT($K70,2),AZ70,0)) -> 0.211 | BW70: =+IF($K70="Ongoing",BA70,IF(RIGHT($K70,2)=RIGHT(BW$39,2),SUM($AV70:BA70),0)+IF(RIGHT(BW$39,2)>RIGHT($K70,2),BA70,0)) -> 0.222 | BX70: =+IF($K70="Ongoing",BB70,IF(RIGHT($K70,2)=RIGHT(BX$39,2),SUM($AV70:BB70),0)+IF(RIGHT(BX$39,2)>RIGHT($K70,2),BB70,0)) -> 0.222 | BY70: =+IF($K70="Ongoing",BC70,IF(RIGHT($K70,2)=RIGHT(BY$39,2),SUM($AV70:BC70),0)+IF(RIGHT(BY$39,2)>RIGHT($K70,2),BC70,0)) -> 0.222 | BZ70: =+IF($K70="Ongoing",BD70,IF(RIGHT($K70,2)=RIGHT(BZ$39,2),SUM($AV70:BD70),0)+IF(RIGHT(BZ$39,2)>RIGHT($K70,2),BD70,0)) -> 0.222 | CA70: =+IF($K70="Ongoing",BE70,IF(RIGHT($K70,2)=RIGHT(CA$39,2),SUM($AV70:BE70),0)+IF(RIGHT(CA$39,2)>RIGHT($K70,2),BE70,0)) -> 0.222 | CC70: =+O70*KeyAssumptionsPriceControl_FO!AC$15 -> 0.21733 | CD70: =+P70*KeyAssumptionsPriceControl_FO!AD$15 -> 0.2238499 | CE70: =+Q70*KeyAssumptionsPriceControl_FO!AE$15 -> 0.230565397 | CF70: =+R70*KeyAssumptionsPriceControl_FO!AF$15 -> 0.2374823589 | CG70: =+S70*KeyAssumptionsPriceControl_FO!AG$15 -> 0.2446068297 | CH70: =+T70*KeyAssumptionsPriceControl_FO!AH$15 -> 0.2650796098 | CI70: =+U70*KeyAssumptionsPriceControl_FO!AI$15 -> 0.2730319981 | CJ70: =+V70*KeyAssumptionsPriceControl_FO!AJ$15 -> 0.2812229581 | CK70: =+W70*KeyAssumptionsPriceControl_FO!AK$15 -> 0.2896596468 | CL70: =+X70*KeyAssumptionsPriceControl_FO!AL$15 -> 0.2983494362 | CN70: 0.004889925 | CO70: 0.01481647275 | CP70: 0.02504081693 | CQ70: 0.03557189144 | CR70: 0.04641889818 | CS70: 0.05788684307 | CT70: 0.06999435425 | CU70: 0.08246509077 | CV70: 0.09530994938 | CW70: 0.1085401537
C71: ='[3]Capex_FO input'!C71 -> ROB Minor Capital - New | D71: ='[3]Capex_FO input'!D71 -> 0 | E71: ='[3]Capex_FO input'!E71 -> Irrigation | F71: ='[3]Capex_FO input'!F71 -> Improvements / Compliance | G71: ='[3]Capex_FO input'!G71 -> Pipelines/network | H71: ='[3]Capex_FO input'!H71 -> Capital Programs / Allocation | I71: ='[3]Capex_FO input'!I71 -> 0 | J71: Straight line | K71: ='[3]Capex_FO input'!K71 -> Ongoing | L71: ='[3]Capex_FO input'!L71 -> 80 | M71: ='[3]Capex_FO input'!M71 -> 22.22222222 | O71: ='[3]Capex_FO input'!O71 -> 0.042 | P71: ='[3]Capex_FO input'!P71 -> 0.042 | Q71: ='[3]Capex_FO input'!Q71 -> 0.042 | R71: ='[3]Capex_FO input'!R71 -> 0.042 | S71: ='[3]Capex_FO input'!S71 -> 0.042 | T71: ='[3]Capex_FO input'!T71 -> 0.044 | U71: ='[3]Capex_FO input'!U71 -> 0.044 | V71: ='[3]Capex_FO input'!V71 -> 0.044 | W71: ='[3]Capex_FO input'!W71 -> 0.044 | X71: ='[3]Capex_FO input'!X71 -> 0.044 | Z71: ='[3]Capex_FO input'!Z71 -> 0 | AA71: ='[3]Capex_FO input'!AA71 -> 0 | AB71: ='[3]Capex_FO input'!AB71 -> 0 | AC71: ='[3]Capex_FO input'!AC71 -> 0 | AD71: ='[3]Capex_FO input'!AD71 -> 0 | AE71: ='[3]Capex_FO input'!AE71 -> 0 | AF71: ='[3]Capex_FO input'!AF71 -> 0 | AG71: ='[3]Capex_FO input'!AG71 -> 0 | AH71: ='[3]Capex_FO input'!AH71 -> 0 | AI71: ='[3]Capex_FO input'!AI71 -> 0 | AK71: ='[3]Capex_FO input'!AK71 -> 0 | AL71: ='[3]Capex_FO input'!AL71 -> 0 | AM71: ='[3]Capex_FO input'!AM71 -> 0 | AN71: ='[3]Capex_FO input'!AN71 -> 0 | AO71: ='[3]Capex_FO input'!AO71 -> 0 | AP71: ='[3]Capex_FO input'!AP71 -> 0 | AQ71: ='[3]Capex_FO input'!AQ71 -> 0 | AR71: ='[3]Capex_FO input'!AR71 -> 0 | AS71: ='[3]Capex_FO input'!AS71 -> 0 | AT71: ='[3]Capex_FO input'!AT71 -> 0 | AV71: 0.042 | AW71: 0.042 | AX71: 0.042 | AY71: 0.042 | AZ71: 0.042 | BA71: 0.044 | BB71: 0.044 | BC71: 0.044 | BD71: 0.044 | BE71: 0.044 | BG71: 0.0002625 | BH71: 0.0007875 | BI71: 0.0013125 | BJ71: 0.0018375 | BK71: 0.0023625 | BL71: 0.0029 | BM71: 0.00345 | BN71: 0.004 | BO71: 0.00455 | BP71: 0.0051 | BR71: =+IF($K71="Ongoing",AV71,IF(RIGHT($K71,2)=RIGHT(BR$39,2),SUM($AV71:AV71),0)+IF(RIGHT(BR$39,2)>RIGHT($K71,2),AV71,0)) -> 0.042 | BS71: =+IF($K71="Ongoing",AW71,IF(RIGHT($K71,2)=RIGHT(BS$39,2),SUM($AV71:AW71),0)+IF(RIGHT(BS$39,2)>RIGHT($K71,2),AW71,0)) -> 0.042 | BT71: =+IF($K71="Ongoing",AX71,IF(RIGHT($K71,2)=RIGHT(BT$39,2),SUM($AV71:AX71),0)+IF(RIGHT(BT$39,2)>RIGHT($K71,2),AX71,0)) -> 0.042 | BU71: =+IF($K71="Ongoing",AY71,IF(RIGHT($K71,2)=RIGHT(BU$39,2),SUM($AV71:AY71),0)+IF(RIGHT(BU$39,2)>RIGHT($K71,2),AY71,0)) -> 0.042 | BV71: =+IF($K71="Ongoing",AZ71,IF(RIGHT($K71,2)=RIGHT(BV$39,2),SUM($AV71:AZ71),0)+IF(RIGHT(BV$39,2)>RIGHT($K71,2),AZ71,0)) -> 0.042 | BW71: =+IF($K71="Ongoing",BA71,IF(RIGHT($K71,2)=RIGHT(BW$39,2),SUM($AV71:BA71),0)+IF(RIGHT(BW$39,2)>RIGHT($K71,2),BA71,0)) -> 0.044 | BX71: =+IF($K71="Ongoing",BB71,IF(RIGHT($K71,2)=RIGHT(BX$39,2),SUM($AV71:BB71),0)+IF(RIGHT(BX$39,2)>RIGHT($K71,2),BB71,0)) -> 0.044 | BY71: =+IF($K71="Ongoing",BC71,IF(RIGHT($K71,2)=RIGHT(BY$39,2),SUM($AV71:BC71),0)+IF(RIGHT(BY$39,2)>RIGHT($K71,2),BC71,0)) -> 0.044 | BZ71: =+IF($K71="Ongoing",BD71,IF(RIGHT($K71,2)=RIGHT(BZ$39,2),SUM($AV71:BD71),0)+IF(RIGHT(BZ$39,2)>RIGHT($K71,2),BD71,0)) -> 0.044 | CA71: =+IF($K71="Ongoing",BE71,IF(RIGHT($K71,2)=RIGHT(CA$39,2),SUM($AV71:BE71),0)+IF(RIGHT(CA$39,2)>RIGHT($K71,2),BE71,0)) -> 0.044 | CC71: =+O71*KeyAssumptionsPriceControl_FO!AC$15 -> 0.04326 | CD71: =+P71*KeyAssumptionsPriceControl_FO!AD$15 -> 0.0445578 | CE71: =+Q71*KeyAssumptionsPriceControl_FO!AE$15 -> 0.045894534 | CF71: =+R71*KeyAssumptionsPriceControl_FO!AF$15 -> 0.04727137002 | CG71: =+S71*KeyAssumptionsPriceControl_FO!AG$15 -> 0.04868951112 | CH71: =+T71*KeyAssumptionsPriceControl_FO!AH$15 -> 0.05253830105 | CI71: =+U71*KeyAssumptionsPriceControl_FO!AI$15 -> 0.05411445008 | CJ71: =+V71*KeyAssumptionsPriceControl_FO!AJ$15 -> 0.05573788358 | CK71: =+W71*KeyAssumptionsPriceControl_FO!AK$15 -> 0.05741002009 | CL71: =+X71*KeyAssumptionsPriceControl_FO!AL$15 -> 0.05913232069 | CN71: 0.00097335 | CO71: 0.0029492505 | CP71: 0.004984428015 | CQ71: 0.007080660855 | CR71: 0.009239780681 | CS71: 0.01151740645 | CT71: 0.01391709336 | CU71: 0.01638877086 | CV71: 0.0189345987 | CW71: 0.02155680136
C72: ='[3]Capex_FO input'!C72 -> ROB Minor Capital - Replacement | D72: ='[3]Capex_FO input'!D72 -> 0 | E72: ='[3]Capex_FO input'!E72 -> Irrigation | F72: ='[3]Capex_FO input'!F72 -> Renewals | G72: ='[3]Capex_FO input'!G72 -> Pipelines/network | H72: ='[3]Capex_FO input'!H72 -> Capital Programs / Allocation | I72: ='[3]Capex_FO input'!I72 -> 0 | J72: Straight line | K72: ='[3]Capex_FO input'!K72 -> Ongoing | L72: ='[3]Capex_FO input'!L72 -> 80 | M72: ='[3]Capex_FO input'!M72 -> 22.22222222 | O72: ='[3]Capex_FO input'!O72 -> 0.063 | P72: ='[3]Capex_FO input'!P72 -> 0.063 | Q72: ='[3]Capex_FO input'!Q72 -> 0.063 | R72: ='[3]Capex_FO input'!R72 -> 0.063 | S72: ='[3]Capex_FO input'!S72 -> 0.063 | T72: ='[3]Capex_FO input'!T72 -> 0.067 | U72: ='[3]Capex_FO input'!U72 -> 0.067 | V72: ='[3]Capex_FO input'!V72 -> 0.067 | W72: ='[3]Capex_FO input'!W72 -> 0.067 | X72: ='[3]Capex_FO input'!X72 -> 0.067 | Z72: ='[3]Capex_FO input'!Z72 -> 0 | AA72: ='[3]Capex_FO input'!AA72 -> 0 | AB72: ='[3]Capex_FO input'!AB72 -> 0 | AC72: ='[3]Capex_FO input'!AC72 -> 0 | AD72: ='[3]Capex_FO input'!AD72 -> 0 | AE72: ='[3]Capex_FO input'!AE72 -> 0 | AF72: ='[3]Capex_FO input'!AF72 -> 0 | AG72: ='[3]Capex_FO input'!AG72 -> 0 | AH72: ='[3]Capex_FO input'!AH72 -> 0 | AI72: ='[3]Capex_FO input'!AI72 -> 0 | AK72: ='[3]Capex_FO input'!AK72 -> 0 | AL72: ='[3]Capex_FO input'!AL72 -> 0 | AM72: ='[3]Capex_FO input'!AM72 -> 0 | AN72: ='[3]Capex_FO input'!AN72 -> 0 | AO72: ='[3]Capex_FO input'!AO72 -> 0 | AP72: ='[3]Capex_FO input'!AP72 -> 0 | AQ72: ='[3]Capex_FO input'!AQ72 -> 0 | AR72: ='[3]Capex_FO input'!AR72 -> 0 | AS72: ='[3]Capex_FO input'!AS72 -> 0 | AT72: ='[3]Capex_FO input'!AT72 -> 0 | AV72: 0.063 | AW72: 0.063 | AX72: 0.063 | AY72: 0.063 | AZ72: 0.063 | BA72: 0.067 | BB72: 0.067 | BC72: 0.067 | BD72: 0.067 | BE72: 0.067 | BG72: 0.00039375 | BH72: 0.00118125 | BI72: 0.00196875 | BJ72: 0.00275625 | BK72: 0.00354375 | BL72: 0.00435625 | BM72: 0.00519375 | BN72: 0.00603125 | BO72: 0.00686875 | BP72: 0.00770625 | BR72: =+IF($K72="Ongoing",AV72,IF(RIGHT($K72,2)=RIGHT(BR$39,2),SUM($AV72:AV72),0)+IF(RIGHT(BR$39,2)>RIGHT($K72,2),AV72,0)) -> 0.063 | BS72: =+IF($K72="Ongoing",AW72,IF(RIGHT($K72,2)=RIGHT(BS$39,2),SUM($AV72:AW72),0)+IF(RIGHT(BS$39,2)>RIGHT($K72,2),AW72,0)) -> 0.063 | BT72: =+IF($K72="Ongoing",AX72,IF(RIGHT($K72,2)=RIGHT(BT$39,2),SUM($AV72:AX72),0)+IF(RIGHT(BT$39,2)>RIGHT($K72,2),AX72,0)) -> 0.063 | BU72: =+IF($K72="Ongoing",AY72,IF(RIGHT($K72,2)=RIGHT(BU$39,2),SUM($AV72:AY72),0)+IF(RIGHT(BU$39,2)>RIGHT($K72,2),AY72,0)) -> 0.063 | BV72: =+IF($K72="Ongoing",AZ72,IF(RIGHT($K72,2)=RIGHT(BV$39,2),SUM($AV72:AZ72),0)+IF(RIGHT(BV$39,2)>RIGHT($K72,2),AZ72,0)) -> 0.063 | BW72: =+IF($K72="Ongoing",BA72,IF(RIGHT($K72,2)=RIGHT(BW$39,2),SUM($AV72:BA72),0)+IF(RIGHT(BW$39,2)>RIGHT($K72,2),BA72,0)) -> 0.067 | BX72: =+IF($K72="Ongoing",BB72,IF(RIGHT($K72,2)=RIGHT(BX$39,2),SUM($AV72:BB72),0)+IF(RIGHT(BX$39,2)>RIGHT($K72,2),BB72,0)) -> 0.067 | BY72: =+IF($K72="Ongoing",BC72,IF(RIGHT($K72,2)=RIGHT(BY$39,2),SUM($AV72:BC72),0)+IF(RIGHT(BY$39,2)>RIGHT($K72,2),BC72,0)) -> 0.067 | BZ72: =+IF($K72="Ongoing",BD72,IF(RIGHT($K72,2)=RIGHT(BZ$39,2),SUM($AV72:BD72),0)+IF(RIGHT(BZ$39,2)>RIGHT($K72,2),BD72,0)) -> 0.067 | CA72: =+IF($K72="Ongoing",BE72,IF(RIGHT($K72,2)=RIGHT(CA$39,2),SUM($AV72:BE72),0)+IF(RIGHT(CA$39,2)>RIGHT($K72,2),BE72,0)) -> 0.067 | CC72: =+O72*KeyAssumptionsPriceControl_FO!AC$15 -> 0.06489 | CD72: =+P72*KeyAssumptionsPriceControl_FO!AD$15 -> 0.0668367 | CE72: =+Q72*KeyAssumptionsPriceControl_FO!AE$15 -> 0.068841801 | CF72: =+R72*KeyAssumptionsPriceControl_FO!AF$15 -> 0.07090705503 | CG72: =+S72*KeyAssumptionsPriceControl_FO!AG$15 -> 0.07303426668 | CH72: =+T72*KeyAssumptionsPriceControl_FO!AH$15 -> 0.08000150387 | CI72: =+U72*KeyAssumptionsPriceControl_FO!AI$15 -> 0.08240154898 | CJ72: =+V72*KeyAssumptionsPriceControl_FO!AJ$15 -> 0.08487359545 | CK72: =+W72*KeyAssumptionsPriceControl_FO!AK$15 -> 0.08741980332 | CL72: =+X72*KeyAssumptionsPriceControl_FO!AL$15 -> 0.09004239742 | CN72: 0.001460025 | CO72: 0.00442387575 | CP72: 0.007476642023 | CQ72: 0.01062099128 | CR72: 0.01385967102 | CS72: 0.01730297586 | CT72: 0.02095704455 | CU72: 0.0247207353 | CV72: 0.02859733677 | CW72: 0.03259023629
C73: ='[3]Capex_FO input'!C73 -> 0 | D73: ='[3]Capex_FO input'!D73 -> 0 | E73: ='[3]Capex_FO input'!E73 -> 0 | F73: ='[3]Capex_FO input'!F73 -> 0 | G73: ='[3]Capex_FO input'!G73 -> 0 | H73: ='[3]Capex_FO input'!H73 -> Capital Programs / Allocation | I73: ='[3]Capex_FO input'!I73 -> 0 | J73: Straight line | K73: ='[3]Capex_FO input'!K73 -> 0 | L73: ='[3]Capex_FO input'!L73 -> 0 | M73: ='[3]Capex_FO input'!M73 -> 0 | O73: ='[3]Capex_FO input'!O73 -> 0 | P73: ='[3]Capex_FO input'!P73 -> 0 | Q73: ='[3]Capex_FO input'!Q73 -> 0 | R73: ='[3]Capex_FO input'!R73 -> 0 | S73: ='[3]Capex_FO input'!S73 -> 0 | T73: ='[3]Capex_FO input'!T73 -> 0 | U73: ='[3]Capex_FO input'!U73 -> 0 | V73: ='[3]Capex_FO input'!V73 -> 0 | W73: ='[3]Capex_FO input'!W73 -> 0 | X73: ='[3]Capex_FO input'!X73 -> 0 | Z73: ='[3]Capex_FO input'!Z73 -> 0 | AA73: ='[3]Capex_FO input'!AA73 -> 0 | AB73: ='[3]Capex_FO input'!AB73 -> 0 | AC73: ='[3]Capex_FO input'!AC73 -> 0 | AD73: ='[3]Capex_FO input'!AD73 -> 0 | AE73: ='[3]Capex_FO input'!AE73 -> 0 | AF73: ='[3]Capex_FO input'!AF73 -> 0 | AG73: ='[3]Capex_FO input'!AG73 -> 0 | AH73: ='[3]Capex_FO input'!AH73 -> 0 | AI73: ='[3]Capex_FO input'!AI73 -> 0 | AK73: ='[3]Capex_FO input'!AK73 -> 0 | AL73: ='[3]Capex_FO input'!AL73 -> 0 | AM73: ='[3]Capex_FO input'!AM73 -> 0 | AN73: ='[3]Capex_FO input'!AN73 -> 0 | AO73: ='[3]Capex_FO input'!AO73 -> 0 | AP73: ='[3]Capex_FO input'!AP73 -> 0 | AQ73: ='[3]Capex_FO input'!AQ73 -> 0 | AR73: ='[3]Capex_FO input'!AR73 -> 0 | AS73: ='[3]Capex_FO input'!AS73 -> 0 | AT73: ='[3]Capex_FO input'!AT73 -> 0 | AV73: 0 | AW73: 0 | AX73: 0 | AY73: 0 | AZ73: 0 | BA73: 0 | BB73: 0 | BC73: 0 | BD73: 0 | BE73: 0 | BG73: 0 | BH73: 0 | BI73: 0 | BJ73: 0 | BK73: 0 | BL73: 0 | BM73: 0 | BN73: 0 | BO73: 0 | BP73: 0 | BR73: =+IF($K73="Ongoing",AV73,IF(RIGHT($K73,2)=RIGHT(BR$39,2),SUM($AV73:AV73),0)+IF(RIGHT(BR$39,2)>RIGHT($K73,2),AV73,0)) -> 0 | BS73: =+IF($K73="Ongoing",AW73,IF(RIGHT($K73,2)=RIGHT(BS$39,2),SUM($AV73:AW73),0)+IF(RIGHT(BS$39,2)>RIGHT($K73,2),AW73,0)) -> 0 | BT73: =+IF($K73="Ongoing",AX73,IF(RIGHT($K73,2)=RIGHT(BT$39,2),SUM($AV73:AX73),0)+IF(RIGHT(BT$39,2)>RIGHT($K73,2),AX73,0)) -> 0 | BU73: =+IF($K73="Ongoing",AY73,IF(RIGHT($K73,2)=RIGHT(BU$39,2),SUM($AV73:AY73),0)+IF(RIGHT(BU$39,2)>RIGHT($K73,2),AY73,0)) -> 0 | BV73: =+IF($K73="Ongoing",AZ73,IF(RIGHT($K73,2)=RIGHT(BV$39,2),SUM($AV73:AZ73),0)+IF(RIGHT(BV$39,2)>RIGHT($K73,2),AZ73,0)) -> 0 | BW73: =+IF($K73="Ongoing",BA73,IF(RIGHT($K73,2)=RIGHT(BW$39,2),SUM($AV73:BA73),0)+IF(RIGHT(BW$39,2)>RIGHT($K73,2),BA73,0)) -> 0 | BX73: =+IF($K73="Ongoing",BB73,IF(RIGHT($K73,2)=RIGHT(BX$39,2),SUM($AV73:BB73),0)+IF(RIGHT(BX$39,2)>RIGHT($K73,2),BB73,0)) -> 0 | BY73: =+IF($K73="Ongoing",BC73,IF(RIGHT($K73,2)=RIGHT(BY$39,2),SUM($AV73:BC73),0)+IF(RIGHT(BY$39,2)>RIGHT($K73,2),BC73,0)) -> 0 | BZ73: =+IF($K73="Ongoing",BD73,IF(RIGHT($K73,2)=RIGHT(BZ$39,2),SUM($AV73:BD73),0)+IF(RIGHT(BZ$39,2)>RIGHT($K73,2),BD73,0)) -> 0 | CA73: =+IF($K73="Ongoing",BE73,IF(RIGHT($K73,2)=RIGHT(CA$39,2),SUM($AV73:BE73),0)+IF(RIGHT(CA$39,2)>RIGHT($K73,2),BE73,0)) -> 0 | CC73: =+O73*KeyAssumptionsPriceControl_FO!AC$15 -> 0 | CD73: =+P73*KeyAssumptionsPriceControl_FO!AD$15 -> 0 | CE73: =+Q73*KeyAssumptionsPriceControl_FO!AE$15 -> 0 | CF73: =+R73*KeyAssumptionsPriceControl_FO!AF$15 -> 0 | CG73: =+S73*KeyAssumptionsPriceControl_FO!AG$15 -> 0 | CH73: =+T73*KeyAssumptionsPriceControl_FO!AH$15 -> 0 | CI73: =+U73*KeyAssumptionsPriceControl_FO!AI$15 -> 0 | CJ73: =+V73*KeyAssumptionsPriceControl_FO!AJ$15 -> 0 | CK73: =+W73*KeyAssumptionsPriceControl_FO!AK$15 -> 0 | CL73: =+X73*KeyAssumptionsPriceControl_FO!AL$15 -> 0 | CN73: 0 | CO73: 0 | CP73: 0 | CQ73: 0 | CR73: 0 | CS73: 0 | CT73: 0 | CU73: 0 | CV73: 0 | CW73: 0
C74: ='[3]Capex_FO input'!C74 -> 0 | D74: ='[3]Capex_FO input'!D74 -> 0 | E74: ='[3]Capex_FO input'!E74 -> 0 | F74: ='[3]Capex_FO input'!F74 -> 0 | G74: ='[3]Capex_FO input'!G74 -> 0 | H74: ='[3]Capex_FO input'!H74 -> Capital Programs / Allocation | I74: ='[3]Capex_FO input'!I74 -> 0 | J74: Straight line | K74: ='[3]Capex_FO input'!K74 -> 0 | L74: ='[3]Capex_FO input'!L74 -> 0 | M74: ='[3]Capex_FO input'!M74 -> 0 | O74: ='[3]Capex_FO input'!O74 -> 0 | P74: ='[3]Capex_FO input'!P74 -> 0 | Q74: ='[3]Capex_FO input'!Q74 -> 0 | R74: ='[3]Capex_FO input'!R74 -> 0 | S74: ='[3]Capex_FO input'!S74 -> 0 | T74: ='[3]Capex_FO input'!T74 -> 0 | U74: ='[3]Capex_FO input'!U74 -> 0 | V74: ='[3]Capex_FO input'!V74 -> 0 | W74: ='[3]Capex_FO input'!W74 -> 0 | X74: ='[3]Capex_FO input'!X74 -> 0 | Z74: ='[3]Capex_FO input'!Z74 -> 0 | AA74: ='[3]Capex_FO input'!AA74 -> 0 | AB74: ='[3]Capex_FO input'!AB74 -> 0 | AC74: ='[3]Capex_FO input'!AC74 -> 0 | AD74: ='[3]Capex_FO input'!AD74 -> 0 | AE74: ='[3]Capex_FO input'!AE74 -> 0 | AF74: ='[3]Capex_FO input'!AF74 -> 0 | AG74: ='[3]Capex_FO input'!AG74 -> 0 | AH74: ='[3]Capex_FO input'!AH74 -> 0 | AI74: ='[3]Capex_FO input'!AI74 -> 0 | AK74: ='[3]Capex_FO input'!AK74 -> 0 | AL74: ='[3]Capex_FO input'!AL74 -> 0 | AM74: ='[3]Capex_FO input'!AM74 -> 0 | AN74: ='[3]Capex_FO input'!AN74 -> 0 | AO74: ='[3]Capex_FO input'!AO74 -> 0 | AP74: ='[3]Capex_FO input'!AP74 -> 0 | AQ74: ='[3]Capex_FO input'!AQ74 -> 0 | AR74: ='[3]Capex_FO input'!AR74 -> 0 | AS74: ='[3]Capex_FO input'!AS74 -> 0 | AT74: ='[3]Capex_FO input'!AT74 -> 0 | AV74: 0 | AW74: 0 | AX74: 0 | AY74: 0 | AZ74: 0 | BA74: 0 | BB74: 0 | BC74: 0 | BD74: 0 | BE74: 0 | BG74: 0 | BH74: 0 | BI74: 0 | BJ74: 0 | BK74: 0 | BL74: 0 | BM74: 0 | BN74: 0 | BO74: 0 | BP74: 0 | BR74: =+IF($K74="Ongoing",AV74,IF(RIGHT($K74,2)=RIGHT(BR$39,2),SUM($AV74:AV74),0)+IF(RIGHT(BR$39,2)>RIGHT($K74,2),AV74,0)) -> 0 | BS74: =+IF($K74="Ongoing",AW74,IF(RIGHT($K74,2)=RIGHT(BS$39,2),SUM($AV74:AW74),0)+IF(RIGHT(BS$39,2)>RIGHT($K74,2),AW74,0)) -> 0 | BT74: =+IF($K74="Ongoing",AX74,IF(RIGHT($K74,2)=RIGHT(BT$39,2),SUM($AV74:AX74),0)+IF(RIGHT(BT$39,2)>RIGHT($K74,2),AX74,0)) -> 0 | BU74: =+IF($K74="Ongoing",AY74,IF(RIGHT($K74,2)=RIGHT(BU$39,2),SUM($AV74:AY74),0)+IF(RIGHT(BU$39,2)>RIGHT($K74,2),AY74,0)) -> 0 | BV74: =+IF($K74="Ongoing",AZ74,IF(RIGHT($K74,2)=RIGHT(BV$39,2),SUM($AV74:AZ74),0)+IF(RIGHT(BV$39,2)>RIGHT($K74,2),AZ74,0)) -> 0 | BW74: =+IF($K74="Ongoing",BA74,IF(RIGHT($K74,2)=RIGHT(BW$39,2),SUM($AV74:BA74),0)+IF(RIGHT(BW$39,2)>RIGHT($K74,2),BA74,0)) -> 0 | BX74: =+IF($K74="Ongoing",BB74,IF(RIGHT($K74,2)=RIGHT(BX$39,2),SUM($AV74:BB74),0)+IF(RIGHT(BX$39,2)>RIGHT($K74,2),BB74,0)) -> 0 | BY74: =+IF($K74="Ongoing",BC74,IF(RIGHT($K74,2)=RIGHT(BY$39,2),SUM($AV74:BC74),0)+IF(RIGHT(BY$39,2)>RIGHT($K74,2),BC74,0)) -> 0 | BZ74: =+IF($K74="Ongoing",BD74,IF(RIGHT($K74,2)=RIGHT(BZ$39,2),SUM($AV74:BD74),0)+IF(RIGHT(BZ$39,2)>RIGHT($K74,2),BD74,0)) -> 0 | CA74: =+IF($K74="Ongoing",BE74,IF(RIGHT($K74,2)=RIGHT(CA$39,2),SUM($AV74:BE74),0)+IF(RIGHT(CA$39,2)>RIGHT($K74,2),BE74,0)) -> 0 | CC74: =+O74*KeyAssumptionsPriceControl_FO!AC$15 -> 0 | CD74: =+P74*KeyAssumptionsPriceControl_FO!AD$15 -> 0 | CE74: =+Q74*KeyAssumptionsPriceControl_FO!AE$15 -> 0 | CF74: =+R74*KeyAssumptionsPriceControl_FO!AF$15 -> 0 | CG74: =+S74*KeyAssumptionsPriceControl_FO!AG$15 -> 0 | CH74: =+T74*KeyAssumptionsPriceControl_FO!AH$15 -> 0 | CI74: =+U74*KeyAssumptionsPriceControl_FO!AI$15 -> 0 | CJ74: =+V74*KeyAssumptionsPriceControl_FO!AJ$15 -> 0 | CK74: =+W74*KeyAssumptionsPriceControl_FO!AK$15 -> 0 | CL74: =+X74*KeyAssumptionsPriceControl_FO!AL$15 -> 0 | CN74: 0 | CO74: 0 | CP74: 0 | CQ74: 0 | CR74: 0 | CS74: 0 | CT74: 0 | CU74: 0 | CV74: 0 | CW74: 0
C75: ='[3]Capex_FO input'!C75 -> [Capex Item - Significant Project / Capital Program / Other Capex] | D75: ='[3]Capex_FO input'!D75 -> 0 | E75: ='[3]Capex_FO input'!E75 -> [Service] | F75: ='[3]Capex_FO input'!F75 -> [Major Cost Driver] | G75: ='[3]Capex_FO input'!G75 -> [Asset category] | H75: ='[3]Capex_FO input'!H75 -> [Capital type] | I75: ='[3]Capex_FO input'!I75 -> 0 | J75: Straight line | K75: ='[3]Capex_FO input'!K75 -> [Year finalised?] | L75: ='[3]Capex_FO input'!L75 -> 0 | M75: ='[3]Capex_FO input'!M75 -> 0 | O75: ='[3]Capex_FO input'!O75 -> 0 | P75: ='[3]Capex_FO input'!P75 -> 0 | Q75: ='[3]Capex_FO input'!Q75 -> 0 | R75: ='[3]Capex_FO input'!R75 -> 0 | S75: ='[3]Capex_FO input'!S75 -> 0 | T75: ='[3]Capex_FO input'!T75 -> 0 | U75: ='[3]Capex_FO input'!U75 -> 0 | V75: ='[3]Capex_FO input'!V75 -> 0 | W75: ='[3]Capex_FO input'!W75 -> 0 | X75: ='[3]Capex_FO input'!X75 -> 0 | Z75: ='[3]Capex_FO input'!Z75 -> 0 | AA75: ='[3]Capex_FO input'!AA75 -> 0 | AB75: ='[3]Capex_FO input'!AB75 -> 0 | AC75: ='[3]Capex_FO input'!AC75 -> 0 | AD75: ='[3]Capex_FO input'!AD75 -> 0 | AE75: ='[3]Capex_FO input'!AE75 -> 0 | AF75: ='[3]Capex_FO input'!AF75 -> 0 | AG75: ='[3]Capex_FO input'!AG75 -> 0 | AH75: ='[3]Capex_FO input'!AH75 -> 0 | AI75: ='[3]Capex_FO input'!AI75 -> 0 | AK75: ='[3]Capex_FO input'!AK75 -> 0 | AL75: ='[3]Capex_FO input'!AL75 -> 0 | AM75: ='[3]Capex_FO input'!AM75 -> 0 | AN75: ='[3]Capex_FO input'!AN75 -> 0 | AO75: ='[3]Capex_FO input'!AO75 -> 0 | AP75: ='[3]Capex_FO input'!AP75 -> 0 | AQ75: ='[3]Capex_FO input'!AQ75 -> 0 | AR75: ='[3]Capex_FO input'!AR75 -> 0 | AS75: ='[3]Capex_FO input'!AS75 -> 0 | AT75: ='[3]Capex_FO input'!AT75 -> 0 | AV75: 0 | AW75: 0 | AX75: 0 | AY75: 0 | AZ75: 0 | BA75: 0 | BB75: 0 | BC75: 0 | BD75: 0 | BE75: 0 | BG75: 0 | BH75: 0 | BI75: 0 | BJ75: 0 | BK75: 0 | BL75: 0 | BM75: 0 | BN75: 0 | BO75: 0 | BP75: 0 | BR75: =+IF($K75="Ongoing",AV75,IF(RIGHT($K75,2)=RIGHT(BR$39,2),SUM($AV75:AV75),0)+IF(RIGHT(BR$39,2)>RIGHT($K75,2),AV75,0)) -> 0 | BS75: =+IF($K75="Ongoing",AW75,IF(RIGHT($K75,2)=RIGHT(BS$39,2),SUM($AV75:AW75),0)+IF(RIGHT(BS$39,2)>RIGHT($K75,2),AW75,0)) -> 0 | BT75: =+IF($K75="Ongoing",AX75,IF(RIGHT($K75,2)=RIGHT(BT$39,2),SUM($AV75:AX75),0)+IF(RIGHT(BT$39,2)>RIGHT($K75,2),AX75,0)) -> 0 | BU75: =+IF($K75="Ongoing",AY75,IF(RIGHT($K75,2)=RIGHT(BU$39,2),SUM($AV75:AY75),0)+IF(RIGHT(BU$39,2)>RIGHT($K75,2),AY75,0)) -> 0 | BV75: =+IF($K75="Ongoing",AZ75,IF(RIGHT($K75,2)=RIGHT(BV$39,2),SUM($AV75:AZ75),0)+IF(RIGHT(BV$39,2)>RIGHT($K75,2),AZ75,0)) -> 0 | BW75: =+IF($K75="Ongoing",BA75,IF(RIGHT($K75,2)=RIGHT(BW$39,2),SUM($AV75:BA75),0)+IF(RIGHT(BW$39,2)>RIGHT($K75,2),BA75,0)) -> 0 | BX75: =+IF($K75="Ongoing",BB75,IF(RIGHT($K75,2)=RIGHT(BX$39,2),SUM($AV75:BB75),0)+IF(RIGHT(BX$39,2)>RIGHT($K75,2),BB75,0)) -> 0 | BY75: =+IF($K75="Ongoing",BC75,IF(RIGHT($K75,2)=RIGHT(BY$39,2),SUM($AV75:BC75),0)+IF(RIGHT(BY$39,2)>RIGHT($K75,2),BC75,0)) -> 0 | BZ75: =+IF($K75="Ongoing",BD75,IF(RIGHT($K75,2)=RIGHT(BZ$39,2),SUM($AV75:BD75),0)+IF(RIGHT(BZ$39,2)>RIGHT($K75,2),BD75,0)) -> 0 | CA75: =+IF($K75="Ongoing",BE75,IF(RIGHT($K75,2)=RIGHT(CA$39,2),SUM($AV75:BE75),0)+IF(RIGHT(CA$39,2)>RIGHT($K75,2),BE75,0)) -> 0 | CC75: =+O75*KeyAssumptionsPriceControl_FO!AC$15 -> 0 | CD75: =+P75*KeyAssumptionsPriceControl_FO!AD$15 -> 0 | CE75: =+Q75*KeyAssumptionsPriceControl_FO!AE$15 -> 0 | CF75: =+R75*KeyAssumptionsPriceControl_FO!AF$15 -> 0 | CG75: =+S75*KeyAssumptionsPriceControl_FO!AG$15 -> 0 | CH75: =+T75*KeyAssumptionsPriceControl_FO!AH$15 -> 0 | CI75: =+U75*KeyAssumptionsPriceControl_FO!AI$15 -> 0 | CJ75: =+V75*KeyAssumptionsPriceControl_FO!AJ$15 -> 0 | CK75: =+W75*KeyAssumptionsPriceControl_FO!AK$15 -> 0 | CL75: =+X75*KeyAssumptionsPriceControl_FO!AL$15 -> 0 | CN75: 0 | CO75: 0 | CP75: 0 | CQ75: 0 | CR75: 0 | CS75: 0 | CT75: 0 | CU75: 0 | CV75: 0 | CW75: 0
C76: ='[3]Capex_FO input'!C76 -> Pumps - Irrigation | D76: ='[3]Capex_FO input'!D76 -> 0 | E76: ='[3]Capex_FO input'!E76 -> 0 | F76: ='[3]Capex_FO input'!F76 -> 0 | G76: ='[3]Capex_FO input'!G76 -> 0 | H76: ='[3]Capex_FO input'!H76 -> 0 | I76: ='[3]Capex_FO input'!I76 -> 0 | J76: Straight line | K76: ='[3]Capex_FO input'!K76 -> 0 | L76: ='[3]Capex_FO input'!L76 -> 0 | M76: ='[3]Capex_FO input'!M76 -> 0 | O76: ='[3]Capex_FO input'!O76 -> 0 | P76: ='[3]Capex_FO input'!P76 -> 0 | Q76: ='[3]Capex_FO input'!Q76 -> 0 | R76: ='[3]Capex_FO input'!R76 -> 0 | S76: ='[3]Capex_FO input'!S76 -> 0 | T76: ='[3]Capex_FO input'!T76 -> 0 | U76: ='[3]Capex_FO input'!U76 -> 0 | V76: ='[3]Capex_FO input'!V76 -> 0 | W76: ='[3]Capex_FO input'!W76 -> 0 | X76: ='[3]Capex_FO input'!X76 -> 0 | Z76: ='[3]Capex_FO input'!Z76 -> 0 | AA76: ='[3]Capex_FO input'!AA76 -> 0 | AB76: ='[3]Capex_FO input'!AB76 -> 0 | AC76: ='[3]Capex_FO input'!AC76 -> 0 | AD76: ='[3]Capex_FO input'!AD76 -> 0 | AE76: ='[3]Capex_FO input'!AE76 -> 0 | AF76: ='[3]Capex_FO input'!AF76 -> 0 | AG76: ='[3]Capex_FO input'!AG76 -> 0 | AH76: ='[3]Capex_FO input'!AH76 -> 0 | AI76: ='[3]Capex_FO input'!AI76 -> 0 | AK76: ='[3]Capex_FO input'!AK76 -> 0 | AL76: ='[3]Capex_FO input'!AL76 -> 0 | AM76: ='[3]Capex_FO input'!AM76 -> 0 | AN76: ='[3]Capex_FO input'!AN76 -> 0 | AO76: ='[3]Capex_FO input'!AO76 -> 0 | AP76: ='[3]Capex_FO input'!AP76 -> 0 | AQ76: ='[3]Capex_FO input'!AQ76 -> 0 | AR76: ='[3]Capex_FO input'!AR76 -> 0 | AS76: ='[3]Capex_FO input'!AS76 -> 0 | AT76: ='[3]Capex_FO input'!AT76 -> 0 | AV76: 0 | AW76: 0 | AX76: 0 | AY76: 0 | AZ76: 0 | BA76: 0 | BB76: 0 | BC76: 0 | BD76: 0 | BE76: 0 | BG76: 0 | BH76: 0 | BI76: 0 | BJ76: 0 | BK76: 0 | BL76: 0 | BM76: 0 | BN76: 0 | BO76: 0 | BP76: 0 | BR76: =+IF($K76="Ongoing",AV76,IF(RIGHT($K76,2)=RIGHT(BR$39,2),SUM($AV76:AV76),0)+IF(RIGHT(BR$39,2)>RIGHT($K76,2),AV76,0)) -> 0 | BS76: =+IF($K76="Ongoing",AW76,IF(RIGHT($K76,2)=RIGHT(BS$39,2),SUM($AV76:AW76),0)+IF(RIGHT(BS$39,2)>RIGHT($K76,2),AW76,0)) -> 0 | BT76: =+IF($K76="Ongoing",AX76,IF(RIGHT($K76,2)=RIGHT(BT$39,2),SUM($AV76:AX76),0)+IF(RIGHT(BT$39,2)>RIGHT($K76,2),AX76,0)) -> 0 | BU76: =+IF($K76="Ongoing",AY76,IF(RIGHT($K76,2)=RIGHT(BU$39,2),SUM($AV76:AY76),0)+IF(RIGHT(BU$39,2)>RIGHT($K76,2),AY76,0)) -> 0 | BV76: =+IF($K76="Ongoing",AZ76,IF(RIGHT($K76,2)=RIGHT(BV$39,2),SUM($AV76:AZ76),0)+IF(RIGHT(BV$39,2)>RIGHT($K76,2),AZ76,0)) -> 0 | BW76: =+IF($K76="Ongoing",BA76,IF(RIGHT($K76,2)=RIGHT(BW$39,2),SUM($AV76:BA76),0)+IF(RIGHT(BW$39,2)>RIGHT($K76,2),BA76,0)) -> 0 | BX76: =+IF($K76="Ongoing",BB76,IF(RIGHT($K76,2)=RIGHT(BX$39,2),SUM($AV76:BB76),0)+IF(RIGHT(BX$39,2)>RIGHT($K76,2),BB76,0)) -> 0 | BY76: =+IF($K76="Ongoing",BC76,IF(RIGHT($K76,2)=RIGHT(BY$39,2),SUM($AV76:BC76),0)+IF(RIGHT(BY$39,2)>RIGHT($K76,2),BC76,0)) -> 0 | BZ76: =+IF($K76="Ongoing",BD76,IF(RIGHT($K76,2)=RIGHT(BZ$39,2),SUM($AV76:BD76),0)+IF(RIGHT(BZ$39,2)>RIGHT($K76,2),BD76,0)) -> 0 | CA76: =+IF($K76="Ongoing",BE76,IF(RIGHT($K76,2)=RIGHT(CA$39,2),SUM($AV76:BE76),0)+IF(RIGHT(CA$39,2)>RIGHT($K76,2),BE76,0)) -> 0 | CC76: =+O76*KeyAssumptionsPriceControl_FO!AC$15 -> 0 | CD76: =+P76*KeyAssumptionsPriceControl_FO!AD$15 -> 0 | CE76: =+Q76*KeyAssumptionsPriceControl_FO!AE$15 -> 0 | CF76: =+R76*KeyAssumptionsPriceControl_FO!AF$15 -> 0 | CG76: =+S76*KeyAssumptionsPriceControl_FO!AG$15 -> 0 | CH76: =+T76*KeyAssumptionsPriceControl_FO!AH$15 -> 0 | CI76: =+U76*KeyAssumptionsPriceControl_FO!AI$15 -> 0 | CJ76: =+V76*KeyAssumptionsPriceControl_FO!AJ$15 -> 0 | CK76: =+W76*KeyAssumptionsPriceControl_FO!AK$15 -> 0 | CL76: =+X76*KeyAssumptionsPriceControl_FO!AL$15 -> 0 | CN76: 0 | CO76: 0 | CP76: 0 | CQ76: 0 | CR76: 0 | CS76: 0 | CT76: 0 | CU76: 0 | CV76: 0 | CW76: 0
C77: ='[3]Capex_FO input'!C77 -> MER - WARGAN RELIFT PUMP STATION - Telemetry Renewal | D77: ='[3]Capex_FO input'!D77 -> 0 | E77: ='[3]Capex_FO input'!E77 -> Irrigation | F77: ='[3]Capex_FO input'!F77 -> Improvements / Compliance | G77: ='[3]Capex_FO input'!G77 -> Headworks | H77: ='[3]Capex_FO input'!H77 -> Significant Projects | I77: ='[3]Capex_FO input'!I77 -> 0 | J77: Straight line | K77: ='[3]Capex_FO input'!K77 -> 2026-27 | L77: ='[3]Capex_FO input'!L77 -> 45 | M77: ='[3]Capex_FO input'!M77 -> 22.22222222 | O77: ='[3]Capex_FO input'!O77 -> 0 | P77: ='[3]Capex_FO input'!P77 -> 0 | Q77: ='[3]Capex_FO input'!Q77 -> 0 | R77: ='[3]Capex_FO input'!R77 -> 0.092 | S77: ='[3]Capex_FO input'!S77 -> 0 | T77: ='[3]Capex_FO input'!T77 -> 0 | U77: ='[3]Capex_FO input'!U77 -> 0 | V77: ='[3]Capex_FO input'!V77 -> 0 | W77: ='[3]Capex_FO input'!W77 -> 0 | X77: ='[3]Capex_FO input'!X77 -> 0 | Z77: ='[3]Capex_FO input'!Z77 -> 0 | AA77: ='[3]Capex_FO input'!AA77 -> 0 | AB77: ='[3]Capex_FO input'!AB77 -> 0 | AC77: ='[3]Capex_FO input'!AC77 -> 0 | AD77: ='[3]Capex_FO input'!AD77 -> 0 | AE77: ='[3]Capex_FO input'!AE77 -> 0 | AF77: ='[3]Capex_FO input'!AF77 -> 0 | AG77: ='[3]Capex_FO input'!AG77 -> 0 | AH77: ='[3]Capex_FO input'!AH77 -> 0 | AI77: ='[3]Capex_FO input'!AI77 -> 0 | AK77: ='[3]Capex_FO input'!AK77 -> 0 | AL77: ='[3]Capex_FO input'!AL77 -> 0 | AM77: ='[3]Capex_FO input'!AM77 -> 0 | AN77: ='[3]Capex_FO input'!AN77 -> 0 | AO77: ='[3]Capex_FO input'!AO77 -> 0 | AP77: ='[3]Capex_FO input'!AP77 -> 0 | AQ77: ='[3]Capex_FO input'!AQ77 -> 0 | AR77: ='[3]Capex_FO input'!AR77 -> 0 | AS77: ='[3]Capex_FO input'!AS77 -> 0 | AT77: ='[3]Capex_FO input'!AT77 -> 0 | AV77: 0 | AW77: 0 | AX77: 0 | AY77: 0.092 | AZ77: 0 | BA77: 0 | BB77: 0 | BC77: 0 | BD77: 0 | BE77: 0 | BG77: 0 | BH77: 0 | BI77: 0 | BJ77: 0.001022222222 | BK77: 0.002044444444 | BL77: 0.002044444444 | BM77: 0.002044444444 | BN77: 0.002044444444 | BO77: 0.002044444444 | BP77: 0.002044444444 | BR77: =+IF($K77="Ongoing",AV77,IF(RIGHT($K77,2)=RIGHT(BR$39,2),SUM($AV77:AV77),0)+IF(RIGHT(BR$39,2)>RIGHT($K77,2),AV77,0)) -> 0 | BS77: =+IF($K77="Ongoing",AW77,IF(RIGHT($K77,2)=RIGHT(BS$39,2),SUM($AV77:AW77),0)+IF(RIGHT(BS$39,2)>RIGHT($K77,2),AW77,0)) -> 0 | BT77: =+IF($K77="Ongoing",AX77,IF(RIGHT($K77,2)=RIGHT(BT$39,2),SUM($AV77:AX77),0)+IF(RIGHT(BT$39,2)>RIGHT($K77,2),AX77,0)) -> 0 | BU77: =+IF($K77="Ongoing",AY77,IF(RIGHT($K77,2)=RIGHT(BU$39,2),SUM($AV77:AY77),0)+IF(RIGHT(BU$39,2)>RIGHT($K77,2),AY77,0)) -> 0.092 | BV77: =+IF($K77="Ongoing",AZ77,IF(RIGHT($K77,2)=RIGHT(BV$39,2),SUM($AV77:AZ77),0)+IF(RIGHT(BV$39,2)>RIGHT($K77,2),AZ77,0)) -> 0 | BW77: =+IF($K77="Ongoing",BA77,IF(RIGHT($K77,2)=RIGHT(BW$39,2),SUM($AV77:BA77),0)+IF(RIGHT(BW$39,2)>RIGHT($K77,2),BA77,0)) -> 0 | BX77: =+IF($K77="Ongoing",BB77,IF(RIGHT($K77,2)=RIGHT(BX$39,2),SUM($AV77:BB77),0)+IF(RIGHT(BX$39,2)>RIGHT($K77,2),BB77,0)) -> 0 | BY77: =+IF($K77="Ongoing",BC77,IF(RIGHT($K77,2)=RIGHT(BY$39,2),SUM($AV77:BC77),0)+IF(RIGHT(BY$39,2)>RIGHT($K77,2),BC77,0)) -> 0 | BZ77: =+IF($K77="Ongoing",BD77,IF(RIGHT($K77,2)=RIGHT(BZ$39,2),SUM($AV77:BD77),0)+IF(RIGHT(BZ$39,2)>RIGHT($K77,2),BD77,0)) -> 0 | CA77: =+IF($K77="Ongoing",BE77,IF(RIGHT($K77,2)=RIGHT(CA$39,2),SUM($AV77:BE77),0)+IF(RIGHT(CA$39,2)>RIGHT($K77,2),BE77,0)) -> 0 | CC77: =+O77*KeyAssumptionsPriceControl_FO!AC$15 -> 0 | CD77: =+P77*KeyAssumptionsPriceControl_FO!AD$15 -> 0 | CE77: =+Q77*KeyAssumptionsPriceControl_FO!AE$15 -> 0 | CF77: =+R77*KeyAssumptionsPriceControl_FO!AF$15 -> 0.1035468105 | CG77: =+S77*KeyAssumptionsPriceControl_FO!AG$15 -> 0 | CH77: =+T77*KeyAssumptionsPriceControl_FO!AH$15 -> 0 | CI77: =+U77*KeyAssumptionsPriceControl_FO!AI$15 -> 0 | CJ77: =+V77*KeyAssumptionsPriceControl_FO!AJ$15 -> 0 | CK77: =+W77*KeyAssumptionsPriceControl_FO!AK$15 -> 0 | CL77: =+X77*KeyAssumptionsPriceControl_FO!AL$15 -> 0 | CN77: 0 | CO77: 0 | CP77: 0 | CQ77: 0.002329803237 | CR77: 0.004659606473 | CS77: 0.004659606473 | CT77: 0.004659606473 | CU77: 0.004659606473 | CV77: 0.004659606473 | CW77: 0.004659606473
C78: ='[3]Capex_FO input'!C78 -> MER - River PS Upgrade Control System | D78: ='[3]Capex_FO input'!D78 -> 0 | E78: ='[3]Capex_FO input'!E78 -> Irrigation | F78: ='[3]Capex_FO input'!F78 -> Renewals | G78: ='[3]Capex_FO input'!G78 -> Headworks | H78: ='[3]Capex_FO input'!H78 -> Significant Projects | I78: ='[3]Capex_FO input'!I78 -> 0 | J78: Straight line | K78: ='[3]Capex_FO input'!K78 -> 2032-33 | L78: ='[3]Capex_FO input'!L78 -> 45 | M78: ='[3]Capex_FO input'!M78 -> 22.22222222 | O78: ='[3]Capex_FO input'!O78 -> 0 | P78: ='[3]Capex_FO input'!P78 -> 0 | Q78: ='[3]Capex_FO input'!Q78 -> 0 | R78: ='[3]Capex_FO input'!R78 -> 0 | S78: ='[3]Capex_FO input'!S78 -> 0 | T78: ='[3]Capex_FO input'!T78 -> 0 | U78: ='[3]Capex_FO input'!U78 -> 0 | V78: ='[3]Capex_FO input'!V78 -> 0 | W78: ='[3]Capex_FO input'!W78 -> 0.4 | X78: ='[3]Capex_FO input'!X78 -> 0.4 | Z78: ='[3]Capex_FO input'!Z78 -> 0 | AA78: ='[3]Capex_FO input'!AA78 -> 0 | AB78: ='[3]Capex_FO input'!AB78 -> 0 | AC78: ='[3]Capex_FO input'!AC78 -> 0 | AD78: ='[3]Capex_FO input'!AD78 -> 0 | AE78: ='[3]Capex_FO input'!AE78 -> 0 | AF78: ='[3]Capex_FO input'!AF78 -> 0 | AG78: ='[3]Capex_FO input'!AG78 -> 0 | AH78: ='[3]Capex_FO input'!AH78 -> 0 | AI78: ='[3]Capex_FO input'!AI78 -> 0 | AK78: ='[3]Capex_FO input'!AK78 -> 0 | AL78: ='[3]Capex_FO input'!AL78 -> 0 | AM78: ='[3]Capex_FO input'!AM78 -> 0 | AN78: ='[3]Capex_FO input'!AN78 -> 0 | AO78: ='[3]Capex_FO input'!AO78 -> 0 | AP78: ='[3]Capex_FO input'!AP78 -> 0 | AQ78: ='[3]Capex_FO input'!AQ78 -> 0 | AR78: ='[3]Capex_FO input'!AR78 -> 0 | AS78: ='[3]Capex_FO input'!AS78 -> 0 | AT78: ='[3]Capex_FO input'!AT78 -> 0 | AV78: 0 | AW78: 0 | AX78: 0 | AY78: 0 | AZ78: 0 | BA78: 0 | BB78: 0 | BC78: 0 | BD78: 0.4 | BE78: 0.4 | BG78: 0 | BH78: 0 | BI78: 0 | BJ78: 0 | BK78: 0 | BL78: 0 | BM78: 0 | BN78: 0 | BO78: 0 | BP78: 0.008888888889 | BR78: =+IF($K78="Ongoing",AV78,IF(RIGHT($K78,2)=RIGHT(BR$39,2),SUM($AV78:AV78),0)+IF(RIGHT(BR$39,2)>RIGHT($K78,2),AV78,0)) -> 0 | BS78: =+IF($K78="Ongoing",AW78,IF(RIGHT($K78,2)=RIGHT(BS$39,2),SUM($AV78:AW78),0)+IF(RIGHT(BS$39,2)>RIGHT($K78,2),AW78,0)) -> 0 | BT78: =+IF($K78="Ongoing",AX78,IF(RIGHT($K78,2)=RIGHT(BT$39,2),SUM($AV78:AX78),0)+IF(RIGHT(BT$39,2)>RIGHT($K78,2),AX78,0)) -> 0 | BU78: =+IF($K78="Ongoing",AY78,IF(RIGHT($K78,2)=RIGHT(BU$39,2),SUM($AV78:AY78),0)+IF(RIGHT(BU$39,2)>RIGHT($K78,2),AY78,0)) -> 0 | BV78: =+IF($K78="Ongoing",AZ78,IF(RIGHT($K78,2)=RIGHT(BV$39,2),SUM($AV78:AZ78),0)+IF(RIGHT(BV$39,2)>RIGHT($K78,2),AZ78,0)) -> 0 | BW78: =+IF($K78="Ongoing",BA78,IF(RIGHT($K78,2)=RIGHT(BW$39,2),SUM($AV78:BA78),0)+IF(RIGHT(BW$39,2)>RIGHT($K78,2),BA78,0)) -> 0 | BX78: =+IF($K78="Ongoing",BB78,IF(RIGHT($K78,2)=RIGHT(BX$39,2),SUM($AV78:BB78),0)+IF(RIGHT(BX$39,2)>RIGHT($K78,2),BB78,0)) -> 0 | BY78: =+IF($K78="Ongoing",BC78,IF(RIGHT($K78,2)=RIGHT(BY$39,2),SUM($AV78:BC78),0)+IF(RIGHT(BY$39,2)>RIGHT($K78,2),BC78,0)) -> 0 | BZ78: =+IF($K78="Ongoing",BD78,IF(RIGHT($K78,2)=RIGHT(BZ$39,2),SUM($AV78:BD78),0)+IF(RIGHT(BZ$39,2)>RIGHT($K78,2),BD78,0)) -> 0 | CA78: =+IF($K78="Ongoing",BE78,IF(RIGHT($K78,2)=RIGHT(CA$39,2),SUM($AV78:BE78),0)+IF(RIGHT(CA$39,2)>RIGHT($K78,2),BE78,0)) -> 0.8 | CC78: =+O78*KeyAssumptionsPriceControl_FO!AC$15 -> 0 | CD78: =+P78*KeyAssumptionsPriceControl_FO!AD$15 -> 0 | CE78: =+Q78*KeyAssumptionsPriceControl_FO!AE$15 -> 0 | CF78: =+R78*KeyAssumptionsPriceControl_FO!AF$15 -> 0 | CG78: =+S78*KeyAssumptionsPriceControl_FO!AG$15 -> 0 | CH78: =+T78*KeyAssumptionsPriceControl_FO!AH$15 -> 0 | CI78: =+U78*KeyAssumptionsPriceControl_FO!AI$15 -> 0 | CJ78: =+V78*KeyAssumptionsPriceControl_FO!AJ$15 -> 0 | CK78: =+W78*KeyAssumptionsPriceControl_FO!AK$15 -> 0.5219092735 | CL78: =+X78*KeyAssumptionsPriceControl_FO!AL$15 -> 0.5375665517 | CN78: 0 | CO78: 0 | CP78: 0 | CQ78: 0 | CR78: 0 | CS78: 0 | CT78: 0 | CU78: 0 | CV78: 0.01174295865 | CW78: 0.03558116472
C79: ='[3]Capex_FO input'!C79 -> MER - Main PS (M1 - M4) VSD Refurb | D79: ='[3]Capex_FO input'!D79 -> 0 | E79: ='[3]Capex_FO input'!E79 -> Irrigation | F79: ='[3]Capex_FO input'!F79 -> Renewals | G79: ='[3]Capex_FO input'!G79 -> Headworks | H79: ='[3]Capex_FO input'!H79 -> Significant Projects | I79: ='[3]Capex_FO input'!I79 -> 0 | J79: Straight line | K79: ='[3]Capex_FO input'!K79 -> 2025-26 | L79: ='[3]Capex_FO input'!L79 -> 45 | M79: ='[3]Capex_FO input'!M79 -> 22.22222222 | O79: ='[3]Capex_FO input'!O79 -> 0 | P79: ='[3]Capex_FO input'!P79 -> 0.36 | Q79: ='[3]Capex_FO input'!Q79 -> 0.36 | R79: ='[3]Capex_FO input'!R79 -> 0 | S79: ='[3]Capex_FO input'!S79 -> 0 | T79: ='[3]Capex_FO input'!T79 -> 0 | U79: ='[3]Capex_FO input'!U79 -> 0 | V79: ='[3]Capex_FO input'!V79 -> 0 | W79: ='[3]Capex_FO input'!W79 -> 0 | X79: ='[3]Capex_FO input'!X79 -> 0 | Z79: ='[3]Capex_FO input'!Z79 -> 0 | AA79: ='[3]Capex_FO input'!AA79 -> 0 | AB79: ='[3]Capex_FO input'!AB79 -> 0 | AC79: ='[3]Capex_FO input'!AC79 -> 0 | AD79: ='[3]Capex_FO input'!AD79 -> 0 | AE79: ='[3]Capex_FO input'!AE79 -> 0 | AF79: ='[3]Capex_FO input'!AF79 -> 0 | AG79: ='[3]Capex_FO input'!AG79 -> 0 | AH79: ='[3]Capex_FO input'!AH79 -> 0 | AI79: ='[3]Capex_FO input'!AI79 -> 0 | AK79: ='[3]Capex_FO input'!AK79 -> 0 | AL79: ='[3]Capex_FO input'!AL79 -> 0 | AM79: ='[3]Capex_FO input'!AM79 -> 0 | AN79: ='[3]Capex_FO input'!AN79 -> 0 | AO79: ='[3]Capex_FO input'!AO79 -> 0 | AP79: ='[3]Capex_FO input'!AP79 -> 0 | AQ79: ='[3]Capex_FO input'!AQ79 -> 0 | AR79: ='[3]Capex_FO input'!AR79 -> 0 | AS79: ='[3]Capex_FO input'!AS79 -> 0 | AT79: ='[3]Capex_FO input'!AT79 -> 0 | AV79: 0 | AW79: 0.36 | AX79: 0.36 | AY79: 0 | AZ79: 0 | BA79: 0 | BB79: 0 | BC79: 0 | BD79: 0 | BE79: 0 | BG79: 0 | BH79: 0 | BI79: 0.008 | BJ79: 0.016 | BK79: 0.016 | BL79: 0.016 | BM79: 0.016 | BN79: 0.016 | BO79: 0.016 | BP79: 0.016 | BR79: =+IF($K79="Ongoing",AV79,IF(RIGHT($K79,2)=RIGHT(BR$39,2),SUM($AV79:AV79),0)+IF(RIGHT(BR$39,2)>RIGHT($K79,2),AV79,0)) -> 0 | BS79: =+IF($K79="Ongoing",AW79,IF(RIGHT($K79,2)=RIGHT(BS$39,2),SUM($AV79:AW79),0)+IF(RIGHT(BS$39,2)>RIGHT($K79,2),AW79,0)) -> 0 | BT79: =+IF($K79="Ongoing",AX79,IF(RIGHT($K79,2)=RIGHT(BT$39,2),SUM($AV79:AX79),0)+IF(RIGHT(BT$39,2)>RIGHT($K79,2),AX79,0)) -> 0.72 | BU79: =+IF($K79="Ongoing",AY79,IF(RIGHT($K79,2)=RIGHT(BU$39,2),SUM($AV79:AY79),0)+IF(RIGHT(BU$39,2)>RIGHT($K79,2),AY79,0)) -> 0 | BV79: =+IF($K79="Ongoing",AZ79,IF(RIGHT($K79,2)=RIGHT(BV$39,2),SUM($AV79:AZ79),0)+IF(RIGHT(BV$39,2)>RIGHT($K79,2),AZ79,0)) -> 0 | BW79: =+IF($K79="Ongoing",BA79,IF(RIGHT($K79,2)=RIGHT(BW$39,2),SUM($AV79:BA79),0)+IF(RIGHT(BW$39,2)>RIGHT($K79,2),BA79,0)) -> 0 | BX79: =+IF($K79="Ongoing",BB79,IF(RIGHT($K79,2)=RIGHT(BX$39,2),SUM($AV79:BB79),0)+IF(RIGHT(BX$39,2)>RIGHT($K79,2),BB79,0)) -> 0 | BY79: =+IF($K79="Ongoing",BC79,IF(RIGHT($K79,2)=RIGHT(BY$39,2),SUM($AV79:BC79),0)+IF(RIGHT(BY$39,2)>RIGHT($K79,2),BC79,0)) -> 0 | BZ79: =+IF($K79="Ongoing",BD79,IF(RIGHT($K79,2)=RIGHT(BZ$39,2),SUM($AV79:BD79),0)+IF(RIGHT(BZ$39,2)>RIGHT($K79,2),BD79,0)) -> 0 | CA79: =+IF($K79="Ongoing",BE79,IF(RIGHT($K79,2)=RIGHT(CA$39,2),SUM($AV79:BE79),0)+IF(RIGHT(CA$39,2)>RIGHT($K79,2),BE79,0)) -> 0 | CC79: =+O79*KeyAssumptionsPriceControl_FO!AC$15 -> 0 | CD79: =+P79*KeyAssumptionsPriceControl_FO!AD$15 -> 0.381924 | CE79: =+Q79*KeyAssumptionsPriceControl_FO!AE$15 -> 0.39338172 | CF79: =+R79*KeyAssumptionsPriceControl_FO!AF$15 -> 0 | CG79: =+S79*KeyAssumptionsPriceControl_FO!AG$15 -> 0 | CH79: =+T79*KeyAssumptionsPriceControl_FO!AH$15 -> 0 | CI79: =+U79*KeyAssumptionsPriceControl_FO!AI$15 -> 0 | CJ79: =+V79*KeyAssumptionsPriceControl_FO!AJ$15 -> 0 | CK79: =+W79*KeyAssumptionsPriceControl_FO!AK$15 -> 0 | CL79: =+X79*KeyAssumptionsPriceControl_FO!AL$15 -> 0 | CN79: 0 | CO79: 0.00859329 | CP79: 0.0260376687 | CQ79: 0.0348887574 | CR79: 0.0348887574 | CS79: 0.0348887574 | CT79: 0.0348887574 | CU79: 0.0348887574 | CV79: 0.0348887574 | CW79: 0.0348887574
